Workbook

Sheet UNWDF_Medellín_2024_en
D1: Day | E1: 12 | F1: UNITED NATIONS WORLD DATA FORUM 2024 (12 - 15 NOVEMBER)
B2: NOW (Local time) | C2: =NOW() -> 2024-11-13T11:21:05.890 | D2: Month | E2: 11 | F2: Plaza Mayor Medellín Conventions and Exhibitions, Medellín, Colombia
B3: GMT-5/UTC-5 (Medellín time) | C3: =Local2GMT(NOW())+(-5/24) -> 2024-11-13T11:21:05.890 | D3: Year | E3: 2024 | F3: Provisional programme, as of 13 November 2024
A4: Day0 | E4: =DATE($E$3,$E$2,$E$1+MID(B8,4,1)) -> 2024-11-12 | F4: =IF(ISERROR(DATE($E$3,$E$2,$E$1+MID(B8,4,1))+TIME(MID(E8,1,2),MID(E8,4,2),0)+($C$2-$C$3)),DATE($E$3,$E$2,$E$1+MID(B8,4,1)),TEXT(DATE($E$3,$E$2,$E$1+MID(B8,4,1))+TIME(MID(E8,1,2),MID(E8,4,2),0)+($C$2-$C$3),"DDDDDD, DD MMMM YYYY")&" [Date changes shown on row]") -> Tuesday, 12 November 2024 [Date changes shown on row]
C5: LookUp | G5: LookUp | H5: Parallel 01 | I5: Parallel 02 | J5: Parallel 03 | K5: Parallel 04 | L5: Parallel 05 | M5: Parallel 06 | N5: Parallel 07 | O5: Parallel 08 | P5: Parallel 09 | Q5: Parallel 10 | R5: Parallel 11 | S5: Parallel 12
F6: Time (Auto-adjusts to your local time, unless "(Medellín time)" shown) | G6: Rm Name | H6: Plenary Room | I6: Room 1 | J6: Room 2 | K6: Room 3 | L6: Room 4 | M6: Room 5 | N6: Room 6 | O6: Room 7 | P6: Room 8 | Q6: Room 9 | R6: Room 10 | S6: NA
A7: DayTime_LookUp | B7: Day_LookUp | C7: Time_LookUp | D7: Col_LookUp | E7: Time (GMT/UTC time-5) | G7: Capacity | H7: 3000 | I7: 300 | J7: 200 | K7: 200 | L7: 200 | M7: 200 | N7: 150 | O7: 150 | P7: 90 | Q7: 60 | R7: 60 | S7: NA
A8: =B8&C8 -> Day0Time_Slot1 | B8: Day0 | C8: Time_Slot1 | D8: 16 | E8: 11:00 - 12:00 (Medellín Time) | F8: =IF(ISERROR(TEXT((DATE($E$3,$E$2,$E$1+MID(B8,4,1))+TIME(MID(E8,1,2),MID(E8,4,2),0))+($C$2-$C$3),"H:MM AM/PM")&" - "&TEXT(DATE($E$3,$E$2,$E$1+MID(B8,4,1))+TIME(MID(E8,9,2),MID(E8,12,2),0)+($C$2-$C$3),"H:MM AM/PM")),E8,TEXT(DATE($E$3,$E$2,$E$1+MID(B8,4,1))+TIME(MID(E8,1,2),MID(E8,4,2),0)+($C$2-$C$3),"DDDD DD MMM")&" : "&TEXT((DATE($E$3,$E$2,$E$1+MID(B8,4,1))+TIME(MID(E8,1,2),MID(E8,4,2),0))+($C$2-$C$3),"H:MM AM/PM")&" - "&TEXT(DATE($E$3,$E$2,$E$1+MID(B8,4,1))+TIME(MID(E8,9,2),MID(E8,12,2),0)+($C$2-$C$3),"H:MM AM/PM")) -> Tuesday 12 Nov : 11:00 AM - 12:00 PM | G8: Event Title | H8: =IF(VLOOKUP($B8&"_"&$C8&"_"&H$14,UNWDF2024_LookUp!$B:$T,$D8,FALSE)=0,"",VLOOKUP($B8&"_"&$C8&"_"&H$14,UNWDF2024_LookUp!$B:$T,$D8,FALSE)) -> Opening press conference (LOCATION: Media Corner)
A9: Day0Time_Slot1 | B9: Day0 | C9: Time_Slot1 | D9: 17 | G9: Organiser | H9: =IF(VLOOKUP($B9&"_"&$C9&"_"&H$14,UNWDF2024_LookUp!$B:$T,$D9,FALSE)=0,"",VLOOKUP($B9&"_"&$C9&"_"&H$14,UNWDF2024_LookUp!$B:$T,$D9,FALSE)) -> Departamento Administrativo Nacional de Estadística (DANE-Colombia); United Nations Statistics Division (UNSD-DESA)
B10: Day0 | E10: 12:00 - 15:30 (Medellín time) | F10: =IF(ISERROR(TEXT((DATE($E$3,$E$2,$E$1+MID(B10,4,1))+TIME(MID(E10,1,2),MID(E10,4,2),0))+($C$2-$C$3),"H:MM AM/PM")&" - "&TEXT(DATE($E$3,$E$2,$E$1+MID(B10,4,1))+TIME(MID(E10,9,2),MID(E10,12,2),0)+($C$2-$C$3),"H:MM AM/PM")),E10,TEXT((DATE($E$3,$E$2,$E$1+MID(B10,4,1))+TIME(MID(E10,1,2),MID(E10,4,2),0))+($C$2-$C$3),"H:MM AM/PM")&" - "&TEXT(DATE($E$3,$E$2,$E$1+MID(B10,4,1))+TIME(MID(E10,9,2),MID(E10,12,2),0)+($C$2-$C$3),"H:MM AM/PM")) -> 12:00 PM - 3:30 PM | G10: BREAK
A11: =B11&C11 -> Day0Time_Slot2 | B11: Day0 | C11: Time_Slot2 | D11: 16 | E11: 15:30 - 17:00 (Medellín Time) | F11: =IF(ISERROR(TEXT((DATE($E$3,$E$2,$E$1+MID(B11,4,1))+TIME(MID(E11,1,2),MID(E11,4,2),0))+($C$2-$C$3),"H:MM AM/PM")&" - "&TEXT(DATE($E$3,$E$2,$E$1+MID(B11,4,1))+TIME(MID(E11,9,2),MID(E11,12,2),0)+($C$2-$C$3),"H:MM AM/PM")),E11,TEXT(DATE($E$3,$E$2,$E$1+MID(B11,4,1))+TIME(MID(E11,1,2),MID(E11,4,2),0)+($C$2-$C$3),"DDDD DD MMM")&" : "&TEXT((DATE($E$3,$E$2,$E$1+MID(B11,4,1))+TIME(MID(E11,1,2),MID(E11,4,2),0))+($C$2-$C$3),"H:MM AM/PM")&" - "&TEXT(DATE($E$3,$E$2,$E$1+MID(B11,4,1))+TIME(MID(E11,9,2),MID(E11,12,2),0)+($C$2-$C$3),"H:MM AM/PM")) -> Tuesday 12 Nov : 3:30 PM - 5:00 PM | G11: Event Title | H11: =IF(VLOOKUP($B11&"_"&$C11&"_"&H$14,UNWDF2024_LookUp!$B:$T,$D11,FALSE)=0,"",VLOOKUP($B11&"_"&$C11&"_"&H$14,UNWDF2024_LookUp!$B:$T,$D11,FALSE)) -> Opening ceremony
A12: Day0Time_Slot2 | B12: Day0 | C12: Time_Slot2 | D12: 17 | G12: Organiser | H12: =IF(VLOOKUP($B12&"_"&$C12&"_"&H$14,UNWDF2024_LookUp!$B:$T,$D12,FALSE)=0,"",VLOOKUP($B12&"_"&$C12&"_"&H$14,UNWDF2024_LookUp!$B:$T,$D12,FALSE)) -> Departamento Administrativo Nacional de Estadística (DANE-Colombia)
A13: Day1 | E13: =DATE($E$3,$E$2,$E$1+MID(B17,4,1)) -> 2024-11-13 | F13: =IF(ISERROR(DATE($E$3,$E$2,$E$1+MID(B17,4,1))+TIME(MID(E17,1,2),MID(E17,4,2),0)+($C$2-$C$3)),DATE($E$3,$E$2,$E$1+MID(B17,4,1)),TEXT(DATE($E$3,$E$2,$E$1+MID(B17,4,1))+TIME(MID(E17,1,2),MID(E17,4,2),0)+($C$2-$C$3),"DDDDDD, DD MMMM YYYY")&" [Date changes shown on row]") -> Wednesday, 13 November 2024 [Date changes shown on row]
C14: LookUp | G14: LookUp | H14: Parallel 01 | I14: Parallel 02 | J14: Parallel 03 | K14: Parallel 04 | L14: Parallel 05 | M14: Parallel 06 | N14: Parallel 07 | O14: Parallel 08 | P14: Parallel 09 | Q14: Parallel 10 | R14: Parallel 11 | S14: Parallel 12
F15: Time (Auto-adjusts to your local time, unless "(Medellín time)" shown) | G15: Rm Name | H15: Plenary Room | I15: Room 1 | J15: Room 2 | K15: Room 3 | L15: Room 4 | M15: Room 5 | N15: Room 6 | O15: Room 7 | P15: Room 8 | Q15: Room 9 | R15: Room 10 | S15: NA
A16: DayTime_LookUp | B16: Day_LookUp | C16: Time_LookUp | D16: Col_LookUp | E16: Time (GMT/UTC time+8) | G16: Capacity | H16: 3000 | I16: 300 | J16: 200 | K16: 200 | L16: 200 | M16: 200 | N16: 150 | O16: 150 | P16: 90 | Q16: 60 | R16: 60 | S16: NA
A17: =B17&C17 -> Day1Time_Slot1 | B17: Day1 | C17: Time_Slot1 | D17: 15 | E17: 09:00 - 10:30 (Medellín time) | F17: =IF(ISERROR(TEXT((DATE($E$3,$E$2,$E$1+MID(B17,4,1))+TIME(MID(E17,1,2),MID(E17,4,2),0))+($C$2-$C$3),"H:MM AM/PM")&" - "&TEXT(DATE($E$3,$E$2,$E$1+MID(B17,4,1))+TIME(MID(E17,9,2),MID(E17,12,2),0)+($C$2-$C$3),"H:MM AM/PM")),E17,TEXT(DATE($E$3,$E$2,$E$1+MID(B17,4,1))+TIME(MID(E17,1,2),MID(E17,4,2),0)+($C$2-$C$3),"DDDD DD MMM")&" : "&TEXT((DATE($E$3,$E$2,$E$1+MID(B17,4,1))+TIME(MID(E17,1,2),MID(E17,4,2),0))+($C$2-$C$3),"H:MM AM/PM")&" - "&TEXT(DATE($E$3,$E$2,$E$1+MID(B17,4,1))+TIME(MID(E17,9,2),MID(E17,12,2),0)+($C$2-$C$3),"H:MM AM/PM")) -> Wednesday 13 Nov : 9:00 AM - 10:30 AM | G17: Event_ID | H17: =IF(VLOOKUP($B17&"_"&$C17&"_"&H$14,UNWDF2024_LookUp!$B:$T,$D17,FALSE)=0,"",VLOOKUP($B17&"_"&$C17&"_"&H$14,UNWDF2024_LookUp!$B:$T,$D17,FALSE)) -> TA_O.03
A18: Day1Time_Slot1 | B18: Day1 | C18: Time_Slot1 | D18: 13 | G18: Thematic Area | H18: =IF(VLOOKUP($B18&"_"&$C18&"_"&H$14,UNWDF2024_LookUp!$B:$T,$D18,FALSE)=0,"",VLOOKUP($B18&"_"&$C18&"_"&H$14,UNWDF2024_LookUp!$B:$T,$D18,FALSE)) -> _O
A19: =B19&C19 -> Day1Time_Slot1 | B19: Day1 | C19: Time_Slot1 | D19: 16 | G19: Event Title | H19: =IF(VLOOKUP($B19&"_"&$C19&"_"&H$14,UNWDF2024_LookUp!$B:$T,$D19,FALSE)=0,"",VLOOKUP($B19&"_"&$C19&"_"&H$14,UNWDF2024_LookUp!$B:$T,$D19,FALSE)) -> Welcome and introduction
A20: Day1Time_Slot1 | B20: Day1 | C20: Time_Slot1 | D20: 17 | G20: Organiser | H20: =IF(VLOOKUP($B20&"_"&$C20&"_"&H$14,UNWDF2024_LookUp!$B:$T,$D20,FALSE)=0,"",VLOOKUP($B20&"_"&$C20&"_"&H$14,UNWDF2024_LookUp!$B:$T,$D20,FALSE)) -> Departamento Administrativo Nacional de Estadística (DANE-Colombia) / United Nations Statistics Division (UNSD-DESA)
B21: Day1 | E21: 10:30 - 10:40 (Medellín time) | F21: =IF(ISERROR(TEXT((DATE($E$3,$E$2,$E$1+MID(B21,4,1))+TIME(MID(E21,1,2),MID(E21,4,2),0))+($C$2-$C$3),"H:MM AM/PM")&" - "&TEXT(DATE($E$3,$E$2,$E$1+MID(B21,4,1))+TIME(MID(E21,9,2),MID(E21,12,2),0)+($C$2-$C$3),"H:MM AM/PM")),E21,TEXT((DATE($E$3,$E$2,$E$1+MID(B21,4,1))+TIME(MID(E21,1,2),MID(E21,4,2),0))+($C$2-$C$3),"H:MM AM/PM")&" - "&TEXT(DATE($E$3,$E$2,$E$1+MID(B21,4,1))+TIME(MID(E21,9,2),MID(E21,12,2),0)+($C$2-$C$3),"H:MM AM/PM")) -> 10:30 AM - 10:40 AM | G21: BREAK
A22: Day1Time_Slot2 | B22: Day1 | C22: Time_Slot2 | D22: 15 | E22: 10:40 - 11:55 (Medellín time) | F22: =IF(ISERROR(TEXT((DATE($E$3,$E$2,$E$1+MID(B22,4,1))+TIME(MID(E22,1,2),MID(E22,4,2),0))+($C$2-$C$3),"H:MM AM/PM")&" - "&TEXT(DATE($E$3,$E$2,$E$1+MID(B22,4,1))+TIME(MID(E22,9,2),MID(E22,12,2),0)+($C$2-$C$3),"H:MM AM/PM")),E22,TEXT(DATE($E$3,$E$2,$E$1+MID(B22,4,1))+TIME(MID(E22,1,2),MID(E22,4,2),0)+($C$2-$C$3),"DDDD DD MMM")&" : "&TEXT((DATE($E$3,$E$2,$E$1+MID(B22,4,1))+TIME(MID(E22,1,2),MID(E22,4,2),0))+($C$2-$C$3),"H:MM AM/PM")&" - "&TEXT(DATE($E$3,$E$2,$E$1+MID(B22,4,1))+TIME(MID(E22,9,2),MID(E22,12,2),0)+($C$2-$C$3),"H:MM AM/PM")) -> Wednesday 13 Nov : 10:40 AM - 11:55 AM | G22: Event_ID | H22: =IF(VLOOKUP($B22&"_"&$C22&"_"&H$14,UNWDF2024_LookUp!$B:$T,$D22,FALSE)=0,"",VLOOKUP($B22&"_"&$C22&"_"&H$14,UNWDF2024_LookUp!$B:$T,$D22,FALSE)) -> TA1.1
B23: Day1 | C23: Time_Slot2 | D23: 13 | G23: Thematic Area | H23: =IF(VLOOKUP($B23&"_"&$C23&"_"&H$14,UNWDF2024_LookUp!$B:$T,$D23,FALSE)=0,"",VLOOKUP($B23&"_"&$C23&"_"&H$14,UNWDF2024_LookUp!$B:$T,$D23,FALSE)) -> 1
A24: =B24&C24 -> Day1Time_Slot2 | B24: Day1 | C24: Time_Slot2 | D24: 16 | G24: Event Title | H24: =IF(VLOOKUP($B24&"_"&$C24&"_"&H$14,UNWDF2024_LookUp!$B:$T,$D24,FALSE)=0,"",VLOOKUP($B24&"_"&$C24&"_"&H$14,UNWDF2024_LookUp!$B:$T,$D24,FALSE)) -> Innovation for better and more inclusive data
A25: Day1Time_Slot2 | B25: Day1 | C25: Time_Slot2 | D25: 17 | G25: Organiser | H25: =IF(VLOOKUP($B25&"_"&$C25&"_"&H$14,UNWDF2024_LookUp!$B:$T,$D25,FALSE)=0,"",VLOOKUP($B25&"_"&$C25&"_"&H$14,UNWDF2024_LookUp!$B:$T,$D25,FALSE)) -> UN World Data Forum Programme Committee (UNWDF PC)
B26: Day1 | E26: 11:55 - 12:15 (Medellín time) | F26: =IF(ISERROR(TEXT((DATE($E$3,$E$2,$E$1+MID(B26,4,1))+TIME(MID(E26,1,2),MID(E26,4,2),0))+($C$2-$C$3),"H:MM AM/PM")&" - "&TEXT(DATE($E$3,$E$2,$E$1+MID(B26,4,1))+TIME(MID(E26,9,2),MID(E26,12,2),0)+($C$2-$C$3),"H:MM AM/PM")),E26,TEXT((DATE($E$3,$E$2,$E$1+MID(B26,4,1))+TIME(MID(E26,1,2),MID(E26,4,2),0))+($C$2-$C$3),"H:MM AM/PM")&" - "&TEXT(DATE($E$3,$E$2,$E$1+MID(B26,4,1))+TIME(MID(E26,9,2),MID(E26,12,2),0)+($C$2-$C$3),"H:MM AM/PM")) -> 11:55 AM - 12:15 PM | G26: BREAK
A27: =B27&C27 -> Day1Time_Slot3 | B27: Day1 | C27: Time_Slot3 | D27: 15 | E27: 12:15 - 13:15 (Medellín time) | F27: =IF(ISERROR(TEXT((DATE($E$3,$E$2,$E$1+MID(B27,4,1))+TIME(MID(E27,1,2),MID(E27,4,2),0))+($C$2-$C$3),"H:MM AM/PM")&" - "&TEXT(DATE($E$3,$E$2,$E$1+MID(B27,4,1))+TIME(MID(E27,9,2),MID(E27,12,2),0)+($C$2-$C$3),"H:MM AM/PM")),E27,TEXT(DATE($E$3,$E$2,$E$1+MID(B27,4,1))+TIME(MID(E27,1,2),MID(E27,4,2),0)+($C$2-$C$3),"DDDD DD MMM")&" : "&TEXT((DATE($E$3,$E$2,$E$1+MID(B27,4,1))+TIME(MID(E27,1,2),MID(E27,4,2),0))+($C$2-$C$3),"H:MM AM/PM")&" - "&TEXT(DATE($E$3,$E$2,$E$1+MID(B27,4,1))+TIME(MID(E27,9,2),MID(E27,12,2),0)+($C$2-$C$3),"H:MM AM/PM")) -> Wednesday 13 Nov : 12:15 PM - 1:15 PM | G27: Event_ID | I27: =IF(VLOOKUP($B27&"_"&$C27&"_"&I$14,UNWDF2024_LookUp!$B:$T,$D27,FALSE)=0,"",VLOOKUP($B27&"_"&$C27&"_"&I$14,UNWDF2024_LookUp!$B:$T,$D27,FALSE)) -> TA1.2 | J27: =IF(VLOOKUP($B27&"_"&$C27&"_"&J$14,UNWDF2024_LookUp!$B:$T,$D27,FALSE)=0,"",VLOOKUP($B27&"_"&$C27&"_"&J$14,UNWDF2024_LookUp!$B:$T,$D27,FALSE)) -> TA1.4 | K27: =IF(VLOOKUP($B27&"_"&$C27&"_"&K$14,UNWDF2024_LookUp!$B:$T,$D27,FALSE)=0,"",VLOOKUP($B27&"_"&$C27&"_"&K$14,UNWDF2024_LookUp!$B:$T,$D27,FALSE)) -> TA1.14 | L27: =IF(VLOOKUP($B27&"_"&$C27&"_"&L$14,UNWDF2024_LookUp!$B:$T,$D27,FALSE)=0,"",VLOOKUP($B27&"_"&$C27&"_"&L$14,UNWDF2024_LookUp!$B:$T,$D27,FALSE)) -> NA | M27: =IF(VLOOKUP($B27&"_"&$C27&"_"&M$14,UNWDF2024_LookUp!$B:$T,$D27,FALSE)=0,"",VLOOKUP($B27&"_"&$C27&"_"&M$14,UNWDF2024_LookUp!$B:$T,$D27,FALSE)) -> TA4.8 | N27: =IF(VLOOKUP($B27&"_"&$C27&"_"&N$14,UNWDF2024_LookUp!$B:$T,$D27,FALSE)=0,"",VLOOKUP($B27&"_"&$C27&"_"&N$14,UNWDF2024_LookUp!$B:$T,$D27,FALSE)) -> TED.201 | O27: =IF(VLOOKUP($B27&"_"&$C27&"_"&O$14,UNWDF2024_LookUp!$B:$T,$D27,FALSE)=0,"",VLOOKUP($B27&"_"&$C27&"_"&O$14,UNWDF2024_LookUp!$B:$T,$D27,FALSE)) -> TED.211 | P27: =IF(VLOOKUP($B27&"_"&$C27&"_"&P$14,UNWDF2024_LookUp!$B:$T,$D27,FALSE)=0,"",VLOOKUP($B27&"_"&$C27&"_"&P$14,UNWDF2024_LookUp!$B:$T,$D27,FALSE)) -> Local_1 | Q27: =IF(VLOOKUP($B27&"_"&$C27&"_"&Q$14,UNWDF2024_LookUp!$B:$T,$D27,FALSE)=0,"",VLOOKUP($B27&"_"&$C27&"_"&Q$14,UNWDF2024_LookUp!$B:$T,$D27,FALSE)) -> LEARN.301 | R27: =IF(VLOOKUP($B27&"_"&$C27&"_"&R$14,UNWDF2024_LookUp!$B:$T,$D27,FALSE)=0,"",VLOOKUP($B27&"_"&$C27&"_"&R$14,UNWDF2024_LookUp!$B:$T,$D27,FALSE)) -> DEMO.501
A28: Day1Time_Slot3 | B28: Day1 | C28: Time_Slot3 | D28: 13 | G28: Thematic Area | I28: =IF(VLOOKUP($B28&"_"&$C28&"_"&I$14,UNWDF2024_LookUp!$B:$T,$D28,FALSE)=0,"",VLOOKUP($B28&"_"&$C28&"_"&I$14,UNWDF2024_LookUp!$B:$T,$D28,FALSE)) -> 1 | J28: =IF(VLOOKUP($B28&"_"&$C28&"_"&J$14,UNWDF2024_LookUp!$B:$T,$D28,FALSE)=0,"",VLOOKUP($B28&"_"&$C28&"_"&J$14,UNWDF2024_LookUp!$B:$T,$D28,FALSE)) -> 1 | K28: =IF(VLOOKUP($B28&"_"&$C28&"_"&K$14,UNWDF2024_LookUp!$B:$T,$D28,FALSE)=0,"",VLOOKUP($B28&"_"&$C28&"_"&K$14,UNWDF2024_LookUp!$B:$T,$D28,FALSE)) -> 1 | L28: =IF(VLOOKUP($B28&"_"&$C28&"_"&L$14,UNWDF2024_LookUp!$B:$T,$D28,FALSE)=0,"",VLOOKUP($B28&"_"&$C28&"_"&L$14,UNWDF2024_LookUp!$B:$T,$D28,FALSE)) -> NA | M28: =IF(VLOOKUP($B28&"_"&$C28&"_"&M$14,UNWDF2024_LookUp!$B:$T,$D28,FALSE)=0,"",VLOOKUP($B28&"_"&$C28&"_"&M$14,UNWDF2024_LookUp!$B:$T,$D28,FALSE)) -> 4 | N28: =IF(VLOOKUP($B28&"_"&$C28&"_"&N$14,UNWDF2024_LookUp!$B:$T,$D28,FALSE)=0,"",VLOOKUP($B28&"_"&$C28&"_"&N$14,UNWDF2024_LookUp!$B:$T,$D28,FALSE)) -> _T | O28: =IF(VLOOKUP($B28&"_"&$C28&"_"&O$14,UNWDF2024_LookUp!$B:$T,$D28,FALSE)=0,"",VLOOKUP($B28&"_"&$C28&"_"&O$14,UNWDF2024_LookUp!$B:$T,$D28,FALSE)) -> _T | P28: =IF(VLOOKUP($B28&"_"&$C28&"_"&P$14,UNWDF2024_LookUp!$B:$T,$D28,FALSE)=0,"",VLOOKUP($B28&"_"&$C28&"_"&P$14,UNWDF2024_LookUp!$B:$T,$D28,FALSE)) -> NA | Q28: =IF(VLOOKUP($B28&"_"&$C28&"_"&Q$14,UNWDF2024_LookUp!$B:$T,$D28,FALSE)=0,"",VLOOKUP($B28&"_"&$C28&"_"&Q$14,UNWDF2024_LookUp!$B:$T,$D28,FALSE)) -> _L | R28: =IF(VLOOKUP($B28&"_"&$C28&"_"&R$14,UNWDF2024_LookUp!$B:$T,$D28,FALSE)=0,"",VLOOKUP($B28&"_"&$C28&"_"&R$14,UNWDF2024_LookUp!$B:$T,$D28,FALSE)) -> _D
A29: =B29&C29 -> Day1Time_Slot3 | B29: Day1 | C29: Time_Slot3 | D29: 16 | G29: Event Title | I29: =IF(VLOOKUP($B29&"_"&$C29&"_"&I$14,UNWDF2024_LookUp!$B:$T,$D29,FALSE)=0,"",VLOOKUP($B29&"_"&$C29&"_"&I$14,UNWDF2024_LookUp!$B:$T,$D29,FALSE)) -> Leveraging AI and open data to address pressing global and local development challenges | J29: =IF(VLOOKUP($B29&"_"&$C29&"_"&J$14,UNWDF2024_LookUp!$B:$T,$D29,FALSE)=0,"",VLOOKUP($B29&"_"&$C29&"_"&J$14,UNWDF2024_LookUp!$B:$T,$D29,FALSE)) -> Improving access to civil registration services for lesbian, gay, bisexual, transgender, queer, intersex and asexual (LGBTQIA+) communities globally by strengthening national and regional laws and data systems and ensuring legal identity. | K29: =IF(VLOOKUP($B29&"_"&$C29&"_"&K$14,UNWDF2024_LookUp!$B:$T,$D29,FALSE)=0,"",VLOOKUP($B29&"_"&$C29&"_"&K$14,UNWDF2024_LookUp!$B:$T,$D29,FALSE)) -> Taking Data Into Our Own Hands: co-creating the roadmap to implement the Copenhagen Framework on Citizen Data | L29: =IF(VLOOKUP($B29&"_"&$C29&"_"&L$14,UNWDF2024_LookUp!$B:$T,$D29,FALSE)=0,"",VLOOKUP($B29&"_"&$C29&"_"&L$14,UNWDF2024_LookUp!$B:$T,$D29,FALSE)) -> TBC | M29: =IF(VLOOKUP($B29&"_"&$C29&"_"&M$14,UNWDF2024_LookUp!$B:$T,$D29,FALSE)=0,"",VLOOKUP($B29&"_"&$C29&"_"&M$14,UNWDF2024_LookUp!$B:$T,$D29,FALSE)) -> Leveraging Multistakeholder Data-Driven Efforts for Ending Hunger: The Food System Countdown Initiative | N29: =IF(VLOOKUP($B29&"_"&$C29&"_"&N$14,UNWDF2024_LookUp!$B:$T,$D29,FALSE)=0,"",VLOOKUP($B29&"_"&$C29&"_"&N$14,UNWDF2024_LookUp!$B:$T,$D29,FALSE)) -> From Traditional Surveys to Emerging Technologies: Their Role in Evidence-Based Environmental Policy Making | O29: =IF(VLOOKUP($B29&"_"&$C29&"_"&O$14,UNWDF2024_LookUp!$B:$T,$D29,FALSE)=0,"",VLOOKUP($B29&"_"&$C29&"_"&O$14,UNWDF2024_LookUp!$B:$T,$D29,FALSE)) -> Monitoring Frameworks for SDGs in India at national and sub-national level / Maximising the use and value of data for better decision making through the Integrated Data Service / Are we missing the missing? Strengthening the health sector’s use of mortality data for public health decision-making / A data-based public management model. Can a microdata exercise enhance public management? | P29: =IF(VLOOKUP($B29&"_"&$C29&"_"&P$14,UNWDF2024_LookUp!$B:$T,$D29,FALSE)=0,"",VLOOKUP($B29&"_"&$C29&"_"&P$14,UNWDF2024_LookUp!$B:$T,$D29,FALSE)) -> Data with Purpose: Insights from Colombia's UN Development System | Q29: =IF(VLOOKUP($B29&"_"&$C29&"_"&Q$14,UNWDF2024_LookUp!$B:$T,$D29,FALSE)=0,"",VLOOKUP($B29&"_"&$C29&"_"&Q$14,UNWDF2024_LookUp!$B:$T,$D29,FALSE)) -> Practicing Digital Inclusion: An interactive learning session | R29: =IF(VLOOKUP($B29&"_"&$C29&"_"&R$14,UNWDF2024_LookUp!$B:$T,$D29,FALSE)=0,"",VLOOKUP($B29&"_"&$C29&"_"&R$14,UNWDF2024_LookUp!$B:$T,$D29,FALSE)) -> Technological stack for leveraging large volumes of data: use case for constructing labor market indicators in Chile from administrative records of workplace accidents and occupational diseases. / Uniting data for the common good of migration / The role of population data in creating urban heat index maps of your city
A30: Day1Time_Slot3 | B30: Day1 | C30: Time_Slot3 | D30: 17 | G30: Organiser | I30: =IF(VLOOKUP($B30&"_"&$C30&"_"&I$14,UNWDF2024_LookUp!$B:$T,$D30,FALSE)=0,"",VLOOKUP($B30&"_"&$C30&"_"&I$14,UNWDF2024_LookUp!$B:$T,$D30,FALSE)) -> Google; United Nations Statistics Division (UNSD-DESA); MAKAIA; Organisation for Economic Co-operation and Development (OECD); ONE Campaign; | J30: =IF(VLOOKUP($B30&"_"&$C30&"_"&J$14,UNWDF2024_LookUp!$B:$T,$D30,FALSE)=0,"",VLOOKUP($B30&"_"&$C30&"_"&J$14,UNWDF2024_LookUp!$B:$T,$D30,FALSE)) -> Global Health Advocacy Incubator; Gender Equity Unit, John Hopkins Bloomberg School of Public Health; Indian Council of Medical Research; Directorate of Census Operations and Citizen Registration (DCOCR-India); State Rainbow Foundation | K30: =IF(VLOOKUP($B30&"_"&$C30&"_"&K$14,UNWDF2024_LookUp!$B:$T,$D30,FALSE)=0,"",VLOOKUP($B30&"_"&$C30&"_"&K$14,UNWDF2024_LookUp!$B:$T,$D30,FALSE)) -> Danish Human Rights Institute; Human Rights Council, Greenland; Plan International; International Land Coalition (ILC); World Federation of the Deaf; Business and Human Rights Resource Centre; United Nations Statistics Division (UNSD-DESA); Collaborative on Citizen Data Steering Committee (supported by 10 organisations) | L30: =IF(VLOOKUP($B30&"_"&$C30&"_"&L$14,UNWDF2024_LookUp!$B:$T,$D30,FALSE)=0,"",VLOOKUP($B30&"_"&$C30&"_"&L$14,UNWDF2024_LookUp!$B:$T,$D30,FALSE)) -> TBC | M30: =IF(VLOOKUP($B30&"_"&$C30&"_"&M$14,UNWDF2024_LookUp!$B:$T,$D30,FALSE)=0,"",VLOOKUP($B30&"_"&$C30&"_"&M$14,UNWDF2024_LookUp!$B:$T,$D30,FALSE)) -> Food and Agriculture Organization of the United Nations (FAO); Columbia University; Cornell University; Global Alliance for Improved Nutrition (GAIN) | N30: =IF(VLOOKUP($B30&"_"&$C30&"_"&N$14,UNWDF2024_LookUp!$B:$T,$D30,FALSE)=0,"",VLOOKUP($B30&"_"&$C30&"_"&N$14,UNWDF2024_LookUp!$B:$T,$D30,FALSE)) -> United Nations Development Programme (UNDP), Accelerator Labs and SDG AI Lab; Ministry of Environment and Natural Resources, Guatemala; Pacific Community (SPC) | O30: =IF(VLOOKUP($B30&"_"&$C30&"_"&O$14,UNWDF2024_LookUp!$B:$T,$D30,FALSE)=0,"",VLOOKUP($B30&"_"&$C30&"_"&O$14,UNWDF2024_LookUp!$B:$T,$D30,FALSE)) -> Ministry of Statistics and Programme Implementation (MoSPI-India) / Office for National Statistics (ONS-UK) / Vital Strategies / Polidata | P30: =IF(VLOOKUP($B30&"_"&$C30&"_"&P$14,UNWDF2024_LookUp!$B:$T,$D30,FALSE)=0,"",VLOOKUP($B30&"_"&$C30&"_"&P$14,UNWDF2024_LookUp!$B:$T,$D30,FALSE)) -> United Nations Resident Coordinator (UNRCO), Colombia; United Nations Country Team (UNCT), Colombia | Q30: =IF(VLOOKUP($B30&"_"&$C30&"_"&Q$14,UNWDF2024_LookUp!$B:$T,$D30,FALSE)=0,"",VLOOKUP($B30&"_"&$C30&"_"&Q$14,UNWDF2024_LookUp!$B:$T,$D30,FALSE)) -> Athena Infonomics LLC; United States Agency for International Development (USAID) | R30: =IF(VLOOKUP($B30&"_"&$C30&"_"&R$14,UNWDF2024_LookUp!$B:$T,$D30,FALSE)=0,"",VLOOKUP($B30&"_"&$C30&"_"&R$14,UNWDF2024_LookUp!$B:$T,$D30,FALSE)) -> Instituto Nacional de Estadísticas (INE-Chile); Instituto Nacional de Estadística y Geografía (INEGI-México); Agencia de Cooperación Internacional para el Desarrollo, Chile; Ministry of Foreign Affairs, Mexico / International Organisation for Migration (IOM) / Environmental Systems Research Institute (Esri); AfroLeadership; PLACE; WorldPop/University of Southampton
B31: Day1 | E31: 13:15 - 14:15 (Medellín time) | F31: =IF(ISERROR(TEXT((DATE($E$3,$E$2,$E$1+MID(B31,4,1))+TIME(MID(E31,1,2),MID(E31,4,2),0))+($C$2-$C$3),"H:MM AM/PM")&" - "&TEXT(DATE($E$3,$E$2,$E$1+MID(B31,4,1))+TIME(MID(E31,9,2),MID(E31,12,2),0)+($C$2-$C$3),"H:MM AM/PM")),E31,TEXT((DATE($E$3,$E$2,$E$1+MID(B31,4,1))+TIME(MID(E31,1,2),MID(E31,4,2),0))+($C$2-$C$3),"H:MM AM/PM")&" - "&TEXT(DATE($E$3,$E$2,$E$1+MID(B31,4,1))+TIME(MID(E31,9,2),MID(E31,12,2),0)+($C$2-$C$3),"H:MM AM/PM")) -> 1:15 PM - 2:15 PM | G31: BREAK
A32: Day1Time_Slot4 | B32: Day1 | C32: Time_Slot4 | D32: 15 | E32: 14:15 - 15:15 (Medellín time) | F32: =IF(ISERROR(TEXT((DATE($E$3,$E$2,$E$1+MID(B32,4,1))+TIME(MID(E32,1,2),MID(E32,4,2),0))+($C$2-$C$3),"H:MM AM/PM")&" - "&TEXT(DATE($E$3,$E$2,$E$1+MID(B32,4,1))+TIME(MID(E32,9,2),MID(E32,12,2),0)+($C$2-$C$3),"H:MM AM/PM")),E32,TEXT(DATE($E$3,$E$2,$E$1+MID(B32,4,1))+TIME(MID(E32,1,2),MID(E32,4,2),0)+($C$2-$C$3),"DDDD DD MMM")&" : "&TEXT((DATE($E$3,$E$2,$E$1+MID(B32,4,1))+TIME(MID(E32,1,2),MID(E32,4,2),0))+($C$2-$C$3),"H:MM AM/PM")&" - "&TEXT(DATE($E$3,$E$2,$E$1+MID(B32,4,1))+TIME(MID(E32,9,2),MID(E32,12,2),0)+($C$2-$C$3),"H:MM AM/PM")) -> Wednesday 13 Nov : 2:15 PM - 3:15 PM | G32: Event_ID | I32: =IF(VLOOKUP($B32&"_"&$C32&"_"&I$14,UNWDF2024_LookUp!$B:$T,$D32,FALSE)=0,"",VLOOKUP($B32&"_"&$C32&"_"&I$14,UNWDF2024_LookUp!$B:$T,$D32,FALSE)) -> TA2.2 | J32: =IF(VLOOKUP($B32&"_"&$C32&"_"&J$14,UNWDF2024_LookUp!$B:$T,$D32,FALSE)=0,"",VLOOKUP($B32&"_"&$C32&"_"&J$14,UNWDF2024_LookUp!$B:$T,$D32,FALSE)) -> TA3.6 | K32: =IF(VLOOKUP($B32&"_"&$C32&"_"&K$14,UNWDF2024_LookUp!$B:$T,$D32,FALSE)=0,"",VLOOKUP($B32&"_"&$C32&"_"&K$14,UNWDF2024_LookUp!$B:$T,$D32,FALSE)) -> TA1.15 | L32: =IF(VLOOKUP($B32&"_"&$C32&"_"&L$14,UNWDF2024_LookUp!$B:$T,$D32,FALSE)=0,"",VLOOKUP($B32&"_"&$C32&"_"&L$14,UNWDF2024_LookUp!$B:$T,$D32,FALSE)) -> TA2.11 | M32: =IF(VLOOKUP($B32&"_"&$C32&"_"&M$14,UNWDF2024_LookUp!$B:$T,$D32,FALSE)=0,"",VLOOKUP($B32&"_"&$C32&"_"&M$14,UNWDF2024_LookUp!$B:$T,$D32,FALSE)) -> TA4.6 | N32: =IF(VLOOKUP($B32&"_"&$C32&"_"&N$14,UNWDF2024_LookUp!$B:$T,$D32,FALSE)=0,"",VLOOKUP($B32&"_"&$C32&"_"&N$14,UNWDF2024_LookUp!$B:$T,$D32,FALSE)) -> TED.202 | O32: =IF(VLOOKUP($B32&"_"&$C32&"_"&O$14,UNWDF2024_LookUp!$B:$T,$D32,FALSE)=0,"",VLOOKUP($B32&"_"&$C32&"_"&O$14,UNWDF2024_LookUp!$B:$T,$D32,FALSE)) -> TED.212 | P32: =IF(VLOOKUP($B32&"_"&$C32&"_"&P$14,UNWDF2024_LookUp!$B:$T,$D32,FALSE)=0,"",VLOOKUP($B32&"_"&$C32&"_"&P$14,UNWDF2024_LookUp!$B:$T,$D32,FALSE)) -> Local_2 | Q32: =IF(VLOOKUP($B32&"_"&$C32&"_"&Q$14,UNWDF2024_LookUp!$B:$T,$D32,FALSE)=0,"",VLOOKUP($B32&"_"&$C32&"_"&Q$14,UNWDF2024_LookUp!$B:$T,$D32,FALSE)) -> LEARN.302 | R32: =IF(VLOOKUP($B32&"_"&$C32&"_"&R$14,UNWDF2024_LookUp!$B:$T,$D32,FALSE)=0,"",VLOOKUP($B32&"_"&$C32&"_"&R$14,UNWDF2024_LookUp!$B:$T,$D32,FALSE)) -> DEMO.502
A33: Day1Time_Slot4 | B33: Day1 | C33: Time_Slot4 | D33: 13 | G33: Thematic Area | I33: =IF(VLOOKUP($B33&"_"&$C33&"_"&I$14,UNWDF2024_LookUp!$B:$T,$D33,FALSE)=0,"",VLOOKUP($B33&"_"&$C33&"_"&I$14,UNWDF2024_LookUp!$B:$T,$D33,FALSE)) -> 2 | J33: =IF(VLOOKUP($B33&"_"&$C33&"_"&J$14,UNWDF2024_LookUp!$B:$T,$D33,FALSE)=0,"",VLOOKUP($B33&"_"&$C33&"_"&J$14,UNWDF2024_LookUp!$B:$T,$D33,FALSE)) -> 3 | K33: =IF(VLOOKUP($B33&"_"&$C33&"_"&K$14,UNWDF2024_LookUp!$B:$T,$D33,FALSE)=0,"",VLOOKUP($B33&"_"&$C33&"_"&K$14,UNWDF2024_LookUp!$B:$T,$D33,FALSE)) -> 1 | L33: =IF(VLOOKUP($B33&"_"&$C33&"_"&L$14,UNWDF2024_LookUp!$B:$T,$D33,FALSE)=0,"",VLOOKUP($B33&"_"&$C33&"_"&L$14,UNWDF2024_LookUp!$B:$T,$D33,FALSE)) -> 2 | M33: =IF(VLOOKUP($B33&"_"&$C33&"_"&M$14,UNWDF2024_LookUp!$B:$T,$D33,FALSE)=0,"",VLOOKUP($B33&"_"&$C33&"_"&M$14,UNWDF2024_LookUp!$B:$T,$D33,FALSE)) -> 4 | N33: =IF(VLOOKUP($B33&"_"&$C33&"_"&N$14,UNWDF2024_LookUp!$B:$T,$D33,FALSE)=0,"",VLOOKUP($B33&"_"&$C33&"_"&N$14,UNWDF2024_LookUp!$B:$T,$D33,FALSE)) -> _T | O33: =IF(VLOOKUP($B33&"_"&$C33&"_"&O$14,UNWDF2024_LookUp!$B:$T,$D33,FALSE)=0,"",VLOOKUP($B33&"_"&$C33&"_"&O$14,UNWDF2024_LookUp!$B:$T,$D33,FALSE)) -> _T | P33: =IF(VLOOKUP($B33&"_"&$C33&"_"&P$14,UNWDF2024_LookUp!$B:$T,$D33,FALSE)=0,"",VLOOKUP($B33&"_"&$C33&"_"&P$14,UNWDF2024_LookUp!$B:$T,$D33,FALSE)) -> NA | Q33: =IF(VLOOKUP($B33&"_"&$C33&"_"&Q$14,UNWDF2024_LookUp!$B:$T,$D33,FALSE)=0,"",VLOOKUP($B33&"_"&$C33&"_"&Q$14,UNWDF2024_LookUp!$B:$T,$D33,FALSE)) -> _L | R33: =IF(VLOOKUP($B33&"_"&$C33&"_"&R$14,UNWDF2024_LookUp!$B:$T,$D33,FALSE)=0,"",VLOOKUP($B33&"_"&$C33&"_"&R$14,UNWDF2024_LookUp!$B:$T,$D33,FALSE)) -> _D
A34: =B34&C34 -> Day1Time_Slot4 | B34: Day1 | C34: Time_Slot4 | D34: 16 | G34: Event Title | I34: =IF(VLOOKUP($B34&"_"&$C34&"_"&I$14,UNWDF2024_LookUp!$B:$T,$D34,FALSE)=0,"",VLOOKUP($B34&"_"&$C34&"_"&I$14,UNWDF2024_LookUp!$B:$T,$D34,FALSE)) -> Data for Action: Innovative Solutions for Effective Data Dissemination and Use | J34: =IF(VLOOKUP($B34&"_"&$C34&"_"&J$14,UNWDF2024_LookUp!$B:$T,$D34,FALSE)=0,"",VLOOKUP($B34&"_"&$C34&"_"&J$14,UNWDF2024_LookUp!$B:$T,$D34,FALSE)) -> The future role of the UN Statistical Commission | K34: =IF(VLOOKUP($B34&"_"&$C34&"_"&K$14,UNWDF2024_LookUp!$B:$T,$D34,FALSE)=0,"",VLOOKUP($B34&"_"&$C34&"_"&K$14,UNWDF2024_LookUp!$B:$T,$D34,FALSE)) -> Invisible no Longer: Data Solutions to LNOB Dilemmas | L34: =IF(VLOOKUP($B34&"_"&$C34&"_"&L$14,UNWDF2024_LookUp!$B:$T,$D34,FALSE)=0,"",VLOOKUP($B34&"_"&$C34&"_"&L$14,UNWDF2024_LookUp!$B:$T,$D34,FALSE)) -> Integrating data use in policy organizations: What does it really take? | M34: =IF(VLOOKUP($B34&"_"&$C34&"_"&M$14,UNWDF2024_LookUp!$B:$T,$D34,FALSE)=0,"",VLOOKUP($B34&"_"&$C34&"_"&M$14,UNWDF2024_LookUp!$B:$T,$D34,FALSE)) -> Unlocking Development Through Data: Strategic Pathways in Africa | N34: =IF(VLOOKUP($B34&"_"&$C34&"_"&N$14,UNWDF2024_LookUp!$B:$T,$D34,FALSE)=0,"",VLOOKUP($B34&"_"&$C34&"_"&N$14,UNWDF2024_LookUp!$B:$T,$D34,FALSE)) -> Data Science for empowered and equitable decision making | O34: =IF(VLOOKUP($B34&"_"&$C34&"_"&O$14,UNWDF2024_LookUp!$B:$T,$D34,FALSE)=0,"",VLOOKUP($B34&"_"&$C34&"_"&O$14,UNWDF2024_LookUp!$B:$T,$D34,FALSE)) -> Colombia and the path towards the Universal Income Registry (RUI): business rules, methodology and forms of use / MPI+ Mapping and Monitoring the favelas of Brazil to fight poverty : A non-traditional index for informal settlements: / Shaping transparent, sustainable, and inclusive financial sectors / FISLAC: a data-driven ecosystem to help governments strengthen fiscal policy sustainability and decision-making | P34: =IF(VLOOKUP($B34&"_"&$C34&"_"&P$14,UNWDF2024_LookUp!$B:$T,$D34,FALSE)=0,"",VLOOKUP($B34&"_"&$C34&"_"&P$14,UNWDF2024_LookUp!$B:$T,$D34,FALSE)) -> Medellín: A data district for the well-being of the people | Q34: =IF(VLOOKUP($B34&"_"&$C34&"_"&Q$14,UNWDF2024_LookUp!$B:$T,$D34,FALSE)=0,"",VLOOKUP($B34&"_"&$C34&"_"&Q$14,UNWDF2024_LookUp!$B:$T,$D34,FALSE)) -> Practical tools for statistical production with a gender perspective: contributions from Latin America and the Caribbean | R34: =IF(VLOOKUP($B34&"_"&$C34&"_"&R$14,UNWDF2024_LookUp!$B:$T,$D34,FALSE)=0,"",VLOOKUP($B34&"_"&$C34&"_"&R$14,UNWDF2024_LookUp!$B:$T,$D34,FALSE)) -> AI and Innovation for Data Dissemination / Presentation of a DataLab to boost the use of data science tools by tax admnistrations in Africa / Making sense of unstructured data: A case study on NLP methods for monitoring mainstreaming of groups in vulnerable situations in climate policy documents
A35: Day1Time_Slot4 | B35: Day1 | C35: Time_Slot4 | D35: 17 | G35: Organiser | I35: =IF(VLOOKUP($B35&"_"&$C35&"_"&I$14,UNWDF2024_LookUp!$B:$T,$D35,FALSE)=0,"",VLOOKUP($B35&"_"&$C35&"_"&I$14,UNWDF2024_LookUp!$B:$T,$D35,FALSE)) -> United Nations Population Fund (UNFPA); Government of Bangladesh; Ghana Statistical Service (GSS); World Bank (WB); United Nations Statistics Division (UNSD-DESA); World Health Organization (WHO); United Nations Economic Commission for Latin America and the Caribbean (UNECLAC / CEPAL) | J35: =IF(VLOOKUP($B35&"_"&$C35&"_"&J$14,UNWDF2024_LookUp!$B:$T,$D35,FALSE)=0,"",VLOOKUP($B35&"_"&$C35&"_"&J$14,UNWDF2024_LookUp!$B:$T,$D35,FALSE)) -> Swiss Federal Statistical Office (SFSO); United Nations Educational, Scientific and Cultural Organization (UNESCO); Oficina Nacional de Estadística (ONE-República Dominicana); Office of the United Nations Secretary-General (EOSG); United Nations Statistics Division (UNSD-DESA) | K35: =IF(VLOOKUP($B35&"_"&$C35&"_"&K$14,UNWDF2024_LookUp!$B:$T,$D35,FALSE)=0,"",VLOOKUP($B35&"_"&$C35&"_"&K$14,UNWDF2024_LookUp!$B:$T,$D35,FALSE)) -> Organización Nacional de Mujeres Indígenas Andinas y Amazónicas del Perú (ONAMIAP); Minority Rights Group International; United Nations Population Fund (UNFPA); Ministry of Foreign Affairs, Ireland | L35: =IF(VLOOKUP($B35&"_"&$C35&"_"&L$14,UNWDF2024_LookUp!$B:$T,$D35,FALSE)=0,"",VLOOKUP($B35&"_"&$C35&"_"&L$14,UNWDF2024_LookUp!$B:$T,$D35,FALSE)) -> Vital Strategies; Instituto Nacional de Salud, Colombia; Ministry of Health, Kenya; Department of Health, Philippines | M35: =IF(VLOOKUP($B35&"_"&$C35&"_"&M$14,UNWDF2024_LookUp!$B:$T,$D35,FALSE)=0,"",VLOOKUP($B35&"_"&$C35&"_"&M$14,UNWDF2024_LookUp!$B:$T,$D35,FALSE)) -> United Nations (UN); Office of the United Nations Secretary-General (EOSG); William and Flora Hewlett Foundation; Makerere University; United Nations Global Pulse (UNGP); United Nations Office for Project Services (UNOPS); United Nations Development Programme (UNDP) | N35: =IF(VLOOKUP($B35&"_"&$C35&"_"&N$14,UNWDF2024_LookUp!$B:$T,$D35,FALSE)=0,"",VLOOKUP($B35&"_"&$C35&"_"&N$14,UNWDF2024_LookUp!$B:$T,$D35,FALSE)) -> IDinsight; Danish Human Rights Institute; Departamento Administrativo Nacional de Estadística (DANE-Colombia) | O35: =IF(VLOOKUP($B35&"_"&$C35&"_"&O$14,UNWDF2024_LookUp!$B:$T,$D35,FALSE)=0,"",VLOOKUP($B35&"_"&$C35&"_"&O$14,UNWDF2024_LookUp!$B:$T,$D35,FALSE)) -> Departamento Nacional de Planeación (DNP-Colombia); World Bank (WB); Inter-American Development Bank (IDB); United Nations World Food Programme (UNWFP); United Nations Children's Fund (UNICEF) / Data-Pop Alliance; Gerando Falcões; Massachusetts Institute of Technology (MIT); TETO TECHO; Humanitarian OpenStreetMap (HOTOSM) / Cambridge SupTech Lab; Cambridge Centre for Alternative Finance; University of Cambridge / Banco de la República, Colombia; Inter-American Development Bank (IDB) | P35: =IF(VLOOKUP($B35&"_"&$C35&"_"&P$14,UNWDF2024_LookUp!$B:$T,$D35,FALSE)=0,"",VLOOKUP($B35&"_"&$C35&"_"&P$14,UNWDF2024_LookUp!$B:$T,$D35,FALSE)) -> Administrative Planning Department Medellín (DAP) | Q35: =IF(VLOOKUP($B35&"_"&$C35&"_"&Q$14,UNWDF2024_LookUp!$B:$T,$D35,FALSE)=0,"",VLOOKUP($B35&"_"&$C35&"_"&Q$14,UNWDF2024_LookUp!$B:$T,$D35,FALSE)) -> United Nations Economic Commission for Latin America and the Caribbean (UNECLAC / CEPAL); United Nations Entity for Gender Equality and the Empowerment of Women (UN Women); Oficina Nacional de Estadística (ONE-República Dominicana); Departamento Administrativo Nacional de Estadística (DANE-Colombia) | R35: =IF(VLOOKUP($B35&"_"&$C35&"_"&R$14,UNWDF2024_LookUp!$B:$T,$D35,FALSE)=0,"",VLOOKUP($B35&"_"&$C35&"_"&R$14,UNWDF2024_LookUp!$B:$T,$D35,FALSE)) -> World Bank (WB) / Expertise France; Institut national de la statistique et des études économiques (INSEE-France); Cote d'Ivoire Customs Administration, Côte d’Ivoire / Deutsche Gesellschaft für Internationale Zusammenarbeit (GIZ); GFA Consulting Group GmbH
B36: Day1 | E36: 15:15 - 15:30 (Medellín time) | F36: =IF(ISERROR(TEXT((DATE($E$3,$E$2,$E$1+MID(B36,4,1))+TIME(MID(E36,1,2),MID(E36,4,2),0))+($C$2-$C$3),"H:MM AM/PM")&" - "&TEXT(DATE($E$3,$E$2,$E$1+MID(B36,4,1))+TIME(MID(E36,9,2),MID(E36,12,2),0)+($C$2-$C$3),"H:MM AM/PM")),E36,TEXT((DATE($E$3,$E$2,$E$1+MID(B36,4,1))+TIME(MID(E36,1,2),MID(E36,4,2),0))+($C$2-$C$3),"H:MM AM/PM")&" - "&TEXT(DATE($E$3,$E$2,$E$1+MID(B36,4,1))+TIME(MID(E36,9,2),MID(E36,12,2),0)+($C$2-$C$3),"H:MM AM/PM")) -> 3:15 PM - 3:30 PM | G36: BREAK
A37: Day1Time_Slot5 | B37: Day1 | C37: Time_Slot5 | D37: 15 | E37: 15:30 - 16:30 (Medellín time) | F37: =IF(ISERROR(TEXT((DATE($E$3,$E$2,$E$1+MID(B37,4,1))+TIME(MID(E37,1,2),MID(E37,4,2),0))+($C$2-$C$3),"H:MM AM/PM")&" - "&TEXT(DATE($E$3,$E$2,$E$1+MID(B37,4,1))+TIME(MID(E37,9,2),MID(E37,12,2),0)+($C$2-$C$3),"H:MM AM/PM")),E37,TEXT(DATE($E$3,$E$2,$E$1+MID(B37,4,1))+TIME(MID(E37,1,2),MID(E37,4,2),0)+($C$2-$C$3),"DDDD DD MMM")&" : "&TEXT((DATE($E$3,$E$2,$E$1+MID(B37,4,1))+TIME(MID(E37,1,2),MID(E37,4,2),0))+($C$2-$C$3),"H:MM AM/PM")&" - "&TEXT(DATE($E$3,$E$2,$E$1+MID(B37,4,1))+TIME(MID(E37,9,2),MID(E37,12,2),0)+($C$2-$C$3),"H:MM AM/PM")) -> Wednesday 13 Nov : 3:30 PM - 4:30 PM | G37: Event_ID | I37: =IF(VLOOKUP($B37&"_"&$C37&"_"&I$14,UNWDF2024_LookUp!$B:$T,$D37,FALSE)=0,"",VLOOKUP($B37&"_"&$C37&"_"&I$14,UNWDF2024_LookUp!$B:$T,$D37,FALSE)) -> TA3.2 | J37: =IF(VLOOKUP($B37&"_"&$C37&"_"&J$14,UNWDF2024_LookUp!$B:$T,$D37,FALSE)=0,"",VLOOKUP($B37&"_"&$C37&"_"&J$14,UNWDF2024_LookUp!$B:$T,$D37,FALSE)) -> TA1.6 | K37: =IF(VLOOKUP($B37&"_"&$C37&"_"&K$14,UNWDF2024_LookUp!$B:$T,$D37,FALSE)=0,"",VLOOKUP($B37&"_"&$C37&"_"&K$14,UNWDF2024_LookUp!$B:$T,$D37,FALSE)) -> TA1.16 | L37: =IF(VLOOKUP($B37&"_"&$C37&"_"&L$14,UNWDF2024_LookUp!$B:$T,$D37,FALSE)=0,"",VLOOKUP($B37&"_"&$C37&"_"&L$14,UNWDF2024_LookUp!$B:$T,$D37,FALSE)) -> TA2.12 | M37: =IF(VLOOKUP($B37&"_"&$C37&"_"&M$14,UNWDF2024_LookUp!$B:$T,$D37,FALSE)=0,"",VLOOKUP($B37&"_"&$C37&"_"&M$14,UNWDF2024_LookUp!$B:$T,$D37,FALSE)) -> TA4.10 | N37: =IF(VLOOKUP($B37&"_"&$C37&"_"&N$14,UNWDF2024_LookUp!$B:$T,$D37,FALSE)=0,"",VLOOKUP($B37&"_"&$C37&"_"&N$14,UNWDF2024_LookUp!$B:$T,$D37,FALSE)) -> TED.203 | O37: =IF(VLOOKUP($B37&"_"&$C37&"_"&O$14,UNWDF2024_LookUp!$B:$T,$D37,FALSE)=0,"",VLOOKUP($B37&"_"&$C37&"_"&O$14,UNWDF2024_LookUp!$B:$T,$D37,FALSE)) -> TED.207 | P37: =IF(VLOOKUP($B37&"_"&$C37&"_"&P$14,UNWDF2024_LookUp!$B:$T,$D37,FALSE)=0,"",VLOOKUP($B37&"_"&$C37&"_"&P$14,UNWDF2024_LookUp!$B:$T,$D37,FALSE)) -> Local_3 | Q37: =IF(VLOOKUP($B37&"_"&$C37&"_"&Q$14,UNWDF2024_LookUp!$B:$T,$D37,FALSE)=0,"",VLOOKUP($B37&"_"&$C37&"_"&Q$14,UNWDF2024_LookUp!$B:$T,$D37,FALSE)) -> LEARN.303 | R37: =IF(VLOOKUP($B37&"_"&$C37&"_"&R$14,UNWDF2024_LookUp!$B:$T,$D37,FALSE)=0,"",VLOOKUP($B37&"_"&$C37&"_"&R$14,UNWDF2024_LookUp!$B:$T,$D37,FALSE)) -> DEMO.503
A38: Day1Time_Slot5 | B38: Day1 | C38: Time_Slot5 | D38: 13 | G38: Thematic Area | I38: =IF(VLOOKUP($B38&"_"&$C38&"_"&I$14,UNWDF2024_LookUp!$B:$T,$D38,FALSE)=0,"",VLOOKUP($B38&"_"&$C38&"_"&I$14,UNWDF2024_LookUp!$B:$T,$D38,FALSE)) -> 3 | J38: =IF(VLOOKUP($B38&"_"&$C38&"_"&J$14,UNWDF2024_LookUp!$B:$T,$D38,FALSE)=0,"",VLOOKUP($B38&"_"&$C38&"_"&J$14,UNWDF2024_LookUp!$B:$T,$D38,FALSE)) -> 1 | K38: =IF(VLOOKUP($B38&"_"&$C38&"_"&K$14,UNWDF2024_LookUp!$B:$T,$D38,FALSE)=0,"",VLOOKUP($B38&"_"&$C38&"_"&K$14,UNWDF2024_LookUp!$B:$T,$D38,FALSE)) -> 1 | L38: =IF(VLOOKUP($B38&"_"&$C38&"_"&L$14,UNWDF2024_LookUp!$B:$T,$D38,FALSE)=0,"",VLOOKUP($B38&"_"&$C38&"_"&L$14,UNWDF2024_LookUp!$B:$T,$D38,FALSE)) -> 2 | M38: =IF(VLOOKUP($B38&"_"&$C38&"_"&M$14,UNWDF2024_LookUp!$B:$T,$D38,FALSE)=0,"",VLOOKUP($B38&"_"&$C38&"_"&M$14,UNWDF2024_LookUp!$B:$T,$D38,FALSE)) -> 4 | N38: =IF(VLOOKUP($B38&"_"&$C38&"_"&N$14,UNWDF2024_LookUp!$B:$T,$D38,FALSE)=0,"",VLOOKUP($B38&"_"&$C38&"_"&N$14,UNWDF2024_LookUp!$B:$T,$D38,FALSE)) -> _T | O38: =IF(VLOOKUP($B38&"_"&$C38&"_"&O$14,UNWDF2024_LookUp!$B:$T,$D38,FALSE)=0,"",VLOOKUP($B38&"_"&$C38&"_"&O$14,UNWDF2024_LookUp!$B:$T,$D38,FALSE)) -> _T | P38: =IF(VLOOKUP($B38&"_"&$C38&"_"&P$14,UNWDF2024_LookUp!$B:$T,$D38,FALSE)=0,"",VLOOKUP($B38&"_"&$C38&"_"&P$14,UNWDF2024_LookUp!$B:$T,$D38,FALSE)) -> NA | Q38: =IF(VLOOKUP($B38&"_"&$C38&"_"&Q$14,UNWDF2024_LookUp!$B:$T,$D38,FALSE)=0,"",VLOOKUP($B38&"_"&$C38&"_"&Q$14,UNWDF2024_LookUp!$B:$T,$D38,FALSE)) -> _L | R38: =IF(VLOOKUP($B38&"_"&$C38&"_"&R$14,UNWDF2024_LookUp!$B:$T,$D38,FALSE)=0,"",VLOOKUP($B38&"_"&$C38&"_"&R$14,UNWDF2024_LookUp!$B:$T,$D38,FALSE)) -> _D
A39: =B39&C39 -> Day1Time_Slot5 | B39: Day1 | C39: Time_Slot5 | D39: 16 | G39: Event Title | I39: =IF(VLOOKUP($B39&"_"&$C39&"_"&I$14,UNWDF2024_LookUp!$B:$T,$D39,FALSE)=0,"",VLOOKUP($B39&"_"&$C39&"_"&I$14,UNWDF2024_LookUp!$B:$T,$D39,FALSE)) -> New challenges for NSOs. The only way out is through! | J39: =IF(VLOOKUP($B39&"_"&$C39&"_"&J$14,UNWDF2024_LookUp!$B:$T,$D39,FALSE)=0,"",VLOOKUP($B39&"_"&$C39&"_"&J$14,UNWDF2024_LookUp!$B:$T,$D39,FALSE)) -> Citizen Data as a framework to nurturing the SDG Agenda: From Global frameworks to Local action | K39: =IF(VLOOKUP($B39&"_"&$C39&"_"&K$14,UNWDF2024_LookUp!$B:$T,$D39,FALSE)=0,"",VLOOKUP($B39&"_"&$C39&"_"&K$14,UNWDF2024_LookUp!$B:$T,$D39,FALSE)) -> Enhancing CRVS Systems: Intersectional Approaches and Resource Mobilization for Inclusive and Sustainable Development | L39: =IF(VLOOKUP($B39&"_"&$C39&"_"&L$14,UNWDF2024_LookUp!$B:$T,$D39,FALSE)=0,"",VLOOKUP($B39&"_"&$C39&"_"&L$14,UNWDF2024_LookUp!$B:$T,$D39,FALSE)) -> Geospatial analysis for public policy decisions: a path of action to accelerate gender equality | M39: =IF(VLOOKUP($B39&"_"&$C39&"_"&M$14,UNWDF2024_LookUp!$B:$T,$D39,FALSE)=0,"",VLOOKUP($B39&"_"&$C39&"_"&M$14,UNWDF2024_LookUp!$B:$T,$D39,FALSE)) -> Harnessing Data Exchange Platforms to accelerate SDGs & high-value data access | N39: =IF(VLOOKUP($B39&"_"&$C39&"_"&N$14,UNWDF2024_LookUp!$B:$T,$D39,FALSE)=0,"",VLOOKUP($B39&"_"&$C39&"_"&N$14,UNWDF2024_LookUp!$B:$T,$D39,FALSE)) -> Reaching All, Empowering Action: Decentralized Data Governance, Geographic Data and Hidden Populations. | O39: =IF(VLOOKUP($B39&"_"&$C39&"_"&O$14,UNWDF2024_LookUp!$B:$T,$D39,FALSE)=0,"",VLOOKUP($B39&"_"&$C39&"_"&O$14,UNWDF2024_LookUp!$B:$T,$D39,FALSE)) -> No One Left Behind: Data Invisibility, Citizen-Generated Data, and Digital Rights for Gender-Diverse Communities / Safecity - crowdmap for sexual and gender based violence / The invisible link between maternal mortality and early marriage in the indigenous population / Inside the black box: the questions you forgot to ask about gender data use. | P39: =IF(VLOOKUP($B39&"_"&$C39&"_"&P$14,UNWDF2024_LookUp!$B:$T,$D39,FALSE)=0,"",VLOOKUP($B39&"_"&$C39&"_"&P$14,UNWDF2024_LookUp!$B:$T,$D39,FALSE)) -> From data to policy action: How national and global actors can tackle poverty in all its forms using a Multidimensional Poverty Index (MPI) | Q39: =IF(VLOOKUP($B39&"_"&$C39&"_"&Q$14,UNWDF2024_LookUp!$B:$T,$D39,FALSE)=0,"",VLOOKUP($B39&"_"&$C39&"_"&Q$14,UNWDF2024_LookUp!$B:$T,$D39,FALSE)) -> Peer to Peer exchange: Open Data frameworks for better SDG reporting | R39: =IF(VLOOKUP($B39&"_"&$C39&"_"&R$14,UNWDF2024_LookUp!$B:$T,$D39,FALSE)=0,"",VLOOKUP($B39&"_"&$C39&"_"&R$14,UNWDF2024_LookUp!$B:$T,$D39,FALSE)) -> Empowering Sustainable Choices: Visualizing Nutrition for a Healthier Future - Presented by the Healthy Diets Monitoring Initiative / Silver Threads: Weaving Data into Older People Narratives / Enhancing Epidemiological Surveillance of Vaccine-Preventable Diseases with VPD-SMART: A DHIS2-Based Information System
A40: Day1Time_Slot5 | B40: Day1 | C40: Time_Slot5 | D40: 17 | G40: Organiser | I40: =IF(VLOOKUP($B40&"_"&$C40&"_"&I$14,UNWDF2024_LookUp!$B:$T,$D40,FALSE)=0,"",VLOOKUP($B40&"_"&$C40&"_"&I$14,UNWDF2024_LookUp!$B:$T,$D40,FALSE)) -> Swiss Federal Statistical Office (FSO); Statistics Poland; International Association for Official Statistics (IAOS); Polish Statistical Association | J40: =IF(VLOOKUP($B40&"_"&$C40&"_"&J$14,UNWDF2024_LookUp!$B:$T,$D40,FALSE)=0,"",VLOOKUP($B40&"_"&$C40&"_"&J$14,UNWDF2024_LookUp!$B:$T,$D40,FALSE)) -> United Nations Development Programme (UNDP), Global Policy Centre for Governance; Departamento Administrativo Nacional de Estadística (DANE-Colombia); United Nations Office on Drugs and Crime (UNODC); Ghana Statistical Service (GSS); Kenya National Commission on Human Rights; Observatorio para la Equidad de la Mujer (OEM); Red de Ciudades Cómo Vamos; Kenya National Bureau of Statistics (KNBS); Unidad para la Atención y Reparación Integral a las Víctimas (UARIV), Colombia | K40: =IF(VLOOKUP($B40&"_"&$C40&"_"&K$14,UNWDF2024_LookUp!$B:$T,$D40,FALSE)=0,"",VLOOKUP($B40&"_"&$C40&"_"&K$14,UNWDF2024_LookUp!$B:$T,$D40,FALSE)) -> United Nations Population Fund (UNFPA); Open Data Watch (ODW); Development Initiatives (DI); United Nations Development Programme (UNDP); United Nations Statistics Division (UNSD-DESA); Global Health Advocacy Incubator; Department of National Registration, Maldives; HEPS-Uganda; Pan American Health Organization (PAHO) | L40: =IF(VLOOKUP($B40&"_"&$C40&"_"&L$14,UNWDF2024_LookUp!$B:$T,$D40,FALSE)=0,"",VLOOKUP($B40&"_"&$C40&"_"&L$14,UNWDF2024_LookUp!$B:$T,$D40,FALSE)) -> United Nations Economic Commission for Latin America and the Caribbean (UNECLAC / CEPAL); United Nations Entity for Gender Equality and the Empowerment of Women (UN Women); Departamento Administrativo Nacional de Estadística (DANE-Colombia); Oficina Nacional de Estadística (ONE-República Dominicana) | M40: =IF(VLOOKUP($B40&"_"&$C40&"_"&M$14,UNWDF2024_LookUp!$B:$T,$D40,FALSE)=0,"",VLOOKUP($B40&"_"&$C40&"_"&M$14,UNWDF2024_LookUp!$B:$T,$D40,FALSE)) -> CivicDataLab | N40: =IF(VLOOKUP($B40&"_"&$C40&"_"&N$14,UNWDF2024_LookUp!$B:$T,$D40,FALSE)=0,"",VLOOKUP($B40&"_"&$C40&"_"&N$14,UNWDF2024_LookUp!$B:$T,$D40,FALSE)) -> Equilibrium Social Development Consulting (SDC); Norwegian Refugee Council (NRC); Ministry of Health, Uganda | O40: =IF(VLOOKUP($B40&"_"&$C40&"_"&O$14,UNWDF2024_LookUp!$B:$T,$D40,FALSE)=0,"",VLOOKUP($B40&"_"&$C40&"_"&O$14,UNWDF2024_LookUp!$B:$T,$D40,FALSE)) -> School of Data Science, University of Virginia; Center for Democracy and Technology; Federal University of Rio de Janeiro / Red Dot Foundation / United Nations Population Fund (UNFPA); Université de Montréal / Partnership in Statistics for Development in the 21st Century (PARIS21) | P40: =IF(VLOOKUP($B40&"_"&$C40&"_"&P$14,UNWDF2024_LookUp!$B:$T,$D40,FALSE)=0,"",VLOOKUP($B40&"_"&$C40&"_"&P$14,UNWDF2024_LookUp!$B:$T,$D40,FALSE)) -> Departamento Administrativo Nacional de Estadística (DANE-Colombia) | Q40: =IF(VLOOKUP($B40&"_"&$C40&"_"&Q$14,UNWDF2024_LookUp!$B:$T,$D40,FALSE)=0,"",VLOOKUP($B40&"_"&$C40&"_"&Q$14,UNWDF2024_LookUp!$B:$T,$D40,FALSE)) -> Open Data Charter (ODC); Open Data Watch (ODW) | R40: =IF(VLOOKUP($B40&"_"&$C40&"_"&R$14,UNWDF2024_LookUp!$B:$T,$D40,FALSE)=0,"",VLOOKUP($B40&"_"&$C40&"_"&R$14,UNWDF2024_LookUp!$B:$T,$D40,FALSE)) -> United Nations Children's Fund (UNICEF); World Health Organization (WHO); Food and Agriculture Organization of the United Nations (FAO) / Fundación Saldarriaga Concha; Datasketch / Pan American Health Organization (PAHO); Ministry of Health, Paraguay; HISP Colombia; University of Oslo
B41: Day1 | E41: 16:30 - 16:45 (Medellín time) | F41: =IF(ISERROR(TEXT((DATE($E$3,$E$2,$E$1+MID(B41,4,1))+TIME(MID(E41,1,2),MID(E41,4,2),0))+($C$2-$C$3),"H:MM AM/PM")&" - "&TEXT(DATE($E$3,$E$2,$E$1+MID(B41,4,1))+TIME(MID(E41,9,2),MID(E41,12,2),0)+($C$2-$C$3),"H:MM AM/PM")),E41,TEXT((DATE($E$3,$E$2,$E$1+MID(B41,4,1))+TIME(MID(E41,1,2),MID(E41,4,2),0))+($C$2-$C$3),"H:MM AM/PM")&" - "&TEXT(DATE($E$3,$E$2,$E$1+MID(B41,4,1))+TIME(MID(E41,9,2),MID(E41,12,2),0)+($C$2-$C$3),"H:MM AM/PM")) -> 4:30 PM - 4:45 PM | G41: BREAK
A42: =B42&C42 -> Day1Time_Slot6 | B42: Day1 | C42: Time_Slot6 | D42: 15 | E42: 16:45 - 18:00 (Medellín time) | F42: =IF(ISERROR(TEXT((DATE($E$3,$E$2,$E$1+MID(B42,4,1))+TIME(MID(E42,1,2),MID(E42,4,2),0))+($C$2-$C$3),"H:MM AM/PM")&" - "&TEXT(DATE($E$3,$E$2,$E$1+MID(B42,4,1))+TIME(MID(E42,9,2),MID(E42,12,2),0)+($C$2-$C$3),"H:MM AM/PM")),E42,TEXT(DATE($E$3,$E$2,$E$1+MID(B42,4,1))+TIME(MID(E42,1,2),MID(E42,4,2),0)+($C$2-$C$3),"DDDD DD MMM")&" : "&TEXT((DATE($E$3,$E$2,$E$1+MID(B42,4,1))+TIME(MID(E42,1,2),MID(E42,4,2),0))+($C$2-$C$3),"H:MM AM/PM")&" - "&TEXT(DATE($E$3,$E$2,$E$1+MID(B42,4,1))+TIME(MID(E42,9,2),MID(E42,12,2),0)+($C$2-$C$3),"H:MM AM/PM")) -> Wednesday 13 Nov : 4:45 PM - 6:00 PM | G42: Event_ID | H42: =IF(VLOOKUP($B42&"_"&$C42&"_"&H$14,UNWDF2024_LookUp!$B:$T,$D42,FALSE)=0,"",VLOOKUP($B42&"_"&$C42&"_"&H$14,UNWDF2024_LookUp!$B:$T,$D42,FALSE)) -> TA2.1
A43: Day1Time_Slot6 | B43: Day1 | C43: Time_Slot6 | D43: 13 | G43: Thematic Area | H43: =IF(VLOOKUP($B43&"_"&$C43&"_"&H$14,UNWDF2024_LookUp!$B:$T,$D43,FALSE)=0,"",VLOOKUP($B43&"_"&$C43&"_"&H$14,UNWDF2024_LookUp!$B:$T,$D43,FALSE)) -> 2
A44: =B44&C44 -> Day1Time_Slot6 | B44: Day1 | C44: Time_Slot6 | D44: 16 | G44: Event Title | H44: =IF(VLOOKUP($B44&"_"&$C44&"_"&H$14,UNWDF2024_LookUp!$B:$T,$D44,FALSE)=0,"",VLOOKUP($B44&"_"&$C44&"_"&H$14,UNWDF2024_LookUp!$B:$T,$D44,FALSE)) -> Maximizing the use and value of data for better decision making
A45: Day1Time_Slot6 | B45: Day1 | C45: Time_Slot6 | D45: 17 | G45: Organiser | H45: =IF(VLOOKUP($B45&"_"&$C45&"_"&H$14,UNWDF2024_LookUp!$B:$T,$D45,FALSE)=0,"",VLOOKUP($B45&"_"&$C45&"_"&H$14,UNWDF2024_LookUp!$B:$T,$D45,FALSE)) -> UN World Data Forum Programme Committee (UNWDF PC)
B46: Day1 | E46: 17:30 - 18:30 (Medellín time) | F46: =IF(ISERROR(TEXT((DATE($E$3,$E$2,$E$1+MID(B46,4,1))+TIME(MID(E46,1,2),MID(E46,4,2),0))+($C$2-$C$3),"H:MM AM/PM")&" - "&TEXT(DATE($E$3,$E$2,$E$1+MID(B46,4,1))+TIME(MID(E46,9,2),MID(E46,12,2),0)+($C$2-$C$3),"H:MM AM/PM")),E46,TEXT((DATE($E$3,$E$2,$E$1+MID(B46,4,1))+TIME(MID(E46,1,2),MID(E46,4,2),0))+($C$2-$C$3),"H:MM AM/PM")&" - "&TEXT(DATE($E$3,$E$2,$E$1+MID(B46,4,1))+TIME(MID(E46,9,2),MID(E46,12,2),0)+($C$2-$C$3),"H:MM AM/PM")) -> 5:30 PM - 6:30 PM | G46: Break
A47: Day1Time_Slot7 | B47: Day1 | C47: Time_Slot7 | D47: 16 | E47: 18:30 - 19:15 (Medellín time) | F47: =IF(ISERROR(TEXT((DATE($E$3,$E$2,$E$1+MID(B47,4,1))+TIME(MID(E47,1,2),MID(E47,4,2),0))+($C$2-$C$3),"H:MM AM/PM")&" - "&TEXT(DATE($E$3,$E$2,$E$1+MID(B47,4,1))+TIME(MID(E47,9,2),MID(E47,12,2),0)+($C$2-$C$3),"H:MM AM/PM")),E47,TEXT(DATE($E$3,$E$2,$E$1+MID(B47,4,1))+TIME(MID(E47,1,2),MID(E47,4,2),0)+($C$2-$C$3),"DDDD DD MMM")&" : "&TEXT((DATE($E$3,$E$2,$E$1+MID(B47,4,1))+TIME(MID(E47,1,2),MID(E47,4,2),0))+($C$2-$C$3),"H:MM AM/PM")&" - "&TEXT(DATE($E$3,$E$2,$E$1+MID(B47,4,1))+TIME(MID(E47,9,2),MID(E47,12,2),0)+($C$2-$C$3),"H:MM AM/PM")) -> Wednesday 13 Nov : 6:30 PM - 7:15 PM | G47: Event Title | H47: =IF(VLOOKUP($B47&"_"&$C47&"_"&H$14,UNWDF2024_LookUp!$B:$T,$D47,FALSE)=0,"",VLOOKUP($B47&"_"&$C47&"_"&H$14,UNWDF2024_LookUp!$B:$T,$D47,FALSE)) -> NA
A48: =B48&C48 -> Day1Time_Slot7 | B48: Day1 | C48: Time_Slot7 | D48: 17 | G48: Organiser | H48: =IF(VLOOKUP($B48&"_"&$C48&"_"&H$14,UNWDF2024_LookUp!$B:$T,$D48,FALSE)=0,"",VLOOKUP($B48&"_"&$C48&"_"&H$14,UNWDF2024_LookUp!$B:$T,$D48,FALSE)) -> NA
J50: TA 1. Innovation for better and more inclusive data: data integration and leveraging of various data sources and methodologies to ensure visibility and voice for everyone | N50: TA 3. Building trust, protection and ethics in data: developing the principles of stewardship within the data ecosystem to balance the full value from data use with the protection of privacy and data rights
J52: TA 2. Maximizing the use and value of data for better decision making: adding value to data through better analysis and communication to ensure full use of data for bettering lives through the agency, respect, and inclusion of everyone | N52: TA 4. Effective partnerships for better data and a more equitable data ecosystem: supporting global, regional, national and sub-national data ecosystems in the implementation of the Cape Town Global Action Plan including sustainable finance for data and statistics programmes at all levels of organization
A53: Day2 | E53: =DATE($E$3,$E$2,$E$1+MID(B57,4,1)) -> 2024-11-14 | F53: =IF(ISERROR(DATE($E$3,$E$2,$E$1+MID(B57,4,1))+TIME(MID(E57,1,2),MID(E57,4,2),0)+($C$2-$C$3)),DATE($E$3,$E$2,$E$1+MID(B57,4,1)),TEXT(DATE($E$3,$E$2,$E$1+MID(B57,4,1))+TIME(MID(E57,1,2),MID(E57,4,2),0)+($C$2-$C$3),"DDDDDD, DD MMMM YYYY")&" [Date changes shown on row]") -> Thursday, 14 November 2024 [Date changes shown on row]
C54: LookUp | G54: LookUp | H54: Parallel 01 | I54: Parallel 02 | J54: Parallel 03 | K54: Parallel 04 | L54: Parallel 05 | M54: Parallel 06 | N54: Parallel 07 | O54: Parallel 08 | P54: Parallel 09 | Q54: Parallel 10 | R54: Parallel 11 | S54: Parallel 12
F55: Time (Auto-adjusts to your local time, unless "(Medellín time)" shown) | G55: Rm Name | H55: Plenary Room | I55: Room 1 | J55: Room 2 | K55: Room 3 | L55: Room 4 | M55: Room 5 | N55: Room 6 | O55: Room 7 | P55: Room 8 | Q55: Room 9 | R55: Room 10 | S55: NA
A56: DayTime_LookUp | B56: Day_LookUp | C56: Time_LookUp | D56: Col_LookUp | E56: Time (GMT/UTC time+8) | G56: Capacity | H56: 3000 | I56: 300 | J56: 200 | K56: 200 | L56: 200 | M56: 200 | N56: 150 | O56: 150 | P56: 90 | Q56: 60 | R56: 60 | S56: NA
A57: =B57&C57 -> Day2Time_Slot1 | B57: Day2 | C57: Time_Slot1 | D57: 15 | E57: 09:00 - 10:15 (Medellín time) | F57: =IF(ISERROR(TEXT((DATE($E$3,$E$2,$E$1+MID(B57,4,1))+TIME(MID(E57,1,2),MID(E57,4,2),0))+($C$2-$C$3),"H:MM AM/PM")&" - "&TEXT(DATE($E$3,$E$2,$E$1+MID(B57,4,1))+TIME(MID(E57,9,2),MID(E57,12,2),0)+($C$2-$C$3),"H:MM AM/PM")),E57,TEXT(DATE($E$3,$E$2,$E$1+MID(B57,4,1))+TIME(MID(E57,1,2),MID(E57,4,2),0)+($C$2-$C$3),"DDDD DD MMM")&" : "&TEXT((DATE($E$3,$E$2,$E$1+MID(B57,4,1))+TIME(MID(E57,1,2),MID(E57,4,2),0))+($C$2-$C$3),"H:MM AM/PM")&" - "&TEXT(DATE($E$3,$E$2,$E$1+MID(B57,4,1))+TIME(MID(E57,9,2),MID(E57,12,2),0)+($C$2-$C$3),"H:MM AM/PM")) -> Thursday 14 Nov : 9:00 AM - 10:15 AM | G57: Event_ID | H57: =IF(VLOOKUP($B57&"_"&$C57&"_"&H$14,UNWDF2024_LookUp!$B:$T,$D57,FALSE)=0,"",VLOOKUP($B57&"_"&$C57&"_"&H$14,UNWDF2024_LookUp!$B:$T,$D57,FALSE)) -> TA3.1
A58: Day2Time_Slot1 | B58: Day2 | C58: Time_Slot1 | D58: 13 | G58: Thematic Area | H58: =IF(VLOOKUP($B58&"_"&$C58&"_"&H$14,UNWDF2024_LookUp!$B:$T,$D58,FALSE)=0,"",VLOOKUP($B58&"_"&$C58&"_"&H$14,UNWDF2024_LookUp!$B:$T,$D58,FALSE)) -> 3
A59: =B59&C59 -> Day2Time_Slot1 | B59: Day2 | C59: Time_Slot1 | D59: 16 | G59: Event Title | H59: =IF(VLOOKUP($B59&"_"&$C59&"_"&H$14,UNWDF2024_LookUp!$B:$T,$D59,FALSE)=0,"",VLOOKUP($B59&"_"&$C59&"_"&H$14,UNWDF2024_LookUp!$B:$T,$D59,FALSE)) -> Building trust, protection and ethics in data
A60: Day2Time_Slot1 | B60: Day2 | C60: Time_Slot1 | D60: 17 | G60: Organiser | H60: =IF(VLOOKUP($B60&"_"&$C60&"_"&H$14,UNWDF2024_LookUp!$B:$T,$D60,FALSE)=0,"",VLOOKUP($B60&"_"&$C60&"_"&H$14,UNWDF2024_LookUp!$B:$T,$D60,FALSE)) -> UN World Data Forum Programme Committee (UNWDF PC)
B61: Day2 | E61: 10:15 - 10:45 (Medellín time) | F61: =IF(ISERROR(TEXT((DATE($E$3,$E$2,$E$1+MID(B61,4,1))+TIME(MID(E61,1,2),MID(E61,4,2),0))+($C$2-$C$3),"H:MM AM/PM")&" - "&TEXT(DATE($E$3,$E$2,$E$1+MID(B61,4,1))+TIME(MID(E61,9,2),MID(E61,12,2),0)+($C$2-$C$3),"H:MM AM/PM")),E61,TEXT((DATE($E$3,$E$2,$E$1+MID(B61,4,1))+TIME(MID(E61,1,2),MID(E61,4,2),0))+($C$2-$C$3),"H:MM AM/PM")&" - "&TEXT(DATE($E$3,$E$2,$E$1+MID(B61,4,1))+TIME(MID(E61,9,2),MID(E61,12,2),0)+($C$2-$C$3),"H:MM AM/PM")) -> 10:15 AM - 10:45 AM | G61: BREAK
A62: =B62&C62 -> Day2Time_Slot2 | B62: Day2 | C62: Time_Slot2 | D62: 15 | E62: 10:45 - 11:45 (Medellín time) | F62: =IF(ISERROR(TEXT((DATE($E$3,$E$2,$E$1+MID(B62,4,1))+TIME(MID(E62,1,2),MID(E62,4,2),0))+($C$2-$C$3),"H:MM AM/PM")&" - "&TEXT(DATE($E$3,$E$2,$E$1+MID(B62,4,1))+TIME(MID(E62,9,2),MID(E62,12,2),0)+($C$2-$C$3),"H:MM AM/PM")),E62,TEXT(DATE($E$3,$E$2,$E$1+MID(B62,4,1))+TIME(MID(E62,1,2),MID(E62,4,2),0)+($C$2-$C$3),"DDDD DD MMM")&" : "&TEXT((DATE($E$3,$E$2,$E$1+MID(B62,4,1))+TIME(MID(E62,1,2),MID(E62,4,2),0))+($C$2-$C$3),"H:MM AM/PM")&" - "&TEXT(DATE($E$3,$E$2,$E$1+MID(B62,4,1))+TIME(MID(E62,9,2),MID(E62,12,2),0)+($C$2-$C$3),"H:MM AM/PM")) -> Thursday 14 Nov : 10:45 AM - 11:45 AM | G62: Event_ID | I62: =IF(VLOOKUP($B62&"_"&$C62&"_"&I$14,UNWDF2024_LookUp!$B:$T,$D62,FALSE)=0,"",VLOOKUP($B62&"_"&$C62&"_"&I$14,UNWDF2024_LookUp!$B:$T,$D62,FALSE)) -> TA4.9 | J62: =IF(VLOOKUP($B62&"_"&$C62&"_"&J$14,UNWDF2024_LookUp!$B:$T,$D62,FALSE)=0,"",VLOOKUP($B62&"_"&$C62&"_"&J$14,UNWDF2024_LookUp!$B:$T,$D62,FALSE)) -> TA1.13 | K62: =IF(VLOOKUP($B62&"_"&$C62&"_"&K$14,UNWDF2024_LookUp!$B:$T,$D62,FALSE)=0,"",VLOOKUP($B62&"_"&$C62&"_"&K$14,UNWDF2024_LookUp!$B:$T,$D62,FALSE)) -> TA1.17 | L62: =IF(VLOOKUP($B62&"_"&$C62&"_"&L$14,UNWDF2024_LookUp!$B:$T,$D62,FALSE)=0,"",VLOOKUP($B62&"_"&$C62&"_"&L$14,UNWDF2024_LookUp!$B:$T,$D62,FALSE)) -> TA4.18 | M62: =IF(VLOOKUP($B62&"_"&$C62&"_"&M$14,UNWDF2024_LookUp!$B:$T,$D62,FALSE)=0,"",VLOOKUP($B62&"_"&$C62&"_"&M$14,UNWDF2024_LookUp!$B:$T,$D62,FALSE)) -> TA4.11 | N62: =IF(VLOOKUP($B62&"_"&$C62&"_"&N$14,UNWDF2024_LookUp!$B:$T,$D62,FALSE)=0,"",VLOOKUP($B62&"_"&$C62&"_"&N$14,UNWDF2024_LookUp!$B:$T,$D62,FALSE)) -> TED.204 | O62: =IF(VLOOKUP($B62&"_"&$C62&"_"&O$14,UNWDF2024_LookUp!$B:$T,$D62,FALSE)=0,"",VLOOKUP($B62&"_"&$C62&"_"&O$14,UNWDF2024_LookUp!$B:$T,$D62,FALSE)) -> ANCE.402 | P62: =IF(VLOOKUP($B62&"_"&$C62&"_"&P$14,UNWDF2024_LookUp!$B:$T,$D62,FALSE)=0,"",VLOOKUP($B62&"_"&$C62&"_"&P$14,UNWDF2024_LookUp!$B:$T,$D62,FALSE)) -> LEARN.310 | Q62: =IF(VLOOKUP($B62&"_"&$C62&"_"&Q$14,UNWDF2024_LookUp!$B:$T,$D62,FALSE)=0,"",VLOOKUP($B62&"_"&$C62&"_"&Q$14,UNWDF2024_LookUp!$B:$T,$D62,FALSE)) -> LEARN.304 | R62: =IF(VLOOKUP($B62&"_"&$C62&"_"&R$14,UNWDF2024_LookUp!$B:$T,$D62,FALSE)=0,"",VLOOKUP($B62&"_"&$C62&"_"&R$14,UNWDF2024_LookUp!$B:$T,$D62,FALSE)) -> DEMO.504
A63: Day2Time_Slot2 | B63: Day2 | C63: Time_Slot2 | D63: 13 | G63: Thematic Area | I63: =IF(VLOOKUP($B63&"_"&$C63&"_"&I$14,UNWDF2024_LookUp!$B:$T,$D63,FALSE)=0,"",VLOOKUP($B63&"_"&$C63&"_"&I$14,UNWDF2024_LookUp!$B:$T,$D63,FALSE)) -> 4 | J63: =IF(VLOOKUP($B63&"_"&$C63&"_"&J$14,UNWDF2024_LookUp!$B:$T,$D63,FALSE)=0,"",VLOOKUP($B63&"_"&$C63&"_"&J$14,UNWDF2024_LookUp!$B:$T,$D63,FALSE)) -> 1 | K63: =IF(VLOOKUP($B63&"_"&$C63&"_"&K$14,UNWDF2024_LookUp!$B:$T,$D63,FALSE)=0,"",VLOOKUP($B63&"_"&$C63&"_"&K$14,UNWDF2024_LookUp!$B:$T,$D63,FALSE)) -> 1 | L63: =IF(VLOOKUP($B63&"_"&$C63&"_"&L$14,UNWDF2024_LookUp!$B:$T,$D63,FALSE)=0,"",VLOOKUP($B63&"_"&$C63&"_"&L$14,UNWDF2024_LookUp!$B:$T,$D63,FALSE)) -> 4 | M63: =IF(VLOOKUP($B63&"_"&$C63&"_"&M$14,UNWDF2024_LookUp!$B:$T,$D63,FALSE)=0,"",VLOOKUP($B63&"_"&$C63&"_"&M$14,UNWDF2024_LookUp!$B:$T,$D63,FALSE)) -> 4 | N63: =IF(VLOOKUP($B63&"_"&$C63&"_"&N$14,UNWDF2024_LookUp!$B:$T,$D63,FALSE)=0,"",VLOOKUP($B63&"_"&$C63&"_"&N$14,UNWDF2024_LookUp!$B:$T,$D63,FALSE)) -> _T | O63: =IF(VLOOKUP($B63&"_"&$C63&"_"&O$14,UNWDF2024_LookUp!$B:$T,$D63,FALSE)=0,"",VLOOKUP($B63&"_"&$C63&"_"&O$14,UNWDF2024_LookUp!$B:$T,$D63,FALSE)) -> _A | P63: =IF(VLOOKUP($B63&"_"&$C63&"_"&P$14,UNWDF2024_LookUp!$B:$T,$D63,FALSE)=0,"",VLOOKUP($B63&"_"&$C63&"_"&P$14,UNWDF2024_LookUp!$B:$T,$D63,FALSE)) -> _L | Q63: =IF(VLOOKUP($B63&"_"&$C63&"_"&Q$14,UNWDF2024_LookUp!$B:$T,$D63,FALSE)=0,"",VLOOKUP($B63&"_"&$C63&"_"&Q$14,UNWDF2024_LookUp!$B:$T,$D63,FALSE)) -> _L | R63: =IF(VLOOKUP($B63&"_"&$C63&"_"&R$14,UNWDF2024_LookUp!$B:$T,$D63,FALSE)=0,"",VLOOKUP($B63&"_"&$C63&"_"&R$14,UNWDF2024_LookUp!$B:$T,$D63,FALSE)) -> _D
A64: =B64&C64 -> Day2Time_Slot2 | B64: Day2 | C64: Time_Slot2 | D64: 16 | G64: Event Title | I64: =IF(VLOOKUP($B64&"_"&$C64&"_"&I$14,UNWDF2024_LookUp!$B:$T,$D64,FALSE)=0,"",VLOOKUP($B64&"_"&$C64&"_"&I$14,UNWDF2024_LookUp!$B:$T,$D64,FALSE)) -> Caribbean Data Solutions Hub | J64: =IF(VLOOKUP($B64&"_"&$C64&"_"&J$14,UNWDF2024_LookUp!$B:$T,$D64,FALSE)=0,"",VLOOKUP($B64&"_"&$C64&"_"&J$14,UNWDF2024_LookUp!$B:$T,$D64,FALSE)) -> Children on the move: exploring the gaps, needs and solutions for better quality data | K64: =IF(VLOOKUP($B64&"_"&$C64&"_"&K$14,UNWDF2024_LookUp!$B:$T,$D64,FALSE)=0,"",VLOOKUP($B64&"_"&$C64&"_"&K$14,UNWDF2024_LookUp!$B:$T,$D64,FALSE)) -> Moving forward to the development of dissemination platforms based on an interoperable data banks ecosystem. | L64: =IF(VLOOKUP($B64&"_"&$C64&"_"&L$14,UNWDF2024_LookUp!$B:$T,$D64,FALSE)=0,"",VLOOKUP($B64&"_"&$C64&"_"&L$14,UNWDF2024_LookUp!$B:$T,$D64,FALSE)) -> Identifying and Building Synergies in the Migration Data Ecosystem | M64: =IF(VLOOKUP($B64&"_"&$C64&"_"&M$14,UNWDF2024_LookUp!$B:$T,$D64,FALSE)=0,"",VLOOKUP($B64&"_"&$C64&"_"&M$14,UNWDF2024_LookUp!$B:$T,$D64,FALSE)) -> The importance of demand-side data on digital access and use for evidence-based policy-making in Africa | N64: =IF(VLOOKUP($B64&"_"&$C64&"_"&N$14,UNWDF2024_LookUp!$B:$T,$D64,FALSE)=0,"",VLOOKUP($B64&"_"&$C64&"_"&N$14,UNWDF2024_LookUp!$B:$T,$D64,FALSE)) -> How to efficiently utilize sampling techniques to improve data quality of economic census / Inclusive business statistics / Experiences of violence and harassment at work: A global first survey | O64: =IF(VLOOKUP($B64&"_"&$C64&"_"&O$14,UNWDF2024_LookUp!$B:$T,$D64,FALSE)=0,"",VLOOKUP($B64&"_"&$C64&"_"&O$14,UNWDF2024_LookUp!$B:$T,$D64,FALSE)) -> Evidence for decision-making and the design of public policies in Latin America | P64: =IF(VLOOKUP($B64&"_"&$C64&"_"&P$14,UNWDF2024_LookUp!$B:$T,$D64,FALSE)=0,"",VLOOKUP($B64&"_"&$C64&"_"&P$14,UNWDF2024_LookUp!$B:$T,$D64,FALSE)) -> Fostering Citizen and Inclusive Data into the National Statistical Systems through South to South Cooperation | Q64: =IF(VLOOKUP($B64&"_"&$C64&"_"&Q$14,UNWDF2024_LookUp!$B:$T,$D64,FALSE)=0,"",VLOOKUP($B64&"_"&$C64&"_"&Q$14,UNWDF2024_LookUp!$B:$T,$D64,FALSE)) -> Data Ecosystems and Gridded Housing and Environmental Statistics for Evidence-Based Policy Making | R64: =IF(VLOOKUP($B64&"_"&$C64&"_"&R$14,UNWDF2024_LookUp!$B:$T,$D64,FALSE)=0,"",VLOOKUP($B64&"_"&$C64&"_"&R$14,UNWDF2024_LookUp!$B:$T,$D64,FALSE)) -> Innovation in data collection on ethnic-racial population: progress in inclusion and characterization in Colombia / Timely, comprehensive and focused provision of social services based on an interoperable system of administrative records. The Ecuadorean case to prevent stunting / Tools for the visualization of demographic indicators as a strategy for prospective planning at the local level in Mexico / From Numbers to Change: Using Data to End Gender-Based Violence
A65: Day2Time_Slot2 | B65: Day2 | C65: Time_Slot2 | D65: 17 | G65: Organiser | I65: =IF(VLOOKUP($B65&"_"&$C65&"_"&I$14,UNWDF2024_LookUp!$B:$T,$D65,FALSE)=0,"",VLOOKUP($B65&"_"&$C65&"_"&I$14,UNWDF2024_LookUp!$B:$T,$D65,FALSE)) -> NoBrainerData; Oficina Nacional de Estadística (ONE-República Dominicana)-Statistical Conference of the Americas; Statistics Department of Montserrat; Data-Pop Alliance; Central Statistical Office (CSO-Grenada) | J65: =IF(VLOOKUP($B65&"_"&$C65&"_"&J$14,UNWDF2024_LookUp!$B:$T,$D65,FALSE)=0,"",VLOOKUP($B65&"_"&$C65&"_"&J$14,UNWDF2024_LookUp!$B:$T,$D65,FALSE)) -> IMPACT Initiatives; Inclusive Data Charter; International Data Alliance for Children on the Move; Save the Children; REACH Initiative; Internal Displacement Monitoring Centre (IDMC); United Nations Major Group for Children and Youth (UN MGCY); Direction de la statistique et des études démographiques (DISED-Djibouti) | K65: =IF(VLOOKUP($B65&"_"&$C65&"_"&K$14,UNWDF2024_LookUp!$B:$T,$D65,FALSE)=0,"",VLOOKUP($B65&"_"&$C65&"_"&K$14,UNWDF2024_LookUp!$B:$T,$D65,FALSE)) -> United Nations Economic Commission for Latin America and the Caribbean (UNECLAC / CEPAL); European Statistical Office (Eurostat); Instituto Nacional de Estadística (INE-Paraguay); Instituto Brasileiro de Geografia e Estatística (IBGE) | L65: =IF(VLOOKUP($B65&"_"&$C65&"_"&L$14,UNWDF2024_LookUp!$B:$T,$D65,FALSE)=0,"",VLOOKUP($B65&"_"&$C65&"_"&L$14,UNWDF2024_LookUp!$B:$T,$D65,FALSE)) -> Aapti Institute; Robert Bosch Stiftung GmbH | M65: =IF(VLOOKUP($B65&"_"&$C65&"_"&M$14,UNWDF2024_LookUp!$B:$T,$D65,FALSE)=0,"",VLOOKUP($B65&"_"&$C65&"_"&M$14,UNWDF2024_LookUp!$B:$T,$D65,FALSE)) -> Research ICT Africa; United Nations Economic Commission for Africa (UNECA); International Telecommunication Union (ITU); Regional Center for Studies for the Development of the Information Society (Cetic.br) | N65: =IF(VLOOKUP($B65&"_"&$C65&"_"&N$14,UNWDF2024_LookUp!$B:$T,$D65,FALSE)=0,"",VLOOKUP($B65&"_"&$C65&"_"&N$14,UNWDF2024_LookUp!$B:$T,$D65,FALSE)) -> Research Institute of Statistical Sciences, National Bureau of Statistics (NBS-China) / Oficina Nacional de Estadística (ONE-República Dominicana) / Gallup, Inc.; Lloyd's Register Foundation; International Labour Organization (ILO) | O65: =IF(VLOOKUP($B65&"_"&$C65&"_"&O$14,UNWDF2024_LookUp!$B:$T,$D65,FALSE)=0,"",VLOOKUP($B65&"_"&$C65&"_"&O$14,UNWDF2024_LookUp!$B:$T,$D65,FALSE)) -> Ministério dos Direitos Humanos e Cidadania; United Nations (UN); Fundación Corona | P65: =IF(VLOOKUP($B65&"_"&$C65&"_"&P$14,UNWDF2024_LookUp!$B:$T,$D65,FALSE)=0,"",VLOOKUP($B65&"_"&$C65&"_"&P$14,UNWDF2024_LookUp!$B:$T,$D65,FALSE)) -> Global Partnership for Sustainable Development Data (GPSDD); Presidential Agency for International Cooperation (APC-Colombia); Bangladesh Bureau of Statistics (BBS); UK Foreign, Commonwealth and Development Office (FCDO); MSD United Way Vietnam; International Civil Society Centre | Q65: =IF(VLOOKUP($B65&"_"&$C65&"_"&Q$14,UNWDF2024_LookUp!$B:$T,$D65,FALSE)=0,"",VLOOKUP($B65&"_"&$C65&"_"&Q$14,UNWDF2024_LookUp!$B:$T,$D65,FALSE)) -> Instituto Nacional de Estadística y Geografía (INEGI-México); Universidad EAFIT; European Space Agency (ESA); University of Twente | R65: =IF(VLOOKUP($B65&"_"&$C65&"_"&R$14,UNWDF2024_LookUp!$B:$T,$D65,FALSE)=0,"",VLOOKUP($B65&"_"&$C65&"_"&R$14,UNWDF2024_LookUp!$B:$T,$D65,FALSE)) -> Departamento Administrativo Nacional de Estadística (DANE-Colombia) / Instituto Nacional de Estadística y Censos (INEC-Ecuador); Crece sin Desnutrición Infantil, Ecuador; Coorporación Andina de Fomento; Vital Strategies / United Nations Development Programme (UNDP) / United Nations Population Fund (UNFPA)
A66: Day2Time_Slot2B | B66: Day2 | C66: Time_Slot2B | D66: 14 | E66: 11:45 - 13:30 (Medellín time) | F66: =IF(ISERROR(TEXT((DATE($E$3,$E$2,$E$1+MID(B66,4,1))+TIME(MID(E66,1,2),MID(E66,4,2),0))+($C$2-$C$3),"H:MM AM/PM")&" - "&TEXT(DATE($E$3,$E$2,$E$1+MID(B66,4,1))+TIME(MID(E66,9,2),MID(E66,12,2),0)+($C$2-$C$3),"H:MM AM/PM")),E66,TEXT((DATE($E$3,$E$2,$E$1+MID(B66,4,1))+TIME(MID(E66,1,2),MID(E66,4,2),0))+($C$2-$C$3),"H:MM AM/PM")&" - "&TEXT(DATE($E$3,$E$2,$E$1+MID(B66,4,1))+TIME(MID(E66,9,2),MID(E66,12,2),0)+($C$2-$C$3),"H:MM AM/PM")) -> 11:45 AM - 1:30 PM | G66: BREAK
A67: Day2Time_Slot3 | B67: Day2 | C67: Time_Slot3 | D67: 15 | E67: 13:30 - 14:30 (Medellín time) | F67: =IF(ISERROR(TEXT((DATE($E$3,$E$2,$E$1+MID(B67,4,1))+TIME(MID(E67,1,2),MID(E67,4,2),0))+($C$2-$C$3),"H:MM AM/PM")&" - "&TEXT(DATE($E$3,$E$2,$E$1+MID(B67,4,1))+TIME(MID(E67,9,2),MID(E67,12,2),0)+($C$2-$C$3),"H:MM AM/PM")),E67,TEXT(DATE($E$3,$E$2,$E$1+MID(B67,4,1))+TIME(MID(E67,1,2),MID(E67,4,2),0)+($C$2-$C$3),"DDDD DD MMM")&" : "&TEXT((DATE($E$3,$E$2,$E$1+MID(B67,4,1))+TIME(MID(E67,1,2),MID(E67,4,2),0))+($C$2-$C$3),"H:MM AM/PM")&" - "&TEXT(DATE($E$3,$E$2,$E$1+MID(B67,4,1))+TIME(MID(E67,9,2),MID(E67,12,2),0)+($C$2-$C$3),"H:MM AM/PM")) -> Thursday 14 Nov : 1:30 PM - 2:30 PM | G67: Event_ID | I67: =IF(VLOOKUP($B67&"_"&$C67&"_"&I$14,UNWDF2024_LookUp!$B:$T,$D67,FALSE)=0,"",VLOOKUP($B67&"_"&$C67&"_"&I$14,UNWDF2024_LookUp!$B:$T,$D67,FALSE)) -> TA1.3 | J67: =IF(VLOOKUP($B67&"_"&$C67&"_"&J$14,UNWDF2024_LookUp!$B:$T,$D67,FALSE)=0,"",VLOOKUP($B67&"_"&$C67&"_"&J$14,UNWDF2024_LookUp!$B:$T,$D67,FALSE)) -> TA1.8 | K67: =IF(VLOOKUP($B67&"_"&$C67&"_"&K$14,UNWDF2024_LookUp!$B:$T,$D67,FALSE)=0,"",VLOOKUP($B67&"_"&$C67&"_"&K$14,UNWDF2024_LookUp!$B:$T,$D67,FALSE)) -> TA4.17 | L67: =IF(VLOOKUP($B67&"_"&$C67&"_"&L$14,UNWDF2024_LookUp!$B:$T,$D67,FALSE)=0,"",VLOOKUP($B67&"_"&$C67&"_"&L$14,UNWDF2024_LookUp!$B:$T,$D67,FALSE)) -> TA2.9 | M67: =IF(VLOOKUP($B67&"_"&$C67&"_"&M$14,UNWDF2024_LookUp!$B:$T,$D67,FALSE)=0,"",VLOOKUP($B67&"_"&$C67&"_"&M$14,UNWDF2024_LookUp!$B:$T,$D67,FALSE)) -> TA4.12 | N67: =IF(VLOOKUP($B67&"_"&$C67&"_"&N$14,UNWDF2024_LookUp!$B:$T,$D67,FALSE)=0,"",VLOOKUP($B67&"_"&$C67&"_"&N$14,UNWDF2024_LookUp!$B:$T,$D67,FALSE)) -> TED.205 | O67: =IF(VLOOKUP($B67&"_"&$C67&"_"&O$14,UNWDF2024_LookUp!$B:$T,$D67,FALSE)=0,"",VLOOKUP($B67&"_"&$C67&"_"&O$14,UNWDF2024_LookUp!$B:$T,$D67,FALSE)) -> TA4.19 | P67: =IF(VLOOKUP($B67&"_"&$C67&"_"&P$14,UNWDF2024_LookUp!$B:$T,$D67,FALSE)=0,"",VLOOKUP($B67&"_"&$C67&"_"&P$14,UNWDF2024_LookUp!$B:$T,$D67,FALSE)) -> Local_4 | Q67: =IF(VLOOKUP($B67&"_"&$C67&"_"&Q$14,UNWDF2024_LookUp!$B:$T,$D67,FALSE)=0,"",VLOOKUP($B67&"_"&$C67&"_"&Q$14,UNWDF2024_LookUp!$B:$T,$D67,FALSE)) -> LEARN.305 | R67: =IF(VLOOKUP($B67&"_"&$C67&"_"&R$14,UNWDF2024_LookUp!$B:$T,$D67,FALSE)=0,"",VLOOKUP($B67&"_"&$C67&"_"&R$14,UNWDF2024_LookUp!$B:$T,$D67,FALSE)) -> NA
A68: Day2Time_Slot3 | B68: Day2 | C68: Time_Slot3 | D68: 13 | G68: Thematic Area | I68: =IF(VLOOKUP($B68&"_"&$C68&"_"&I$14,UNWDF2024_LookUp!$B:$T,$D68,FALSE)=0,"",VLOOKUP($B68&"_"&$C68&"_"&I$14,UNWDF2024_LookUp!$B:$T,$D68,FALSE)) -> 1 | J68: =IF(VLOOKUP($B68&"_"&$C68&"_"&J$14,UNWDF2024_LookUp!$B:$T,$D68,FALSE)=0,"",VLOOKUP($B68&"_"&$C68&"_"&J$14,UNWDF2024_LookUp!$B:$T,$D68,FALSE)) -> 1 | K68: =IF(VLOOKUP($B68&"_"&$C68&"_"&K$14,UNWDF2024_LookUp!$B:$T,$D68,FALSE)=0,"",VLOOKUP($B68&"_"&$C68&"_"&K$14,UNWDF2024_LookUp!$B:$T,$D68,FALSE)) -> 4 | L68: =IF(VLOOKUP($B68&"_"&$C68&"_"&L$14,UNWDF2024_LookUp!$B:$T,$D68,FALSE)=0,"",VLOOKUP($B68&"_"&$C68&"_"&L$14,UNWDF2024_LookUp!$B:$T,$D68,FALSE)) -> 2 | M68: =IF(VLOOKUP($B68&"_"&$C68&"_"&M$14,UNWDF2024_LookUp!$B:$T,$D68,FALSE)=0,"",VLOOKUP($B68&"_"&$C68&"_"&M$14,UNWDF2024_LookUp!$B:$T,$D68,FALSE)) -> 4 | N68: =IF(VLOOKUP($B68&"_"&$C68&"_"&N$14,UNWDF2024_LookUp!$B:$T,$D68,FALSE)=0,"",VLOOKUP($B68&"_"&$C68&"_"&N$14,UNWDF2024_LookUp!$B:$T,$D68,FALSE)) -> _T | O68: =IF(VLOOKUP($B68&"_"&$C68&"_"&O$14,UNWDF2024_LookUp!$B:$T,$D68,FALSE)=0,"",VLOOKUP($B68&"_"&$C68&"_"&O$14,UNWDF2024_LookUp!$B:$T,$D68,FALSE)) -> 4 | P68: =IF(VLOOKUP($B68&"_"&$C68&"_"&P$14,UNWDF2024_LookUp!$B:$T,$D68,FALSE)=0,"",VLOOKUP($B68&"_"&$C68&"_"&P$14,UNWDF2024_LookUp!$B:$T,$D68,FALSE)) -> NA | Q68: =IF(VLOOKUP($B68&"_"&$C68&"_"&Q$14,UNWDF2024_LookUp!$B:$T,$D68,FALSE)=0,"",VLOOKUP($B68&"_"&$C68&"_"&Q$14,UNWDF2024_LookUp!$B:$T,$D68,FALSE)) -> _L | R68: =IF(VLOOKUP($B68&"_"&$C68&"_"&R$14,UNWDF2024_LookUp!$B:$T,$D68,FALSE)=0,"",VLOOKUP($B68&"_"&$C68&"_"&R$14,UNWDF2024_LookUp!$B:$T,$D68,FALSE)) -> NA
A69: =B69&C69 -> Day2Time_Slot3 | B69: Day2 | C69: Time_Slot3 | D69: 16 | G69: Event Title | I69: =IF(VLOOKUP($B69&"_"&$C69&"_"&I$14,UNWDF2024_LookUp!$B:$T,$D69,FALSE)=0,"",VLOOKUP($B69&"_"&$C69&"_"&I$14,UNWDF2024_LookUp!$B:$T,$D69,FALSE)) -> Empowering Vulnerable Entrepreneurs: Data-Driven Business Strategy for Inclusive Digital Transformation | J69: =IF(VLOOKUP($B69&"_"&$C69&"_"&J$14,UNWDF2024_LookUp!$B:$T,$D69,FALSE)=0,"",VLOOKUP($B69&"_"&$C69&"_"&J$14,UNWDF2024_LookUp!$B:$T,$D69,FALSE)) -> Data Innovations on Housing and Environmental Statistics: Combining Alternative and Official Data to Map Informal Settlements | K69: =IF(VLOOKUP($B69&"_"&$C69&"_"&K$14,UNWDF2024_LookUp!$B:$T,$D69,FALSE)=0,"",VLOOKUP($B69&"_"&$C69&"_"&K$14,UNWDF2024_LookUp!$B:$T,$D69,FALSE)) -> Citizen science: Opportunities and Challenges for Enhanced Local to Global SDG Monitoring and Action | L69: =IF(VLOOKUP($B69&"_"&$C69&"_"&L$14,UNWDF2024_LookUp!$B:$T,$D69,FALSE)=0,"",VLOOKUP($B69&"_"&$C69&"_"&L$14,UNWDF2024_LookUp!$B:$T,$D69,FALSE)) -> Alternative mapping data for resilience and development in the face of climate change | M69: =IF(VLOOKUP($B69&"_"&$C69&"_"&M$14,UNWDF2024_LookUp!$B:$T,$D69,FALSE)=0,"",VLOOKUP($B69&"_"&$C69&"_"&M$14,UNWDF2024_LookUp!$B:$T,$D69,FALSE)) -> Advancing human rights through provision of address and ending homelessness: Geo-located statistics improvement and inclusive homelessness enumeration | N69: =IF(VLOOKUP($B69&"_"&$C69&"_"&N$14,UNWDF2024_LookUp!$B:$T,$D69,FALSE)=0,"",VLOOKUP($B69&"_"&$C69&"_"&N$14,UNWDF2024_LookUp!$B:$T,$D69,FALSE)) -> Data dissemination across contexts | O69: =IF(VLOOKUP($B69&"_"&$C69&"_"&O$14,UNWDF2024_LookUp!$B:$T,$D69,FALSE)=0,"",VLOOKUP($B69&"_"&$C69&"_"&O$14,UNWDF2024_LookUp!$B:$T,$D69,FALSE)) -> Measure for Measure: Leveraging gender data capacity measures in practice | P69: =IF(VLOOKUP($B69&"_"&$C69&"_"&P$14,UNWDF2024_LookUp!$B:$T,$D69,FALSE)=0,"",VLOOKUP($B69&"_"&$C69&"_"&P$14,UNWDF2024_LookUp!$B:$T,$D69,FALSE)) -> Medellín: data ecosystem in the CTI district | Q69: =IF(VLOOKUP($B69&"_"&$C69&"_"&Q$14,UNWDF2024_LookUp!$B:$T,$D69,FALSE)=0,"",VLOOKUP($B69&"_"&$C69&"_"&Q$14,UNWDF2024_LookUp!$B:$T,$D69,FALSE)) -> Workshop: Delivering immunisation services to zero-dose children through geospatial microplanning support documents: why, what, and how? | R69: =IF(VLOOKUP($B69&"_"&$C69&"_"&R$14,UNWDF2024_LookUp!$B:$T,$D69,FALSE)=0,"",VLOOKUP($B69&"_"&$C69&"_"&R$14,UNWDF2024_LookUp!$B:$T,$D69,FALSE)) -> TBC
A70: Day2Time_Slot3 | B70: Day2 | C70: Time_Slot3 | D70: 17 | G70: Organiser | I70: =IF(VLOOKUP($B70&"_"&$C70&"_"&I$14,UNWDF2024_LookUp!$B:$T,$D70,FALSE)=0,"",VLOOKUP($B70&"_"&$C70&"_"&I$14,UNWDF2024_LookUp!$B:$T,$D70,FALSE)) -> United Nations Development Programme (UNDP); Federación de Aseguradores Colombianos (Fasecolda); Banca de las Oportunidades; National Advisory Board for Impact Investment (NAB) | J70: =IF(VLOOKUP($B70&"_"&$C70&"_"&J$14,UNWDF2024_LookUp!$B:$T,$D70,FALSE)=0,"",VLOOKUP($B70&"_"&$C70&"_"&J$14,UNWDF2024_LookUp!$B:$T,$D70,FALSE)) -> Instituto Nacional de Estadística y Geografía (INEGI-México); Universidad EAFIT; European Space Agency (ESA); University of Twente | K70: =IF(VLOOKUP($B70&"_"&$C70&"_"&K$14,UNWDF2024_LookUp!$B:$T,$D70,FALSE)=0,"",VLOOKUP($B70&"_"&$C70&"_"&K$14,UNWDF2024_LookUp!$B:$T,$D70,FALSE)) -> Institut Cienciès Marines; Humanitarian OpenStreetMap (HOTOSM); International Institute for Applied Systems Analysis (IIASA), Iberoamerican Participatory Science Network (RICAP); United Nations Human Settlements Programme (UN-Habitat); Citizen Science Global Partnership (CSGP) | L70: =IF(VLOOKUP($B70&"_"&$C70&"_"&L$14,UNWDF2024_LookUp!$B:$T,$D70,FALSE)=0,"",VLOOKUP($B70&"_"&$C70&"_"&L$14,UNWDF2024_LookUp!$B:$T,$D70,FALSE)) -> Humanitarian OpenStreetMap (HOTOSM); Departamento Administrativo Nacional de Estadística (DANE-Colombia); Oficina Nacional de Estadistica (ONE Dominican Republic); Centro de Estudios con Poblaciones, Movilizaciones y Territorio; Crisis Ready; Global Partnership for Sustainable Development Data (GPSDD); United Nations Office for the Coordination of Humanitarian Affairs (OCHA) | M70: =IF(VLOOKUP($B70&"_"&$C70&"_"&M$14,UNWDF2024_LookUp!$B:$T,$D70,FALSE)=0,"",VLOOKUP($B70&"_"&$C70&"_"&M$14,UNWDF2024_LookUp!$B:$T,$D70,FALSE)) -> Ruff Institute of Global Homelessness (IGH), DePaul University; Instituto Nacional de Estadística (INE-Uruguay); Google | N70: =IF(VLOOKUP($B70&"_"&$C70&"_"&N$14,UNWDF2024_LookUp!$B:$T,$D70,FALSE)=0,"",VLOOKUP($B70&"_"&$C70&"_"&N$14,UNWDF2024_LookUp!$B:$T,$D70,FALSE)) -> World Bank-United Nations High Commissioner for Refugees Joint Data Center on Forced Displacement (WB-UNHCR JDC); IMPACT Initiatives; Instituto Estatal de Transparencia, Acceso a la Información y Protección de Datos Personales (INFONL) | O70: =IF(VLOOKUP($B70&"_"&$C70&"_"&O$14,UNWDF2024_LookUp!$B:$T,$D70,FALSE)=0,"",VLOOKUP($B70&"_"&$C70&"_"&O$14,UNWDF2024_LookUp!$B:$T,$D70,FALSE)) -> United Nations Entity for Gender Equality and the Empowerment of Women (UN Women); Partnership in Statistics for Development in the 21st Century (PARIS21); World Bank (WB); Open Data Watch (ODW) | P70: =IF(VLOOKUP($B70&"_"&$C70&"_"&P$14,UNWDF2024_LookUp!$B:$T,$D70,FALSE)=0,"",VLOOKUP($B70&"_"&$C70&"_"&P$14,UNWDF2024_LookUp!$B:$T,$D70,FALSE)) -> TBC | Q70: =IF(VLOOKUP($B70&"_"&$C70&"_"&Q$14,UNWDF2024_LookUp!$B:$T,$D70,FALSE)=0,"",VLOOKUP($B70&"_"&$C70&"_"&Q$14,UNWDF2024_LookUp!$B:$T,$D70,FALSE)) -> Flowminder Foundation | R70: =IF(VLOOKUP($B70&"_"&$C70&"_"&R$14,UNWDF2024_LookUp!$B:$T,$D70,FALSE)=0,"",VLOOKUP($B70&"_"&$C70&"_"&R$14,UNWDF2024_LookUp!$B:$T,$D70,FALSE)) -> TBC
A71: =B71&C71 -> Day2Time_Slot2B | B71: Day2 | C71: Time_Slot2B | D71: 14 | E71: 14:30 - 14:45 (Medellín time) | F71: =IF(ISERROR(TEXT((DATE($E$3,$E$2,$E$1+MID(B71,4,1))+TIME(MID(E71,1,2),MID(E71,4,2),0))+($C$2-$C$3),"H:MM AM/PM")&" - "&TEXT(DATE($E$3,$E$2,$E$1+MID(B71,4,1))+TIME(MID(E71,9,2),MID(E71,12,2),0)+($C$2-$C$3),"H:MM AM/PM")),E71,TEXT((DATE($E$3,$E$2,$E$1+MID(B71,4,1))+TIME(MID(E71,1,2),MID(E71,4,2),0))+($C$2-$C$3),"H:MM AM/PM")&" - "&TEXT(DATE($E$3,$E$2,$E$1+MID(B71,4,1))+TIME(MID(E71,9,2),MID(E71,12,2),0)+($C$2-$C$3),"H:MM AM/PM")) -> 2:30 PM - 2:45 PM | G71: BREAK
A72: Day2Time_Slot4 | B72: Day2 | C72: Time_Slot4 | D72: 15 | E72: 14:45 - 15:45 (Medellín time) | F72: =IF(ISERROR(TEXT((DATE($E$3,$E$2,$E$1+MID(B72,4,1))+TIME(MID(E72,1,2),MID(E72,4,2),0))+($C$2-$C$3),"H:MM AM/PM")&" - "&TEXT(DATE($E$3,$E$2,$E$1+MID(B72,4,1))+TIME(MID(E72,9,2),MID(E72,12,2),0)+($C$2-$C$3),"H:MM AM/PM")),E72,TEXT(DATE($E$3,$E$2,$E$1+MID(B72,4,1))+TIME(MID(E72,1,2),MID(E72,4,2),0)+($C$2-$C$3),"DDDD DD MMM")&" : "&TEXT((DATE($E$3,$E$2,$E$1+MID(B72,4,1))+TIME(MID(E72,1,2),MID(E72,4,2),0))+($C$2-$C$3),"H:MM AM/PM")&" - "&TEXT(DATE($E$3,$E$2,$E$1+MID(B72,4,1))+TIME(MID(E72,9,2),MID(E72,12,2),0)+($C$2-$C$3),"H:MM AM/PM")) -> Thursday 14 Nov : 2:45 PM - 3:45 PM | G72: Event_ID | I72: =IF(VLOOKUP($B72&"_"&$C72&"_"&I$14,UNWDF2024_LookUp!$B:$T,$D72,FALSE)=0,"",VLOOKUP($B72&"_"&$C72&"_"&I$14,UNWDF2024_LookUp!$B:$T,$D72,FALSE)) -> TA2.3 | J72: =IF(VLOOKUP($B72&"_"&$C72&"_"&J$14,UNWDF2024_LookUp!$B:$T,$D72,FALSE)=0,"",VLOOKUP($B72&"_"&$C72&"_"&J$14,UNWDF2024_LookUp!$B:$T,$D72,FALSE)) -> TA1.9 | K72: =IF(VLOOKUP($B72&"_"&$C72&"_"&K$14,UNWDF2024_LookUp!$B:$T,$D72,FALSE)=0,"",VLOOKUP($B72&"_"&$C72&"_"&K$14,UNWDF2024_LookUp!$B:$T,$D72,FALSE)) -> TA1.7 | L72: =IF(VLOOKUP($B72&"_"&$C72&"_"&L$14,UNWDF2024_LookUp!$B:$T,$D72,FALSE)=0,"",VLOOKUP($B72&"_"&$C72&"_"&L$14,UNWDF2024_LookUp!$B:$T,$D72,FALSE)) -> TA2.15 | M72: =IF(VLOOKUP($B72&"_"&$C72&"_"&M$14,UNWDF2024_LookUp!$B:$T,$D72,FALSE)=0,"",VLOOKUP($B72&"_"&$C72&"_"&M$14,UNWDF2024_LookUp!$B:$T,$D72,FALSE)) -> TA4.13 | N72: =IF(VLOOKUP($B72&"_"&$C72&"_"&N$14,UNWDF2024_LookUp!$B:$T,$D72,FALSE)=0,"",VLOOKUP($B72&"_"&$C72&"_"&N$14,UNWDF2024_LookUp!$B:$T,$D72,FALSE)) -> TED.206 | O72: =IF(VLOOKUP($B72&"_"&$C72&"_"&O$14,UNWDF2024_LookUp!$B:$T,$D72,FALSE)=0,"",VLOOKUP($B72&"_"&$C72&"_"&O$14,UNWDF2024_LookUp!$B:$T,$D72,FALSE)) -> ANCE.405 | P72: =IF(VLOOKUP($B72&"_"&$C72&"_"&P$14,UNWDF2024_LookUp!$B:$T,$D72,FALSE)=0,"",VLOOKUP($B72&"_"&$C72&"_"&P$14,UNWDF2024_LookUp!$B:$T,$D72,FALSE)) -> Local_5 | Q72: =IF(VLOOKUP($B72&"_"&$C72&"_"&Q$14,UNWDF2024_LookUp!$B:$T,$D72,FALSE)=0,"",VLOOKUP($B72&"_"&$C72&"_"&Q$14,UNWDF2024_LookUp!$B:$T,$D72,FALSE)) -> LEARN.306 | R72: =IF(VLOOKUP($B72&"_"&$C72&"_"&R$14,UNWDF2024_LookUp!$B:$T,$D72,FALSE)=0,"",VLOOKUP($B72&"_"&$C72&"_"&R$14,UNWDF2024_LookUp!$B:$T,$D72,FALSE)) -> LEARN.311
A73: Day2Time_Slot4 | B73: Day2 | C73: Time_Slot4 | D73: 13 | G73: Thematic Area | I73: =IF(VLOOKUP($B73&"_"&$C73&"_"&I$14,UNWDF2024_LookUp!$B:$T,$D73,FALSE)=0,"",VLOOKUP($B73&"_"&$C73&"_"&I$14,UNWDF2024_LookUp!$B:$T,$D73,FALSE)) -> 2 | J73: =IF(VLOOKUP($B73&"_"&$C73&"_"&J$14,UNWDF2024_LookUp!$B:$T,$D73,FALSE)=0,"",VLOOKUP($B73&"_"&$C73&"_"&J$14,UNWDF2024_LookUp!$B:$T,$D73,FALSE)) -> 1 | K73: =IF(VLOOKUP($B73&"_"&$C73&"_"&K$14,UNWDF2024_LookUp!$B:$T,$D73,FALSE)=0,"",VLOOKUP($B73&"_"&$C73&"_"&K$14,UNWDF2024_LookUp!$B:$T,$D73,FALSE)) -> 1 | L73: =IF(VLOOKUP($B73&"_"&$C73&"_"&L$14,UNWDF2024_LookUp!$B:$T,$D73,FALSE)=0,"",VLOOKUP($B73&"_"&$C73&"_"&L$14,UNWDF2024_LookUp!$B:$T,$D73,FALSE)) -> 2 | M73: =IF(VLOOKUP($B73&"_"&$C73&"_"&M$14,UNWDF2024_LookUp!$B:$T,$D73,FALSE)=0,"",VLOOKUP($B73&"_"&$C73&"_"&M$14,UNWDF2024_LookUp!$B:$T,$D73,FALSE)) -> 4 | N73: =IF(VLOOKUP($B73&"_"&$C73&"_"&N$14,UNWDF2024_LookUp!$B:$T,$D73,FALSE)=0,"",VLOOKUP($B73&"_"&$C73&"_"&N$14,UNWDF2024_LookUp!$B:$T,$D73,FALSE)) -> _T | O73: =IF(VLOOKUP($B73&"_"&$C73&"_"&O$14,UNWDF2024_LookUp!$B:$T,$D73,FALSE)=0,"",VLOOKUP($B73&"_"&$C73&"_"&O$14,UNWDF2024_LookUp!$B:$T,$D73,FALSE)) -> _A | P73: =IF(VLOOKUP($B73&"_"&$C73&"_"&P$14,UNWDF2024_LookUp!$B:$T,$D73,FALSE)=0,"",VLOOKUP($B73&"_"&$C73&"_"&P$14,UNWDF2024_LookUp!$B:$T,$D73,FALSE)) -> NA | Q73: =IF(VLOOKUP($B73&"_"&$C73&"_"&Q$14,UNWDF2024_LookUp!$B:$T,$D73,FALSE)=0,"",VLOOKUP($B73&"_"&$C73&"_"&Q$14,UNWDF2024_LookUp!$B:$T,$D73,FALSE)) -> _L | R73: =IF(VLOOKUP($B73&"_"&$C73&"_"&R$14,UNWDF2024_LookUp!$B:$T,$D73,FALSE)=0,"",VLOOKUP($B73&"_"&$C73&"_"&R$14,UNWDF2024_LookUp!$B:$T,$D73,FALSE)) -> _L
A74: =B74&C74 -> Day2Time_Slot4 | B74: Day2 | C74: Time_Slot4 | D74: 16 | G74: Event Title | I74: =IF(VLOOKUP($B74&"_"&$C74&"_"&I$14,UNWDF2024_LookUp!$B:$T,$D74,FALSE)=0,"",VLOOKUP($B74&"_"&$C74&"_"&I$14,UNWDF2024_LookUp!$B:$T,$D74,FALSE)) -> Global perspectives on enabling access to platform data for public-interest research | J74: =IF(VLOOKUP($B74&"_"&$C74&"_"&J$14,UNWDF2024_LookUp!$B:$T,$D74,FALSE)=0,"",VLOOKUP($B74&"_"&$C74&"_"&J$14,UNWDF2024_LookUp!$B:$T,$D74,FALSE)) -> What's next for statistics on ageing and older people? Lessons from SDGs and beyond. | K74: =IF(VLOOKUP($B74&"_"&$C74&"_"&K$14,UNWDF2024_LookUp!$B:$T,$D74,FALSE)=0,"",VLOOKUP($B74&"_"&$C74&"_"&K$14,UNWDF2024_LookUp!$B:$T,$D74,FALSE)) -> Technological Innovations in Census and Surveys: CAWI and Smart Geospatial Tools (preEA) | L74: =IF(VLOOKUP($B74&"_"&$C74&"_"&L$14,UNWDF2024_LookUp!$B:$T,$D74,FALSE)=0,"",VLOOKUP($B74&"_"&$C74&"_"&L$14,UNWDF2024_LookUp!$B:$T,$D74,FALSE)) -> Getting to the finish line: Strengthening country capacity to translate gender data into use and impact by 2030 | M74: =IF(VLOOKUP($B74&"_"&$C74&"_"&M$14,UNWDF2024_LookUp!$B:$T,$D74,FALSE)=0,"",VLOOKUP($B74&"_"&$C74&"_"&M$14,UNWDF2024_LookUp!$B:$T,$D74,FALSE)) -> Mixed Movement Monitoring in the Americas – A joint UN regional monitoring system lead by UNHCR, UNICEF and WFP | N74: =IF(VLOOKUP($B74&"_"&$C74&"_"&N$14,UNWDF2024_LookUp!$B:$T,$D74,FALSE)=0,"",VLOOKUP($B74&"_"&$C74&"_"&N$14,UNWDF2024_LookUp!$B:$T,$D74,FALSE)) -> Optimizing Job Creation Metrics in Infrastructure Projects to Strengthen Social Safety Nets for Vulnerable Households in Africa / Rebuilding Somalia’s Data and Statistical System: The Power of Data and Partnerships for the SDG / The State of Africa’s Data Governance for Statistical Interoperability, in the age of Artificial Intelligence | O74: =IF(VLOOKUP($B74&"_"&$C74&"_"&O$14,UNWDF2024_LookUp!$B:$T,$D74,FALSE)=0,"",VLOOKUP($B74&"_"&$C74&"_"&O$14,UNWDF2024_LookUp!$B:$T,$D74,FALSE)) -> One Data One Humanity - The power of collaboratives and collective data action | P74: =IF(VLOOKUP($B74&"_"&$C74&"_"&P$14,UNWDF2024_LookUp!$B:$T,$D74,FALSE)=0,"",VLOOKUP($B74&"_"&$C74&"_"&P$14,UNWDF2024_LookUp!$B:$T,$D74,FALSE)) -> Opportunities and challenges on data governance in Colombia and the global south | Q74: =IF(VLOOKUP($B74&"_"&$C74&"_"&Q$14,UNWDF2024_LookUp!$B:$T,$D74,FALSE)=0,"",VLOOKUP($B74&"_"&$C74&"_"&Q$14,UNWDF2024_LookUp!$B:$T,$D74,FALSE)) -> Response Integration of data sources to measure displacement in the face of extreme events and disasters | R74: =IF(VLOOKUP($B74&"_"&$C74&"_"&R$14,UNWDF2024_LookUp!$B:$T,$D74,FALSE)=0,"",VLOOKUP($B74&"_"&$C74&"_"&R$14,UNWDF2024_LookUp!$B:$T,$D74,FALSE)) -> Parliamentarian for an hour: what's behind evidence-based policy making?
A75: Day2Time_Slot4 | B75: Day2 | C75: Time_Slot4 | D75: 17 | G75: Organiser | I75: =IF(VLOOKUP($B75&"_"&$C75&"_"&I$14,UNWDF2024_LookUp!$B:$T,$D75,FALSE)=0,"",VLOOKUP($B75&"_"&$C75&"_"&I$14,UNWDF2024_LookUp!$B:$T,$D75,FALSE)) -> Open Data Institute (ODI); IT for Change; PIT Policy Lab; Pollicy; Open Cities Lab | J75: =IF(VLOOKUP($B75&"_"&$C75&"_"&J$14,UNWDF2024_LookUp!$B:$T,$D75,FALSE)=0,"",VLOOKUP($B75&"_"&$C75&"_"&J$14,UNWDF2024_LookUp!$B:$T,$D75,FALSE)) -> HelpAge International; Office for National Statistics (ONS-UK); Titchfield City Group; China National Committee on Ageing (CNCA) | K75: =IF(VLOOKUP($B75&"_"&$C75&"_"&K$14,UNWDF2024_LookUp!$B:$T,$D75,FALSE)=0,"",VLOOKUP($B75&"_"&$C75&"_"&K$14,UNWDF2024_LookUp!$B:$T,$D75,FALSE)) -> Instituto Nacional de Estadística (INE-Uruguay); United Nations Statistics Division (UNSD-DESA); Departamento Administrativo Nacional de Estadística (DANE-Colombia); United Nations Population Fund (UNFPA); WorldPop/University of Southampton; United Nations High Commissioner for Refugees (UNHCR); Institut national de la statistique (INS-Cameroun) | L75: =IF(VLOOKUP($B75&"_"&$C75&"_"&L$14,UNWDF2024_LookUp!$B:$T,$D75,FALSE)=0,"",VLOOKUP($B75&"_"&$C75&"_"&L$14,UNWDF2024_LookUp!$B:$T,$D75,FALSE)) -> Open Data Watch (ODW); World Bank (WB); Data2X;United Nations Entity for Gender Equality and the Empowerment of Women (UN Women); Bureau of Statistics of Lesotho; Equal Measures 2030 | M75: =IF(VLOOKUP($B75&"_"&$C75&"_"&M$14,UNWDF2024_LookUp!$B:$T,$D75,FALSE)=0,"",VLOOKUP($B75&"_"&$C75&"_"&M$14,UNWDF2024_LookUp!$B:$T,$D75,FALSE)) -> United Nations High Commissioner for Refugees (UNHCR); United Nations Children's Fund (UNICEF); United Nations World Food Programme (UNWFP) | N75: =IF(VLOOKUP($B75&"_"&$C75&"_"&N$14,UNWDF2024_LookUp!$B:$T,$D75,FALSE)=0,"",VLOOKUP($B75&"_"&$C75&"_"&N$14,UNWDF2024_LookUp!$B:$T,$D75,FALSE)) -> African Union Development Agency, New Partnership for Africa's Development (AUDA-NEPAD) / Directorate of National Statistics (DNS-Somalia) / Data Economy Policy Hub (DepHUB); European University Institute | O75: =IF(VLOOKUP($B75&"_"&$C75&"_"&O$14,UNWDF2024_LookUp!$B:$T,$D75,FALSE)=0,"",VLOOKUP($B75&"_"&$C75&"_"&O$14,UNWDF2024_LookUp!$B:$T,$D75,FALSE)) -> World Bank (WB); International Telecommunication Union (ITU); Ministry of Economy and Digital Transformation, Spain; Telefonica; United Nations Environment Programme (UNEP); African Water and Sanitation Association (AFWASA); Athena Infonomics LLC; Independent; Aapti Institute; Robert Bosch Stiftung GmbH | P75: =IF(VLOOKUP($B75&"_"&$C75&"_"&P$14,UNWDF2024_LookUp!$B:$T,$D75,FALSE)=0,"",VLOOKUP($B75&"_"&$C75&"_"&P$14,UNWDF2024_LookUp!$B:$T,$D75,FALSE)) -> Departamento Nacional de Planeación (DNP-Colombia); CND; Departamento Administrativo Nacional de Estadística (DANE-Colombia); Ministry of Information Technologies and Communications (MINTIC-Colombia), Administrative Department of the Presidency of the Republic (DAPRE-Colombia) | Q75: =IF(VLOOKUP($B75&"_"&$C75&"_"&Q$14,UNWDF2024_LookUp!$B:$T,$D75,FALSE)=0,"",VLOOKUP($B75&"_"&$C75&"_"&Q$14,UNWDF2024_LookUp!$B:$T,$D75,FALSE)) -> Oficina Nacional de Estadística (ONE-República Dominicana) | R75: =IF(VLOOKUP($B75&"_"&$C75&"_"&R$14,UNWDF2024_LookUp!$B:$T,$D75,FALSE)=0,"",VLOOKUP($B75&"_"&$C75&"_"&R$14,UNWDF2024_LookUp!$B:$T,$D75,FALSE)) -> Partnership in Statistics for Development in the 21st Century (PARIS21)
A76: =B76&C76 -> Day2Time_Slot2C | B76: Day2 | C76: Time_Slot2C | D76: 14 | E76: 15:45 - 16:15 (Medellín time) | F76: =IF(ISERROR(TEXT((DATE($E$3,$E$2,$E$1+MID(B76,4,1))+TIME(MID(E76,1,2),MID(E76,4,2),0))+($C$2-$C$3),"H:MM AM/PM")&" - "&TEXT(DATE($E$3,$E$2,$E$1+MID(B76,4,1))+TIME(MID(E76,9,2),MID(E76,12,2),0)+($C$2-$C$3),"H:MM AM/PM")),E76,TEXT((DATE($E$3,$E$2,$E$1+MID(B76,4,1))+TIME(MID(E76,1,2),MID(E76,4,2),0))+($C$2-$C$3),"H:MM AM/PM")&" - "&TEXT(DATE($E$3,$E$2,$E$1+MID(B76,4,1))+TIME(MID(E76,9,2),MID(E76,12,2),0)+($C$2-$C$3),"H:MM AM/PM")) -> 3:45 PM - 4:15 PM | G76: BREAK
A77: Day2Time_Slot5 | B77: Day2 | C77: Time_Slot5 | D77: 15 | E77: 16:15 - 17:15 (Medellín time) | F77: =IF(ISERROR(TEXT((DATE($E$3,$E$2,$E$1+MID(B77,4,1))+TIME(MID(E77,1,2),MID(E77,4,2),0))+($C$2-$C$3),"H:MM AM/PM")&" - "&TEXT(DATE($E$3,$E$2,$E$1+MID(B77,4,1))+TIME(MID(E77,9,2),MID(E77,12,2),0)+($C$2-$C$3),"H:MM AM/PM")),E77,TEXT(DATE($E$3,$E$2,$E$1+MID(B77,4,1))+TIME(MID(E77,1,2),MID(E77,4,2),0)+($C$2-$C$3),"DDDD DD MMM")&" : "&TEXT((DATE($E$3,$E$2,$E$1+MID(B77,4,1))+TIME(MID(E77,1,2),MID(E77,4,2),0))+($C$2-$C$3),"H:MM AM/PM")&" - "&TEXT(DATE($E$3,$E$2,$E$1+MID(B77,4,1))+TIME(MID(E77,9,2),MID(E77,12,2),0)+($C$2-$C$3),"H:MM AM/PM")) -> Thursday 14 Nov : 4:15 PM - 5:15 PM | G77: Event_ID | I77: =IF(VLOOKUP($B77&"_"&$C77&"_"&I$14,UNWDF2024_LookUp!$B:$T,$D77,FALSE)=0,"",VLOOKUP($B77&"_"&$C77&"_"&I$14,UNWDF2024_LookUp!$B:$T,$D77,FALSE)) -> TA3.3 | J77: =IF(VLOOKUP($B77&"_"&$C77&"_"&J$14,UNWDF2024_LookUp!$B:$T,$D77,FALSE)=0,"",VLOOKUP($B77&"_"&$C77&"_"&J$14,UNWDF2024_LookUp!$B:$T,$D77,FALSE)) -> TA1.10 | K77: =IF(VLOOKUP($B77&"_"&$C77&"_"&K$14,UNWDF2024_LookUp!$B:$T,$D77,FALSE)=0,"",VLOOKUP($B77&"_"&$C77&"_"&K$14,UNWDF2024_LookUp!$B:$T,$D77,FALSE)) -> TA2.6 | L77: =IF(VLOOKUP($B77&"_"&$C77&"_"&L$14,UNWDF2024_LookUp!$B:$T,$D77,FALSE)=0,"",VLOOKUP($B77&"_"&$C77&"_"&L$14,UNWDF2024_LookUp!$B:$T,$D77,FALSE)) -> TA2.16 | M77: =IF(VLOOKUP($B77&"_"&$C77&"_"&M$14,UNWDF2024_LookUp!$B:$T,$D77,FALSE)=0,"",VLOOKUP($B77&"_"&$C77&"_"&M$14,UNWDF2024_LookUp!$B:$T,$D77,FALSE)) -> TA4.14 | N77: =IF(VLOOKUP($B77&"_"&$C77&"_"&N$14,UNWDF2024_LookUp!$B:$T,$D77,FALSE)=0,"",VLOOKUP($B77&"_"&$C77&"_"&N$14,UNWDF2024_LookUp!$B:$T,$D77,FALSE)) -> TED.213 | O77: =IF(VLOOKUP($B77&"_"&$C77&"_"&O$14,UNWDF2024_LookUp!$B:$T,$D77,FALSE)=0,"",VLOOKUP($B77&"_"&$C77&"_"&O$14,UNWDF2024_LookUp!$B:$T,$D77,FALSE)) -> ANCE.404 | P77: =IF(VLOOKUP($B77&"_"&$C77&"_"&P$14,UNWDF2024_LookUp!$B:$T,$D77,FALSE)=0,"",VLOOKUP($B77&"_"&$C77&"_"&P$14,UNWDF2024_LookUp!$B:$T,$D77,FALSE)) -> Local_6 | Q77: =IF(VLOOKUP($B77&"_"&$C77&"_"&Q$14,UNWDF2024_LookUp!$B:$T,$D77,FALSE)=0,"",VLOOKUP($B77&"_"&$C77&"_"&Q$14,UNWDF2024_LookUp!$B:$T,$D77,FALSE)) -> LEARN.307 | R77: =IF(VLOOKUP($B77&"_"&$C77&"_"&R$14,UNWDF2024_LookUp!$B:$T,$D77,FALSE)=0,"",VLOOKUP($B77&"_"&$C77&"_"&R$14,UNWDF2024_LookUp!$B:$T,$D77,FALSE)) -> LEARN.312
A78: Day2Time_Slot5 | B78: Day2 | C78: Time_Slot5 | D78: 13 | G78: Thematic Area | I78: =IF(VLOOKUP($B78&"_"&$C78&"_"&I$14,UNWDF2024_LookUp!$B:$T,$D78,FALSE)=0,"",VLOOKUP($B78&"_"&$C78&"_"&I$14,UNWDF2024_LookUp!$B:$T,$D78,FALSE)) -> 3 | J78: =IF(VLOOKUP($B78&"_"&$C78&"_"&J$14,UNWDF2024_LookUp!$B:$T,$D78,FALSE)=0,"",VLOOKUP($B78&"_"&$C78&"_"&J$14,UNWDF2024_LookUp!$B:$T,$D78,FALSE)) -> 1 | K78: =IF(VLOOKUP($B78&"_"&$C78&"_"&K$14,UNWDF2024_LookUp!$B:$T,$D78,FALSE)=0,"",VLOOKUP($B78&"_"&$C78&"_"&K$14,UNWDF2024_LookUp!$B:$T,$D78,FALSE)) -> 2 | L78: =IF(VLOOKUP($B78&"_"&$C78&"_"&L$14,UNWDF2024_LookUp!$B:$T,$D78,FALSE)=0,"",VLOOKUP($B78&"_"&$C78&"_"&L$14,UNWDF2024_LookUp!$B:$T,$D78,FALSE)) -> 2 | M78: =IF(VLOOKUP($B78&"_"&$C78&"_"&M$14,UNWDF2024_LookUp!$B:$T,$D78,FALSE)=0,"",VLOOKUP($B78&"_"&$C78&"_"&M$14,UNWDF2024_LookUp!$B:$T,$D78,FALSE)) -> 4 | N78: =IF(VLOOKUP($B78&"_"&$C78&"_"&N$14,UNWDF2024_LookUp!$B:$T,$D78,FALSE)=0,"",VLOOKUP($B78&"_"&$C78&"_"&N$14,UNWDF2024_LookUp!$B:$T,$D78,FALSE)) -> _T | O78: =IF(VLOOKUP($B78&"_"&$C78&"_"&O$14,UNWDF2024_LookUp!$B:$T,$D78,FALSE)=0,"",VLOOKUP($B78&"_"&$C78&"_"&O$14,UNWDF2024_LookUp!$B:$T,$D78,FALSE)) -> _A | P78: =IF(VLOOKUP($B78&"_"&$C78&"_"&P$14,UNWDF2024_LookUp!$B:$T,$D78,FALSE)=0,"",VLOOKUP($B78&"_"&$C78&"_"&P$14,UNWDF2024_LookUp!$B:$T,$D78,FALSE)) -> NA | Q78: =IF(VLOOKUP($B78&"_"&$C78&"_"&Q$14,UNWDF2024_LookUp!$B:$T,$D78,FALSE)=0,"",VLOOKUP($B78&"_"&$C78&"_"&Q$14,UNWDF2024_LookUp!$B:$T,$D78,FALSE)) -> _L | R78: =IF(VLOOKUP($B78&"_"&$C78&"_"&R$14,UNWDF2024_LookUp!$B:$T,$D78,FALSE)=0,"",VLOOKUP($B78&"_"&$C78&"_"&R$14,UNWDF2024_LookUp!$B:$T,$D78,FALSE)) -> _L
A79: =B79&C79 -> Day2Time_Slot5 | B79: Day2 | C79: Time_Slot5 | D79: 16 | G79: Event Title | I79: =IF(VLOOKUP($B79&"_"&$C79&"_"&I$14,UNWDF2024_LookUp!$B:$T,$D79,FALSE)=0,"",VLOOKUP($B79&"_"&$C79&"_"&I$14,UNWDF2024_LookUp!$B:$T,$D79,FALSE)) -> Co-creating data action in the digital age: learnings from global community activists on how to create fairer, more inclusive and accountable data practices | J79: =IF(VLOOKUP($B79&"_"&$C79&"_"&J$14,UNWDF2024_LookUp!$B:$T,$D79,FALSE)=0,"",VLOOKUP($B79&"_"&$C79&"_"&J$14,UNWDF2024_LookUp!$B:$T,$D79,FALSE)) -> Equity and inclusion in humanitarian and fragile settings: the role of inclusive population data, gender and intersectional approaches | K79: =IF(VLOOKUP($B79&"_"&$C79&"_"&K$14,UNWDF2024_LookUp!$B:$T,$D79,FALSE)=0,"",VLOOKUP($B79&"_"&$C79&"_"&K$14,UNWDF2024_LookUp!$B:$T,$D79,FALSE)) -> Data Modernisation in Small Island Developing States: Insights and Innovations from the Pacific | L79: =IF(VLOOKUP($B79&"_"&$C79&"_"&L$14,UNWDF2024_LookUp!$B:$T,$D79,FALSE)=0,"",VLOOKUP($B79&"_"&$C79&"_"&L$14,UNWDF2024_LookUp!$B:$T,$D79,FALSE)) -> Lessons from Ecuador and Peru: Leveraging new forms of spatial data for achieving global and national goals for biodiversity and sustainable development | M79: =IF(VLOOKUP($B79&"_"&$C79&"_"&M$14,UNWDF2024_LookUp!$B:$T,$D79,FALSE)=0,"",VLOOKUP($B79&"_"&$C79&"_"&M$14,UNWDF2024_LookUp!$B:$T,$D79,FALSE)) -> Fostering inclusive statistics on migration, displacement, and statelessness: drawing lessons from national and regional experiences | N79: =IF(VLOOKUP($B79&"_"&$C79&"_"&N$14,UNWDF2024_LookUp!$B:$T,$D79,FALSE)=0,"",VLOOKUP($B79&"_"&$C79&"_"&N$14,UNWDF2024_LookUp!$B:$T,$D79,FALSE)) -> Child Deprivation Mapping Through Satellite Imagery and Other Geospatial Data / Earth Observation (EO) data and Open-Source Intelligence (OSINT) to track and monitor trafficking and organized crime / State of the OpenStreetMap in Niger / Partnering for success: UK’s mapping and statistical agencies working together for the public good | O79: =IF(VLOOKUP($B79&"_"&$C79&"_"&O$14,UNWDF2024_LookUp!$B:$T,$D79,FALSE)=0,"",VLOOKUP($B79&"_"&$C79&"_"&O$14,UNWDF2024_LookUp!$B:$T,$D79,FALSE)) -> Data-Driven Empowerment: Launching Gender and Diversity Equality Initiatives | P79: =IF(VLOOKUP($B79&"_"&$C79&"_"&P$14,UNWDF2024_LookUp!$B:$T,$D79,FALSE)=0,"",VLOOKUP($B79&"_"&$C79&"_"&P$14,UNWDF2024_LookUp!$B:$T,$D79,FALSE)) -> Government data and research data : encounters and misunderstandings | Q79: =IF(VLOOKUP($B79&"_"&$C79&"_"&Q$14,UNWDF2024_LookUp!$B:$T,$D79,FALSE)=0,"",VLOOKUP($B79&"_"&$C79&"_"&Q$14,UNWDF2024_LookUp!$B:$T,$D79,FALSE)) -> Framing data equity: the importance of embedding data equity to enhance trust | R79: =IF(VLOOKUP($B79&"_"&$C79&"_"&R$14,UNWDF2024_LookUp!$B:$T,$D79,FALSE)=0,"",VLOOKUP($B79&"_"&$C79&"_"&R$14,UNWDF2024_LookUp!$B:$T,$D79,FALSE)) -> Data Solidarity and PLUTO: Introducing a Tool for Bringing Public Value to Data Governance
A80: Day2Time_Slot5 | B80: Day2 | C80: Time_Slot5 | D80: 17 | G80: Organiser | I80: =IF(VLOOKUP($B80&"_"&$C80&"_"&I$14,UNWDF2024_LookUp!$B:$T,$D80,FALSE)=0,"",VLOOKUP($B80&"_"&$C80&"_"&I$14,UNWDF2024_LookUp!$B:$T,$D80,FALSE)) -> Universidad de los Andes; Restless Development; Global Partnership for Sustainable Development Data (GPSDD) | J80: =IF(VLOOKUP($B80&"_"&$C80&"_"&J$14,UNWDF2024_LookUp!$B:$T,$D80,FALSE)=0,"",VLOOKUP($B80&"_"&$C80&"_"&J$14,UNWDF2024_LookUp!$B:$T,$D80,FALSE)) -> United Nations Entity for Gender Equality and the Empowerment of Women (UN Women); United Nations Office for the Coordination of Humanitarian Affairs (OCHA); African Development Bank (AfDB); CLEAR Global; Government of Uganda, Uganda; Central Statistical Agency (CSA-Ethiopia); United Nations Population Fund (UNFPA); International Organisation for Migration (IOM); United Nations High Commissioner for Refugees (UNHCR) | K80: =IF(VLOOKUP($B80&"_"&$C80&"_"&K$14,UNWDF2024_LookUp!$B:$T,$D80,FALSE)=0,"",VLOOKUP($B80&"_"&$C80&"_"&K$14,UNWDF2024_LookUp!$B:$T,$D80,FALSE)) -> Pacific Community (SPC); Vanuatu Bureau of Statistics; Samoa Bureau of Statistics; Bureau of Statistics and Plans (BSP-Guam); Institut de la statistique de la Polynésie Française | L80: =IF(VLOOKUP($B80&"_"&$C80&"_"&L$14,UNWDF2024_LookUp!$B:$T,$D80,FALSE)=0,"",VLOOKUP($B80&"_"&$C80&"_"&L$14,UNWDF2024_LookUp!$B:$T,$D80,FALSE)) -> United Nations Development Programme (UNDP); UN Environment Programme World Conservation Monitoring Centre (UNEP-WCMC) | M80: =IF(VLOOKUP($B80&"_"&$C80&"_"&M$14,UNWDF2024_LookUp!$B:$T,$D80,FALSE)=0,"",VLOOKUP($B80&"_"&$C80&"_"&M$14,UNWDF2024_LookUp!$B:$T,$D80,FALSE)) -> Members of the Expert Group on Refugee, IDP & Stateless Statistics (EGRISS) and the Collaborative on Administrative Data including: African Union Commission (AUC); Instituto Nacional de Estadistica (INE-Honduras); Joint IDP Profiling Service (JIPS); United Nations Statistics Division (UNSD-DESA); United Nations Economic Commission for Latin America and the Caribbean (UNECLAC / CEPAL); United Nations Refugee Agency (UNHCR) | N80: =IF(VLOOKUP($B80&"_"&$C80&"_"&N$14,UNWDF2024_LookUp!$B:$T,$D80,FALSE)=0,"",VLOOKUP($B80&"_"&$C80&"_"&N$14,UNWDF2024_LookUp!$B:$T,$D80,FALSE)) -> Statistics Indonesia (BPS); United Nations Children's Fund (UNICEF) / United Nations Office on Drugs and Crime (UNODC) / CAGIDEV-COM / Office for National Statistics (ONS-UK); Ordnance Survey, United Kingdom of Great Britain and Northern Ireland | O80: =IF(VLOOKUP($B80&"_"&$C80&"_"&O$14,UNWDF2024_LookUp!$B:$T,$D80,FALSE)=0,"",VLOOKUP($B80&"_"&$C80&"_"&O$14,UNWDF2024_LookUp!$B:$T,$D80,FALSE)) -> Departamento Administrativo Nacional de Estadística (DANE-Colombia); International Institute for Sustainable Development (IISD); International Civil Society Centre; Management And Sustainable Development Institute (Msd); The NGO Forum on Cambodia; General Statistics Office (GSO-Viet Nam); Inter-American Development Bank (IDB); United Nations Economic Commission for Latin America and the Caribbean (UNECLAC / CEPAL); Instituto Nacional de Estadísticas (INE-Chile); Women's Funding Network; Candid | P80: =IF(VLOOKUP($B80&"_"&$C80&"_"&P$14,UNWDF2024_LookUp!$B:$T,$D80,FALSE)=0,"",VLOOKUP($B80&"_"&$C80&"_"&P$14,UNWDF2024_LookUp!$B:$T,$D80,FALSE)) -> Minsitry of Science, Technology and Innovation, Colombia | Q80: =IF(VLOOKUP($B80&"_"&$C80&"_"&Q$14,UNWDF2024_LookUp!$B:$T,$D80,FALSE)=0,"",VLOOKUP($B80&"_"&$C80&"_"&Q$14,UNWDF2024_LookUp!$B:$T,$D80,FALSE)) -> World Economic Forum (WEF); DataKind; Usahidi Inc; Mastercard | R80: =IF(VLOOKUP($B80&"_"&$C80&"_"&R$14,UNWDF2024_LookUp!$B:$T,$D80,FALSE)=0,"",VLOOKUP($B80&"_"&$C80&"_"&R$14,UNWDF2024_LookUp!$B:$T,$D80,FALSE)) -> University of Vienna; Digital Transformations for Health (DTH) Lab
A81: =B81&C81 -> Day2Time_Slot2C | B81: Day2 | C81: Time_Slot2C | D81: 14 | E81: 17:15 - 18:00 (Medellín time) | F81: =IF(ISERROR(TEXT((DATE($E$3,$E$2,$E$1+MID(B81,4,1))+TIME(MID(E81,1,2),MID(E81,4,2),0))+($C$2-$C$3),"H:MM AM/PM")&" - "&TEXT(DATE($E$3,$E$2,$E$1+MID(B81,4,1))+TIME(MID(E81,9,2),MID(E81,12,2),0)+($C$2-$C$3),"H:MM AM/PM")),E81,TEXT((DATE($E$3,$E$2,$E$1+MID(B81,4,1))+TIME(MID(E81,1,2),MID(E81,4,2),0))+($C$2-$C$3),"H:MM AM/PM")&" - "&TEXT(DATE($E$3,$E$2,$E$1+MID(B81,4,1))+TIME(MID(E81,9,2),MID(E81,12,2),0)+($C$2-$C$3),"H:MM AM/PM")) -> 5:15 PM - 6:00 PM | G81: Break
A82: Day2Time_Slot6 | B82: Day2 | C82: Time_Slot6 | D82: 16 | E82: 18:00 - 20:00 (Medellín time) | F82: =IF(ISERROR(TEXT((DATE($E$3,$E$2,$E$1+MID(B82,4,1))+TIME(MID(E82,1,2),MID(E82,4,2),0))+($C$2-$C$3),"H:MM AM/PM")&" - "&TEXT(DATE($E$3,$E$2,$E$1+MID(B82,4,1))+TIME(MID(E82,9,2),MID(E82,12,2),0)+($C$2-$C$3),"H:MM AM/PM")),E82,TEXT(DATE($E$3,$E$2,$E$1+MID(B82,4,1))+TIME(MID(E82,1,2),MID(E82,4,2),0)+($C$2-$C$3),"DDDD DD MMM")&" : "&TEXT((DATE($E$3,$E$2,$E$1+MID(B82,4,1))+TIME(MID(E82,1,2),MID(E82,4,2),0))+($C$2-$C$3),"H:MM AM/PM")&" - "&TEXT(DATE($E$3,$E$2,$E$1+MID(B82,4,1))+TIME(MID(E82,9,2),MID(E82,12,2),0)+($C$2-$C$3),"H:MM AM/PM")) -> Thursday 14 Nov : 6:00 PM - 8:00 PM | G82: Event Title | H82: =IF(VLOOKUP($B82&"_"&$C82&"_"&H$14,UNWDF2024_LookUp!$B:$T,$D82,FALSE)=0,"",VLOOKUP($B82&"_"&$C82&"_"&H$14,UNWDF2024_LookUp!$B:$T,$D82,FALSE)) -> Reception: A recognition of partners on Data for Sustainable Development
A83: =B83&C83 -> Day2Time_Slot6 | B83: Day2 | C83: Time_Slot6 | D83: 17 | G83: Organiser | H83: =IF(VLOOKUP($B83&"_"&$C83&"_"&H$14,UNWDF2024_LookUp!$B:$T,$D83,FALSE)=0,"",VLOOKUP($B83&"_"&$C83&"_"&H$14,UNWDF2024_LookUp!$B:$T,$D83,FALSE)) -> Departamento Administrativo Nacional de Estadística (DANE-Colombia)
J85: TA 1. Innovation for better and more inclusive data: data integration and leveraging of various data sources and methodologies to ensure visibility and voice for everyone | N85: TA 3. Building trust, protection and ethics in data: developing the principles of stewardship within the data ecosystem to balance the full value from data use with the protection of privacy and data rights
J87: TA 2. Maximizing the use and value of data for better decision making: adding value to data through better analysis and communication to ensure full use of data for bettering lives through the agency, respect, and inclusion of everyone | N87: TA 4. Effective partnerships for better data and a more equitable data ecosystem: supporting global, regional, national and sub-national data ecosystems in the implementation of the Cape Town Global Action Plan including sustainable finance for data and statistics programmes at all levels of organization
A89: Day3 | E89: =DATE($E$3,$E$2,$E$1+MID(B93,4,1)) -> 2024-11-15 | F89: =IF(ISERROR(DATE($E$3,$E$2,$E$1+MID(B93,4,1))+TIME(MID(E93,1,2),MID(E93,4,2),0)+($C$2-$C$3)),DATE($E$3,$E$2,$E$1+MID(B93,4,1)),TEXT(DATE($E$3,$E$2,$E$1+MID(B93,4,1))+TIME(MID(E93,1,2),MID(E93,4,2),0)+($C$2-$C$3),"DDDDDD, DD MMMM YYYY")&" [Date changes shown on row]") -> Friday, 15 November 2024 [Date changes shown on row]
C90: LookUp | G90: LookUp | H90: Parallel 01 | I90: Parallel 02 | J90: Parallel 03 | K90: Parallel 04 | L90: Parallel 05 | M90: Parallel 06 | N90: Parallel 07 | O90: Parallel 08 | P90: Parallel 09 | Q90: Parallel 10 | R90: Parallel 11 | S90: Parallel 12
F91: Time (Auto-adjusts to your local time, unless "(Medellín time)" shown) | G91: Rm Name | H91: Plenary Room | I91: Room 1 | J91: Room 2 | K91: Room 3 | L91: Room 4 | M91: Room 5 | N91: Room 6 | O91: Room 7 | P91: Room 8 | Q91: Room 9 | R91: Room 10 | S91: NA
A92: DayTime_LookUp | B92: Day_LookUp | C92: Time_LookUp | D92: Col_LookUp | E92: Time (GMT/UTC time+8) | G92: Capacity | H92: 3000 | I92: 300 | J92: 200 | K92: 200 | L92: 200 | M92: 200 | N92: 150 | O92: 150 | P92: 90 | Q92: 60 | R92: 60 | S92: NA
A93: =B93&C93 -> Day3Time_Slot1 | B93: Day3 | C93: Time_Slot1 | D93: 15 | E93: 09:00 - 10:15 (Medellín time) | F93: =IF(ISERROR(TEXT((DATE($E$3,$E$2,$E$1+MID(B93,4,1))+TIME(MID(E93,1,2),MID(E93,4,2),0))+($C$2-$C$3),"H:MM AM/PM")&" - "&TEXT(DATE($E$3,$E$2,$E$1+MID(B93,4,1))+TIME(MID(E93,9,2),MID(E93,12,2),0)+($C$2-$C$3),"H:MM AM/PM")),E93,TEXT(DATE($E$3,$E$2,$E$1+MID(B93,4,1))+TIME(MID(E93,1,2),MID(E93,4,2),0)+($C$2-$C$3),"DDDD DD MMM")&" : "&TEXT((DATE($E$3,$E$2,$E$1+MID(B93,4,1))+TIME(MID(E93,1,2),MID(E93,4,2),0))+($C$2-$C$3),"H:MM AM/PM")&" - "&TEXT(DATE($E$3,$E$2,$E$1+MID(B93,4,1))+TIME(MID(E93,9,2),MID(E93,12,2),0)+($C$2-$C$3),"H:MM AM/PM")) -> Friday 15 Nov : 9:00 AM - 10:15 AM | G93: Event_ID | H93: =IF(VLOOKUP($B93&"_"&$C93&"_"&H$14,UNWDF2024_LookUp!$B:$T,$D93,FALSE)=0,"",VLOOKUP($B93&"_"&$C93&"_"&H$14,UNWDF2024_LookUp!$B:$T,$D93,FALSE)) -> TA4.1
A94: =B94&C94 -> Day3Time_Slot1 | B94: Day3 | C94: Time_Slot1 | D94: 13 | G94: Thematic Area | H94: =IF(VLOOKUP($B94&"_"&$C94&"_"&H$14,UNWDF2024_LookUp!$B:$T,$D94,FALSE)=0,"",VLOOKUP($B94&"_"&$C94&"_"&H$14,UNWDF2024_LookUp!$B:$T,$D94,FALSE)) -> 4
A95: =B95&C95 -> Day3Time_Slot1 | B95: Day3 | C95: Time_Slot1 | D95: 16 | G95: Event Title | H95: =IF(VLOOKUP($B95&"_"&$C95&"_"&H$14,UNWDF2024_LookUp!$B:$T,$D95,FALSE)=0,"",VLOOKUP($B95&"_"&$C95&"_"&H$14,UNWDF2024_LookUp!$B:$T,$D95,FALSE)) -> Effective partnerships for better data and a more equitable data ecosystem
A96: Day3Time_Slot1 | B96: Day3 | C96: Time_Slot1 | D96: 17 | G96: Organiser | H96: =IF(VLOOKUP($B96&"_"&$C96&"_"&H$14,UNWDF2024_LookUp!$B:$T,$D96,FALSE)=0,"",VLOOKUP($B96&"_"&$C96&"_"&H$14,UNWDF2024_LookUp!$B:$T,$D96,FALSE)) -> UN World Data Forum Programme Committee (UNWDF PC)
B97: Day3 | E97: 10:15 - 10:45 (Medellín time) | F97: =IF(ISERROR(TEXT((DATE($E$3,$E$2,$E$1+MID(B97,4,1))+TIME(MID(E97,1,2),MID(E97,4,2),0))+($C$2-$C$3),"H:MM AM/PM")&" - "&TEXT(DATE($E$3,$E$2,$E$1+MID(B97,4,1))+TIME(MID(E97,9,2),MID(E97,12,2),0)+($C$2-$C$3),"H:MM AM/PM")),E97,TEXT((DATE($E$3,$E$2,$E$1+MID(B97,4,1))+TIME(MID(E97,1,2),MID(E97,4,2),0))+($C$2-$C$3),"H:MM AM/PM")&" - "&TEXT(DATE($E$3,$E$2,$E$1+MID(B97,4,1))+TIME(MID(E97,9,2),MID(E97,12,2),0)+($C$2-$C$3),"H:MM AM/PM")) -> 10:15 AM - 10:45 AM | G97: BREAK
A98: =B98&C98 -> Day3Time_Slot2 | B98: Day3 | C98: Time_Slot2 | D98: 15 | E98: 10:45 - 11:45 (Medellín time) | F98: =IF(ISERROR(TEXT((DATE($E$3,$E$2,$E$1+MID(B98,4,1))+TIME(MID(E98,1,2),MID(E98,4,2),0))+($C$2-$C$3),"H:MM AM/PM")&" - "&TEXT(DATE($E$3,$E$2,$E$1+MID(B98,4,1))+TIME(MID(E98,9,2),MID(E98,12,2),0)+($C$2-$C$3),"H:MM AM/PM")),E98,TEXT(DATE($E$3,$E$2,$E$1+MID(B98,4,1))+TIME(MID(E98,1,2),MID(E98,4,2),0)+($C$2-$C$3),"DDDD DD MMM")&" : "&TEXT((DATE($E$3,$E$2,$E$1+MID(B98,4,1))+TIME(MID(E98,1,2),MID(E98,4,2),0))+($C$2-$C$3),"H:MM AM/PM")&" - "&TEXT(DATE($E$3,$E$2,$E$1+MID(B98,4,1))+TIME(MID(E98,9,2),MID(E98,12,2),0)+($C$2-$C$3),"H:MM AM/PM")) -> Friday 15 Nov : 10:45 AM - 11:45 AM | G98: Event_ID | I98: =IF(VLOOKUP($B98&"_"&$C98&"_"&I$14,UNWDF2024_LookUp!$B:$T,$D98,FALSE)=0,"",VLOOKUP($B98&"_"&$C98&"_"&I$14,UNWDF2024_LookUp!$B:$T,$D98,FALSE)) -> TA4.3 | J98: =IF(VLOOKUP($B98&"_"&$C98&"_"&J$14,UNWDF2024_LookUp!$B:$T,$D98,FALSE)=0,"",VLOOKUP($B98&"_"&$C98&"_"&J$14,UNWDF2024_LookUp!$B:$T,$D98,FALSE)) -> TA1.11 | K98: =IF(VLOOKUP($B98&"_"&$C98&"_"&K$14,UNWDF2024_LookUp!$B:$T,$D98,FALSE)=0,"",VLOOKUP($B98&"_"&$C98&"_"&K$14,UNWDF2024_LookUp!$B:$T,$D98,FALSE)) -> TA2.7 | L98: =IF(VLOOKUP($B98&"_"&$C98&"_"&L$14,UNWDF2024_LookUp!$B:$T,$D98,FALSE)=0,"",VLOOKUP($B98&"_"&$C98&"_"&L$14,UNWDF2024_LookUp!$B:$T,$D98,FALSE)) -> TA4.5 | M98: =IF(VLOOKUP($B98&"_"&$C98&"_"&M$14,UNWDF2024_LookUp!$B:$T,$D98,FALSE)=0,"",VLOOKUP($B98&"_"&$C98&"_"&M$14,UNWDF2024_LookUp!$B:$T,$D98,FALSE)) -> TA4.15 | N98: =IF(VLOOKUP($B98&"_"&$C98&"_"&N$14,UNWDF2024_LookUp!$B:$T,$D98,FALSE)=0,"",VLOOKUP($B98&"_"&$C98&"_"&N$14,UNWDF2024_LookUp!$B:$T,$D98,FALSE)) -> TED.208 | O98: =IF(VLOOKUP($B98&"_"&$C98&"_"&O$14,UNWDF2024_LookUp!$B:$T,$D98,FALSE)=0,"",VLOOKUP($B98&"_"&$C98&"_"&O$14,UNWDF2024_LookUp!$B:$T,$D98,FALSE)) -> ANCE.401 | P98: =IF(VLOOKUP($B98&"_"&$C98&"_"&P$14,UNWDF2024_LookUp!$B:$T,$D98,FALSE)=0,"",VLOOKUP($B98&"_"&$C98&"_"&P$14,UNWDF2024_LookUp!$B:$T,$D98,FALSE)) -> Local_7 | Q98: =IF(VLOOKUP($B98&"_"&$C98&"_"&Q$14,UNWDF2024_LookUp!$B:$T,$D98,FALSE)=0,"",VLOOKUP($B98&"_"&$C98&"_"&Q$14,UNWDF2024_LookUp!$B:$T,$D98,FALSE)) -> LEARN.308 | R98: =IF(VLOOKUP($B98&"_"&$C98&"_"&R$14,UNWDF2024_LookUp!$B:$T,$D98,FALSE)=0,"",VLOOKUP($B98&"_"&$C98&"_"&R$14,UNWDF2024_LookUp!$B:$T,$D98,FALSE)) -> TA1.18
A99: Day3Time_Slot2 | B99: Day3 | C99: Time_Slot2 | D99: 13 | G99: Thematic Area | I99: =IF(VLOOKUP($B99&"_"&$C99&"_"&I$14,UNWDF2024_LookUp!$B:$T,$D99,FALSE)=0,"",VLOOKUP($B99&"_"&$C99&"_"&I$14,UNWDF2024_LookUp!$B:$T,$D99,FALSE)) -> 4 | J99: =IF(VLOOKUP($B99&"_"&$C99&"_"&J$14,UNWDF2024_LookUp!$B:$T,$D99,FALSE)=0,"",VLOOKUP($B99&"_"&$C99&"_"&J$14,UNWDF2024_LookUp!$B:$T,$D99,FALSE)) -> 1 | K99: =IF(VLOOKUP($B99&"_"&$C99&"_"&K$14,UNWDF2024_LookUp!$B:$T,$D99,FALSE)=0,"",VLOOKUP($B99&"_"&$C99&"_"&K$14,UNWDF2024_LookUp!$B:$T,$D99,FALSE)) -> 2 | L99: =IF(VLOOKUP($B99&"_"&$C99&"_"&L$14,UNWDF2024_LookUp!$B:$T,$D99,FALSE)=0,"",VLOOKUP($B99&"_"&$C99&"_"&L$14,UNWDF2024_LookUp!$B:$T,$D99,FALSE)) -> 4 | M99: =IF(VLOOKUP($B99&"_"&$C99&"_"&M$14,UNWDF2024_LookUp!$B:$T,$D99,FALSE)=0,"",VLOOKUP($B99&"_"&$C99&"_"&M$14,UNWDF2024_LookUp!$B:$T,$D99,FALSE)) -> 4 | N99: =IF(VLOOKUP($B99&"_"&$C99&"_"&N$14,UNWDF2024_LookUp!$B:$T,$D99,FALSE)=0,"",VLOOKUP($B99&"_"&$C99&"_"&N$14,UNWDF2024_LookUp!$B:$T,$D99,FALSE)) -> _T | O99: =IF(VLOOKUP($B99&"_"&$C99&"_"&O$14,UNWDF2024_LookUp!$B:$T,$D99,FALSE)=0,"",VLOOKUP($B99&"_"&$C99&"_"&O$14,UNWDF2024_LookUp!$B:$T,$D99,FALSE)) -> _A | P99: =IF(VLOOKUP($B99&"_"&$C99&"_"&P$14,UNWDF2024_LookUp!$B:$T,$D99,FALSE)=0,"",VLOOKUP($B99&"_"&$C99&"_"&P$14,UNWDF2024_LookUp!$B:$T,$D99,FALSE)) -> NA | Q99: =IF(VLOOKUP($B99&"_"&$C99&"_"&Q$14,UNWDF2024_LookUp!$B:$T,$D99,FALSE)=0,"",VLOOKUP($B99&"_"&$C99&"_"&Q$14,UNWDF2024_LookUp!$B:$T,$D99,FALSE)) -> _L | R99: =IF(VLOOKUP($B99&"_"&$C99&"_"&R$14,UNWDF2024_LookUp!$B:$T,$D99,FALSE)=0,"",VLOOKUP($B99&"_"&$C99&"_"&R$14,UNWDF2024_LookUp!$B:$T,$D99,FALSE)) -> 1
A100: =B100&C100 -> Day3Time_Slot2 | B100: Day3 | C100: Time_Slot2 | D100: 16 | G100: Event Title | I100: =IF(VLOOKUP($B100&"_"&$C100&"_"&I$14,UNWDF2024_LookUp!$B:$T,$D100,FALSE)=0,"",VLOOKUP($B100&"_"&$C100&"_"&I$14,UNWDF2024_LookUp!$B:$T,$D100,FALSE)) -> Data Guilds, Data Tribes: Fostering Change and Innovation through Organic Community-driven Approaches | J100: =IF(VLOOKUP($B100&"_"&$C100&"_"&J$14,UNWDF2024_LookUp!$B:$T,$D100,FALSE)=0,"",VLOOKUP($B100&"_"&$C100&"_"&J$14,UNWDF2024_LookUp!$B:$T,$D100,FALSE)) -> Strengthening administrative data-based children’s statistics in Latin America and the Caribbean | K100: =IF(VLOOKUP($B100&"_"&$C100&"_"&K$14,UNWDF2024_LookUp!$B:$T,$D100,FALSE)=0,"",VLOOKUP($B100&"_"&$C100&"_"&K$14,UNWDF2024_LookUp!$B:$T,$D100,FALSE)) -> Ultra-High-Frequency Poverty Monitoring: Timely Quarterly and Monthly Assessments for Poverty Dynamics and Household Welfare | L100: =IF(VLOOKUP($B100&"_"&$C100&"_"&L$14,UNWDF2024_LookUp!$B:$T,$D100,FALSE)=0,"",VLOOKUP($B100&"_"&$C100&"_"&L$14,UNWDF2024_LookUp!$B:$T,$D100,FALSE)) -> Learning Across Borders: How countries share knowledge to harness administrative data for official statistics | M100: =IF(VLOOKUP($B100&"_"&$C100&"_"&M$14,UNWDF2024_LookUp!$B:$T,$D100,FALSE)=0,"",VLOOKUP($B100&"_"&$C100&"_"&M$14,UNWDF2024_LookUp!$B:$T,$D100,FALSE)) -> Maximizing the value of data: public-private partnerships in local contexts | N100: =IF(VLOOKUP($B100&"_"&$C100&"_"&N$14,UNWDF2024_LookUp!$B:$T,$D100,FALSE)=0,"",VLOOKUP($B100&"_"&$C100&"_"&N$14,UNWDF2024_LookUp!$B:$T,$D100,FALSE)) -> Inclusion of All Citizens in Assessment and Improvement of Local Governments’ Performance in Governance and Public Service Delivery / Exploring Agenda 2030 through the 5Ps lens: New Parameters for a Value-Based Interpretation of the SDGs / Empowering Progress: Harnessing Collective Intelligence for Inclusive Data Innovation towards Sustainable Development Goals / How consumer trust through better data governance in cross-border data flows can improve access to private sector data for the public good | O100: =IF(VLOOKUP($B100&"_"&$C100&"_"&O$14,UNWDF2024_LookUp!$B:$T,$D100,FALSE)=0,"",VLOOKUP($B100&"_"&$C100&"_"&O$14,UNWDF2024_LookUp!$B:$T,$D100,FALSE)) -> Collaborative open data platform to promote university quantitative research – Open Data Punku Yachay (gate of knowledge) / Mixing messy data to tell a story: A livability index for urban planning for Colombian cities | P100: =IF(VLOOKUP($B100&"_"&$C100&"_"&P$14,UNWDF2024_LookUp!$B:$T,$D100,FALSE)=0,"",VLOOKUP($B100&"_"&$C100&"_"&P$14,UNWDF2024_LookUp!$B:$T,$D100,FALSE)) -> Informed citizens for transformative cities: cities that predict, anticipate and project based on citizen experience. | Q100: =IF(VLOOKUP($B100&"_"&$C100&"_"&Q$14,UNWDF2024_LookUp!$B:$T,$D100,FALSE)=0,"",VLOOKUP($B100&"_"&$C100&"_"&Q$14,UNWDF2024_LookUp!$B:$T,$D100,FALSE)) -> From Numbers to Narratives: Unlocking the power of SDG Data through Data storytelling and Visualization | R100: =IF(VLOOKUP($B100&"_"&$C100&"_"&R$14,UNWDF2024_LookUp!$B:$T,$D100,FALSE)=0,"",VLOOKUP($B100&"_"&$C100&"_"&R$14,UNWDF2024_LookUp!$B:$T,$D100,FALSE)) -> Step forwards the measurement of violence against children for better policy decision
A101: Day3Time_Slot2 | B101: Day3 | C101: Time_Slot2 | D101: 17 | G101: Organiser | I101: =IF(VLOOKUP($B101&"_"&$C101&"_"&I$14,UNWDF2024_LookUp!$B:$T,$D101,FALSE)=0,"",VLOOKUP($B101&"_"&$C101&"_"&I$14,UNWDF2024_LookUp!$B:$T,$D101,FALSE)) -> United Nations Children's Fund (UNICEF); World Bank (WB); Organisation for Economic Co-operation and Development (OECD); University of Oslo; National Statistical Office (NSO-Thailand) | J101: =IF(VLOOKUP($B101&"_"&$C101&"_"&J$14,UNWDF2024_LookUp!$B:$T,$D101,FALSE)=0,"",VLOOKUP($B101&"_"&$C101&"_"&J$14,UNWDF2024_LookUp!$B:$T,$D101,FALSE)) -> United Nations Children's Fund (UNICEF); United Nations Economic Commission for Latin America and the Caribbean (UNECLAC / CEPAL); Instituto Nacional de Estadísticas (INE-Chile); Instituto Nacional de Estadística (INE-Uruguay) | K101: =IF(VLOOKUP($B101&"_"&$C101&"_"&K$14,UNWDF2024_LookUp!$B:$T,$D101,FALSE)=0,"",VLOOKUP($B101&"_"&$C101&"_"&K$14,UNWDF2024_LookUp!$B:$T,$D101,FALSE)) -> World Bank (WB); Government of Paraguay, Paraguay; Zimbabwe National Statistics Agency (ZIMSTAT); Catholic Relief Services (CRS); Cornell University | L101: =IF(VLOOKUP($B101&"_"&$C101&"_"&L$14,UNWDF2024_LookUp!$B:$T,$D101,FALSE)=0,"",VLOOKUP($B101&"_"&$C101&"_"&L$14,UNWDF2024_LookUp!$B:$T,$D101,FALSE)) -> United Nations Statistics Division (UNSD-DESA); United Nations Entity for Gender Equality and the Empowerment of Women (UN Women); Global Partnership for Sustainable Development Data (GPSDD) | M101: =IF(VLOOKUP($B101&"_"&$C101&"_"&M$14,UNWDF2024_LookUp!$B:$T,$D101,FALSE)=0,"",VLOOKUP($B101&"_"&$C101&"_"&M$14,UNWDF2024_LookUp!$B:$T,$D101,FALSE)) -> Departamento Administrativo Nacional de Estadística (DANE-Colombia); Statistics Poland; Environmental Systems Research Institute (Esri); Centro de Pensamiento Estratégico Internacional (Cepei) | N101: =IF(VLOOKUP($B101&"_"&$C101&"_"&N$14,UNWDF2024_LookUp!$B:$T,$D101,FALSE)=0,"",VLOOKUP($B101&"_"&$C101&"_"&N$14,UNWDF2024_LookUp!$B:$T,$D101,FALSE)) -> United Nations Development Programme (UNDP) / Universidade Federal do Rio Grande do Sul / United Nations Development Programme (UNDP) / Consumers International; Visa | O101: =IF(VLOOKUP($B101&"_"&$C101&"_"&O$14,UNWDF2024_LookUp!$B:$T,$D101,FALSE)=0,"",VLOOKUP($B101&"_"&$C101&"_"&O$14,UNWDF2024_LookUp!$B:$T,$D101,FALSE)) -> Universidad Nacional Mayor de San Marcos; Universidad de los Andes; Universidad Nacional de Colombia | P101: =IF(VLOOKUP($B101&"_"&$C101&"_"&P$14,UNWDF2024_LookUp!$B:$T,$D101,FALSE)=0,"",VLOOKUP($B101&"_"&$C101&"_"&P$14,UNWDF2024_LookUp!$B:$T,$D101,FALSE)) -> Ruta N | Q101: =IF(VLOOKUP($B101&"_"&$C101&"_"&Q$14,UNWDF2024_LookUp!$B:$T,$D101,FALSE)=0,"",VLOOKUP($B101&"_"&$C101&"_"&Q$14,UNWDF2024_LookUp!$B:$T,$D101,FALSE)) -> United Nations Statistics Division (UNSD-DESA); Partnership in Statistics for Development in the 21st Century (PARIS21); United Nations Entity for Gender Equality and the Empowerment of Women (UN Women) | R101: =IF(VLOOKUP($B101&"_"&$C101&"_"&R$14,UNWDF2024_LookUp!$B:$T,$D101,FALSE)=0,"",VLOOKUP($B101&"_"&$C101&"_"&R$14,UNWDF2024_LookUp!$B:$T,$D101,FALSE)) -> Italian National Institute of Statistics (Istat); United Nations Children's Fund (UNICEF); Instituto Nacional de Estadística y Geografía (INEGI-México); Middlesex University
B102: Day3 | E102: 11:45 - 13:15 (Medellín time) | F102: =IF(ISERROR(TEXT((DATE($E$3,$E$2,$E$1+MID(B102,4,1))+TIME(MID(E102,1,2),MID(E102,4,2),0))+($C$2-$C$3),"H:MM AM/PM")&" - "&TEXT(DATE($E$3,$E$2,$E$1+MID(B102,4,1))+TIME(MID(E102,9,2),MID(E102,12,2),0)+($C$2-$C$3),"H:MM AM/PM")),E102,TEXT((DATE($E$3,$E$2,$E$1+MID(B102,4,1))+TIME(MID(E102,1,2),MID(E102,4,2),0))+($C$2-$C$3),"H:MM AM/PM")&" - "&TEXT(DATE($E$3,$E$2,$E$1+MID(B102,4,1))+TIME(MID(E102,9,2),MID(E102,12,2),0)+($C$2-$C$3),"H:MM AM/PM")) -> 11:45 AM - 1:15 PM | G102: BREAK
A103: =B103&C103 -> Day3Time_Slot3 | B103: Day3 | C103: Time_Slot3 | D103: 15 | E103: 13:15 - 14:15 (Medellín time) | F103: =IF(ISERROR(TEXT((DATE($E$3,$E$2,$E$1+MID(B103,4,1))+TIME(MID(E103,1,2),MID(E103,4,2),0))+($C$2-$C$3),"H:MM AM/PM")&" - "&TEXT(DATE($E$3,$E$2,$E$1+MID(B103,4,1))+TIME(MID(E103,9,2),MID(E103,12,2),0)+($C$2-$C$3),"H:MM AM/PM")),E103,TEXT(DATE($E$3,$E$2,$E$1+MID(B103,4,1))+TIME(MID(E103,1,2),MID(E103,4,2),0)+($C$2-$C$3),"DDDD DD MMM")&" : "&TEXT((DATE($E$3,$E$2,$E$1+MID(B103,4,1))+TIME(MID(E103,1,2),MID(E103,4,2),0))+($C$2-$C$3),"H:MM AM/PM")&" - "&TEXT(DATE($E$3,$E$2,$E$1+MID(B103,4,1))+TIME(MID(E103,9,2),MID(E103,12,2),0)+($C$2-$C$3),"H:MM AM/PM")) -> Friday 15 Nov : 1:15 PM - 2:15 PM | G103: Event_ID | I103: =IF(VLOOKUP($B103&"_"&$C103&"_"&I$14,UNWDF2024_LookUp!$B:$T,$D103,FALSE)=0,"",VLOOKUP($B103&"_"&$C103&"_"&I$14,UNWDF2024_LookUp!$B:$T,$D103,FALSE)) -> TA3.4 | J103: =IF(VLOOKUP($B103&"_"&$C103&"_"&J$14,UNWDF2024_LookUp!$B:$T,$D103,FALSE)=0,"",VLOOKUP($B103&"_"&$C103&"_"&J$14,UNWDF2024_LookUp!$B:$T,$D103,FALSE)) -> TA1.12 | K103: =IF(VLOOKUP($B103&"_"&$C103&"_"&K$14,UNWDF2024_LookUp!$B:$T,$D103,FALSE)=0,"",VLOOKUP($B103&"_"&$C103&"_"&K$14,UNWDF2024_LookUp!$B:$T,$D103,FALSE)) -> TA2.8 | L103: =IF(VLOOKUP($B103&"_"&$C103&"_"&L$14,UNWDF2024_LookUp!$B:$T,$D103,FALSE)=0,"",VLOOKUP($B103&"_"&$C103&"_"&L$14,UNWDF2024_LookUp!$B:$T,$D103,FALSE)) -> TA4.7 | M103: =IF(VLOOKUP($B103&"_"&$C103&"_"&M$14,UNWDF2024_LookUp!$B:$T,$D103,FALSE)=0,"",VLOOKUP($B103&"_"&$C103&"_"&M$14,UNWDF2024_LookUp!$B:$T,$D103,FALSE)) -> TA4.16 | N103: =IF(VLOOKUP($B103&"_"&$C103&"_"&N$14,UNWDF2024_LookUp!$B:$T,$D103,FALSE)=0,"",VLOOKUP($B103&"_"&$C103&"_"&N$14,UNWDF2024_LookUp!$B:$T,$D103,FALSE)) -> TED.209 | O103: =IF(VLOOKUP($B103&"_"&$C103&"_"&O$14,UNWDF2024_LookUp!$B:$T,$D103,FALSE)=0,"",VLOOKUP($B103&"_"&$C103&"_"&O$14,UNWDF2024_LookUp!$B:$T,$D103,FALSE)) -> Local_8 | P103: =IF(VLOOKUP($B103&"_"&$C103&"_"&P$14,UNWDF2024_LookUp!$B:$T,$D103,FALSE)=0,"",VLOOKUP($B103&"_"&$C103&"_"&P$14,UNWDF2024_LookUp!$B:$T,$D103,FALSE)) -> NA | Q103: =IF(VLOOKUP($B103&"_"&$C103&"_"&Q$14,UNWDF2024_LookUp!$B:$T,$D103,FALSE)=0,"",VLOOKUP($B103&"_"&$C103&"_"&Q$14,UNWDF2024_LookUp!$B:$T,$D103,FALSE)) -> Local_9 | R103: =IF(VLOOKUP($B103&"_"&$C103&"_"&R$14,UNWDF2024_LookUp!$B:$T,$D103,FALSE)=0,"",VLOOKUP($B103&"_"&$C103&"_"&R$14,UNWDF2024_LookUp!$B:$T,$D103,FALSE)) -> TA2.17
A104: Day3Time_Slot3 | B104: Day3 | C104: Time_Slot3 | D104: 13 | G104: Thematic Area | I104: =IF(VLOOKUP($B104&"_"&$C104&"_"&I$14,UNWDF2024_LookUp!$B:$T,$D104,FALSE)=0,"",VLOOKUP($B104&"_"&$C104&"_"&I$14,UNWDF2024_LookUp!$B:$T,$D104,FALSE)) -> 3 | J104: =IF(VLOOKUP($B104&"_"&$C104&"_"&J$14,UNWDF2024_LookUp!$B:$T,$D104,FALSE)=0,"",VLOOKUP($B104&"_"&$C104&"_"&J$14,UNWDF2024_LookUp!$B:$T,$D104,FALSE)) -> 1 | K104: =IF(VLOOKUP($B104&"_"&$C104&"_"&K$14,UNWDF2024_LookUp!$B:$T,$D104,FALSE)=0,"",VLOOKUP($B104&"_"&$C104&"_"&K$14,UNWDF2024_LookUp!$B:$T,$D104,FALSE)) -> 2 | L104: =IF(VLOOKUP($B104&"_"&$C104&"_"&L$14,UNWDF2024_LookUp!$B:$T,$D104,FALSE)=0,"",VLOOKUP($B104&"_"&$C104&"_"&L$14,UNWDF2024_LookUp!$B:$T,$D104,FALSE)) -> 4 | M104: =IF(VLOOKUP($B104&"_"&$C104&"_"&M$14,UNWDF2024_LookUp!$B:$T,$D104,FALSE)=0,"",VLOOKUP($B104&"_"&$C104&"_"&M$14,UNWDF2024_LookUp!$B:$T,$D104,FALSE)) -> 4 | N104: =IF(VLOOKUP($B104&"_"&$C104&"_"&N$14,UNWDF2024_LookUp!$B:$T,$D104,FALSE)=0,"",VLOOKUP($B104&"_"&$C104&"_"&N$14,UNWDF2024_LookUp!$B:$T,$D104,FALSE)) -> _T | O104: =IF(VLOOKUP($B104&"_"&$C104&"_"&O$14,UNWDF2024_LookUp!$B:$T,$D104,FALSE)=0,"",VLOOKUP($B104&"_"&$C104&"_"&O$14,UNWDF2024_LookUp!$B:$T,$D104,FALSE)) -> NA | P104: =IF(VLOOKUP($B104&"_"&$C104&"_"&P$14,UNWDF2024_LookUp!$B:$T,$D104,FALSE)=0,"",VLOOKUP($B104&"_"&$C104&"_"&P$14,UNWDF2024_LookUp!$B:$T,$D104,FALSE)) -> NA | Q104: =IF(VLOOKUP($B104&"_"&$C104&"_"&Q$14,UNWDF2024_LookUp!$B:$T,$D104,FALSE)=0,"",VLOOKUP($B104&"_"&$C104&"_"&Q$14,UNWDF2024_LookUp!$B:$T,$D104,FALSE)) -> NA | R104: =IF(VLOOKUP($B104&"_"&$C104&"_"&R$14,UNWDF2024_LookUp!$B:$T,$D104,FALSE)=0,"",VLOOKUP($B104&"_"&$C104&"_"&R$14,UNWDF2024_LookUp!$B:$T,$D104,FALSE)) -> 2
A105: =B105&C105 -> Day3Time_Slot3 | B105: Day3 | C105: Time_Slot3 | D105: 16 | G105: Event Title | I105: =IF(VLOOKUP($B105&"_"&$C105&"_"&I$14,UNWDF2024_LookUp!$B:$T,$D105,FALSE)=0,"",VLOOKUP($B105&"_"&$C105&"_"&I$14,UNWDF2024_LookUp!$B:$T,$D105,FALSE)) -> Global South Perspectives on Building Trust, Protection and Ethics in data collected With and About Young People | J105: =IF(VLOOKUP($B105&"_"&$C105&"_"&J$14,UNWDF2024_LookUp!$B:$T,$D105,FALSE)=0,"",VLOOKUP($B105&"_"&$C105&"_"&J$14,UNWDF2024_LookUp!$B:$T,$D105,FALSE)) -> Data and Persons with Disabilities: Innovative and Recent Efforts from Different Stakeholders | K105: =IF(VLOOKUP($B105&"_"&$C105&"_"&K$14,UNWDF2024_LookUp!$B:$T,$D105,FALSE)=0,"",VLOOKUP($B105&"_"&$C105&"_"&K$14,UNWDF2024_LookUp!$B:$T,$D105,FALSE)) -> New Advances and Approach to Measuring Gender-based Violence | L105: =IF(VLOOKUP($B105&"_"&$C105&"_"&L$14,UNWDF2024_LookUp!$B:$T,$D105,FALSE)=0,"",VLOOKUP($B105&"_"&$C105&"_"&L$14,UNWDF2024_LookUp!$B:$T,$D105,FALSE)) -> Unlocking Impact: Data, Analytics and AI for Better Crisis Action | M105: =IF(VLOOKUP($B105&"_"&$C105&"_"&M$14,UNWDF2024_LookUp!$B:$T,$D105,FALSE)=0,"",VLOOKUP($B105&"_"&$C105&"_"&M$14,UNWDF2024_LookUp!$B:$T,$D105,FALSE)) -> Data on LGBTIQ+ persons: a human rights and multi-stakeholder approach for the production of official statistics | N105: =IF(VLOOKUP($B105&"_"&$C105&"_"&N$14,UNWDF2024_LookUp!$B:$T,$D105,FALSE)=0,"",VLOOKUP($B105&"_"&$C105&"_"&N$14,UNWDF2024_LookUp!$B:$T,$D105,FALSE)) -> The use of qualitative information for decision making / Finger on the pulse - latest methodologies for using data to strengthen education systems / Amplifying the impact of the social sector through data analytics and AI | O105: =IF(VLOOKUP($B105&"_"&$C105&"_"&O$14,UNWDF2024_LookUp!$B:$T,$D105,FALSE)=0,"",VLOOKUP($B105&"_"&$C105&"_"&O$14,UNWDF2024_LookUp!$B:$T,$D105,FALSE)) -> The importance of data for the transformation of Medellín into a district for science, technology and innovation | P105: =IF(VLOOKUP($B105&"_"&$C105&"_"&P$14,UNWDF2024_LookUp!$B:$T,$D105,FALSE)=0,"",VLOOKUP($B105&"_"&$C105&"_"&P$14,UNWDF2024_LookUp!$B:$T,$D105,FALSE)) -> TBC | Q105: =IF(VLOOKUP($B105&"_"&$C105&"_"&Q$14,UNWDF2024_LookUp!$B:$T,$D105,FALSE)=0,"",VLOOKUP($B105&"_"&$C105&"_"&Q$14,UNWDF2024_LookUp!$B:$T,$D105,FALSE)) -> Reserve [Local event] | R105: =IF(VLOOKUP($B105&"_"&$C105&"_"&R$14,UNWDF2024_LookUp!$B:$T,$D105,FALSE)=0,"",VLOOKUP($B105&"_"&$C105&"_"&R$14,UNWDF2024_LookUp!$B:$T,$D105,FALSE)) -> Co-creating Climate Data Ecosystem for Long-term Resilience
A106: =B106&C106 -> Day3Time_Slot3 | B106: Day3 | C106: Time_Slot3 | D106: 17 | E106: ` | G106: Organiser | I106: =IF(VLOOKUP($B106&"_"&$C106&"_"&I$14,UNWDF2024_LookUp!$B:$T,$D106,FALSE)=0,"",VLOOKUP($B106&"_"&$C106&"_"&I$14,UNWDF2024_LookUp!$B:$T,$D106,FALSE)) -> Internet Society (ISOC) - Youth Standing Group; Youth Coalition of Internet Governance (IGF); Consortium d'Appui aux Actions pour la Promotion et le Développement de l'Afrique; United Nations Children's Fund (UNICEF) | J106: =IF(VLOOKUP($B106&"_"&$C106&"_"&J$14,UNWDF2024_LookUp!$B:$T,$D106,FALSE)=0,"",VLOOKUP($B106&"_"&$C106&"_"&J$14,UNWDF2024_LookUp!$B:$T,$D106,FALSE)) -> CBM Global Disability Inclusion; International Disability Alliance; World Federation of the Deaf; Fordham University; Universidad de los Andes; Stakeholder Group of Persons with Disabilities; Fundación Saldarriaga Concha; Inclusión SAS | K106: =IF(VLOOKUP($B106&"_"&$C106&"_"&K$14,UNWDF2024_LookUp!$B:$T,$D106,FALSE)=0,"",VLOOKUP($B106&"_"&$C106&"_"&K$14,UNWDF2024_LookUp!$B:$T,$D106,FALSE)) -> Instituto Nacional de Estadística y Geografía (INEGI-México); Italian National Institute of Statistics (Istat); United Nations Office on Drugs and Crime (UNODC); United Nations Statistics Division (UNSD-DESA); United Nations Entity for Gender Equality and the Empowerment of Women (UN Women); Oficina Nacional de Estadística (ONE-República Dominicana); Point of View; Marialab Hackerspace; TechHER; Luchadoras Support Line | L106: =IF(VLOOKUP($B106&"_"&$C106&"_"&L$14,UNWDF2024_LookUp!$B:$T,$D106,FALSE)=0,"",VLOOKUP($B106&"_"&$C106&"_"&L$14,UNWDF2024_LookUp!$B:$T,$D106,FALSE)) -> Office of the United Nations Secretary-General (EOSG); United Nations Global Pulse (UNGP); U.S. Department of State, United States of America; Armed Conflict Location and Event Data Project (ACLED); Data-Pop Alliance; YouthMappers | M106: =IF(VLOOKUP($B106&"_"&$C106&"_"&M$14,UNWDF2024_LookUp!$B:$T,$D106,FALSE)=0,"",VLOOKUP($B106&"_"&$C106&"_"&M$14,UNWDF2024_LookUp!$B:$T,$D106,FALSE)) -> Red Sin Violencia LGBTI; Global Partnership for Sustainable Development Data (GPSDD); Colombia Diversa; Equilibrium Social Development Consulting (SDC) | N106: =IF(VLOOKUP($B106&"_"&$C106&"_"&N$14,UNWDF2024_LookUp!$B:$T,$D106,FALSE)=0,"",VLOOKUP($B106&"_"&$C106&"_"&N$14,UNWDF2024_LookUp!$B:$T,$D106,FALSE)) -> 3isolution / United Nations Educational, Scientific and Cultural Organization (UNESCO) / Ernst & Young; Compartamos con Colombia; Aldeas Infantiles | O106: =IF(VLOOKUP($B106&"_"&$C106&"_"&O$14,UNWDF2024_LookUp!$B:$T,$D106,FALSE)=0,"",VLOOKUP($B106&"_"&$C106&"_"&O$14,UNWDF2024_LookUp!$B:$T,$D106,FALSE)) -> Economic Development Secretariat Medellín | P106: =IF(VLOOKUP($B106&"_"&$C106&"_"&P$14,UNWDF2024_LookUp!$B:$T,$D106,FALSE)=0,"",VLOOKUP($B106&"_"&$C106&"_"&P$14,UNWDF2024_LookUp!$B:$T,$D106,FALSE)) -> TBC | Q106: =IF(VLOOKUP($B106&"_"&$C106&"_"&Q$14,UNWDF2024_LookUp!$B:$T,$D106,FALSE)=0,"",VLOOKUP($B106&"_"&$C106&"_"&Q$14,UNWDF2024_LookUp!$B:$T,$D106,FALSE)) -> TBC | R106: =IF(VLOOKUP($B106&"_"&$C106&"_"&R$14,UNWDF2024_LookUp!$B:$T,$D106,FALSE)=0,"",VLOOKUP($B106&"_"&$C106&"_"&R$14,UNWDF2024_LookUp!$B:$T,$D106,FALSE)) -> CivicDataLab; Lloyd's Register Foundation; Wellcome Trust
B107: Day3 | E107: 14:15 - 14:30 (Medellín time) | F107: =IF(ISERROR(TEXT((DATE($E$3,$E$2,$E$1+MID(B107,4,1))+TIME(MID(E107,1,2),MID(E107,4,2),0))+($C$2-$C$3),"H:MM AM/PM")&" - "&TEXT(DATE($E$3,$E$2,$E$1+MID(B107,4,1))+TIME(MID(E107,9,2),MID(E107,12,2),0)+($C$2-$C$3),"H:MM AM/PM")),E107,TEXT((DATE($E$3,$E$2,$E$1+MID(B107,4,1))+TIME(MID(E107,1,2),MID(E107,4,2),0))+($C$2-$C$3),"H:MM AM/PM")&" - "&TEXT(DATE($E$3,$E$2,$E$1+MID(B107,4,1))+TIME(MID(E107,9,2),MID(E107,12,2),0)+($C$2-$C$3),"H:MM AM/PM")) -> 2:15 PM - 2:30 PM | G107: BREAK
A108: =B108&C108 -> Day3Time_Slot4 | B108: Day3 | C108: Time_Slot4 | D108: 15 | E108: 14:30 - 15:30 (Medellín time) | F108: =IF(ISERROR(TEXT((DATE($E$3,$E$2,$E$1+MID(B108,4,1))+TIME(MID(E108,1,2),MID(E108,4,2),0))+($C$2-$C$3),"H:MM AM/PM")&" - "&TEXT(DATE($E$3,$E$2,$E$1+MID(B108,4,1))+TIME(MID(E108,9,2),MID(E108,12,2),0)+($C$2-$C$3),"H:MM AM/PM")),E108,TEXT(DATE($E$3,$E$2,$E$1+MID(B108,4,1))+TIME(MID(E108,1,2),MID(E108,4,2),0)+($C$2-$C$3),"DDDD DD MMM")&" : "&TEXT((DATE($E$3,$E$2,$E$1+MID(B108,4,1))+TIME(MID(E108,1,2),MID(E108,4,2),0))+($C$2-$C$3),"H:MM AM/PM")&" - "&TEXT(DATE($E$3,$E$2,$E$1+MID(B108,4,1))+TIME(MID(E108,9,2),MID(E108,12,2),0)+($C$2-$C$3),"H:MM AM/PM")) -> Friday 15 Nov : 2:30 PM - 3:30 PM | G108: Event_ID | I108: =IF(VLOOKUP($B108&"_"&$C108&"_"&I$14,UNWDF2024_LookUp!$B:$T,$D108,FALSE)=0,"",VLOOKUP($B108&"_"&$C108&"_"&I$14,UNWDF2024_LookUp!$B:$T,$D108,FALSE)) -> TA4.4 | J108: =IF(VLOOKUP($B108&"_"&$C108&"_"&J$14,UNWDF2024_LookUp!$B:$T,$D108,FALSE)=0,"",VLOOKUP($B108&"_"&$C108&"_"&J$14,UNWDF2024_LookUp!$B:$T,$D108,FALSE)) -> TA1.19 | K108: =IF(VLOOKUP($B108&"_"&$C108&"_"&K$14,UNWDF2024_LookUp!$B:$T,$D108,FALSE)=0,"",VLOOKUP($B108&"_"&$C108&"_"&K$14,UNWDF2024_LookUp!$B:$T,$D108,FALSE)) -> TA2.14 | L108: =IF(VLOOKUP($B108&"_"&$C108&"_"&L$14,UNWDF2024_LookUp!$B:$T,$D108,FALSE)=0,"",VLOOKUP($B108&"_"&$C108&"_"&L$14,UNWDF2024_LookUp!$B:$T,$D108,FALSE)) -> TA4.2 | M108: =IF(VLOOKUP($B108&"_"&$C108&"_"&M$14,UNWDF2024_LookUp!$B:$T,$D108,FALSE)=0,"",VLOOKUP($B108&"_"&$C108&"_"&M$14,UNWDF2024_LookUp!$B:$T,$D108,FALSE)) -> TA2.4 | N108: =IF(VLOOKUP($B108&"_"&$C108&"_"&N$14,UNWDF2024_LookUp!$B:$T,$D108,FALSE)=0,"",VLOOKUP($B108&"_"&$C108&"_"&N$14,UNWDF2024_LookUp!$B:$T,$D108,FALSE)) -> TED.210 | O108: =IF(VLOOKUP($B108&"_"&$C108&"_"&O$14,UNWDF2024_LookUp!$B:$T,$D108,FALSE)=0,"",VLOOKUP($B108&"_"&$C108&"_"&O$14,UNWDF2024_LookUp!$B:$T,$D108,FALSE)) -> ANCE.403 | P108: =IF(VLOOKUP($B108&"_"&$C108&"_"&P$14,UNWDF2024_LookUp!$B:$T,$D108,FALSE)=0,"",VLOOKUP($B108&"_"&$C108&"_"&P$14,UNWDF2024_LookUp!$B:$T,$D108,FALSE)) -> Local_10 | Q108: =IF(VLOOKUP($B108&"_"&$C108&"_"&Q$14,UNWDF2024_LookUp!$B:$T,$D108,FALSE)=0,"",VLOOKUP($B108&"_"&$C108&"_"&Q$14,UNWDF2024_LookUp!$B:$T,$D108,FALSE)) -> LEARN.309 | R108: =IF(VLOOKUP($B108&"_"&$C108&"_"&R$14,UNWDF2024_LookUp!$B:$T,$D108,FALSE)=0,"",VLOOKUP($B108&"_"&$C108&"_"&R$14,UNWDF2024_LookUp!$B:$T,$D108,FALSE)) -> NA
A109: Day3Time_Slot4 | B109: Day3 | C109: Time_Slot4 | D109: 13 | G109: Thematic Area | I109: =IF(VLOOKUP($B109&"_"&$C109&"_"&I$14,UNWDF2024_LookUp!$B:$T,$D109,FALSE)=0,"",VLOOKUP($B109&"_"&$C109&"_"&I$14,UNWDF2024_LookUp!$B:$T,$D109,FALSE)) -> 4 | J109: =IF(VLOOKUP($B109&"_"&$C109&"_"&J$14,UNWDF2024_LookUp!$B:$T,$D109,FALSE)=0,"",VLOOKUP($B109&"_"&$C109&"_"&J$14,UNWDF2024_LookUp!$B:$T,$D109,FALSE)) -> 1 | K109: =IF(VLOOKUP($B109&"_"&$C109&"_"&K$14,UNWDF2024_LookUp!$B:$T,$D109,FALSE)=0,"",VLOOKUP($B109&"_"&$C109&"_"&K$14,UNWDF2024_LookUp!$B:$T,$D109,FALSE)) -> 2 | L109: =IF(VLOOKUP($B109&"_"&$C109&"_"&L$14,UNWDF2024_LookUp!$B:$T,$D109,FALSE)=0,"",VLOOKUP($B109&"_"&$C109&"_"&L$14,UNWDF2024_LookUp!$B:$T,$D109,FALSE)) -> 4 | M109: =IF(VLOOKUP($B109&"_"&$C109&"_"&M$14,UNWDF2024_LookUp!$B:$T,$D109,FALSE)=0,"",VLOOKUP($B109&"_"&$C109&"_"&M$14,UNWDF2024_LookUp!$B:$T,$D109,FALSE)) -> 2 | N109: =IF(VLOOKUP($B109&"_"&$C109&"_"&N$14,UNWDF2024_LookUp!$B:$T,$D109,FALSE)=0,"",VLOOKUP($B109&"_"&$C109&"_"&N$14,UNWDF2024_LookUp!$B:$T,$D109,FALSE)) -> _T | O109: =IF(VLOOKUP($B109&"_"&$C109&"_"&O$14,UNWDF2024_LookUp!$B:$T,$D109,FALSE)=0,"",VLOOKUP($B109&"_"&$C109&"_"&O$14,UNWDF2024_LookUp!$B:$T,$D109,FALSE)) -> _A | P109: =IF(VLOOKUP($B109&"_"&$C109&"_"&P$14,UNWDF2024_LookUp!$B:$T,$D109,FALSE)=0,"",VLOOKUP($B109&"_"&$C109&"_"&P$14,UNWDF2024_LookUp!$B:$T,$D109,FALSE)) -> NA | Q109: =IF(VLOOKUP($B109&"_"&$C109&"_"&Q$14,UNWDF2024_LookUp!$B:$T,$D109,FALSE)=0,"",VLOOKUP($B109&"_"&$C109&"_"&Q$14,UNWDF2024_LookUp!$B:$T,$D109,FALSE)) -> _L | R109: =IF(VLOOKUP($B109&"_"&$C109&"_"&R$14,UNWDF2024_LookUp!$B:$T,$D109,FALSE)=0,"",VLOOKUP($B109&"_"&$C109&"_"&R$14,UNWDF2024_LookUp!$B:$T,$D109,FALSE)) -> NA
A110: =B110&C110 -> Day3Time_Slot4 | B110: Day3 | C110: Time_Slot4 | D110: 16 | G110: Event Title | I110: =IF(VLOOKUP($B110&"_"&$C110&"_"&I$14,UNWDF2024_LookUp!$B:$T,$D110,FALSE)=0,"",VLOOKUP($B110&"_"&$C110&"_"&I$14,UNWDF2024_LookUp!$B:$T,$D110,FALSE)) -> Towards enhanced pandemic and epidemic intelligence: The value of collaboration between National Statistical Offices and National Public Health Agencies | J110: =IF(VLOOKUP($B110&"_"&$C110&"_"&J$14,UNWDF2024_LookUp!$B:$T,$D110,FALSE)=0,"",VLOOKUP($B110&"_"&$C110&"_"&J$14,UNWDF2024_LookUp!$B:$T,$D110,FALSE)) -> Data for Now: A holistic approach to ensuring value and impact of data | K110: =IF(VLOOKUP($B110&"_"&$C110&"_"&K$14,UNWDF2024_LookUp!$B:$T,$D110,FALSE)=0,"",VLOOKUP($B110&"_"&$C110&"_"&K$14,UNWDF2024_LookUp!$B:$T,$D110,FALSE)) -> Survey meets Spatial: Gaining insights for SDG Locals | L110: =IF(VLOOKUP($B110&"_"&$C110&"_"&L$14,UNWDF2024_LookUp!$B:$T,$D110,FALSE)=0,"",VLOOKUP($B110&"_"&$C110&"_"&L$14,UNWDF2024_LookUp!$B:$T,$D110,FALSE)) -> UNWDF 2024: Catalyzing Commitments for Sustainable Development Data | M110: =IF(VLOOKUP($B110&"_"&$C110&"_"&M$14,UNWDF2024_LookUp!$B:$T,$D110,FALSE)=0,"",VLOOKUP($B110&"_"&$C110&"_"&M$14,UNWDF2024_LookUp!$B:$T,$D110,FALSE)) -> Earth Observation (EO) and Remote Sensing (RS) Technologies Serve Global Food Security | N110: =IF(VLOOKUP($B110&"_"&$C110&"_"&N$14,UNWDF2024_LookUp!$B:$T,$D110,FALSE)=0,"",VLOOKUP($B110&"_"&$C110&"_"&N$14,UNWDF2024_LookUp!$B:$T,$D110,FALSE)) -> Going beyond traditional data to shed light on vulnerable and marginalized populations | O110: =IF(VLOOKUP($B110&"_"&$C110&"_"&O$14,UNWDF2024_LookUp!$B:$T,$D110,FALSE)=0,"",VLOOKUP($B110&"_"&$C110&"_"&O$14,UNWDF2024_LookUp!$B:$T,$D110,FALSE)) -> Launch of the UNICEF Guidelines for the Production of Data on Violence against Children | P110: =IF(VLOOKUP($B110&"_"&$C110&"_"&P$14,UNWDF2024_LookUp!$B:$T,$D110,FALSE)=0,"",VLOOKUP($B110&"_"&$C110&"_"&P$14,UNWDF2024_LookUp!$B:$T,$D110,FALSE)) -> Exploring the environment through public and geographical data | Q110: =IF(VLOOKUP($B110&"_"&$C110&"_"&Q$14,UNWDF2024_LookUp!$B:$T,$D110,FALSE)=0,"",VLOOKUP($B110&"_"&$C110&"_"&Q$14,UNWDF2024_LookUp!$B:$T,$D110,FALSE)) -> Leveraging Global South Youth’s Vision for an Equitable and Sustainable Data Future | R110: =IF(VLOOKUP($B110&"_"&$C110&"_"&R$14,UNWDF2024_LookUp!$B:$T,$D110,FALSE)=0,"",VLOOKUP($B110&"_"&$C110&"_"&R$14,UNWDF2024_LookUp!$B:$T,$D110,FALSE)) -> TBC
A111: Day3Time_Slot4 | B111: Day3 | C111: Time_Slot4 | D111: 17 | G111: Organiser | I111: =IF(VLOOKUP($B111&"_"&$C111&"_"&I$14,UNWDF2024_LookUp!$B:$T,$D111,FALSE)=0,"",VLOOKUP($B111&"_"&$C111&"_"&I$14,UNWDF2024_LookUp!$B:$T,$D111,FALSE)) -> World Health Organization (WHO) | J111: =IF(VLOOKUP($B111&"_"&$C111&"_"&J$14,UNWDF2024_LookUp!$B:$T,$D111,FALSE)=0,"",VLOOKUP($B111&"_"&$C111&"_"&J$14,UNWDF2024_LookUp!$B:$T,$D111,FALSE)) -> United Nations Statistics Division (UNSD-DESA); Global Partnership for Sustainable Development Data (GPSDD); World Bank (WB); United Nations Development Programme (UNDP); Open Data Watch (ODW); Sustainable Development Solutions Network (SDSN) | K111: =IF(VLOOKUP($B111&"_"&$C111&"_"&K$14,UNWDF2024_LookUp!$B:$T,$D111,FALSE)=0,"",VLOOKUP($B111&"_"&$C111&"_"&K$14,UNWDF2024_LookUp!$B:$T,$D111,FALSE)) -> World Bank (WB); Stanford University; United Nations Statistics Division (UNSD-DESA); General Statistics Office (GSO-Viet Nam); Instituto Nacional de Estadística y Geografía (INEGI-México); IGN, Belgium; CIG-BNETD, Côte d’Ivoire; Kadaster, Netherlands (Kingdom of the); PVBLIC Foundation | L111: =IF(VLOOKUP($B111&"_"&$C111&"_"&L$14,UNWDF2024_LookUp!$B:$T,$D111,FALSE)=0,"",VLOOKUP($B111&"_"&$C111&"_"&L$14,UNWDF2024_LookUp!$B:$T,$D111,FALSE)) -> Open Data Watch (ODW); Partnership in Statistics for Development in the 21st Century (PARIS21) | M111: =IF(VLOOKUP($B111&"_"&$C111&"_"&M$14,UNWDF2024_LookUp!$B:$T,$D111,FALSE)=0,"",VLOOKUP($B111&"_"&$C111&"_"&M$14,UNWDF2024_LookUp!$B:$T,$D111,FALSE)) -> United Nations Statistics Division (UNSD-DESA); Zhejiang University; Rural Department, National Bureau of Statistics (NBS-China); United Nation Global Hub on Big Data and Data Science for Official Statistics; Food and Agriculture Organization of the United Nations (FAO) | N111: =IF(VLOOKUP($B111&"_"&$C111&"_"&N$14,UNWDF2024_LookUp!$B:$T,$D111,FALSE)=0,"",VLOOKUP($B111&"_"&$C111&"_"&N$14,UNWDF2024_LookUp!$B:$T,$D111,FALSE)) -> IMPACT Initiatives; Armed Conflict Location and Event Data Project (ACLED); Data-Pop Alliance | O111: =IF(VLOOKUP($B111&"_"&$C111&"_"&O$14,UNWDF2024_LookUp!$B:$T,$D111,FALSE)=0,"",VLOOKUP($B111&"_"&$C111&"_"&O$14,UNWDF2024_LookUp!$B:$T,$D111,FALSE)) -> United Nations Children's Fund (UNICEF) | P111: =IF(VLOOKUP($B111&"_"&$C111&"_"&P$14,UNWDF2024_LookUp!$B:$T,$D111,FALSE)=0,"",VLOOKUP($B111&"_"&$C111&"_"&P$14,UNWDF2024_LookUp!$B:$T,$D111,FALSE)) -> Empresas Públicas de Medellín (EPM) | Q111: =IF(VLOOKUP($B111&"_"&$C111&"_"&Q$14,UNWDF2024_LookUp!$B:$T,$D111,FALSE)=0,"",VLOOKUP($B111&"_"&$C111&"_"&Q$14,UNWDF2024_LookUp!$B:$T,$D111,FALSE)) -> The Datasphere Initiative; Global Shapers Medellín Hub; African Institute for Mathematical Sciences (AIMS-Next Einstein Forum); Chaski Global; Global Partnership for Sustainable Development Data (GPSDD) | R111: =IF(VLOOKUP($B111&"_"&$C111&"_"&R$14,UNWDF2024_LookUp!$B:$T,$D111,FALSE)=0,"",VLOOKUP($B111&"_"&$C111&"_"&R$14,UNWDF2024_LookUp!$B:$T,$D111,FALSE)) -> TBC
B112: Day3 | E112: 15:30 - 15:45 (Medellín time) | F112: =IF(ISERROR(TEXT((DATE($E$3,$E$2,$E$1+MID(B112,4,1))+TIME(MID(E112,1,2),MID(E112,4,2),0))+($C$2-$C$3),"H:MM AM/PM")&" - "&TEXT(DATE($E$3,$E$2,$E$1+MID(B112,4,1))+TIME(MID(E112,9,2),MID(E112,12,2),0)+($C$2-$C$3),"H:MM AM/PM")),E112,TEXT((DATE($E$3,$E$2,$E$1+MID(B112,4,1))+TIME(MID(E112,1,2),MID(E112,4,2),0))+($C$2-$C$3),"H:MM AM/PM")&" - "&TEXT(DATE($E$3,$E$2,$E$1+MID(B112,4,1))+TIME(MID(E112,9,2),MID(E112,12,2),0)+($C$2-$C$3),"H:MM AM/PM")) -> 3:30 PM - 3:45 PM | G112: BREAK
A113: =B113&C113 -> Day3Time_Slot5 | B113: Day3 | C113: Time_Slot5 | D113: 15 | E113: 15:45 - 16:45 (Medellín time) | F113: =IF(ISERROR(TEXT((DATE($E$3,$E$2,$E$1+MID(B113,4,1))+TIME(MID(E113,1,2),MID(E113,4,2),0))+($C$2-$C$3),"H:MM AM/PM")&" - "&TEXT(DATE($E$3,$E$2,$E$1+MID(B113,4,1))+TIME(MID(E113,9,2),MID(E113,12,2),0)+($C$2-$C$3),"H:MM AM/PM")),E113,TEXT(DATE($E$3,$E$2,$E$1+MID(B113,4,1))+TIME(MID(E113,1,2),MID(E113,4,2),0)+($C$2-$C$3),"DDDD DD MMM")&" : "&TEXT((DATE($E$3,$E$2,$E$1+MID(B113,4,1))+TIME(MID(E113,1,2),MID(E113,4,2),0))+($C$2-$C$3),"H:MM AM/PM")&" - "&TEXT(DATE($E$3,$E$2,$E$1+MID(B113,4,1))+TIME(MID(E113,9,2),MID(E113,12,2),0)+($C$2-$C$3),"H:MM AM/PM")) -> Friday 15 Nov : 3:45 PM - 4:45 PM | G113: Event_ID | H113: =IF(VLOOKUP($B113&"_"&$C113&"_"&H$14,UNWDF2024_LookUp!$B:$T,$D113,FALSE)=0,"",VLOOKUP($B113&"_"&$C113&"_"&H$14,UNWDF2024_LookUp!$B:$T,$D113,FALSE)) -> TA_C.01
A114: Day3Time_Slot5 | B114: Day3 | C114: Time_Slot5 | D114: 13 | G114: Thematic Area | H114: =IF(VLOOKUP($B114&"_"&$C114&"_"&H$14,UNWDF2024_LookUp!$B:$T,$D114,FALSE)=0,"",VLOOKUP($B114&"_"&$C114&"_"&H$14,UNWDF2024_LookUp!$B:$T,$D114,FALSE)) -> _C
A115: =B115&C115 -> Day3Time_Slot5 | B115: Day3 | C115: Time_Slot5 | D115: 16 | G115: Event Title | H115: =IF(VLOOKUP($B115&"_"&$C115&"_"&H$14,UNWDF2024_LookUp!$B:$T,$D115,FALSE)=0,"",VLOOKUP($B115&"_"&$C115&"_"&H$14,UNWDF2024_LookUp!$B:$T,$D115,FALSE)) -> Closing ceremony
A116: Day3Time_Slot5 | B116: Day3 | C116: Time_Slot5 | D116: 17 | G116: Organiser | H116: =IF(VLOOKUP($B116&"_"&$C116&"_"&H$14,UNWDF2024_LookUp!$B:$T,$D116,FALSE)=0,"",VLOOKUP($B116&"_"&$C116&"_"&H$14,UNWDF2024_LookUp!$B:$T,$D116,FALSE)) -> Departamento Administrativo Nacional de Estadística (DANE-Colombia); United Nations Statistics Division (UNSD-DESA)
B117: Day3 | E117: 16:45 - 17:00 (Medellín time) | F117: =IF(ISERROR(TEXT((DATE($E$3,$E$2,$E$1+MID(B117,4,1))+TIME(MID(E117,1,2),MID(E117,4,2),0))+($C$2-$C$3),"H:MM AM/PM")&" - "&TEXT(DATE($E$3,$E$2,$E$1+MID(B117,4,1))+TIME(MID(E117,9,2),MID(E117,12,2),0)+($C$2-$C$3),"H:MM AM/PM")),E117,TEXT((DATE($E$3,$E$2,$E$1+MID(B117,4,1))+TIME(MID(E117,1,2),MID(E117,4,2),0))+($C$2-$C$3),"H:MM AM/PM")&" - "&TEXT(DATE($E$3,$E$2,$E$1+MID(B117,4,1))+TIME(MID(E117,9,2),MID(E117,12,2),0)+($C$2-$C$3),"H:MM AM/PM")) -> 4:45 PM - 5:00 PM | G117: Break
A118: =B118&C118 -> Day3Time_Slot6 | B118: Day3 | C118: Time_Slot6 | D118: 16 | E118: 17:00 - 18:00 (Medellín time) | F118: =IF(ISERROR(TEXT((DATE($E$3,$E$2,$E$1+MID(B118,4,1))+TIME(MID(E118,1,2),MID(E118,4,2),0))+($C$2-$C$3),"H:MM AM/PM")&" - "&TEXT(DATE($E$3,$E$2,$E$1+MID(B118,4,1))+TIME(MID(E118,9,2),MID(E118,12,2),0)+($C$2-$C$3),"H:MM AM/PM")),E118,TEXT(DATE($E$3,$E$2,$E$1+MID(B118,4,1))+TIME(MID(E118,1,2),MID(E118,4,2),0)+($C$2-$C$3),"DDDD DD MMM")&" : "&TEXT((DATE($E$3,$E$2,$E$1+MID(B118,4,1))+TIME(MID(E118,1,2),MID(E118,4,2),0))+($C$2-$C$3),"H:MM AM/PM")&" - "&TEXT(DATE($E$3,$E$2,$E$1+MID(B118,4,1))+TIME(MID(E118,9,2),MID(E118,12,2),0)+($C$2-$C$3),"H:MM AM/PM")) -> Friday 15 Nov : 5:00 PM - 6:00 PM | G118: Event Title | H118: =IF(VLOOKUP($B118&"_"&$C118&"_"&H$14,UNWDF2024_LookUp!$B:$T,$D118,FALSE)=0,"",VLOOKUP($B118&"_"&$C118&"_"&H$14,UNWDF2024_LookUp!$B:$T,$D118,FALSE)) -> NA
A119: =B119&C119 -> Day3Time_Slot6 | B119: Day3 | C119: Time_Slot6 | D119: 17 | G119: Organiser | H119: =IF(VLOOKUP($B119&"_"&$C119&"_"&H$14,UNWDF2024_LookUp!$B:$T,$D119,FALSE)=0,"",VLOOKUP($B119&"_"&$C119&"_"&H$14,UNWDF2024_LookUp!$B:$T,$D119,FALSE)) -> NA
B120: Day3 | E120: 17:00 - 18:45 (Medellín time) | F120: =IF(ISERROR(TEXT((DATE($E$3,$E$2,$E$1+MID(B120,4,1))+TIME(MID(E120,1,2),MID(E120,4,2),0))+($C$2-$C$3),"H:MM AM/PM")&" - "&TEXT(DATE($E$3,$E$2,$E$1+MID(B120,4,1))+TIME(MID(E120,9,2),MID(E120,12,2),0)+($C$2-$C$3),"H:MM AM/PM")),E120,TEXT((DATE($E$3,$E$2,$E$1+MID(B120,4,1))+TIME(MID(E120,1,2),MID(E120,4,2),0))+($C$2-$C$3),"H:MM AM/PM")&" - "&TEXT(DATE($E$3,$E$2,$E$1+MID(B120,4,1))+TIME(MID(E120,9,2),MID(E120,12,2),0)+($C$2-$C$3),"H:MM AM/PM")) -> 5:00 PM - 6:45 PM | G120: Break
A121: Day3Time_Slot7 | B121: Day3 | C121: Time_Slot7 | D121: 16 | E121: 18:45 - 19:15 (Medellín time) | F121: =IF(ISERROR(TEXT((DATE($E$3,$E$2,$E$1+MID(B121,4,1))+TIME(MID(E121,1,2),MID(E121,4,2),0))+($C$2-$C$3),"H:MM AM/PM")&" - "&TEXT(DATE($E$3,$E$2,$E$1+MID(B121,4,1))+TIME(MID(E121,9,2),MID(E121,12,2),0)+($C$2-$C$3),"H:MM AM/PM")),E121,TEXT(DATE($E$3,$E$2,$E$1+MID(B121,4,1))+TIME(MID(E121,1,2),MID(E121,4,2),0)+($C$2-$C$3),"DDDD DD MMM")&" : "&TEXT((DATE($E$3,$E$2,$E$1+MID(B121,4,1))+TIME(MID(E121,1,2),MID(E121,4,2),0))+($C$2-$C$3),"H:MM AM/PM")&" - "&TEXT(DATE($E$3,$E$2,$E$1+MID(B121,4,1))+TIME(MID(E121,9,2),MID(E121,12,2),0)+($C$2-$C$3),"H:MM AM/PM")) -> Friday 15 Nov : 6:45 PM - 7:15 PM | G121: Event Title | H121: =IF(VLOOKUP($B121&"_"&$C121&"_"&H$14,UNWDF2024_LookUp!$B:$T,$D121,FALSE)=0,"",VLOOKUP($B121&"_"&$C121&"_"&H$14,UNWDF2024_LookUp!$B:$T,$D121,FALSE)) -> NA
A122: =B122&C122 -> Day3Time_Slot7 | B122: Day3 | C122: Time_Slot7 | D122: 17 | G122: Organiser | H122: =IF(VLOOKUP($B122&"_"&$C122&"_"&H$14,UNWDF2024_LookUp!$B:$T,$D122,FALSE)=0,"",VLOOKUP($B122&"_"&$C122&"_"&H$14,UNWDF2024_LookUp!$B:$T,$D122,FALSE)) -> NA
J124: TA 1. Innovation for better and more inclusive data: data integration and leveraging of various data sources and methodologies to ensure visibility and voice for everyone | N124: TA 3. Building trust, protection and ethics in data: developing the principles of stewardship within the data ecosystem to balance the full value from data use with the protection of privacy and data rights
J126: TA 2. Maximizing the use and value of data for better decision making: adding value to data through better analysis and communication to ensure full use of data for bettering lives through the agency, respect, and inclusion of everyone | N126: TA 4. Effective partnerships for better data and a more equitable data ecosystem: supporting global, regional, national and sub-national data ecosystems in the implementation of the Cape Town Global Action Plan including sustainable finance for data and statistics programmes at all levels of organization

Sheet UNWDF2024_LookUp (hidden)
A1: ID | B1: LookUp | C1: Day/Time | D1: Day | E1: Time_Slot | F1: Location | G1: Date | H1: Time | I1: Duration | J1: Room_Name | K1: Room_Capacity | L1: UNWDF2024_Plenary | M1: UNWDF2024_ProposalID | N1: UNWDF2024_TA | O1: UNWDF2024_Session | P1: UNWDF2024_ProgrammeID | Q1: UNWDF2024_SessionTitle_en | R1: UNWDF2024_SessionOrg_en | S1: UNWDF2024_SessionTitle_es | T1: UNWDF2024_SessionOrg_es | U1: LookUp | V1: Comment
A2: 1 | B2: =C2&"_"&F2 -> Day0_Time_Slot1_Parallel 01 | C2: =$D$1&D2&"_"&$E$1&E2 -> Day0_Time_Slot1 | D2: 0 | E2: 1 | F2: Parallel 01 | G2: =VLOOKUP($D$1&D2,UNWDF_Medellín_2024_en!A:F,5,FALSE) -> 2024-11-12 | H2: =MID(VLOOKUP($D$1&D2&$E$1&E2,UNWDF_Medellín_2024_en!A:F,5,FALSE),1,SEARCH("(",VLOOKUP($D$1&D2&$E$1&E2,UNWDF_Medellín_2024_en!A:F,5,FALSE))-2) -> 11:00 - 12:00 | I2: =TEXT(MID(H2,SEARCH("-",H2)+2,LEN(H2)-SEARCH("-",H2)-1)-MID(H2,1,SEARCH("-",H2)-1),"h:mm") -> 1:00 | J2: =HLOOKUP($F2,UNWDF_Medellín_2024_en!$H$14:$S$16,2,FALSE) -> Plenary Room | K2: =HLOOKUP($F2,UNWDF_Medellín_2024_en!$H$14:$S$16,3,FALSE) -> 3000 | L2: Y | M2: NA | N2: _P | O2: =IF(OR(L2="NA",L2="E"),"NA",IF(L2="Y",COUNTIF($M$1:N1,N2)+1,COUNTIF($M$1:N1,N2)+1)) -> 1 | P2: TA_P.01 | Q2: Opening press conference (LOCATION: Media Corner) | R2: Departamento Administrativo Nacional de Estadística (DANE-Colombia); United Nations Statistics Division (UNSD-DESA) | S2: Conferencia de prensa de apertura (UBICACIÓN: ÁREA DE MEDIOS) | T2: Departamento Administrativo Nacional de Estadística (DANE-Colombia); División de Estadísticas de las Naciones Unidas (UNSD-DESA) | U2: =B2 -> Day0_Time_Slot1_Parallel 01 | V2: NEW TIME | W2: =I2 -> 1:00
A3: 14 | B3: Day0_Time_Slot1_Parallel 02 | C3: Day0_Time_Slot1 | D3: 0 | E3: 1 | F3: Parallel 02 | G3: =VLOOKUP($D$1&D3,UNWDF_Medellín_2024_en!A:F,5,FALSE) -> 2024-11-12 | H3: =MID(VLOOKUP($D$1&D3&$E$1&E3,UNWDF_Medellín_2024_en!A:F,5,FALSE),1,SEARCH("(",VLOOKUP($D$1&D3&$E$1&E3,UNWDF_Medellín_2024_en!A:F,5,FALSE))-2) -> 11:00 - 12:00 | I3: 1:00 | J3: =HLOOKUP($F3,UNWDF_Medellín_2024_en!$H$14:$S$16,2,FALSE) -> Room 1 | K3: =HLOOKUP($F3,UNWDF_Medellín_2024_en!$H$14:$S$16,3,FALSE) -> 300 | L3: NA | M3: NA | N3: NA | O3: =IF(OR(L3="NA",L3="E"),"NA",IF(L3="Y",COUNTIF($M$1:N2,N3)+1,COUNTIF($M$1:N2,N3)+1)) -> NA | P3: =IF(N3="NA","NA","TA"&N3&"."&TEXT(O3,"0#")) -> NA | Q3: NA | R3: NA | S3: NA | T3: NA | U3: Day0_Time_Slot1_Parallel 02 | W3: =I3 -> 1:00
A4: 15 | B4: Day0_Time_Slot1_Parallel 03 | C4: Day0_Time_Slot1 | D4: 0 | E4: 1 | F4: Parallel 03 | G4: =VLOOKUP($D$1&D4,UNWDF_Medellín_2024_en!A:F,5,FALSE) -> 2024-11-12 | H4: =MID(VLOOKUP($D$1&D4&$E$1&E4,UNWDF_Medellín_2024_en!A:F,5,FALSE),1,SEARCH("(",VLOOKUP($D$1&D4&$E$1&E4,UNWDF_Medellín_2024_en!A:F,5,FALSE))-2) -> 11:00 - 12:00 | I4: 1:00 | J4: =HLOOKUP($F4,UNWDF_Medellín_2024_en!$H$14:$S$16,2,FALSE) -> Room 2 | K4: =HLOOKUP($F4,UNWDF_Medellín_2024_en!$H$14:$S$16,3,FALSE) -> 200 | L4: NA | M4: NA | N4: NA | O4: =IF(OR(L4="NA",L4="E"),"NA",IF(L4="Y",COUNTIF($M$1:N3,N4)+1,COUNTIF($M$1:N3,N4)+1)) -> NA | P4: NA | Q4: NA | R4: NA | S4: NA | T4: NA | U4: Day0_Time_Slot1_Parallel 03 | W4: 1:00
A5: 16 | B5: Day0_Time_Slot1_Parallel 04 | C5: Day0_Time_Slot1 | D5: 0 | E5: 1 | F5: Parallel 04 | G5: =VLOOKUP($D$1&D5,UNWDF_Medellín_2024_en!A:F,5,FALSE) -> 2024-11-12 | H5: =MID(VLOOKUP($D$1&D5&$E$1&E5,UNWDF_Medellín_2024_en!A:F,5,FALSE),1,SEARCH("(",VLOOKUP($D$1&D5&$E$1&E5,UNWDF_Medellín_2024_en!A:F,5,FALSE))-2) -> 11:00 - 12:00 | I5: 1:00 | J5: =HLOOKUP($F5,UNWDF_Medellín_2024_en!$H$14:$S$16,2,FALSE) -> Room 3 | K5: =HLOOKUP($F5,UNWDF_Medellín_2024_en!$H$14:$S$16,3,FALSE) -> 200 | L5: NA | M5: NA | N5: NA | O5: =IF(OR(L5="NA",L5="E"),"NA",IF(L5="Y",COUNTIF($M$1:N4,N5)+1,COUNTIF($M$1:N4,N5)+1)) -> NA | P5: NA | Q5: NA | R5: NA | S5: NA | T5: NA | U5: Day0_Time_Slot1_Parallel 04 | W5: 1:00
A6: 17 | B6: Day0_Time_Slot1_Parallel 05 | C6: Day0_Time_Slot1 | D6: 0 | E6: 1 | F6: Parallel 05 | G6: =VLOOKUP($D$1&D6,UNWDF_Medellín_2024_en!A:F,5,FALSE) -> 2024-11-12 | H6: =MID(VLOOKUP($D$1&D6&$E$1&E6,UNWDF_Medellín_2024_en!A:F,5,FALSE),1,SEARCH("(",VLOOKUP($D$1&D6&$E$1&E6,UNWDF_Medellín_2024_en!A:F,5,FALSE))-2) -> 11:00 - 12:00 | I6: 1:00 | J6: =HLOOKUP($F6,UNWDF_Medellín_2024_en!$H$14:$S$16,2,FALSE) -> Room 4 | K6: =HLOOKUP($F6,UNWDF_Medellín_2024_en!$H$14:$S$16,3,FALSE) -> 200 | L6: NA | M6: NA | N6: NA | O6: =IF(OR(L6="NA",L6="E"),"NA",IF(L6="Y",COUNTIF($M$1:N5,N6)+1,COUNTIF($M$1:N5,N6)+1)) -> NA | P6: NA | Q6: NA | R6: NA | S6: NA | T6: NA | U6: Day0_Time_Slot1_Parallel 05 | W6: 1:00
A7: 18 | B7: Day0_Time_Slot1_Parallel 06 | C7: Day0_Time_Slot1 | D7: 0 | E7: 1 | F7: Parallel 06 | G7: =VLOOKUP($D$1&D7,UNWDF_Medellín_2024_en!A:F,5,FALSE) -> 2024-11-12 | H7: =MID(VLOOKUP($D$1&D7&$E$1&E7,UNWDF_Medellín_2024_en!A:F,5,FALSE),1,SEARCH("(",VLOOKUP($D$1&D7&$E$1&E7,UNWDF_Medellín_2024_en!A:F,5,FALSE))-2) -> 11:00 - 12:00 | I7: 1:00 | J7: =HLOOKUP($F7,UNWDF_Medellín_2024_en!$H$14:$S$16,2,FALSE) -> Room 5 | K7: =HLOOKUP($F7,UNWDF_Medellín_2024_en!$H$14:$S$16,3,FALSE) -> 200 | L7: NA | M7: NA | N7: NA | O7: =IF(OR(L7="NA",L7="E"),"NA",IF(L7="Y",COUNTIF($M$1:N6,N7)+1,COUNTIF($M$1:N6,N7)+1)) -> NA | P7: NA | Q7: NA | R7: NA | S7: NA | T7: NA | U7: Day0_Time_Slot1_Parallel 06 | W7: 1:00
A8: 19 | B8: Day0_Time_Slot1_Parallel 07 | C8: Day0_Time_Slot1 | D8: 0 | E8: 1 | F8: Parallel 07 | G8: =VLOOKUP($D$1&D8,UNWDF_Medellín_2024_en!A:F,5,FALSE) -> 2024-11-12 | H8: =MID(VLOOKUP($D$1&D8&$E$1&E8,UNWDF_Medellín_2024_en!A:F,5,FALSE),1,SEARCH("(",VLOOKUP($D$1&D8&$E$1&E8,UNWDF_Medellín_2024_en!A:F,5,FALSE))-2) -> 11:00 - 12:00 | I8: 1:00 | J8: =HLOOKUP($F8,UNWDF_Medellín_2024_en!$H$14:$S$16,2,FALSE) -> Room 6 | K8: =HLOOKUP($F8,UNWDF_Medellín_2024_en!$H$14:$S$16,3,FALSE) -> 150 | L8: NA | M8: NA | N8: NA | O8: =IF(OR(L8="NA",L8="E"),"NA",IF(L8="Y",COUNTIF($M$1:N7,N8)+1,COUNTIF($M$1:N7,N8)+1)) -> NA | P8: NA | Q8: NA | R8: NA | S8: NA | T8: NA | U8: Day0_Time_Slot1_Parallel 07 | W8: 1:00
A9: 20 | B9: Day0_Time_Slot1_Parallel 08 | C9: Day0_Time_Slot1 | D9: 0 | E9: 1 | F9: Parallel 08 | G9: =VLOOKUP($D$1&D9,UNWDF_Medellín_2024_en!A:F,5,FALSE) -> 2024-11-12 | H9: =MID(VLOOKUP($D$1&D9&$E$1&E9,UNWDF_Medellín_2024_en!A:F,5,FALSE),1,SEARCH("(",VLOOKUP($D$1&D9&$E$1&E9,UNWDF_Medellín_2024_en!A:F,5,FALSE))-2) -> 11:00 - 12:00 | I9: 1:00 | J9: =HLOOKUP($F9,UNWDF_Medellín_2024_en!$H$14:$S$16,2,FALSE) -> Room 7 | K9: =HLOOKUP($F9,UNWDF_Medellín_2024_en!$H$14:$S$16,3,FALSE) -> 150 | L9: NA | M9: NA | N9: NA | O9: =IF(OR(L9="NA",L9="E"),"NA",IF(L9="Y",COUNTIF($M$1:N8,N9)+1,COUNTIF($M$1:N8,N9)+1)) -> NA | P9: NA | Q9: NA | R9: NA | S9: NA | T9: NA | U9: Day0_Time_Slot1_Parallel 08 | W9: 1:00
A10: 21 | B10: Day0_Time_Slot1_Parallel 09 | C10: Day0_Time_Slot1 | D10: 0 | E10: 1 | F10: Parallel 09 | G10: =VLOOKUP($D$1&D10,UNWDF_Medellín_2024_en!A:F,5,FALSE) -> 2024-11-12 | H10: =MID(VLOOKUP($D$1&D10&$E$1&E10,UNWDF_Medellín_2024_en!A:F,5,FALSE),1,SEARCH("(",VLOOKUP($D$1&D10&$E$1&E10,UNWDF_Medellín_2024_en!A:F,5,FALSE))-2) -> 11:00 - 12:00 | I10: 1:00 | J10: =HLOOKUP($F10,UNWDF_Medellín_2024_en!$H$14:$S$16,2,FALSE) -> Room 8 | K10: =HLOOKUP($F10,UNWDF_Medellín_2024_en!$H$14:$S$16,3,FALSE) -> 90 | L10: NA | M10: NA | N10: NA | O10: =IF(OR(L10="NA",L10="E"),"NA",IF(L10="Y",COUNTIF($M$1:N9,N10)+1,COUNTIF($M$1:N9,N10)+1)) -> NA | P10: NA | Q10: NA | R10: NA | S10: NA | T10: NA | U10: Day0_Time_Slot1_Parallel 09 | W10: 1:00
A11: 22 | B11: Day0_Time_Slot1_Parallel 10 | C11: Day0_Time_Slot1 | D11: 0 | E11: 1 | F11: Parallel 10 | G11: =VLOOKUP($D$1&D11,UNWDF_Medellín_2024_en!A:F,5,FALSE) -> 2024-11-12 | H11: =MID(VLOOKUP($D$1&D11&$E$1&E11,UNWDF_Medellín_2024_en!A:F,5,FALSE),1,SEARCH("(",VLOOKUP($D$1&D11&$E$1&E11,UNWDF_Medellín_2024_en!A:F,5,FALSE))-2) -> 11:00 - 12:00 | I11: 1:00 | J11: =HLOOKUP($F11,UNWDF_Medellín_2024_en!$H$14:$S$16,2,FALSE) -> Room 9 | K11: =HLOOKUP($F11,UNWDF_Medellín_2024_en!$H$14:$S$16,3,FALSE) -> 60 | L11: NA | M11: NA | N11: NA | O11: =IF(OR(L11="NA",L11="E"),"NA",IF(L11="Y",COUNTIF($M$1:N10,N11)+1,COUNTIF($M$1:N10,N11)+1)) -> NA | P11: NA | Q11: NA | R11: NA | S11: NA | T11: NA | U11: Day0_Time_Slot1_Parallel 10 | W11: 1:00
A12: 23 | B12: Day0_Time_Slot1_Parallel 11 | C12: Day0_Time_Slot1 | D12: 0 | E12: 1 | F12: Parallel 11 | G12: =VLOOKUP($D$1&D12,UNWDF_Medellín_2024_en!A:F,5,FALSE) -> 2024-11-12 | H12: =MID(VLOOKUP($D$1&D12&$E$1&E12,UNWDF_Medellín_2024_en!A:F,5,FALSE),1,SEARCH("(",VLOOKUP($D$1&D12&$E$1&E12,UNWDF_Medellín_2024_en!A:F,5,FALSE))-2) -> 11:00 - 12:00 | I12: 1:00 | J12: =HLOOKUP($F12,UNWDF_Medellín_2024_en!$H$14:$S$16,2,FALSE) -> Room 10 | K12: =HLOOKUP($F12,UNWDF_Medellín_2024_en!$H$14:$S$16,3,FALSE) -> 60 | L12: NA | M12: NA | N12: NA | O12: =IF(OR(L12="NA",L12="E"),"NA",IF(L12="Y",COUNTIF($M$1:N11,N12)+1,COUNTIF($M$1:N11,N12)+1)) -> NA | P12: NA | Q12: NA | R12: NA | S12: NA | T12: NA | U12: Day0_Time_Slot1_Parallel 11 | W12: 1:00
A13: 24 | B13: Day0_Time_Slot1_Parallel 12 | C13: Day0_Time_Slot1 | D13: 0 | E13: 1 | F13: Parallel 12 | G13: =VLOOKUP($D$1&D13,UNWDF_Medellín_2024_en!A:F,5,FALSE) -> 2024-11-12 | H13: =MID(VLOOKUP($D$1&D13&$E$1&E13,UNWDF_Medellín_2024_en!A:F,5,FALSE),1,SEARCH("(",VLOOKUP($D$1&D13&$E$1&E13,UNWDF_Medellín_2024_en!A:F,5,FALSE))-2) -> 11:00 - 12:00 | I13: 1:00 | J13: =HLOOKUP($F13,UNWDF_Medellín_2024_en!$H$14:$S$16,2,FALSE) -> NA | K13: =HLOOKUP($F13,UNWDF_Medellín_2024_en!$H$14:$S$16,3,FALSE) -> NA | L13: NA | M13: NA | N13: NA | O13: =IF(OR(L13="NA",L13="E"),"NA",IF(L13="Y",COUNTIF($M$1:N12,N13)+1,COUNTIF($M$1:N12,N13)+1)) -> NA | P13: NA | Q13: NA | R13: NA | S13: NA | T13: NA | U13: Day0_Time_Slot1_Parallel 12 | W13: 1:00
A14: 2 | B14: Day0_Time_Slot2_Parallel 01 | C14: Day0_Time_Slot2 | D14: 0 | E14: 2 | F14: Parallel 01 | G14: =VLOOKUP($D$1&D14,UNWDF_Medellín_2024_en!A:F,5,FALSE) -> 2024-11-12 | H14: =MID(VLOOKUP($D$1&D14&$E$1&E14,UNWDF_Medellín_2024_en!A:F,5,FALSE),1,SEARCH("(",VLOOKUP($D$1&D14&$E$1&E14,UNWDF_Medellín_2024_en!A:F,5,FALSE))-2) -> 15:30 - 17:00 | I14: 1:30 | J14: =HLOOKUP($F14,UNWDF_Medellín_2024_en!$H$14:$S$16,2,FALSE) -> Plenary Room | K14: =HLOOKUP($F14,UNWDF_Medellín_2024_en!$H$14:$S$16,3,FALSE) -> 3000 | L14: Y | M14: NA | N14: _O | O14: =IF(OR(L14="NA",L14="E"),"NA",IF(L14="Y",COUNTIF($M$1:N13,N14)+1,COUNTIF($M$1:N13,N14)+1)) -> 1 | P14: TA_O.01 | Q14: Opening ceremony | R14: Departamento Administrativo Nacional de Estadística (DANE-Colombia) | S14: Ceremonia de apertura | T14: Departamento Administrativo Nacional de Estadística (DANE-Colombia) | U14: Day0_Time_Slot2_Parallel 01 | W14: 1:30
A15: 3 | B15: Day1_Time_Slot1_Parallel 01 | C15: Day1_Time_Slot1 | D15: 1 | E15: 1 | F15: Parallel 01 | G15: =VLOOKUP($D$1&D15,UNWDF_Medellín_2024_en!A:F,5,FALSE) -> 2024-11-13 | H15: =MID(VLOOKUP($D$1&D15&$E$1&E15,UNWDF_Medellín_2024_en!A:F,5,FALSE),1,SEARCH("(",VLOOKUP($D$1&D15&$E$1&E15,UNWDF_Medellín_2024_en!A:F,5,FALSE))-2) -> 09:00 - 10:30 | I15: 1:30 | J15: =HLOOKUP($F15,UNWDF_Medellín_2024_en!$H$14:$S$16,2,FALSE) -> Plenary Room | K15: =HLOOKUP($F15,UNWDF_Medellín_2024_en!$H$14:$S$16,3,FALSE) -> 3000 | L15: Y | M15: NA | N15: _O | O15: 3 | P15: TA_O.03 | Q15: Welcome and introduction | R15: Departamento Administrativo Nacional de Estadística (DANE-Colombia) / United Nations Statistics Division (UNSD-DESA) | S15: Bienvenida e introducción | T15: Departamento Administrativo Nacional de Estadística (DANE-Colombia) / División de Estadísticas de las Naciones Unidas (UNSD-DESA) | U15: Day1_Time_Slot1_Parallel 01 | W15: 1:30
A16: 25 | B16: Day1_Time_Slot1_Parallel 02 | C16: Day1_Time_Slot1 | D16: 1 | E16: 1 | F16: Parallel 02 | G16: =VLOOKUP($D$1&D16,UNWDF_Medellín_2024_en!A:F,5,FALSE) -> 2024-11-13 | H16: =MID(VLOOKUP($D$1&D16&$E$1&E16,UNWDF_Medellín_2024_en!A:F,5,FALSE),1,SEARCH("(",VLOOKUP($D$1&D16&$E$1&E16,UNWDF_Medellín_2024_en!A:F,5,FALSE))-2) -> 09:00 - 10:30 | I16: 1:30 | J16: =HLOOKUP($F16,UNWDF_Medellín_2024_en!$H$14:$S$16,2,FALSE) -> Room 1 | K16: =HLOOKUP($F16,UNWDF_Medellín_2024_en!$H$14:$S$16,3,FALSE) -> 300 | L16: NA | M16: NA | N16: NA | O16: =IF(OR(L16="NA",L16="E"),"NA",IF(L16="Y",COUNTIF($M$1:N15,N16)+1,COUNTIF($M$1:N15,N16)+1)) -> NA | P16: =IF(N16="NA","NA","TA"&N16&"."&TEXT(O16,"0#")) -> NA | Q16: NA | R16: NA | S16: NA | T16: NA | U16: Day1_Time_Slot1_Parallel 02 | W16: 1:30
A17: 26 | B17: Day1_Time_Slot1_Parallel 03 | C17: Day1_Time_Slot1 | D17: 1 | E17: 1 | F17: Parallel 03 | G17: =VLOOKUP($D$1&D17,UNWDF_Medellín_2024_en!A:F,5,FALSE) -> 2024-11-13 | H17: =MID(VLOOKUP($D$1&D17&$E$1&E17,UNWDF_Medellín_2024_en!A:F,5,FALSE),1,SEARCH("(",VLOOKUP($D$1&D17&$E$1&E17,UNWDF_Medellín_2024_en!A:F,5,FALSE))-2) -> 09:00 - 10:30 | I17: 1:30 | J17: =HLOOKUP($F17,UNWDF_Medellín_2024_en!$H$14:$S$16,2,FALSE) -> Room 2 | K17: =HLOOKUP($F17,UNWDF_Medellín_2024_en!$H$14:$S$16,3,FALSE) -> 200 | L17: NA | M17: NA | N17: NA | O17: =IF(OR(L17="NA",L17="E"),"NA",IF(L17="Y",COUNTIF($M$1:N16,N17)+1,COUNTIF($M$1:N16,N17)+1)) -> NA | P17: NA | Q17: NA | R17: NA | S17: NA | T17: NA | U17: Day1_Time_Slot1_Parallel 03 | W17: 1:30
A18: 27 | B18: Day1_Time_Slot1_Parallel 04 | C18: Day1_Time_Slot1 | D18: 1 | E18: 1 | F18: Parallel 04 | G18: =VLOOKUP($D$1&D18,UNWDF_Medellín_2024_en!A:F,5,FALSE) -> 2024-11-13 | H18: =MID(VLOOKUP($D$1&D18&$E$1&E18,UNWDF_Medellín_2024_en!A:F,5,FALSE),1,SEARCH("(",VLOOKUP($D$1&D18&$E$1&E18,UNWDF_Medellín_2024_en!A:F,5,FALSE))-2) -> 09:00 - 10:30 | I18: 1:30 | J18: =HLOOKUP($F18,UNWDF_Medellín_2024_en!$H$14:$S$16,2,FALSE) -> Room 3 | K18: =HLOOKUP($F18,UNWDF_Medellín_2024_en!$H$14:$S$16,3,FALSE) -> 200 | L18: NA | M18: NA | N18: NA | O18: =IF(OR(L18="NA",L18="E"),"NA",IF(L18="Y",COUNTIF($M$1:N17,N18)+1,COUNTIF($M$1:N17,N18)+1)) -> NA | P18: NA | Q18: NA | R18: NA | S18: NA | T18: NA | U18: Day1_Time_Slot1_Parallel 04 | W18: 1:30
A19: 28 | B19: Day1_Time_Slot1_Parallel 05 | C19: Day1_Time_Slot1 | D19: 1 | E19: 1 | F19: Parallel 05 | G19: =VLOOKUP($D$1&D19,UNWDF_Medellín_2024_en!A:F,5,FALSE) -> 2024-11-13 | H19: =MID(VLOOKUP($D$1&D19&$E$1&E19,UNWDF_Medellín_2024_en!A:F,5,FALSE),1,SEARCH("(",VLOOKUP($D$1&D19&$E$1&E19,UNWDF_Medellín_2024_en!A:F,5,FALSE))-2) -> 09:00 - 10:30 | I19: 1:30 | J19: =HLOOKUP($F19,UNWDF_Medellín_2024_en!$H$14:$S$16,2,FALSE) -> Room 4 | K19: =HLOOKUP($F19,UNWDF_Medellín_2024_en!$H$14:$S$16,3,FALSE) -> 200 | L19: NA | M19: NA | N19: NA | O19: =IF(OR(L19="NA",L19="E"),"NA",IF(L19="Y",COUNTIF($M$1:N18,N19)+1,COUNTIF($M$1:N18,N19)+1)) -> NA | P19: NA | Q19: NA | R19: NA | S19: NA | T19: NA | U19: Day1_Time_Slot1_Parallel 05 | W19: 1:30
A20: 29 | B20: Day1_Time_Slot1_Parallel 06 | C20: Day1_Time_Slot1 | D20: 1 | E20: 1 | F20: Parallel 06 | G20: =VLOOKUP($D$1&D20,UNWDF_Medellín_2024_en!A:F,5,FALSE) -> 2024-11-13 | H20: =MID(VLOOKUP($D$1&D20&$E$1&E20,UNWDF_Medellín_2024_en!A:F,5,FALSE),1,SEARCH("(",VLOOKUP($D$1&D20&$E$1&E20,UNWDF_Medellín_2024_en!A:F,5,FALSE))-2) -> 09:00 - 10:30 | I20: 1:30 | J20: =HLOOKUP($F20,UNWDF_Medellín_2024_en!$H$14:$S$16,2,FALSE) -> Room 5 | K20: =HLOOKUP($F20,UNWDF_Medellín_2024_en!$H$14:$S$16,3,FALSE) -> 200 | L20: NA | M20: NA | N20: NA | O20: =IF(OR(L20="NA",L20="E"),"NA",IF(L20="Y",COUNTIF($M$1:N19,N20)+1,COUNTIF($M$1:N19,N20)+1)) -> NA | P20: NA | Q20: NA | R20: NA | S20: NA | T20: NA | U20: Day1_Time_Slot1_Parallel 06 | W20: 1:30
A21: 30 | B21: Day1_Time_Slot1_Parallel 07 | C21: Day1_Time_Slot1 | D21: 1 | E21: 1 | F21: Parallel 07 | G21: =VLOOKUP($D$1&D21,UNWDF_Medellín_2024_en!A:F,5,FALSE) -> 2024-11-13 | H21: =MID(VLOOKUP($D$1&D21&$E$1&E21,UNWDF_Medellín_2024_en!A:F,5,FALSE),1,SEARCH("(",VLOOKUP($D$1&D21&$E$1&E21,UNWDF_Medellín_2024_en!A:F,5,FALSE))-2) -> 09:00 - 10:30 | I21: 1:30 | J21: =HLOOKUP($F21,UNWDF_Medellín_2024_en!$H$14:$S$16,2,FALSE) -> Room 6 | K21: =HLOOKUP($F21,UNWDF_Medellín_2024_en!$H$14:$S$16,3,FALSE) -> 150 | L21: NA | M21: NA | N21: NA | O21: =IF(OR(L21="NA",L21="E"),"NA",IF(L21="Y",COUNTIF($M$1:N20,N21)+1,COUNTIF($M$1:N20,N21)+1)) -> NA | P21: NA | Q21: NA | R21: NA | S21: NA | T21: NA | U21: Day1_Time_Slot1_Parallel 07 | W21: 1:30
A22: 31 | B22: Day1_Time_Slot1_Parallel 08 | C22: Day1_Time_Slot1 | D22: 1 | E22: 1 | F22: Parallel 08 | G22: =VLOOKUP($D$1&D22,UNWDF_Medellín_2024_en!A:F,5,FALSE) -> 2024-11-13 | H22: =MID(VLOOKUP($D$1&D22&$E$1&E22,UNWDF_Medellín_2024_en!A:F,5,FALSE),1,SEARCH("(",VLOOKUP($D$1&D22&$E$1&E22,UNWDF_Medellín_2024_en!A:F,5,FALSE))-2) -> 09:00 - 10:30 | I22: 1:30 | J22: =HLOOKUP($F22,UNWDF_Medellín_2024_en!$H$14:$S$16,2,FALSE) -> Room 7 | K22: =HLOOKUP($F22,UNWDF_Medellín_2024_en!$H$14:$S$16,3,FALSE) -> 150 | L22: NA | M22: NA | N22: NA | O22: =IF(OR(L22="NA",L22="E"),"NA",IF(L22="Y",COUNTIF($M$1:N21,N22)+1,COUNTIF($M$1:N21,N22)+1)) -> NA | P22: NA | Q22: NA | R22: NA | S22: NA | T22: NA | U22: Day1_Time_Slot1_Parallel 08 | W22: 1:30
A23: 32 | B23: Day1_Time_Slot1_Parallel 09 | C23: Day1_Time_Slot1 | D23: 1 | E23: 1 | F23: Parallel 09 | G23: =VLOOKUP($D$1&D23,UNWDF_Medellín_2024_en!A:F,5,FALSE) -> 2024-11-13 | H23: =MID(VLOOKUP($D$1&D23&$E$1&E23,UNWDF_Medellín_2024_en!A:F,5,FALSE),1,SEARCH("(",VLOOKUP($D$1&D23&$E$1&E23,UNWDF_Medellín_2024_en!A:F,5,FALSE))-2) -> 09:00 - 10:30 | I23: 1:30 | J23: =HLOOKUP($F23,UNWDF_Medellín_2024_en!$H$14:$S$16,2,FALSE) -> Room 8 | K23: =HLOOKUP($F23,UNWDF_Medellín_2024_en!$H$14:$S$16,3,FALSE) -> 90 | L23: NA | M23: NA | N23: NA | O23: =IF(OR(L23="NA",L23="E"),"NA",IF(L23="Y",COUNTIF($M$1:N22,N23)+1,COUNTIF($M$1:N22,N23)+1)) -> NA | P23: NA | Q23: NA | R23: NA | S23: NA | T23: NA | U23: Day1_Time_Slot1_Parallel 09 | W23: 1:30
A24: 33 | B24: Day1_Time_Slot1_Parallel 10 | C24: Day1_Time_Slot1 | D24: 1 | E24: 1 | F24: Parallel 10 | G24: =VLOOKUP($D$1&D24,UNWDF_Medellín_2024_en!A:F,5,FALSE) -> 2024-11-13 | H24: =MID(VLOOKUP($D$1&D24&$E$1&E24,UNWDF_Medellín_2024_en!A:F,5,FALSE),1,SEARCH("(",VLOOKUP($D$1&D24&$E$1&E24,UNWDF_Medellín_2024_en!A:F,5,FALSE))-2) -> 09:00 - 10:30 | I24: 1:30 | J24: =HLOOKUP($F24,UNWDF_Medellín_2024_en!$H$14:$S$16,2,FALSE) -> Room 9 | K24: =HLOOKUP($F24,UNWDF_Medellín_2024_en!$H$14:$S$16,3,FALSE) -> 60 | L24: NA | M24: NA | N24: NA | O24: =IF(OR(L24="NA",L24="E"),"NA",IF(L24="Y",COUNTIF($M$1:N23,N24)+1,COUNTIF($M$1:N23,N24)+1)) -> NA | P24: NA | Q24: NA | R24: NA | S24: NA | T24: NA | U24: Day1_Time_Slot1_Parallel 10 | W24: 1:30
A25: 34 | B25: Day1_Time_Slot1_Parallel 11 | C25: Day1_Time_Slot1 | D25: 1 | E25: 1 | F25: Parallel 11 | G25: =VLOOKUP($D$1&D25,UNWDF_Medellín_2024_en!A:F,5,FALSE) -> 2024-11-13 | H25: =MID(VLOOKUP($D$1&D25&$E$1&E25,UNWDF_Medellín_2024_en!A:F,5,FALSE),1,SEARCH("(",VLOOKUP($D$1&D25&$E$1&E25,UNWDF_Medellín_2024_en!A:F,5,FALSE))-2) -> 09:00 - 10:30 | I25: 1:30 | J25: =HLOOKUP($F25,UNWDF_Medellín_2024_en!$H$14:$S$16,2,FALSE) -> Room 10 | K25: =HLOOKUP($F25,UNWDF_Medellín_2024_en!$H$14:$S$16,3,FALSE) -> 60 | L25: NA | M25: NA | N25: NA | O25: =IF(OR(L25="NA",L25="E"),"NA",IF(L25="Y",COUNTIF($M$1:N24,N25)+1,COUNTIF($M$1:N24,N25)+1)) -> NA | P25: NA | Q25: NA | R25: NA | S25: NA | T25: NA | U25: Day1_Time_Slot1_Parallel 11 | W25: 1:30
A26: 35 | B26: Day1_Time_Slot1_Parallel 12 | C26: Day1_Time_Slot1 | D26: 1 | E26: 1 | F26: Parallel 12 | G26: =VLOOKUP($D$1&D26,UNWDF_Medellín_2024_en!A:F,5,FALSE) -> 2024-11-13 | H26: =MID(VLOOKUP($D$1&D26&$E$1&E26,UNWDF_Medellín_2024_en!A:F,5,FALSE),1,SEARCH("(",VLOOKUP($D$1&D26&$E$1&E26,UNWDF_Medellín_2024_en!A:F,5,FALSE))-2) -> 09:00 - 10:30 | I26: 1:30 | J26: =HLOOKUP($F26,UNWDF_Medellín_2024_en!$H$14:$S$16,2,FALSE) -> NA | K26: =HLOOKUP($F26,UNWDF_Medellín_2024_en!$H$14:$S$16,3,FALSE) -> NA | L26: NA | M26: NA | N26: NA | O26: =IF(OR(L26="NA",L26="E"),"NA",IF(L26="Y",COUNTIF($M$1:N25,N26)+1,COUNTIF($M$1:N25,N26)+1)) -> NA | P26: NA | Q26: NA | R26: NA | S26: NA | T26: NA | U26: Day1_Time_Slot1_Parallel 12 | W26: 1:30
A27: 4 | B27: Day1_Time_Slot2_Parallel 01 | C27: Day1_Time_Slot2 | D27: 1 | E27: 2 | F27: Parallel 01 | G27: =VLOOKUP($D$1&D27,UNWDF_Medellín_2024_en!A:F,5,FALSE) -> 2024-11-13 | H27: =MID(VLOOKUP($D$1&D27&$E$1&E27,UNWDF_Medellín_2024_en!A:F,5,FALSE),1,SEARCH("(",VLOOKUP($D$1&D27&$E$1&E27,UNWDF_Medellín_2024_en!A:F,5,FALSE))-2) -> 10:40 - 11:55 | I27: 1:15 | J27: =HLOOKUP($F27,UNWDF_Medellín_2024_en!$H$14:$S$16,2,FALSE) -> Plenary Room | K27: =HLOOKUP($F27,UNWDF_Medellín_2024_en!$H$14:$S$16,3,FALSE) -> 3000 | L27: Y | M27: NA | N27: 1 | O27: 1 | P27: TA1.1 | Q27: Innovation for better and more inclusive data | R27: UN World Data Forum Programme Committee (UNWDF PC) | S27: Innovación para unos datos mejores y más inclusivos | T27: Comité del Programa del Foro Mundial de Datos de la ONU (UNWDF PC) | U27: Day1_Time_Slot2_Parallel 01 | W27: 1:15
A28: 36 | B28: Day1_Time_Slot2_Parallel 02 | C28: Day1_Time_Slot2 | D28: 1 | E28: 2 | F28: Parallel 02 | G28: =VLOOKUP($D$1&D28,UNWDF_Medellín_2024_en!A:F,5,FALSE) -> 2024-11-13 | H28: =MID(VLOOKUP($D$1&D28&$E$1&E28,UNWDF_Medellín_2024_en!A:F,5,FALSE),1,SEARCH("(",VLOOKUP($D$1&D28&$E$1&E28,UNWDF_Medellín_2024_en!A:F,5,FALSE))-2) -> 10:40 - 11:55 | I28: 1:15 | J28: =HLOOKUP($F28,UNWDF_Medellín_2024_en!$H$14:$S$16,2,FALSE) -> Room 1 | K28: =HLOOKUP($F28,UNWDF_Medellín_2024_en!$H$14:$S$16,3,FALSE) -> 300 | L28: NA | M28: NA | N28: NA | O28: =IF(OR(L28="NA",L28="E"),"NA",IF(L28="Y",COUNTIF($M$1:N27,N28)+1,COUNTIF($M$1:N27,N28)+1)) -> NA | P28: =IF(N28="NA","NA","TA"&N28&"."&TEXT(O28,"0#")) -> NA | Q28: NA | R28: NA | S28: NA | T28: NA | U28: Day1_Time_Slot2_Parallel 02 | W28: 1:15
A29: 37 | B29: Day1_Time_Slot2_Parallel 03 | C29: Day1_Time_Slot2 | D29: 1 | E29: 2 | F29: Parallel 03 | G29: =VLOOKUP($D$1&D29,UNWDF_Medellín_2024_en!A:F,5,FALSE) -> 2024-11-13 | H29: =MID(VLOOKUP($D$1&D29&$E$1&E29,UNWDF_Medellín_2024_en!A:F,5,FALSE),1,SEARCH("(",VLOOKUP($D$1&D29&$E$1&E29,UNWDF_Medellín_2024_en!A:F,5,FALSE))-2) -> 10:40 - 11:55 | I29: 1:15 | J29: =HLOOKUP($F29,UNWDF_Medellín_2024_en!$H$14:$S$16,2,FALSE) -> Room 2 | K29: =HLOOKUP($F29,UNWDF_Medellín_2024_en!$H$14:$S$16,3,FALSE) -> 200 | L29: NA | M29: NA | N29: NA | O29: =IF(OR(L29="NA",L29="E"),"NA",IF(L29="Y",COUNTIF($M$1:N28,N29)+1,COUNTIF($M$1:N28,N29)+1)) -> NA | P29: NA | Q29: NA | R29: NA | S29: NA | T29: NA | U29: Day1_Time_Slot2_Parallel 03 | W29: 1:15
A30: 38 | B30: Day1_Time_Slot2_Parallel 04 | C30: Day1_Time_Slot2 | D30: 1 | E30: 2 | F30: Parallel 04 | G30: =VLOOKUP($D$1&D30,UNWDF_Medellín_2024_en!A:F,5,FALSE) -> 2024-11-13 | H30: =MID(VLOOKUP($D$1&D30&$E$1&E30,UNWDF_Medellín_2024_en!A:F,5,FALSE),1,SEARCH("(",VLOOKUP($D$1&D30&$E$1&E30,UNWDF_Medellín_2024_en!A:F,5,FALSE))-2) -> 10:40 - 11:55 | I30: 1:15 | J30: =HLOOKUP($F30,UNWDF_Medellín_2024_en!$H$14:$S$16,2,FALSE) -> Room 3 | K30: =HLOOKUP($F30,UNWDF_Medellín_2024_en!$H$14:$S$16,3,FALSE) -> 200 | L30: NA | M30: NA | N30: NA | O30: =IF(OR(L30="NA",L30="E"),"NA",IF(L30="Y",COUNTIF($M$1:N29,N30)+1,COUNTIF($M$1:N29,N30)+1)) -> NA | P30: NA | Q30: NA | R30: NA | S30: NA | T30: NA | U30: Day1_Time_Slot2_Parallel 04 | W30: 1:15
A31: 39 | B31: Day1_Time_Slot2_Parallel 05 | C31: Day1_Time_Slot2 | D31: 1 | E31: 2 | F31: Parallel 05 | G31: =VLOOKUP($D$1&D31,UNWDF_Medellín_2024_en!A:F,5,FALSE) -> 2024-11-13 | H31: =MID(VLOOKUP($D$1&D31&$E$1&E31,UNWDF_Medellín_2024_en!A:F,5,FALSE),1,SEARCH("(",VLOOKUP($D$1&D31&$E$1&E31,UNWDF_Medellín_2024_en!A:F,5,FALSE))-2) -> 10:40 - 11:55 | I31: 1:15 | J31: =HLOOKUP($F31,UNWDF_Medellín_2024_en!$H$14:$S$16,2,FALSE) -> Room 4 | K31: =HLOOKUP($F31,UNWDF_Medellín_2024_en!$H$14:$S$16,3,FALSE) -> 200 | L31: NA | M31: NA | N31: NA | O31: =IF(OR(L31="NA",L31="E"),"NA",IF(L31="Y",COUNTIF($M$1:N30,N31)+1,COUNTIF($M$1:N30,N31)+1)) -> NA | P31: NA | Q31: NA | R31: NA | S31: NA | T31: NA | U31: Day1_Time_Slot2_Parallel 05 | W31: 1:15
A32: 40 | B32: Day1_Time_Slot2_Parallel 06 | C32: Day1_Time_Slot2 | D32: 1 | E32: 2 | F32: Parallel 06 | G32: =VLOOKUP($D$1&D32,UNWDF_Medellín_2024_en!A:F,5,FALSE) -> 2024-11-13 | H32: =MID(VLOOKUP($D$1&D32&$E$1&E32,UNWDF_Medellín_2024_en!A:F,5,FALSE),1,SEARCH("(",VLOOKUP($D$1&D32&$E$1&E32,UNWDF_Medellín_2024_en!A:F,5,FALSE))-2) -> 10:40 - 11:55 | I32: 1:15 | J32: =HLOOKUP($F32,UNWDF_Medellín_2024_en!$H$14:$S$16,2,FALSE) -> Room 5 | K32: =HLOOKUP($F32,UNWDF_Medellín_2024_en!$H$14:$S$16,3,FALSE) -> 200 | L32: NA | M32: NA | N32: NA | O32: =IF(OR(L32="NA",L32="E"),"NA",IF(L32="Y",COUNTIF($M$1:N31,N32)+1,COUNTIF($M$1:N31,N32)+1)) -> NA | P32: NA | Q32: NA | R32: NA | S32: NA | T32: NA | U32: Day1_Time_Slot2_Parallel 06 | W32: 1:15
A33: 41 | B33: Day1_Time_Slot2_Parallel 07 | C33: Day1_Time_Slot2 | D33: 1 | E33: 2 | F33: Parallel 07 | G33: =VLOOKUP($D$1&D33,UNWDF_Medellín_2024_en!A:F,5,FALSE) -> 2024-11-13 | H33: =MID(VLOOKUP($D$1&D33&$E$1&E33,UNWDF_Medellín_2024_en!A:F,5,FALSE),1,SEARCH("(",VLOOKUP($D$1&D33&$E$1&E33,UNWDF_Medellín_2024_en!A:F,5,FALSE))-2) -> 10:40 - 11:55 | I33: 1:15 | J33: =HLOOKUP($F33,UNWDF_Medellín_2024_en!$H$14:$S$16,2,FALSE) -> Room 6 | K33: =HLOOKUP($F33,UNWDF_Medellín_2024_en!$H$14:$S$16,3,FALSE) -> 150 | L33: NA | M33: NA | N33: NA | O33: =IF(OR(L33="NA",L33="E"),"NA",IF(L33="Y",COUNTIF($M$1:N32,N33)+1,COUNTIF($M$1:N32,N33)+1)) -> NA | P33: NA | Q33: NA | R33: NA | S33: NA | T33: NA | U33: Day1_Time_Slot2_Parallel 07 | W33: 1:15
A34: 42 | B34: Day1_Time_Slot2_Parallel 08 | C34: Day1_Time_Slot2 | D34: 1 | E34: 2 | F34: Parallel 08 | G34: =VLOOKUP($D$1&D34,UNWDF_Medellín_2024_en!A:F,5,FALSE) -> 2024-11-13 | H34: =MID(VLOOKUP($D$1&D34&$E$1&E34,UNWDF_Medellín_2024_en!A:F,5,FALSE),1,SEARCH("(",VLOOKUP($D$1&D34&$E$1&E34,UNWDF_Medellín_2024_en!A:F,5,FALSE))-2) -> 10:40 - 11:55 | I34: 1:15 | J34: =HLOOKUP($F34,UNWDF_Medellín_2024_en!$H$14:$S$16,2,FALSE) -> Room 7 | K34: =HLOOKUP($F34,UNWDF_Medellín_2024_en!$H$14:$S$16,3,FALSE) -> 150 | L34: NA | M34: NA | N34: NA | O34: =IF(OR(L34="NA",L34="E"),"NA",IF(L34="Y",COUNTIF($M$1:N33,N34)+1,COUNTIF($M$1:N33,N34)+1)) -> NA | P34: NA | Q34: NA | R34: NA | S34: NA | T34: NA | U34: Day1_Time_Slot2_Parallel 08 | W34: 1:15
A35: 43 | B35: Day1_Time_Slot2_Parallel 09 | C35: Day1_Time_Slot2 | D35: 1 | E35: 2 | F35: Parallel 09 | G35: =VLOOKUP($D$1&D35,UNWDF_Medellín_2024_en!A:F,5,FALSE) -> 2024-11-13 | H35: =MID(VLOOKUP($D$1&D35&$E$1&E35,UNWDF_Medellín_2024_en!A:F,5,FALSE),1,SEARCH("(",VLOOKUP($D$1&D35&$E$1&E35,UNWDF_Medellín_2024_en!A:F,5,FALSE))-2) -> 10:40 - 11:55 | I35: 1:15 | J35: =HLOOKUP($F35,UNWDF_Medellín_2024_en!$H$14:$S$16,2,FALSE) -> Room 8 | K35: =HLOOKUP($F35,UNWDF_Medellín_2024_en!$H$14:$S$16,3,FALSE) -> 90 | L35: NA | M35: NA | N35: NA | O35: =IF(OR(L35="NA",L35="E"),"NA",IF(L35="Y",COUNTIF($M$1:N34,N35)+1,COUNTIF($M$1:N34,N35)+1)) -> NA | P35: NA | Q35: NA | R35: NA | S35: NA | T35: NA | U35: Day1_Time_Slot2_Parallel 09 | W35: 1:15
A36: 44 | B36: Day1_Time_Slot2_Parallel 10 | C36: Day1_Time_Slot2 | D36: 1 | E36: 2 | F36: Parallel 10 | G36: =VLOOKUP($D$1&D36,UNWDF_Medellín_2024_en!A:F,5,FALSE) -> 2024-11-13 | H36: =MID(VLOOKUP($D$1&D36&$E$1&E36,UNWDF_Medellín_2024_en!A:F,5,FALSE),1,SEARCH("(",VLOOKUP($D$1&D36&$E$1&E36,UNWDF_Medellín_2024_en!A:F,5,FALSE))-2) -> 10:40 - 11:55 | I36: 1:15 | J36: =HLOOKUP($F36,UNWDF_Medellín_2024_en!$H$14:$S$16,2,FALSE) -> Room 9 | K36: =HLOOKUP($F36,UNWDF_Medellín_2024_en!$H$14:$S$16,3,FALSE) -> 60 | L36: NA | M36: NA | N36: NA | O36: =IF(OR(L36="NA",L36="E"),"NA",IF(L36="Y",COUNTIF($M$1:N35,N36)+1,COUNTIF($M$1:N35,N36)+1)) -> NA | P36: NA | Q36: NA | R36: NA | S36: NA | T36: NA | U36: Day1_Time_Slot2_Parallel 10 | W36: 1:15
A37: 45 | B37: Day1_Time_Slot2_Parallel 11 | C37: Day1_Time_Slot2 | D37: 1 | E37: 2 | F37: Parallel 11 | G37: =VLOOKUP($D$1&D37,UNWDF_Medellín_2024_en!A:F,5,FALSE) -> 2024-11-13 | H37: =MID(VLOOKUP($D$1&D37&$E$1&E37,UNWDF_Medellín_2024_en!A:F,5,FALSE),1,SEARCH("(",VLOOKUP($D$1&D37&$E$1&E37,UNWDF_Medellín_2024_en!A:F,5,FALSE))-2) -> 10:40 - 11:55 | I37: 1:15 | J37: =HLOOKUP($F37,UNWDF_Medellín_2024_en!$H$14:$S$16,2,FALSE) -> Room 10 | K37: =HLOOKUP($F37,UNWDF_Medellín_2024_en!$H$14:$S$16,3,FALSE) -> 60 | L37: NA | M37: NA | N37: NA | O37: =IF(OR(L37="NA",L37="E"),"NA",IF(L37="Y",COUNTIF($M$1:N36,N37)+1,COUNTIF($M$1:N36,N37)+1)) -> NA | P37: NA | Q37: NA | R37: NA | S37: NA | T37: NA | U37: Day1_Time_Slot2_Parallel 11 | W37: 1:15
A38: 46 | B38: Day1_Time_Slot2_Parallel 12 | C38: Day1_Time_Slot2 | D38: 1 | E38: 2 | F38: Parallel 12 | G38: =VLOOKUP($D$1&D38,UNWDF_Medellín_2024_en!A:F,5,FALSE) -> 2024-11-13 | H38: =MID(VLOOKUP($D$1&D38&$E$1&E38,UNWDF_Medellín_2024_en!A:F,5,FALSE),1,SEARCH("(",VLOOKUP($D$1&D38&$E$1&E38,UNWDF_Medellín_2024_en!A:F,5,FALSE))-2) -> 10:40 - 11:55 | I38: 1:15 | J38: =HLOOKUP($F38,UNWDF_Medellín_2024_en!$H$14:$S$16,2,FALSE) -> NA | K38: =HLOOKUP($F38,UNWDF_Medellín_2024_en!$H$14:$S$16,3,FALSE) -> NA | L38: NA | M38: NA | N38: NA | O38: =IF(OR(L38="NA",L38="E"),"NA",IF(L38="Y",COUNTIF($M$1:N37,N38)+1,COUNTIF($M$1:N37,N38)+1)) -> NA | P38: NA | Q38: NA | R38: NA | S38: NA | T38: NA | U38: Day1_Time_Slot2_Parallel 12 | W38: 1:15
A39: 47 | B39: Day1_Time_Slot3_Parallel 01 | C39: Day1_Time_Slot3 | D39: 1 | E39: 3 | F39: Parallel 01 | G39: =VLOOKUP($D$1&D39,UNWDF_Medellín_2024_en!A:F,5,FALSE) -> 2024-11-13 | H39: =MID(VLOOKUP($D$1&D39&$E$1&E39,UNWDF_Medellín_2024_en!A:F,5,FALSE),1,SEARCH("(",VLOOKUP($D$1&D39&$E$1&E39,UNWDF_Medellín_2024_en!A:F,5,FALSE))-2) -> 12:15 - 13:15 | I39: 1:00 | J39: =HLOOKUP($F39,UNWDF_Medellín_2024_en!$H$14:$S$16,2,FALSE) -> Plenary Room | K39: =HLOOKUP($F39,UNWDF_Medellín_2024_en!$H$14:$S$16,3,FALSE) -> 3000 | L39: NA | M39: NA | N39: NA | O39: =IF(OR(L39="NA",L39="E"),"NA",IF(L39="Y",COUNTIF($M$1:N38,N39)+1,COUNTIF($M$1:N38,N39)+1)) -> NA | P39: NA | Q39: NA | R39: NA | S39: NA | T39: NA | U39: Day1_Time_Slot3_Parallel 01 | W39: 1:00
A40: 122 | B40: Day1_Time_Slot3_Parallel 02 | C40: Day1_Time_Slot3 | D40: 1 | E40: 3 | F40: Parallel 02 | G40: =VLOOKUP($D$1&D40,UNWDF_Medellín_2024_en!A:F,5,FALSE) -> 2024-11-13 | H40: =MID(VLOOKUP($D$1&D40&$E$1&E40,UNWDF_Medellín_2024_en!A:F,5,FALSE),1,SEARCH("(",VLOOKUP($D$1&D40&$E$1&E40,UNWDF_Medellín_2024_en!A:F,5,FALSE))-2) -> 12:15 - 13:15 | I40: 1:00 | J40: =HLOOKUP($F40,UNWDF_Medellín_2024_en!$H$14:$S$16,2,FALSE) -> Room 1 | K40: =HLOOKUP($F40,UNWDF_Medellín_2024_en!$H$14:$S$16,3,FALSE) -> 300 | L40: N | M40: TBC | N40: 1 | O40: =IF(OR(L40="NA",L40="E"),"NA",IF(L40="Y",COUNTIF($M$1:N39,N40)+1,COUNTIF($M$1:N39,N40)+1)) -> 2 | P40: TA1.2 | Q40: Leveraging AI and open data to address pressing global and local development challenges | R40: Google; United Nations Statistics Division (UNSD-DESA); MAKAIA; Organisation for Economic Co-operation and Development (OECD); ONE Campaign; | S40: Aprovechar la inteligencia artificial y los datos abiertos para abordar los apremiantes retos del desarrollo mundial y local | T40: Google; División de Estadísticas de las Naciones Unidas (UNSD-DESA); MAKAIA; Organización para la Cooperación y el Desarrollo Económico (OCDE); ONE Campaign | U40: Day1_Time_Slot3_Parallel 02 | W40: 1:00
A41: 123 | B41: Day1_Time_Slot3_Parallel 03 | C41: Day1_Time_Slot3 | D41: 1 | E41: 3 | F41: Parallel 03 | G41: =VLOOKUP($D$1&D41,UNWDF_Medellín_2024_en!A:F,5,FALSE) -> 2024-11-13 | H41: =MID(VLOOKUP($D$1&D41&$E$1&E41,UNWDF_Medellín_2024_en!A:F,5,FALSE),1,SEARCH("(",VLOOKUP($D$1&D41&$E$1&E41,UNWDF_Medellín_2024_en!A:F,5,FALSE))-2) -> 12:15 - 13:15 | I41: 1:00 | J41: =HLOOKUP($F41,UNWDF_Medellín_2024_en!$H$14:$S$16,2,FALSE) -> Room 2 | K41: =HLOOKUP($F41,UNWDF_Medellín_2024_en!$H$14:$S$16,3,FALSE) -> 200 | L41: N | M41: NA | N41: 1 | O41: =IF(OR(L41="NA",L41="E"),"NA",IF(L41="Y",COUNTIF($M$1:N40,N41)+1,COUNTIF($M$1:N40,N41)+1)) -> 3 | P41: TA1.4 | Q41: Improving access to civil registration services for lesbian, gay, bisexual, transgender, queer, intersex and asexual (LGBTQIA+) communities globally by strengthening national and regional laws and data systems and ensuring legal identity. | R41: Global Health Advocacy Incubator; Gender Equity Unit, John Hopkins Bloomberg School of Public Health; Indian Council of Medical Research; Directorate of Census Operations and Citizen Registration (DCOCR-India); State Rainbow Foundation | S41: Mejorar el acceso a los servicios de registro civil de las comunidades de lesbianas, gays, bisexuales, transexuales, queer, intersexuales y asexuales (LGBTQIA+) en todo el mundo, reforzando las leyes y los sistemas de datos nacionales y regionales y garantizando la identidad jurídica. | T41: Incubadora de Defensa de la Salud Global; Fundación Rainbow Estatal | U41: Day1_Time_Slot3_Parallel 03 | V41: Update (es): Gender Equity Unit, John Hopkins Bloomberg School of Public Health; Indian Council of Medical Research; Directorate of Census Operations and Citizen Registration (DCOCR-India) | W41: 1:00
A42: 124 | B42: Day1_Time_Slot3_Parallel 04 | C42: Day1_Time_Slot3 | D42: 1 | E42: 3 | F42: Parallel 04 | G42: =VLOOKUP($D$1&D42,UNWDF_Medellín_2024_en!A:F,5,FALSE) -> 2024-11-13 | H42: =MID(VLOOKUP($D$1&D42&$E$1&E42,UNWDF_Medellín_2024_en!A:F,5,FALSE),1,SEARCH("(",VLOOKUP($D$1&D42&$E$1&E42,UNWDF_Medellín_2024_en!A:F,5,FALSE))-2) -> 12:15 - 13:15 | I42: 1:00 | J42: =HLOOKUP($F42,UNWDF_Medellín_2024_en!$H$14:$S$16,2,FALSE) -> Room 3 | K42: =HLOOKUP($F42,UNWDF_Medellín_2024_en!$H$14:$S$16,3,FALSE) -> 200 | L42: N | M42: NA | N42: 1 | O42: =IF(OR(L42="NA",L42="E"),"NA",IF(L42="Y",COUNTIF($M$1:N41,N42)+1,COUNTIF($M$1:N41,N42)+1)) -> 4 | P42: TA1.14 | Q42: Taking Data Into Our Own Hands: co-creating the roadmap to implement the Copenhagen Framework on Citizen Data | R42: Danish Human Rights Institute; Human Rights Council, Greenland; Plan International; International Land Coalition (ILC); World Federation of the Deaf; Business and Human Rights Resource Centre; United Nations Statistics Division (UNSD-DESA); Collaborative on Citizen Data Steering Committee (supported by 10 organisations) | S42: Tomar los datos en nuestras manos: cocrear la hoja de ruta para aplicar el Marco de Copenhague sobre Datos Ciudadanos | T42: Instituto Danés de Derechos Humanos; Consejo de Derechos Humanos, Groenlandia; Plan Internacional; Coalición Internacional por la Tierra (ILC); Federación Mundial de Sordos; Centro de Recursos para Empresas y Derechos Humanos; División de Estadísticas de las Naciones Unidas (UNSD-DESA); Comité Directivo de Datos Ciudadanos Colaborativos (apoyado por 10 organizaciones) | U42: Day1_Time_Slot3_Parallel 04 | W42: 1:00
A43: 125 | B43: Day1_Time_Slot3_Parallel 05 | C43: Day1_Time_Slot3 | D43: 1 | E43: 3 | F43: Parallel 05 | G43: =VLOOKUP($D$1&D43,UNWDF_Medellín_2024_en!A:F,5,FALSE) -> 2024-11-13 | H43: =MID(VLOOKUP($D$1&D43&$E$1&E43,UNWDF_Medellín_2024_en!A:F,5,FALSE),1,SEARCH("(",VLOOKUP($D$1&D43&$E$1&E43,UNWDF_Medellín_2024_en!A:F,5,FALSE))-2) -> 12:15 - 13:15 | I43: 1:00 | J43: =HLOOKUP($F43,UNWDF_Medellín_2024_en!$H$14:$S$16,2,FALSE) -> Room 4 | K43: =HLOOKUP($F43,UNWDF_Medellín_2024_en!$H$14:$S$16,3,FALSE) -> 200 | L43: E | M43: NA | N43: NA | O43: =IF(OR(L43="NA",L43="E"),"NA",IF(L43="Y",COUNTIF($M$1:N42,N43)+1,COUNTIF($M$1:N42,N43)+1)) -> NA | P43: =IF(N43="NA","NA","TA"&N43&"."&TEXT(O43,"0#")) -> NA | Q43: TBC | R43: TBC | S43: Por Confirmar | T43: Por Confirmar | U43: Day1_Time_Slot3_Parallel 05 | W43: 1:00
A44: 126 | B44: Day1_Time_Slot3_Parallel 06 | C44: Day1_Time_Slot3 | D44: 1 | E44: 3 | F44: Parallel 06 | G44: =VLOOKUP($D$1&D44,UNWDF_Medellín_2024_en!A:F,5,FALSE) -> 2024-11-13 | H44: =MID(VLOOKUP($D$1&D44&$E$1&E44,UNWDF_Medellín_2024_en!A:F,5,FALSE),1,SEARCH("(",VLOOKUP($D$1&D44&$E$1&E44,UNWDF_Medellín_2024_en!A:F,5,FALSE))-2) -> 12:15 - 13:15 | I44: 1:00 | J44: =HLOOKUP($F44,UNWDF_Medellín_2024_en!$H$14:$S$16,2,FALSE) -> Room 5 | K44: =HLOOKUP($F44,UNWDF_Medellín_2024_en!$H$14:$S$16,3,FALSE) -> 200 | L44: N | M44: NA | N44: 4 | O44: =IF(OR(L44="NA",L44="E"),"NA",IF(L44="Y",COUNTIF($M$1:N43,N44)+1,COUNTIF($M$1:N43,N44)+1)) -> 1 | P44: TA4.8 | Q44: Leveraging Multistakeholder Data-Driven Efforts for Ending Hunger: The Food System Countdown Initiative | R44: Food and Agriculture Organization of the United Nations (FAO); Columbia University; Cornell University; Global Alliance for Improved Nutrition (GAIN) | S44: Aprovechamiento de los esfuerzos basados en datos de múltiples partes interesadas para acabar con el hambre: Iniciativa de Cuenta Regresiva del Sistema Alimentario | T44: Organización de las Naciones Unidas para la Alimentación y la Agricultura (FAO); Universidad de Columbia; Universidad de Cornell; Alianza Global para una Mejor Nutrición (GAIN) | U44: Day1_Time_Slot3_Parallel 06 | W44: 1:00
A45: 127 | B45: Day1_Time_Slot3_Parallel 07 | C45: Day1_Time_Slot3 | D45: 1 | E45: 3 | F45: Parallel 07 | G45: =VLOOKUP($D$1&D45,UNWDF_Medellín_2024_en!A:F,5,FALSE) -> 2024-11-13 | H45: =MID(VLOOKUP($D$1&D45&$E$1&E45,UNWDF_Medellín_2024_en!A:F,5,FALSE),1,SEARCH("(",VLOOKUP($D$1&D45&$E$1&E45,UNWDF_Medellín_2024_en!A:F,5,FALSE))-2) -> 12:15 - 13:15 | I45: 1:00 | J45: =HLOOKUP($F45,UNWDF_Medellín_2024_en!$H$14:$S$16,2,FALSE) -> Room 6 | K45: =HLOOKUP($F45,UNWDF_Medellín_2024_en!$H$14:$S$16,3,FALSE) -> 150 | L45: N | M45: NA | N45: _T | O45: =IF(OR(L45="NA",L45="E"),"NA",IF(L45="Y",COUNTIF($M$1:N44,N45)+1,COUNTIF($M$1:N44,N45)+1)) -> 1 | P45: TED.201 | Q45: From Traditional Surveys to Emerging Technologies: Their Role in Evidence-Based Environmental Policy Making | R45: United Nations Development Programme (UNDP), Accelerator Labs and SDG AI Lab; Ministry of Environment and Natural Resources, Guatemala; Pacific Community (SPC) | S45: De las Encuestas Tradicionales a las Tecnologías Emergentes: Su Papel en la Elaboración de Políticas Medioambientales Basadas en Evidencia | T45: Programa de las Naciones Unidas para el Desarrollo (PNUD); Ministerio de Ambiente y Recursos Naturales, Guatemala; Comunidad del Pacífico (SPC) | U45: Day1_Time_Slot3_Parallel 07 | W45: 1:00
A46: 128 | B46: Day1_Time_Slot3_Parallel 08 | C46: Day1_Time_Slot3 | D46: 1 | E46: 3 | F46: Parallel 08 | G46: =VLOOKUP($D$1&D46,UNWDF_Medellín_2024_en!A:F,5,FALSE) -> 2024-11-13 | H46: =MID(VLOOKUP($D$1&D46&$E$1&E46,UNWDF_Medellín_2024_en!A:F,5,FALSE),1,SEARCH("(",VLOOKUP($D$1&D46&$E$1&E46,UNWDF_Medellín_2024_en!A:F,5,FALSE))-2) -> 12:15 - 13:15 | I46: 1:00 | J46: =HLOOKUP($F46,UNWDF_Medellín_2024_en!$H$14:$S$16,2,FALSE) -> Room 7 | K46: =HLOOKUP($F46,UNWDF_Medellín_2024_en!$H$14:$S$16,3,FALSE) -> 150 | L46: N | M46: NA | N46: _T | O46: =IF(OR(L46="NA",L46="E"),"NA",IF(L46="Y",COUNTIF($M$1:N45,N46)+1,COUNTIF($M$1:N45,N46)+1)) -> 2 | P46: TED.211 | Q46: Monitoring Frameworks for SDGs in India at national and sub-national level / Maximising the use and value of data for better decision making through the Integrated Data Service / Are we missing the missing? Strengthening the health sector’s use of mortality data for public health decision-making / A data-based public management model. Can a microdata exercise enhance public management? | R46: Ministry of Statistics and Programme Implementation (MoSPI-India) / Office for National Statistics (ONS-UK) / Vital Strategies / Polidata | S46: Marcos de Seguimiento de los ODS en la India a nivel nacional y subnacional / Maximizar el uso y el valor de los datos para una mejor toma de decisiones a través del Servicio Integrado de Datos / ¿Nos estamos perdiendo lo que falta? Strengthening the health sector's use of mortality data for public health decision-making / Un modelo de gestión pública basado en datos. ¿Puede un ejercicio de microdatos mejorar la gestión pública? | T46: Ministerio de Estadística y Programa de Implementación (MoSPI-India) / Oficina Nacional de Estadísticas (ONS-Reino Unido) / Vital Strategies / Polidata | U46: Day1_Time_Slot3_Parallel 08 | W46: 1:00
A47: 129 | B47: Day1_Time_Slot3_Parallel 09 | C47: Day1_Time_Slot3 | D47: 1 | E47: 3 | F47: Parallel 09 | G47: =VLOOKUP($D$1&D47,UNWDF_Medellín_2024_en!A:F,5,FALSE) -> 2024-11-13 | H47: =MID(VLOOKUP($D$1&D47&$E$1&E47,UNWDF_Medellín_2024_en!A:F,5,FALSE),1,SEARCH("(",VLOOKUP($D$1&D47&$E$1&E47,UNWDF_Medellín_2024_en!A:F,5,FALSE))-2) -> 12:15 - 13:15 | I47: 1:00 | J47: =HLOOKUP($F47,UNWDF_Medellín_2024_en!$H$14:$S$16,2,FALSE) -> Room 8 | K47: =HLOOKUP($F47,UNWDF_Medellín_2024_en!$H$14:$S$16,3,FALSE) -> 90 | L47: N | M47: NA | N47: NA | O47: =IF(OR(L47="NA",L47="E"),"NA",IF(L47="Y",COUNTIF($M$1:N46,N47)+1,COUNTIF($M$1:N46,N47)+1)) -> 80 | P47: Local_1 | Q47: Data with Purpose: Insights from Colombia's UN Development System | R47: United Nations Resident Coordinator (UNRCO), Colombia; United Nations Country Team (UNCT), Colombia | S47: Datos Con Sentido: la visión del Sistema de Desarrollo de Naciones Unidas en Colombia | T47: Por Confirmar | U47: Day1_Time_Slot3_Parallel 09 | W47: 1:00
A48: 130 | B48: Day1_Time_Slot3_Parallel 10 | C48: Day1_Time_Slot3 | D48: 1 | E48: 3 | F48: Parallel 10 | G48: =VLOOKUP($D$1&D48,UNWDF_Medellín_2024_en!A:F,5,FALSE) -> 2024-11-13 | H48: =MID(VLOOKUP($D$1&D48&$E$1&E48,UNWDF_Medellín_2024_en!A:F,5,FALSE),1,SEARCH("(",VLOOKUP($D$1&D48&$E$1&E48,UNWDF_Medellín_2024_en!A:F,5,FALSE))-2) -> 12:15 - 13:15 | I48: 1:00 | J48: =HLOOKUP($F48,UNWDF_Medellín_2024_en!$H$14:$S$16,2,FALSE) -> Room 9 | K48: =HLOOKUP($F48,UNWDF_Medellín_2024_en!$H$14:$S$16,3,FALSE) -> 60 | L48: N | M48: NA | N48: _L | O48: =IF(OR(L48="NA",L48="E"),"NA",IF(L48="Y",COUNTIF($M$1:N47,N48)+1,COUNTIF($M$1:N47,N48)+1)) -> 1 | P48: LEARN.301 | Q48: Practicing Digital Inclusion: An interactive learning session | R48: Athena Infonomics LLC; United States Agency for International Development (USAID) | S48: Practicando la Inclusión Digital: Una sesión de aprendizaje interactivo | T48: Athena Infonomics LLC; Agencia de los Estados Unidos para el Desarrollo Internacional (USAID) | U48: Day1_Time_Slot3_Parallel 10 | W48: 1:00
A49: 131 | B49: Day1_Time_Slot3_Parallel 11 | C49: Day1_Time_Slot3 | D49: 1 | E49: 3 | F49: Parallel 11 | G49: =VLOOKUP($D$1&D49,UNWDF_Medellín_2024_en!A:F,5,FALSE) -> 2024-11-13 | H49: =MID(VLOOKUP($D$1&D49&$E$1&E49,UNWDF_Medellín_2024_en!A:F,5,FALSE),1,SEARCH("(",VLOOKUP($D$1&D49&$E$1&E49,UNWDF_Medellín_2024_en!A:F,5,FALSE))-2) -> 12:15 - 13:15 | I49: 1:00 | J49: =HLOOKUP($F49,UNWDF_Medellín_2024_en!$H$14:$S$16,2,FALSE) -> Room 10 | K49: =HLOOKUP($F49,UNWDF_Medellín_2024_en!$H$14:$S$16,3,FALSE) -> 60 | L49: N | M49: NA | N49: _D | O49: =IF(OR(L49="NA",L49="E"),"NA",IF(L49="Y",COUNTIF($M$1:N48,N49)+1,COUNTIF($M$1:N48,N49)+1)) -> 1 | P49: DEMO.501 | Q49: Technological stack for leveraging large volumes of data: use case for constructing labor market indicators in Chile from administrative records of workplace accidents and occupational diseases. / Uniting data for the common good of migration / The role of population data in creating urban heat index maps of your city | R49: Instituto Nacional de Estadísticas (INE-Chile); Instituto Nacional de Estadística y Geografía (INEGI-México); Agencia de Cooperación Internacional para el Desarrollo, Chile; Ministry of Foreign Affairs, Mexico / International Organisation for Migration (IOM) / Environmental Systems Research Institute (Esri); AfroLeadership; PLACE; WorldPop/University of Southampton | S49: Pila tecnológica para aprovechar grandes volúmenes de datos: caso de uso para construir indicadores del mercado laboral en Chile a partir de registros administrativos de accidentes laborales y enfermedades profesionales. / Unir datos para el bien común de la migración / El papel de los datos de población en la creación de mapas de índice de calor urbano de tu ciudad. | T49: Instituto Nacional de Estadísticas (INE-Chile); Instituto Nacional de Estadística y Geografía (INEGI-México); Agencia de Cooperación Internacional para el Desarrollo, Chile; Ministerio de Relaciones Exteriores, México / Organización Internacional para las Migraciones (OIM) / Instituto de Investigación de Sistemas Ambientales (Esri); AfroLeadership; PLACE; WorldPop/Universidad de Southampton | U49: Day1_Time_Slot3_Parallel 11 | W49: 1:00
A50: 217 | B50: Day1_Time_Slot3_Parallel 12 | C50: Day1_Time_Slot3 | D50: 1 | E50: 3 | F50: Parallel 12 | G50: =VLOOKUP($D$1&D50,UNWDF_Medellín_2024_en!A:F,5,FALSE) -> 2024-11-13 | H50: =MID(VLOOKUP($D$1&D50&$E$1&E50,UNWDF_Medellín_2024_en!A:F,5,FALSE),1,SEARCH("(",VLOOKUP($D$1&D50&$E$1&E50,UNWDF_Medellín_2024_en!A:F,5,FALSE))-2) -> 12:15 - 13:15 | I50: 1:00 | J50: =HLOOKUP($F50,UNWDF_Medellín_2024_en!$H$14:$S$16,2,FALSE) -> NA | K50: =HLOOKUP($F50,UNWDF_Medellín_2024_en!$H$14:$S$16,3,FALSE) -> NA | L50: NA | M50: NA | N50: NA | O50: =IF(OR(L50="NA",L50="E"),"NA",IF(L50="Y",COUNTIF($M$1:N49,N50)+1,COUNTIF($M$1:N49,N50)+1)) -> NA | P50: =IF(N50="NA","NA","TA"&N50&"."&TEXT(O50,"0#")) -> NA | Q50: NA | R50: NA | S50: NA | T50: NA | U50: Day1_Time_Slot3_Parallel 12 | W50: 1:00
A51: 48 | B51: Day1_Time_Slot4_Parallel 01 | C51: Day1_Time_Slot4 | D51: 1 | E51: 4 | F51: Parallel 01 | G51: =VLOOKUP($D$1&D51,UNWDF_Medellín_2024_en!A:F,5,FALSE) -> 2024-11-13 | H51: =MID(VLOOKUP($D$1&D51&$E$1&E51,UNWDF_Medellín_2024_en!A:F,5,FALSE),1,SEARCH("(",VLOOKUP($D$1&D51&$E$1&E51,UNWDF_Medellín_2024_en!A:F,5,FALSE))-2) -> 14:15 - 15:15 | I51: 1:00 | J51: =HLOOKUP($F51,UNWDF_Medellín_2024_en!$H$14:$S$16,2,FALSE) -> Plenary Room | K51: =HLOOKUP($F51,UNWDF_Medellín_2024_en!$H$14:$S$16,3,FALSE) -> 3000 | L51: NA | M51: NA | N51: NA | O51: =IF(OR(L51="NA",L51="E"),"NA",IF(L51="Y",COUNTIF($M$1:N50,N51)+1,COUNTIF($M$1:N50,N51)+1)) -> NA | P51: NA | Q51: NA | R51: NA | S51: NA | T51: NA | U51: Day1_Time_Slot4_Parallel 01 | W51: 1:00
A52: 132 | B52: Day1_Time_Slot4_Parallel 02 | C52: Day1_Time_Slot4 | D52: 1 | E52: 4 | F52: Parallel 02 | G52: =VLOOKUP($D$1&D52,UNWDF_Medellín_2024_en!A:F,5,FALSE) -> 2024-11-13 | H52: =MID(VLOOKUP($D$1&D52&$E$1&E52,UNWDF_Medellín_2024_en!A:F,5,FALSE),1,SEARCH("(",VLOOKUP($D$1&D52&$E$1&E52,UNWDF_Medellín_2024_en!A:F,5,FALSE))-2) -> 14:15 - 15:15 | I52: 1:00 | J52: =HLOOKUP($F52,UNWDF_Medellín_2024_en!$H$14:$S$16,2,FALSE) -> Room 1 | K52: =HLOOKUP($F52,UNWDF_Medellín_2024_en!$H$14:$S$16,3,FALSE) -> 300 | L52: N | M52: NA | N52: 2 | O52: =IF(OR(L52="NA",L52="E"),"NA",IF(L52="Y",COUNTIF($M$1:N51,N52)+1,COUNTIF($M$1:N51,N52)+1)) -> 1 | P52: TA2.2 | Q52: Data for Action: Innovative Solutions for Effective Data Dissemination and Use | R52: United Nations Population Fund (UNFPA); Government of Bangladesh; Ghana Statistical Service (GSS); World Bank (WB); United Nations Statistics Division (UNSD-DESA); World Health Organization (WHO); United Nations Economic Commission for Latin America and the Caribbean (UNECLAC / CEPAL) | S52: Datos para la acción: Soluciones Innovadoras para la Difusión y el Uso Eficaces de los Datos | T52: Fondo de Población de las Naciones Unidas (UNFPA); Gobierno de Bangladesh,; Servicio de Estadística de Ghana (GSS); Banco Mundial (BM); División de Estadísticas de las Naciones Unidas (UNSD-DESA); Organización Mundial de la Salud (OMS); Comisión Económica para América Latina y el Caribe (CEPAL) | U52: Day1_Time_Slot4_Parallel 02 | W52: 1:00
A53: 133 | B53: Day1_Time_Slot4_Parallel 03 | C53: Day1_Time_Slot4 | D53: 1 | E53: 4 | F53: Parallel 03 | G53: =VLOOKUP($D$1&D53,UNWDF_Medellín_2024_en!A:F,5,FALSE) -> 2024-11-13 | H53: =MID(VLOOKUP($D$1&D53&$E$1&E53,UNWDF_Medellín_2024_en!A:F,5,FALSE),1,SEARCH("(",VLOOKUP($D$1&D53&$E$1&E53,UNWDF_Medellín_2024_en!A:F,5,FALSE))-2) -> 14:15 - 15:15 | I53: 1:00 | J53: =HLOOKUP($F53,UNWDF_Medellín_2024_en!$H$14:$S$16,2,FALSE) -> Room 2 | K53: =HLOOKUP($F53,UNWDF_Medellín_2024_en!$H$14:$S$16,3,FALSE) -> 200 | L53: N | M53: NA | N53: 3 | O53: =IF(OR(L53="NA",L53="E"),"NA",IF(L53="Y",COUNTIF($M$1:N52,N53)+1,COUNTIF($M$1:N52,N53)+1)) -> 1 | P53: TA3.6 | Q53: The future role of the UN Statistical Commission | R53: Swiss Federal Statistical Office (SFSO); United Nations Educational, Scientific and Cultural Organization (UNESCO); Oficina Nacional de Estadística (ONE-República Dominicana); Office of the United Nations Secretary-General (EOSG); United Nations Statistics Division (UNSD-DESA) | S53: El papel futuro de la Comisión Estadística de la ONU | T53: Oficina Federal de Estadística de Suiza (SFSO); Organización de las Naciones Unidas para la Educación, la Ciencia y la Cultura (UNESCO); Oficina Nacional de Estadística (ONE-República Dominicana); Oficina del Secretario General de las Naciones Unidas (EOSG); División de Estadísticas de las Naciones Unidas (UNSD-DESA) | U53: Day1_Time_Slot4_Parallel 03 | W53: 1:00
A54: 134 | B54: Day1_Time_Slot4_Parallel 04 | C54: Day1_Time_Slot4 | D54: 1 | E54: 4 | F54: Parallel 04 | G54: =VLOOKUP($D$1&D54,UNWDF_Medellín_2024_en!A:F,5,FALSE) -> 2024-11-13 | H54: =MID(VLOOKUP($D$1&D54&$E$1&E54,UNWDF_Medellín_2024_en!A:F,5,FALSE),1,SEARCH("(",VLOOKUP($D$1&D54&$E$1&E54,UNWDF_Medellín_2024_en!A:F,5,FALSE))-2) -> 14:15 - 15:15 | I54: 1:00 | J54: =HLOOKUP($F54,UNWDF_Medellín_2024_en!$H$14:$S$16,2,FALSE) -> Room 3 | K54: =HLOOKUP($F54,UNWDF_Medellín_2024_en!$H$14:$S$16,3,FALSE) -> 200 | L54: N | M54: NA | N54: 1 | O54: =IF(OR(L54="NA",L54="E"),"NA",IF(L54="Y",COUNTIF($M$1:N53,N54)+1,COUNTIF($M$1:N53,N54)+1)) -> 5 | P54: TA1.15 | Q54: Invisible no Longer: Data Solutions to LNOB Dilemmas | R54: Organización Nacional de Mujeres Indígenas Andinas y Amazónicas del Perú (ONAMIAP); Minority Rights Group International; United Nations Population Fund (UNFPA); Ministry of Foreign Affairs, Ireland | S54: Ya no somos invisibles: Soluciones de Datos a los Dilemas de No Dejar a Nadie Atrás | T54: Organización Nacional de Mujeres Indígenas Andinas y Amazónicas del Perú (ONAMIAP); Minority Rights Group International; Fondo de Población de las Naciones Unidas (UNFPA); Ministerio de Relaciones Exteriores, Irlanda | U54: Day1_Time_Slot4_Parallel 04 | W54: 1:00
A55: 135 | B55: Day1_Time_Slot4_Parallel 05 | C55: Day1_Time_Slot4 | D55: 1 | E55: 4 | F55: Parallel 05 | G55: =VLOOKUP($D$1&D55,UNWDF_Medellín_2024_en!A:F,5,FALSE) -> 2024-11-13 | H55: =MID(VLOOKUP($D$1&D55&$E$1&E55,UNWDF_Medellín_2024_en!A:F,5,FALSE),1,SEARCH("(",VLOOKUP($D$1&D55&$E$1&E55,UNWDF_Medellín_2024_en!A:F,5,FALSE))-2) -> 14:15 - 15:15 | I55: 1:00 | J55: =HLOOKUP($F55,UNWDF_Medellín_2024_en!$H$14:$S$16,2,FALSE) -> Room 4 | K55: =HLOOKUP($F55,UNWDF_Medellín_2024_en!$H$14:$S$16,3,FALSE) -> 200 | L55: N | M55: NA | N55: 2 | O55: =IF(OR(L55="NA",L55="E"),"NA",IF(L55="Y",COUNTIF($M$1:N54,N55)+1,COUNTIF($M$1:N54,N55)+1)) -> 2 | P55: TA2.11 | Q55: Integrating data use in policy organizations: What does it really take? | R55: Vital Strategies; Instituto Nacional de Salud, Colombia; Ministry of Health, Kenya; Department of Health, Philippines | S55: Integrar el uso de datos en las organizaciones políticas: ¿Qué se necesita realmente? | T55: Vital Strategies; Instituto Nacional De Salud, Colombia; Ministerio de Salud, Kenia; Departamento de Salud, Filipinas | U55: Day1_Time_Slot4_Parallel 05 | W55: 1:00
A56: 136 | B56: Day1_Time_Slot4_Parallel 06 | C56: Day1_Time_Slot4 | D56: 1 | E56: 4 | F56: Parallel 06 | G56: =VLOOKUP($D$1&D56,UNWDF_Medellín_2024_en!A:F,5,FALSE) -> 2024-11-13 | H56: =MID(VLOOKUP($D$1&D56&$E$1&E56,UNWDF_Medellín_2024_en!A:F,5,FALSE),1,SEARCH("(",VLOOKUP($D$1&D56&$E$1&E56,UNWDF_Medellín_2024_en!A:F,5,FALSE))-2) -> 14:15 - 15:15 | I56: 1:00 | J56: =HLOOKUP($F56,UNWDF_Medellín_2024_en!$H$14:$S$16,2,FALSE) -> Room 5 | K56: =HLOOKUP($F56,UNWDF_Medellín_2024_en!$H$14:$S$16,3,FALSE) -> 200 | L56: N | M56: NA | N56: 4 | O56: =IF(OR(L56="NA",L56="E"),"NA",IF(L56="Y",COUNTIF($M$1:N55,N56)+1,COUNTIF($M$1:N55,N56)+1)) -> 2 | P56: TA4.6 | Q56: Unlocking Development Through Data: Strategic Pathways in Africa | R56: United Nations (UN); Office of the United Nations Secretary-General (EOSG); William and Flora Hewlett Foundation; Makerere University; United Nations Global Pulse (UNGP); United Nations Office for Project Services (UNOPS); United Nations Development Programme (UNDP) | S56: Desbloquear el desarrollo a través de los datos: Caminos estratégicos en África | T56: Naciones Unidas (ONU); Oficina del Secretario General de las Naciones Unidas (EOSG); Fundación William y Flora Hewlett; Universidad Makerere; Pulsación Global de las Naciones Unidas (UNGP); Oficina de Proyectos de las Naciones Unidas (UNOPS); Programa de las Naciones Unidas para el Desarrollo (PNUD) | U56: Day1_Time_Slot4_Parallel 06 | W56: 1:00
A57: 137 | B57: Day1_Time_Slot4_Parallel 07 | C57: Day1_Time_Slot4 | D57: 1 | E57: 4 | F57: Parallel 07 | G57: =VLOOKUP($D$1&D57,UNWDF_Medellín_2024_en!A:F,5,FALSE) -> 2024-11-13 | H57: =MID(VLOOKUP($D$1&D57&$E$1&E57,UNWDF_Medellín_2024_en!A:F,5,FALSE),1,SEARCH("(",VLOOKUP($D$1&D57&$E$1&E57,UNWDF_Medellín_2024_en!A:F,5,FALSE))-2) -> 14:15 - 15:15 | I57: 1:00 | J57: =HLOOKUP($F57,UNWDF_Medellín_2024_en!$H$14:$S$16,2,FALSE) -> Room 6 | K57: =HLOOKUP($F57,UNWDF_Medellín_2024_en!$H$14:$S$16,3,FALSE) -> 150 | L57: N | M57: NA | N57: _T | O57: =IF(OR(L57="NA",L57="E"),"NA",IF(L57="Y",COUNTIF($M$1:N56,N57)+1,COUNTIF($M$1:N56,N57)+1)) -> 3 | P57: TED.202 | Q57: Data Science for empowered and equitable decision making | R57: IDinsight; Danish Human Rights Institute; Departamento Administrativo Nacional de Estadística (DANE-Colombia) | S57: Ciencia de datos para una toma de decisiones empoderada y equitativa | T57: IDinsight; Instituto Danés de Derechos Humanos; Departamento Administrativo Nacional de Estadística (DANE-Colombia) | U57: Day1_Time_Slot4_Parallel 07 | W57: 1:00
A58: 138 | B58: Day1_Time_Slot4_Parallel 08 | C58: Day1_Time_Slot4 | D58: 1 | E58: 4 | F58: Parallel 08 | G58: =VLOOKUP($D$1&D58,UNWDF_Medellín_2024_en!A:F,5,FALSE) -> 2024-11-13 | H58: =MID(VLOOKUP($D$1&D58&$E$1&E58,UNWDF_Medellín_2024_en!A:F,5,FALSE),1,SEARCH("(",VLOOKUP($D$1&D58&$E$1&E58,UNWDF_Medellín_2024_en!A:F,5,FALSE))-2) -> 14:15 - 15:15 | I58: 1:00 | J58: =HLOOKUP($F58,UNWDF_Medellín_2024_en!$H$14:$S$16,2,FALSE) -> Room 7 | K58: =HLOOKUP($F58,UNWDF_Medellín_2024_en!$H$14:$S$16,3,FALSE) -> 150 | L58: N | M58: NA | N58: _T | O58: =IF(OR(L58="NA",L58="E"),"NA",IF(L58="Y",COUNTIF($M$1:N57,N58)+1,COUNTIF($M$1:N57,N58)+1)) -> 4 | P58: TED.212 | Q58: Colombia and the path towards the Universal Income Registry (RUI): business rules, methodology and forms of use / MPI+ Mapping and Monitoring the favelas of Brazil to fight poverty : A non-traditional index for informal settlements: / Shaping transparent, sustainable, and inclusive financial sectors / FISLAC: a data-driven ecosystem to help governments strengthen fiscal policy sustainability and decision-making | R58: Departamento Nacional de Planeación (DNP-Colombia); World Bank (WB); Inter-American Development Bank (IDB); United Nations World Food Programme (UNWFP); United Nations Children's Fund (UNICEF) / Data-Pop Alliance; Gerando Falcões; Massachusetts Institute of Technology (MIT); TETO TECHO; Humanitarian OpenStreetMap (HOTOSM) / Cambridge SupTech Lab; Cambridge Centre for Alternative Finance; University of Cambridge / Banco de la República, Colombia; Inter-American Development Bank (IDB) | S58: Colombia y el camino hacia el Registro Universal de Ingresos (RUI): reglas de juego, metodología y formas de uso / MPI+ Cartografía y seguimiento de las favelas de Brasil para luchar contra la pobreza : Un índice no tradicional para los asentamientos informales: / Conformación de sectores financieros transparentes, sostenibles e inclusivos / FISLAC: un ecosistema basado en datos para ayudar a los gobiernos a reforzar la sostenibilidad de la política fiscal y la toma de decisiones | T58: Departamento Nacional de Planeación (DNP), Colombia; Banco Mundial (BM); Banco Interamericano de Desarrollo (BID); Programa Mundial de Alimentos de las Naciones Unidas (UNWFP); Fondo de las Naciones Unidas para la Infancia (UNICEF) / Alianza Data-Pop; Gerando Falcões; Instituto Tecnológico de Massachusetts (MIT); TETO TECHO; Humanitarian OpenStreetMap (HOTOSM) / Cambridge SupTech Lab; Centro de Finanzas Alternativas de Cambridge; Universidad de Cambridge / Banco de la República, Colombia; Banco Interamericano de Desarrollo (BID) | U58: Day1_Time_Slot4_Parallel 08 | W58: 1:00
A59: 139 | B59: Day1_Time_Slot4_Parallel 09 | C59: Day1_Time_Slot4 | D59: 1 | E59: 4 | F59: Parallel 09 | G59: =VLOOKUP($D$1&D59,UNWDF_Medellín_2024_en!A:F,5,FALSE) -> 2024-11-13 | H59: =MID(VLOOKUP($D$1&D59&$E$1&E59,UNWDF_Medellín_2024_en!A:F,5,FALSE),1,SEARCH("(",VLOOKUP($D$1&D59&$E$1&E59,UNWDF_Medellín_2024_en!A:F,5,FALSE))-2) -> 14:15 - 15:15 | I59: 1:00 | J59: =HLOOKUP($F59,UNWDF_Medellín_2024_en!$H$14:$S$16,2,FALSE) -> Room 8 | K59: =HLOOKUP($F59,UNWDF_Medellín_2024_en!$H$14:$S$16,3,FALSE) -> 90 | L59: N | M59: NA | N59: NA | O59: =IF(OR(L59="NA",L59="E"),"NA",IF(L59="Y",COUNTIF($M$1:N58,N59)+1,COUNTIF($M$1:N58,N59)+1)) -> 95 | P59: Local_2 | Q59: Medellín: A data district for the well-being of the people | R59: Administrative Planning Department Medellín (DAP) | S59: Medellín un distrito de datos para el bienestar de la gente | T59: Departamento Administrativo de Planeación, Medellín (DAP) | U59: Day1_Time_Slot4_Parallel 09 | W59: 1:00
A60: 140 | B60: Day1_Time_Slot4_Parallel 10 | C60: Day1_Time_Slot4 | D60: 1 | E60: 4 | F60: Parallel 10 | G60: =VLOOKUP($D$1&D60,UNWDF_Medellín_2024_en!A:F,5,FALSE) -> 2024-11-13 | H60: =MID(VLOOKUP($D$1&D60&$E$1&E60,UNWDF_Medellín_2024_en!A:F,5,FALSE),1,SEARCH("(",VLOOKUP($D$1&D60&$E$1&E60,UNWDF_Medellín_2024_en!A:F,5,FALSE))-2) -> 14:15 - 15:15 | I60: 1:00 | J60: =HLOOKUP($F60,UNWDF_Medellín_2024_en!$H$14:$S$16,2,FALSE) -> Room 9 | K60: =HLOOKUP($F60,UNWDF_Medellín_2024_en!$H$14:$S$16,3,FALSE) -> 60 | L60: N | M60: NA | N60: _L | O60: =IF(OR(L60="NA",L60="E"),"NA",IF(L60="Y",COUNTIF($M$1:N59,N60)+1,COUNTIF($M$1:N59,N60)+1)) -> 2 | P60: LEARN.302 | Q60: Practical tools for statistical production with a gender perspective: contributions from Latin America and the Caribbean | R60: United Nations Economic Commission for Latin America and the Caribbean (UNECLAC / CEPAL); United Nations Entity for Gender Equality and the Empowerment of Women (UN Women); Oficina Nacional de Estadística (ONE-República Dominicana); Departamento Administrativo Nacional de Estadística (DANE-Colombia) | S60: Herramientas prácticas para la producción estadística con perspectiva de género: contribuciones de América Latina y el Caribe | T60: Comisión Económica para América Latina y el Caribe de las Naciones Unidas (CEPAL); Entidad de las Naciones Unidas para la Igualdad de Género y el Empoderamiento de la Mujer (ONU Mujeres); Oficina Nacional de Estadística (ONE-República Dominicana); Departamento Administrativo Nacional de Estadística (DANE-Colombia) | U60: Day1_Time_Slot4_Parallel 10 | W60: 1:00
A61: 141 | B61: Day1_Time_Slot4_Parallel 11 | C61: Day1_Time_Slot4 | D61: 1 | E61: 4 | F61: Parallel 11 | G61: =VLOOKUP($D$1&D61,UNWDF_Medellín_2024_en!A:F,5,FALSE) -> 2024-11-13 | H61: =MID(VLOOKUP($D$1&D61&$E$1&E61,UNWDF_Medellín_2024_en!A:F,5,FALSE),1,SEARCH("(",VLOOKUP($D$1&D61&$E$1&E61,UNWDF_Medellín_2024_en!A:F,5,FALSE))-2) -> 14:15 - 15:15 | I61: 1:00 | J61: =HLOOKUP($F61,UNWDF_Medellín_2024_en!$H$14:$S$16,2,FALSE) -> Room 10 | K61: =HLOOKUP($F61,UNWDF_Medellín_2024_en!$H$14:$S$16,3,FALSE) -> 60 | L61: N | M61: NA | N61: _D | O61: =IF(OR(L61="NA",L61="E"),"NA",IF(L61="Y",COUNTIF($M$1:N60,N61)+1,COUNTIF($M$1:N60,N61)+1)) -> 2 | P61: DEMO.502 | Q61: AI and Innovation for Data Dissemination / Presentation of a DataLab to boost the use of data science tools by tax admnistrations in Africa / Making sense of unstructured data: A case study on NLP methods for monitoring mainstreaming of groups in vulnerable situations in climate policy documents | R61: World Bank (WB) / Expertise France; Institut national de la statistique et des études économiques (INSEE-France); Cote d'Ivoire Customs Administration, Côte d’Ivoire / Deutsche Gesellschaft für Internationale Zusammenarbeit (GIZ); GFA Consulting Group GmbH | S61: IA e innovación para la difusión de datos / Presentación de un DataLab para impulsar el uso de herramientas de ciencia de datos por parte de las administraciones tributarias en África / Dar sentido a los datos no estructurados: Un estudio de caso sobre métodos de PNL para el seguimiento de la integración de los grupos en situación de vulnerabilidad en los documentos de política climática | T61: Banco Mundial (BM) / Expertise France; Instituto Nacional de Estadística y de Estudios Económicos (INSEE-Francia); Administración de Aduanas de Costa de Marfil, Côte d'Ivoire / Deutsche Gesellschaft für Internationale Zusammenarbeit (GIZ); GFA Consulting Group GmbH | U61: Day1_Time_Slot4_Parallel 11 | W61: 1:00
A62: 218 | B62: Day1_Time_Slot4_Parallel 12 | C62: Day1_Time_Slot4 | D62: 1 | E62: 4 | F62: Parallel 12 | G62: =VLOOKUP($D$1&D62,UNWDF_Medellín_2024_en!A:F,5,FALSE) -> 2024-11-13 | H62: =MID(VLOOKUP($D$1&D62&$E$1&E62,UNWDF_Medellín_2024_en!A:F,5,FALSE),1,SEARCH("(",VLOOKUP($D$1&D62&$E$1&E62,UNWDF_Medellín_2024_en!A:F,5,FALSE))-2) -> 14:15 - 15:15 | I62: 1:00 | J62: =HLOOKUP($F62,UNWDF_Medellín_2024_en!$H$14:$S$16,2,FALSE) -> NA | K62: =HLOOKUP($F62,UNWDF_Medellín_2024_en!$H$14:$S$16,3,FALSE) -> NA | L62: NA | M62: NA | N62: NA | O62: =IF(OR(L62="NA",L62="E"),"NA",IF(L62="Y",COUNTIF($M$1:N61,N62)+1,COUNTIF($M$1:N61,N62)+1)) -> NA | P62: =IF(N62="NA","NA","TA"&N62&"."&TEXT(O62,"0#")) -> NA | Q62: NA | R62: NA | S62: NA | T62: NA | U62: Day1_Time_Slot4_Parallel 12 | W62: 1:00
A63: 49 | B63: Day1_Time_Slot5_Parallel 01 | C63: Day1_Time_Slot5 | D63: 1 | E63: 5 | F63: Parallel 01 | G63: =VLOOKUP($D$1&D63,UNWDF_Medellín_2024_en!A:F,5,FALSE) -> 2024-11-13 | H63: =MID(VLOOKUP($D$1&D63&$E$1&E63,UNWDF_Medellín_2024_en!A:F,5,FALSE),1,SEARCH("(",VLOOKUP($D$1&D63&$E$1&E63,UNWDF_Medellín_2024_en!A:F,5,FALSE))-2) -> 15:30 - 16:30 | I63: 1:00 | J63: =HLOOKUP($F63,UNWDF_Medellín_2024_en!$H$14:$S$16,2,FALSE) -> Plenary Room | K63: =HLOOKUP($F63,UNWDF_Medellín_2024_en!$H$14:$S$16,3,FALSE) -> 3000 | L63: NA | M63: NA | N63: NA | O63: =IF(OR(L63="NA",L63="E"),"NA",IF(L63="Y",COUNTIF($M$1:N62,N63)+1,COUNTIF($M$1:N62,N63)+1)) -> NA | P63: NA | Q63: NA | R63: NA | S63: NA | T63: NA | U63: Day1_Time_Slot5_Parallel 01 | W63: 1:00
A64: 142 | B64: Day1_Time_Slot5_Parallel 02 | C64: Day1_Time_Slot5 | D64: 1 | E64: 5 | F64: Parallel 02 | G64: =VLOOKUP($D$1&D64,UNWDF_Medellín_2024_en!A:F,5,FALSE) -> 2024-11-13 | H64: =MID(VLOOKUP($D$1&D64&$E$1&E64,UNWDF_Medellín_2024_en!A:F,5,FALSE),1,SEARCH("(",VLOOKUP($D$1&D64&$E$1&E64,UNWDF_Medellín_2024_en!A:F,5,FALSE))-2) -> 15:30 - 16:30 | I64: 1:00 | J64: =HLOOKUP($F64,UNWDF_Medellín_2024_en!$H$14:$S$16,2,FALSE) -> Room 1 | K64: =HLOOKUP($F64,UNWDF_Medellín_2024_en!$H$14:$S$16,3,FALSE) -> 300 | L64: N | M64: NA | N64: 3 | O64: =IF(OR(L64="NA",L64="E"),"NA",IF(L64="Y",COUNTIF($M$1:N63,N64)+1,COUNTIF($M$1:N63,N64)+1)) -> 2 | P64: TA3.2 | Q64: New challenges for NSOs. The only way out is through! | R64: Swiss Federal Statistical Office (FSO); Statistics Poland; International Association for Official Statistics (IAOS); Polish Statistical Association | S64: Nuevos retos para los INE. ¡La única salida es a través de ellos! | T64: Oficina Federal de Estadística de Suiza (FSO); Estadísticas Polonia; Asociación Internacional para Estadísticas Oficiales (IAOS); Asociación Estadística Polaca | U64: Day1_Time_Slot5_Parallel 02 | W64: 1:00
A65: 143 | B65: Day1_Time_Slot5_Parallel 03 | C65: Day1_Time_Slot5 | D65: 1 | E65: 5 | F65: Parallel 03 | G65: =VLOOKUP($D$1&D65,UNWDF_Medellín_2024_en!A:F,5,FALSE) -> 2024-11-13 | H65: =MID(VLOOKUP($D$1&D65&$E$1&E65,UNWDF_Medellín_2024_en!A:F,5,FALSE),1,SEARCH("(",VLOOKUP($D$1&D65&$E$1&E65,UNWDF_Medellín_2024_en!A:F,5,FALSE))-2) -> 15:30 - 16:30 | I65: 1:00 | J65: =HLOOKUP($F65,UNWDF_Medellín_2024_en!$H$14:$S$16,2,FALSE) -> Room 2 | K65: =HLOOKUP($F65,UNWDF_Medellín_2024_en!$H$14:$S$16,3,FALSE) -> 200 | L65: N | M65: NA | N65: 1 | O65: =IF(OR(L65="NA",L65="E"),"NA",IF(L65="Y",COUNTIF($M$1:N64,N65)+1,COUNTIF($M$1:N64,N65)+1)) -> 6 | P65: TA1.6 | Q65: Citizen Data as a framework to nurturing the SDG Agenda: From Global frameworks to Local action | R65: United Nations Development Programme (UNDP), Global Policy Centre for Governance; Departamento Administrativo Nacional de Estadística (DANE-Colombia); United Nations Office on Drugs and Crime (UNODC); Ghana Statistical Service (GSS); Kenya National Commission on Human Rights; Observatorio para la Equidad de la Mujer (OEM); Red de Ciudades Cómo Vamos; Kenya National Bureau of Statistics (KNBS); Unidad para la Atención y Reparación Integral a las Víctimas (UARIV), Colombia | S65: Los Datos Ciudadanos como marco para nutrir la Agenda de los ODS: De los marcos globales a la acción local | T65: Programa de las Naciones Unidas para el Desarrollo (PNUD), Centro de Políticas Globales para la Gobernanza; Departamento Administrativo Nacional de Estadística (DANE-Colombia); Oficina de las Naciones Unidas contra la Droga y el Delito (UNODC); Servicio de Estadística de Ghana (GSS); Comisión Nacional de Derechos Humanos de Kenia; Observatorio para la Equidad de la Mujer (OEM); Red de Ciudades Cómo Vamos; Oficina Nacional de Estadísticas de Kenia (KNBS); Unidad para la Atención y Reparación Integral a las Víctimas (UARIV), Colombia | U65: Day1_Time_Slot5_Parallel 03 | W65: 1:00
A66: 144 | B66: =C66&"_"&F66 -> Day1_Time_Slot5_Parallel 04 | C66: =$D$1&D66&"_"&$E$1&E66 -> Day1_Time_Slot5 | D66: 1 | E66: 5 | F66: Parallel 04 | G66: =VLOOKUP($D$1&D66,UNWDF_Medellín_2024_en!A:F,5,FALSE) -> 2024-11-13 | H66: =MID(VLOOKUP($D$1&D66&$E$1&E66,UNWDF_Medellín_2024_en!A:F,5,FALSE),1,SEARCH("(",VLOOKUP($D$1&D66&$E$1&E66,UNWDF_Medellín_2024_en!A:F,5,FALSE))-2) -> 15:30 - 16:30 | I66: =TEXT(MID(H66,SEARCH("-",H66)+2,LEN(H66)-SEARCH("-",H66)-1)-MID(H66,1,SEARCH("-",H66)-1),"h:mm") -> 1:00 | J66: =HLOOKUP($F66,UNWDF_Medellín_2024_en!$H$14:$S$16,2,FALSE) -> Room 3 | K66: =HLOOKUP($F66,UNWDF_Medellín_2024_en!$H$14:$S$16,3,FALSE) -> 200 | L66: N | M66: NA | N66: 1 | O66: =IF(OR(L66="NA",L66="E"),"NA",IF(L66="Y",COUNTIF($M$1:N65,N66)+1,COUNTIF($M$1:N65,N66)+1)) -> 7 | P66: TA1.16 | Q66: Enhancing CRVS Systems: Intersectional Approaches and Resource Mobilization for Inclusive and Sustainable Development | R66: United Nations Population Fund (UNFPA); Open Data Watch (ODW); Development Initiatives (DI); United Nations Development Programme (UNDP); United Nations Statistics Division (UNSD-DESA); Global Health Advocacy Incubator; Department of National Registration, Maldives; HEPS-Uganda; Pan American Health Organization (PAHO) | S66: Mejora de los sistemas CRVS: Enfoques intersectoriales y movilización de recursos para un desarrollo inclusivo y sostenible | T66: Fondo de Población de las Naciones Unidas (UNFPA); Open Data Watch (ODW); Iniciativas de Desarrollo (DI); Programa de las Naciones Unidas para el Desarrollo (PNUD); División de Estadísticas de las Naciones Unidas (UNSD-DESA); Incubadora de Defensa de la Salud Global; Departamento de Registro Nacional, Maldivas; HEPS-Uganda; Organización Panamericana de la Salud (OPS) | U66: =B66 -> Day1_Time_Slot5_Parallel 04 | W66: 1:00
A67: 145 | B67: Day1_Time_Slot5_Parallel 05 | C67: Day1_Time_Slot5 | D67: 1 | E67: 5 | F67: Parallel 05 | G67: =VLOOKUP($D$1&D67,UNWDF_Medellín_2024_en!A:F,5,FALSE) -> 2024-11-13 | H67: =MID(VLOOKUP($D$1&D67&$E$1&E67,UNWDF_Medellín_2024_en!A:F,5,FALSE),1,SEARCH("(",VLOOKUP($D$1&D67&$E$1&E67,UNWDF_Medellín_2024_en!A:F,5,FALSE))-2) -> 15:30 - 16:30 | I67: 1:00 | J67: =HLOOKUP($F67,UNWDF_Medellín_2024_en!$H$14:$S$16,2,FALSE) -> Room 4 | K67: =HLOOKUP($F67,UNWDF_Medellín_2024_en!$H$14:$S$16,3,FALSE) -> 200 | L67: N | M67: NA | N67: 2 | O67: =IF(OR(L67="NA",L67="E"),"NA",IF(L67="Y",COUNTIF($M$1:N66,N67)+1,COUNTIF($M$1:N66,N67)+1)) -> 3 | P67: TA2.12 | Q67: Geospatial analysis for public policy decisions: a path of action to accelerate gender equality | R67: United Nations Economic Commission for Latin America and the Caribbean (UNECLAC / CEPAL); United Nations Entity for Gender Equality and the Empowerment of Women (UN Women); Departamento Administrativo Nacional de Estadística (DANE-Colombia); Oficina Nacional de Estadística (ONE-República Dominicana) | S67: Análisis geoespacial para las decisiones de política pública: una vía de actuación para acelerar la igualdad de género | T67: Comisión Económica para América Latina y el Caribe de las Naciones Unidas (CEPAL); Entidad de las Naciones Unidas para la Igualdad de Género y el Empoderamiento de la Mujer (ONU Mujeres); Departamento Administrativo Nacional de Estadística (DANE-Colombia); Oficina Nacional de Estadística (ONE-República Dominicana) | U67: Day1_Time_Slot5_Parallel 05 | W67: =I67 -> 1:00
A68: 146 | B68: Day1_Time_Slot5_Parallel 06 | C68: Day1_Time_Slot5 | D68: 1 | E68: 5 | F68: Parallel 06 | G68: =VLOOKUP($D$1&D68,UNWDF_Medellín_2024_en!A:F,5,FALSE) -> 2024-11-13 | H68: =MID(VLOOKUP($D$1&D68&$E$1&E68,UNWDF_Medellín_2024_en!A:F,5,FALSE),1,SEARCH("(",VLOOKUP($D$1&D68&$E$1&E68,UNWDF_Medellín_2024_en!A:F,5,FALSE))-2) -> 15:30 - 16:30 | I68: 1:00 | J68: =HLOOKUP($F68,UNWDF_Medellín_2024_en!$H$14:$S$16,2,FALSE) -> Room 5 | K68: =HLOOKUP($F68,UNWDF_Medellín_2024_en!$H$14:$S$16,3,FALSE) -> 200 | L68: N | M68: NA | N68: 4 | O68: =IF(OR(L68="NA",L68="E"),"NA",IF(L68="Y",COUNTIF($M$1:N67,N68)+1,COUNTIF($M$1:N67,N68)+1)) -> 3 | P68: TA4.10 | Q68: Harnessing Data Exchange Platforms to accelerate SDGs & high-value data access | R68: CivicDataLab | S68: Aprovechar las plataformas de intercambio de datos para acelerar los ODS y el acceso a datos de alto valor | T68: CivicDataLab | U68: Day1_Time_Slot5_Parallel 06 | W68: 1:00
A69: 147 | B69: Day1_Time_Slot5_Parallel 07 | C69: Day1_Time_Slot5 | D69: 1 | E69: 5 | F69: Parallel 07 | G69: =VLOOKUP($D$1&D69,UNWDF_Medellín_2024_en!A:F,5,FALSE) -> 2024-11-13 | H69: =MID(VLOOKUP($D$1&D69&$E$1&E69,UNWDF_Medellín_2024_en!A:F,5,FALSE),1,SEARCH("(",VLOOKUP($D$1&D69&$E$1&E69,UNWDF_Medellín_2024_en!A:F,5,FALSE))-2) -> 15:30 - 16:30 | I69: 1:00 | J69: =HLOOKUP($F69,UNWDF_Medellín_2024_en!$H$14:$S$16,2,FALSE) -> Room 6 | K69: =HLOOKUP($F69,UNWDF_Medellín_2024_en!$H$14:$S$16,3,FALSE) -> 150 | L69: N | M69: NA | N69: _T | O69: =IF(OR(L69="NA",L69="E"),"NA",IF(L69="Y",COUNTIF($M$1:N68,N69)+1,COUNTIF($M$1:N68,N69)+1)) -> 5 | P69: TED.203 | Q69: Reaching All, Empowering Action: Decentralized Data Governance, Geographic Data and Hidden Populations. | R69: Equilibrium Social Development Consulting (SDC); Norwegian Refugee Council (NRC); Ministry of Health, Uganda | S69: Llegar a todos, potenciar la acción: Gobernanza descentralizada de datos, Datos geográficos y poblaciones ocultas. | T69: Equilibrium Social Development Consulting (SDC); Consejo Noruego para Refugiados (NRC); Ministerio de Salud, Uganda | U69: Day1_Time_Slot5_Parallel 07 | W69: 1:00
A70: 148 | B70: Day1_Time_Slot5_Parallel 08 | C70: Day1_Time_Slot5 | D70: 1 | E70: 5 | F70: Parallel 08 | G70: =VLOOKUP($D$1&D70,UNWDF_Medellín_2024_en!A:F,5,FALSE) -> 2024-11-13 | H70: =MID(VLOOKUP($D$1&D70&$E$1&E70,UNWDF_Medellín_2024_en!A:F,5,FALSE),1,SEARCH("(",VLOOKUP($D$1&D70&$E$1&E70,UNWDF_Medellín_2024_en!A:F,5,FALSE))-2) -> 15:30 - 16:30 | I70: 1:00 | J70: =HLOOKUP($F70,UNWDF_Medellín_2024_en!$H$14:$S$16,2,FALSE) -> Room 7 | K70: =HLOOKUP($F70,UNWDF_Medellín_2024_en!$H$14:$S$16,3,FALSE) -> 150 | L70: N | M70: NA | N70: _T | O70: =IF(OR(L70="NA",L70="E"),"NA",IF(L70="Y",COUNTIF($M$1:N69,N70)+1,COUNTIF($M$1:N69,N70)+1)) -> 6 | P70: TED.207 | Q70: No One Left Behind: Data Invisibility, Citizen-Generated Data, and Digital Rights for Gender-Diverse Communities / Safecity - crowdmap for sexual and gender based violence / The invisible link between maternal mortality and early marriage in the indigenous population / Inside the black box: the questions you forgot to ask about gender data use. | R70: School of Data Science, University of Virginia; Center for Democracy and Technology; Federal University of Rio de Janeiro / Red Dot Foundation / United Nations Population Fund (UNFPA); Université de Montréal / Partnership in Statistics for Development in the 21st Century (PARIS21) | S70: Que nadie se quede atrás: invisibilidad de los datos, datos generados por los ciudadanos y derechos digitales para las comunidades con diversidad de género / Safecity - crowdmap para la violencia sexual y de género / El vínculo invisible entre mortalidad materna y matrimonio temprano en la población indígena / Dentro de la caja negra: las preguntas que olvidaste hacer sobre el uso de datos de género. | T70: Escuela de Ciencia de Datos, Universidad de Virginia; Centro para la Democracia y la Tecnología; Universidad Federal de Río de Janeiro / Fundación Red Dot / Fondo de Población de las Naciones Unidas (UNFPA); Université de Montréal / Asociación en Estadísticas para el Desarrollo en el Siglo XXI (PARIS21) | U70: Day1_Time_Slot5_Parallel 08 | W70: 1:00
A71: 149 | B71: Day1_Time_Slot5_Parallel 09 | C71: Day1_Time_Slot5 | D71: 1 | E71: 5 | F71: Parallel 09 | G71: =VLOOKUP($D$1&D71,UNWDF_Medellín_2024_en!A:F,5,FALSE) -> 2024-11-13 | H71: =MID(VLOOKUP($D$1&D71&$E$1&E71,UNWDF_Medellín_2024_en!A:F,5,FALSE),1,SEARCH("(",VLOOKUP($D$1&D71&$E$1&E71,UNWDF_Medellín_2024_en!A:F,5,FALSE))-2) -> 15:30 - 16:30 | I71: 1:00 | J71: =HLOOKUP($F71,UNWDF_Medellín_2024_en!$H$14:$S$16,2,FALSE) -> Room 8 | K71: =HLOOKUP($F71,UNWDF_Medellín_2024_en!$H$14:$S$16,3,FALSE) -> 90 | L71: N | M71: NA | N71: NA | O71: =IF(OR(L71="NA",L71="E"),"NA",IF(L71="Y",COUNTIF($M$1:N70,N71)+1,COUNTIF($M$1:N70,N71)+1)) -> 110 | P71: Local_3 | Q71: From data to policy action: How national and global actors can tackle poverty in all its forms using a Multidimensional Poverty Index (MPI) | R71: Departamento Administrativo Nacional de Estadística (DANE-Colombia) | S71: Reservado [Evento local] | T71: Departamento Administrativo Nacional de Estadística (DANE-Colombia) | U71: Day1_Time_Slot5_Parallel 09 | V71: Update (es): From Data to Policy Action: How National and Global Actors Can Tackle Poverty in All Its Forms Using a Multidimensional Poverty Index (MPI) | W71: 1:00
A72: 150 | B72: Day1_Time_Slot5_Parallel 10 | C72: Day1_Time_Slot5 | D72: 1 | E72: 5 | F72: Parallel 10 | G72: =VLOOKUP($D$1&D72,UNWDF_Medellín_2024_en!A:F,5,FALSE) -> 2024-11-13 | H72: =MID(VLOOKUP($D$1&D72&$E$1&E72,UNWDF_Medellín_2024_en!A:F,5,FALSE),1,SEARCH("(",VLOOKUP($D$1&D72&$E$1&E72,UNWDF_Medellín_2024_en!A:F,5,FALSE))-2) -> 15:30 - 16:30 | I72: 1:00 | J72: =HLOOKUP($F72,UNWDF_Medellín_2024_en!$H$14:$S$16,2,FALSE) -> Room 9 | K72: =HLOOKUP($F72,UNWDF_Medellín_2024_en!$H$14:$S$16,3,FALSE) -> 60 | L72: N | M72: NA | N72: _L | O72: =IF(OR(L72="NA",L72="E"),"NA",IF(L72="Y",COUNTIF($M$1:N71,N72)+1,COUNTIF($M$1:N71,N72)+1)) -> 3 | P72: LEARN.303 | Q72: Peer to Peer exchange: Open Data frameworks for better SDG reporting | R72: Open Data Charter (ODC); Open Data Watch (ODW) | S72: Intercambio entre iguales: Marcos de datos abiertos para informar mejor sobre los ODS | T72: Open Data Charter (ODC); Open Data Watch (ODW) | U72: Day1_Time_Slot5_Parallel 10 | W72: 1:00
A73: 151 | B73: Day1_Time_Slot5_Parallel 11 | C73: Day1_Time_Slot5 | D73: 1 | E73: 5 | F73: Parallel 11 | G73: =VLOOKUP($D$1&D73,UNWDF_Medellín_2024_en!A:F,5,FALSE) -> 2024-11-13 | H73: =MID(VLOOKUP($D$1&D73&$E$1&E73,UNWDF_Medellín_2024_en!A:F,5,FALSE),1,SEARCH("(",VLOOKUP($D$1&D73&$E$1&E73,UNWDF_Medellín_2024_en!A:F,5,FALSE))-2) -> 15:30 - 16:30 | I73: 1:00 | J73: =HLOOKUP($F73,UNWDF_Medellín_2024_en!$H$14:$S$16,2,FALSE) -> Room 10 | K73: =HLOOKUP($F73,UNWDF_Medellín_2024_en!$H$14:$S$16,3,FALSE) -> 60 | L73: N | M73: NA | N73: _D | O73: =IF(OR(L73="NA",L73="E"),"NA",IF(L73="Y",COUNTIF($M$1:N72,N73)+1,COUNTIF($M$1:N72,N73)+1)) -> 3 | P73: DEMO.503 | Q73: Empowering Sustainable Choices: Visualizing Nutrition for a Healthier Future - Presented by the Healthy Diets Monitoring Initiative / Silver Threads: Weaving Data into Older People Narratives / Enhancing Epidemiological Surveillance of Vaccine-Preventable Diseases with VPD-SMART: A DHIS2-Based Information System | R73: United Nations Children's Fund (UNICEF); World Health Organization (WHO); Food and Agriculture Organization of the United Nations (FAO) / Fundación Saldarriaga Concha; Datasketch / Pan American Health Organization (PAHO); Ministry of Health, Paraguay; HISP Colombia; University of Oslo | S73: Decisiones Sostenibles Empoderadoras: Visualizar la nutrición para un futuro más sano - Presentado por la Iniciativa de Seguimiento de las Dietas Saludables / Hilos de plata: Cómo incorporar datos a las narrativas de las personas mayores / Mejora de la vigilancia epidemiológica de las enfermedades prevenibles mediante vacunación con VPD-SMART: un sistema de información basado en DHIS2. | T73: Fondo de las Naciones Unidas para la Infancia (UNICEF); Organización Mundial de la Salud (OMS); Organización de las Naciones Unidas para la Alimentación y la Agricultura (FAO) / Fundación Saldarriaga Concha; Datasketch / Organización Panamericana de la Salud (OPS); Ministerio de Salud, Paraguay; HISP Colombia; Universidad de Oslo | U73: Day1_Time_Slot5_Parallel 11 | W73: 1:00
A74: 152 | B74: Day1_Time_Slot5_Parallel 12 | C74: Day1_Time_Slot5 | D74: 1 | E74: 5 | F74: Parallel 12 | G74: =VLOOKUP($D$1&D74,UNWDF_Medellín_2024_en!A:F,5,FALSE) -> 2024-11-13 | H74: =MID(VLOOKUP($D$1&D74&$E$1&E74,UNWDF_Medellín_2024_en!A:F,5,FALSE),1,SEARCH("(",VLOOKUP($D$1&D74&$E$1&E74,UNWDF_Medellín_2024_en!A:F,5,FALSE))-2) -> 15:30 - 16:30 | I74: 1:00 | J74: =HLOOKUP($F74,UNWDF_Medellín_2024_en!$H$14:$S$16,2,FALSE) -> NA | K74: =HLOOKUP($F74,UNWDF_Medellín_2024_en!$H$14:$S$16,3,FALSE) -> NA | L74: NA | M74: NA | N74: NA | O74: =IF(OR(L74="NA",L74="E"),"NA",IF(L74="Y",COUNTIF($M$1:N73,N74)+1,COUNTIF($M$1:N73,N74)+1)) -> NA | P74: =IF(N74="NA","NA","TA"&N74&"."&TEXT(O74,"0#")) -> NA | Q74: NA | R74: NA | S74: NA | T74: NA | U74: Day1_Time_Slot5_Parallel 12 | W74: 1:00
A75: 5 | B75: Day1_Time_Slot6_Parallel 01 | C75: Day1_Time_Slot6 | D75: 1 | E75: 6 | F75: Parallel 01 | G75: =VLOOKUP($D$1&D75,UNWDF_Medellín_2024_en!A:F,5,FALSE) -> 2024-11-13 | H75: =MID(VLOOKUP($D$1&D75&$E$1&E75,UNWDF_Medellín_2024_en!A:F,5,FALSE),1,SEARCH("(",VLOOKUP($D$1&D75&$E$1&E75,UNWDF_Medellín_2024_en!A:F,5,FALSE))-2) -> 16:45 - 18:00 | I75: 1:15 | J75: =HLOOKUP($F75,UNWDF_Medellín_2024_en!$H$14:$S$16,2,FALSE) -> Plenary Room | K75: =HLOOKUP($F75,UNWDF_Medellín_2024_en!$H$14:$S$16,3,FALSE) -> 3000 | L75: Y | M75: NA | N75: 2 | O75: =IF(OR(L75="NA",L75="E"),"NA",IF(L75="Y",COUNTIF($M$1:N74,N75)+1,COUNTIF($M$1:N74,N75)+1)) -> 4 | P75: TA2.1 | Q75: Maximizing the use and value of data for better decision making | R75: UN World Data Forum Programme Committee (UNWDF PC) | S75: Maximizar el uso y el valor de los datos para tomar mejores decisiones | T75: Comité del Programa del Foro Mundial de Datos de la ONU (UNWDF PC) | U75: Day1_Time_Slot6_Parallel 01 | W75: 1:15
A76: 50 | B76: Day1_Time_Slot6_Parallel 02 | C76: Day1_Time_Slot6 | D76: 1 | E76: 6 | F76: Parallel 02 | G76: =VLOOKUP($D$1&D76,UNWDF_Medellín_2024_en!A:F,5,FALSE) -> 2024-11-13 | H76: =MID(VLOOKUP($D$1&D76&$E$1&E76,UNWDF_Medellín_2024_en!A:F,5,FALSE),1,SEARCH("(",VLOOKUP($D$1&D76&$E$1&E76,UNWDF_Medellín_2024_en!A:F,5,FALSE))-2) -> 16:45 - 18:00 | I76: 1:15 | J76: =HLOOKUP($F76,UNWDF_Medellín_2024_en!$H$14:$S$16,2,FALSE) -> Room 1 | K76: =HLOOKUP($F76,UNWDF_Medellín_2024_en!$H$14:$S$16,3,FALSE) -> 300 | L76: NA | M76: NA | N76: NA | O76: =IF(OR(L76="NA",L76="E"),"NA",IF(L76="Y",COUNTIF($M$1:N75,N76)+1,COUNTIF($M$1:N75,N76)+1)) -> NA | P76: =IF(N76="NA","NA","TA"&N76&"."&TEXT(O76,"0#")) -> NA | Q76: NA | R76: NA | S76: NA | T76: NA | U76: Day1_Time_Slot6_Parallel 02 | W76: 1:15
A77: 51 | B77: Day1_Time_Slot6_Parallel 03 | C77: Day1_Time_Slot6 | D77: 1 | E77: 6 | F77: Parallel 03 | G77: =VLOOKUP($D$1&D77,UNWDF_Medellín_2024_en!A:F,5,FALSE) -> 2024-11-13 | H77: =MID(VLOOKUP($D$1&D77&$E$1&E77,UNWDF_Medellín_2024_en!A:F,5,FALSE),1,SEARCH("(",VLOOKUP($D$1&D77&$E$1&E77,UNWDF_Medellín_2024_en!A:F,5,FALSE))-2) -> 16:45 - 18:00 | I77: 1:15 | J77: =HLOOKUP($F77,UNWDF_Medellín_2024_en!$H$14:$S$16,2,FALSE) -> Room 2 | K77: =HLOOKUP($F77,UNWDF_Medellín_2024_en!$H$14:$S$16,3,FALSE) -> 200 | L77: NA | M77: NA | N77: NA | O77: =IF(OR(L77="NA",L77="E"),"NA",IF(L77="Y",COUNTIF($M$1:N76,N77)+1,COUNTIF($M$1:N76,N77)+1)) -> NA | P77: NA | Q77: NA | R77: NA | S77: NA | T77: NA | U77: Day1_Time_Slot6_Parallel 03 | W77: 1:15
A78: 52 | B78: Day1_Time_Slot6_Parallel 04 | C78: Day1_Time_Slot6 | D78: 1 | E78: 6 | F78: Parallel 04 | G78: =VLOOKUP($D$1&D78,UNWDF_Medellín_2024_en!A:F,5,FALSE) -> 2024-11-13 | H78: =MID(VLOOKUP($D$1&D78&$E$1&E78,UNWDF_Medellín_2024_en!A:F,5,FALSE),1,SEARCH("(",VLOOKUP($D$1&D78&$E$1&E78,UNWDF_Medellín_2024_en!A:F,5,FALSE))-2) -> 16:45 - 18:00 | I78: 1:15 | J78: =HLOOKUP($F78,UNWDF_Medellín_2024_en!$H$14:$S$16,2,FALSE) -> Room 3 | K78: =HLOOKUP($F78,UNWDF_Medellín_2024_en!$H$14:$S$16,3,FALSE) -> 200 | L78: NA | M78: NA | N78: NA | O78: =IF(OR(L78="NA",L78="E"),"NA",IF(L78="Y",COUNTIF($M$1:N77,N78)+1,COUNTIF($M$1:N77,N78)+1)) -> NA | P78: NA | Q78: NA | R78: NA | S78: NA | T78: NA | U78: Day1_Time_Slot6_Parallel 04 | W78: 1:15
A79: 53 | B79: Day1_Time_Slot6_Parallel 05 | C79: Day1_Time_Slot6 | D79: 1 | E79: 6 | F79: Parallel 05 | G79: =VLOOKUP($D$1&D79,UNWDF_Medellín_2024_en!A:F,5,FALSE) -> 2024-11-13 | H79: =MID(VLOOKUP($D$1&D79&$E$1&E79,UNWDF_Medellín_2024_en!A:F,5,FALSE),1,SEARCH("(",VLOOKUP($D$1&D79&$E$1&E79,UNWDF_Medellín_2024_en!A:F,5,FALSE))-2) -> 16:45 - 18:00 | I79: 1:15 | J79: =HLOOKUP($F79,UNWDF_Medellín_2024_en!$H$14:$S$16,2,FALSE) -> Room 4 | K79: =HLOOKUP($F79,UNWDF_Medellín_2024_en!$H$14:$S$16,3,FALSE) -> 200 | L79: NA | M79: NA | N79: NA | O79: =IF(OR(L79="NA",L79="E"),"NA",IF(L79="Y",COUNTIF($M$1:N78,N79)+1,COUNTIF($M$1:N78,N79)+1)) -> NA | P79: NA | Q79: NA | R79: NA | S79: NA | T79: NA | U79: Day1_Time_Slot6_Parallel 05 | W79: 1:15
A80: 54 | B80: Day1_Time_Slot6_Parallel 06 | C80: Day1_Time_Slot6 | D80: 1 | E80: 6 | F80: Parallel 06 | G80: =VLOOKUP($D$1&D80,UNWDF_Medellín_2024_en!A:F,5,FALSE) -> 2024-11-13 | H80: =MID(VLOOKUP($D$1&D80&$E$1&E80,UNWDF_Medellín_2024_en!A:F,5,FALSE),1,SEARCH("(",VLOOKUP($D$1&D80&$E$1&E80,UNWDF_Medellín_2024_en!A:F,5,FALSE))-2) -> 16:45 - 18:00 | I80: 1:15 | J80: =HLOOKUP($F80,UNWDF_Medellín_2024_en!$H$14:$S$16,2,FALSE) -> Room 5 | K80: =HLOOKUP($F80,UNWDF_Medellín_2024_en!$H$14:$S$16,3,FALSE) -> 200 | L80: NA | M80: NA | N80: NA | O80: =IF(OR(L80="NA",L80="E"),"NA",IF(L80="Y",COUNTIF($M$1:N79,N80)+1,COUNTIF($M$1:N79,N80)+1)) -> NA | P80: NA | Q80: NA | R80: NA | S80: NA | T80: NA | U80: Day1_Time_Slot6_Parallel 06 | W80: 1:15
A81: 55 | B81: Day1_Time_Slot6_Parallel 07 | C81: Day1_Time_Slot6 | D81: 1 | E81: 6 | F81: Parallel 07 | G81: =VLOOKUP($D$1&D81,UNWDF_Medellín_2024_en!A:F,5,FALSE) -> 2024-11-13 | H81: =MID(VLOOKUP($D$1&D81&$E$1&E81,UNWDF_Medellín_2024_en!A:F,5,FALSE),1,SEARCH("(",VLOOKUP($D$1&D81&$E$1&E81,UNWDF_Medellín_2024_en!A:F,5,FALSE))-2) -> 16:45 - 18:00 | I81: 1:15 | J81: =HLOOKUP($F81,UNWDF_Medellín_2024_en!$H$14:$S$16,2,FALSE) -> Room 6 | K81: =HLOOKUP($F81,UNWDF_Medellín_2024_en!$H$14:$S$16,3,FALSE) -> 150 | L81: NA | M81: NA | N81: NA | O81: =IF(OR(L81="NA",L81="E"),"NA",IF(L81="Y",COUNTIF($M$1:N80,N81)+1,COUNTIF($M$1:N80,N81)+1)) -> NA | P81: NA | Q81: NA | R81: NA | S81: NA | T81: NA | U81: Day1_Time_Slot6_Parallel 07 | W81: 1:15
A82: 56 | B82: Day1_Time_Slot6_Parallel 08 | C82: Day1_Time_Slot6 | D82: 1 | E82: 6 | F82: Parallel 08 | G82: =VLOOKUP($D$1&D82,UNWDF_Medellín_2024_en!A:F,5,FALSE) -> 2024-11-13 | H82: =MID(VLOOKUP($D$1&D82&$E$1&E82,UNWDF_Medellín_2024_en!A:F,5,FALSE),1,SEARCH("(",VLOOKUP($D$1&D82&$E$1&E82,UNWDF_Medellín_2024_en!A:F,5,FALSE))-2) -> 16:45 - 18:00 | I82: 1:15 | J82: =HLOOKUP($F82,UNWDF_Medellín_2024_en!$H$14:$S$16,2,FALSE) -> Room 7 | K82: =HLOOKUP($F82,UNWDF_Medellín_2024_en!$H$14:$S$16,3,FALSE) -> 150 | L82: NA | M82: NA | N82: NA | O82: =IF(OR(L82="NA",L82="E"),"NA",IF(L82="Y",COUNTIF($M$1:N81,N82)+1,COUNTIF($M$1:N81,N82)+1)) -> NA | P82: NA | Q82: NA | R82: NA | S82: NA | T82: NA | U82: Day1_Time_Slot6_Parallel 08 | W82: 1:15
A83: 57 | B83: Day1_Time_Slot6_Parallel 09 | C83: Day1_Time_Slot6 | D83: 1 | E83: 6 | F83: Parallel 09 | G83: =VLOOKUP($D$1&D83,UNWDF_Medellín_2024_en!A:F,5,FALSE) -> 2024-11-13 | H83: =MID(VLOOKUP($D$1&D83&$E$1&E83,UNWDF_Medellín_2024_en!A:F,5,FALSE),1,SEARCH("(",VLOOKUP($D$1&D83&$E$1&E83,UNWDF_Medellín_2024_en!A:F,5,FALSE))-2) -> 16:45 - 18:00 | I83: 1:15 | J83: =HLOOKUP($F83,UNWDF_Medellín_2024_en!$H$14:$S$16,2,FALSE) -> Room 8 | K83: =HLOOKUP($F83,UNWDF_Medellín_2024_en!$H$14:$S$16,3,FALSE) -> 90 | L83: NA | M83: NA | N83: NA | O83: =IF(OR(L83="NA",L83="E"),"NA",IF(L83="Y",COUNTIF($M$1:N82,N83)+1,COUNTIF($M$1:N82,N83)+1)) -> NA | P83: NA | Q83: NA | R83: NA | S83: NA | T83: NA | U83: Day1_Time_Slot6_Parallel 09 | W83: 1:15
A84: 58 | B84: Day1_Time_Slot6_Parallel 10 | C84: Day1_Time_Slot6 | D84: 1 | E84: 6 | F84: Parallel 10 | G84: =VLOOKUP($D$1&D84,UNWDF_Medellín_2024_en!A:F,5,FALSE) -> 2024-11-13 | H84: =MID(VLOOKUP($D$1&D84&$E$1&E84,UNWDF_Medellín_2024_en!A:F,5,FALSE),1,SEARCH("(",VLOOKUP($D$1&D84&$E$1&E84,UNWDF_Medellín_2024_en!A:F,5,FALSE))-2) -> 16:45 - 18:00 | I84: 1:15 | J84: =HLOOKUP($F84,UNWDF_Medellín_2024_en!$H$14:$S$16,2,FALSE) -> Room 9 | K84: =HLOOKUP($F84,UNWDF_Medellín_2024_en!$H$14:$S$16,3,FALSE) -> 60 | L84: NA | M84: NA | N84: NA | O84: =IF(OR(L84="NA",L84="E"),"NA",IF(L84="Y",COUNTIF($M$1:N83,N84)+1,COUNTIF($M$1:N83,N84)+1)) -> NA | P84: NA | Q84: NA | R84: NA | S84: NA | T84: NA | U84: Day1_Time_Slot6_Parallel 10 | W84: 1:15
A85: 59 | B85: Day1_Time_Slot6_Parallel 11 | C85: Day1_Time_Slot6 | D85: 1 | E85: 6 | F85: Parallel 11 | G85: =VLOOKUP($D$1&D85,UNWDF_Medellín_2024_en!A:F,5,FALSE) -> 2024-11-13 | H85: =MID(VLOOKUP($D$1&D85&$E$1&E85,UNWDF_Medellín_2024_en!A:F,5,FALSE),1,SEARCH("(",VLOOKUP($D$1&D85&$E$1&E85,UNWDF_Medellín_2024_en!A:F,5,FALSE))-2) -> 16:45 - 18:00 | I85: 1:15 | J85: =HLOOKUP($F85,UNWDF_Medellín_2024_en!$H$14:$S$16,2,FALSE) -> Room 10 | K85: =HLOOKUP($F85,UNWDF_Medellín_2024_en!$H$14:$S$16,3,FALSE) -> 60 | L85: NA | M85: NA | N85: NA | O85: =IF(OR(L85="NA",L85="E"),"NA",IF(L85="Y",COUNTIF($M$1:N84,N85)+1,COUNTIF($M$1:N84,N85)+1)) -> NA | P85: NA | Q85: NA | R85: NA | S85: NA | T85: NA | U85: Day1_Time_Slot6_Parallel 11 | W85: 1:15
A86: 60 | B86: Day1_Time_Slot6_Parallel 12 | C86: Day1_Time_Slot6 | D86: 1 | E86: 6 | F86: Parallel 12 | G86: =VLOOKUP($D$1&D86,UNWDF_Medellín_2024_en!A:F,5,FALSE) -> 2024-11-13 | H86: =MID(VLOOKUP($D$1&D86&$E$1&E86,UNWDF_Medellín_2024_en!A:F,5,FALSE),1,SEARCH("(",VLOOKUP($D$1&D86&$E$1&E86,UNWDF_Medellín_2024_en!A:F,5,FALSE))-2) -> 16:45 - 18:00 | I86: 1:15 | J86: =HLOOKUP($F86,UNWDF_Medellín_2024_en!$H$14:$S$16,2,FALSE) -> NA | K86: =HLOOKUP($F86,UNWDF_Medellín_2024_en!$H$14:$S$16,3,FALSE) -> NA | L86: NA | M86: NA | N86: NA | O86: =IF(OR(L86="NA",L86="E"),"NA",IF(L86="Y",COUNTIF($M$1:N85,N86)+1,COUNTIF($M$1:N85,N86)+1)) -> NA | P86: NA | Q86: NA | R86: NA | S86: NA | T86: NA | U86: Day1_Time_Slot6_Parallel 12 | W86: 1:15
A87: 6 | B87: Day1_Time_Slot7_Parallel 01 | C87: Day1_Time_Slot7 | D87: 1 | E87: 7 | F87: Parallel 01 | G87: =VLOOKUP($D$1&D87,UNWDF_Medellín_2024_en!A:F,5,FALSE) -> 2024-11-13 | H87: =MID(VLOOKUP($D$1&D87&$E$1&E87,UNWDF_Medellín_2024_en!A:F,5,FALSE),1,SEARCH("(",VLOOKUP($D$1&D87&$E$1&E87,UNWDF_Medellín_2024_en!A:F,5,FALSE))-2) -> 18:30 - 19:15 | I87: 0:45 | J87: =HLOOKUP($F87,UNWDF_Medellín_2024_en!$H$14:$S$16,2,FALSE) -> Plenary Room | K87: =HLOOKUP($F87,UNWDF_Medellín_2024_en!$H$14:$S$16,3,FALSE) -> 3000 | L87: NA | M87: NA | N87: _S | O87: =IF(OR(L87="NA",L87="E"),"NA",IF(L87="Y",COUNTIF($M$1:N86,N87)+1,COUNTIF($M$1:N86,N87)+1)) -> NA | P87: TA_S.NA | Q87: NA | R87: NA | S87: NA | T87: NA | U87: Day1_Time_Slot7_Parallel 01 | W87: 0:45
A88: 7 | B88: Day2_Time_Slot1_Parallel 01 | C88: Day2_Time_Slot1 | D88: 2 | E88: 1 | F88: Parallel 01 | G88: =VLOOKUP($D$1&D88,UNWDF_Medellín_2024_en!A:F,5,FALSE) -> 2024-11-14 | H88: =MID(VLOOKUP($D$1&D88&$E$1&E88,UNWDF_Medellín_2024_en!A:F,5,FALSE),1,SEARCH("(",VLOOKUP($D$1&D88&$E$1&E88,UNWDF_Medellín_2024_en!A:F,5,FALSE))-2) -> 09:00 - 10:15 | I88: 1:15 | J88: =HLOOKUP($F88,UNWDF_Medellín_2024_en!$H$14:$S$16,2,FALSE) -> Plenary Room | K88: =HLOOKUP($F88,UNWDF_Medellín_2024_en!$H$14:$S$16,3,FALSE) -> 3000 | L88: Y | M88: NA | N88: 3 | O88: =IF(OR(L88="NA",L88="E"),"NA",IF(L88="Y",COUNTIF($M$1:N87,N88)+1,COUNTIF($M$1:N87,N88)+1)) -> 3 | P88: TA3.1 | Q88: Building trust, protection and ethics in data | R88: UN World Data Forum Programme Committee (UNWDF PC) | S88: Fomento de la confianza, la protección y la ética en los datos | T88: Comité del Programa del Foro Mundial de Datos de la ONU (UNWDF PC) | U88: Day2_Time_Slot1_Parallel 01 | W88: 1:15
A89: 61 | B89: Day2_Time_Slot1_Parallel 02 | C89: Day2_Time_Slot1 | D89: 2 | E89: 1 | F89: Parallel 02 | G89: =VLOOKUP($D$1&D89,UNWDF_Medellín_2024_en!A:F,5,FALSE) -> 2024-11-14 | H89: =MID(VLOOKUP($D$1&D89&$E$1&E89,UNWDF_Medellín_2024_en!A:F,5,FALSE),1,SEARCH("(",VLOOKUP($D$1&D89&$E$1&E89,UNWDF_Medellín_2024_en!A:F,5,FALSE))-2) -> 09:00 - 10:15 | I89: 1:15 | J89: =HLOOKUP($F89,UNWDF_Medellín_2024_en!$H$14:$S$16,2,FALSE) -> Room 1 | K89: =HLOOKUP($F89,UNWDF_Medellín_2024_en!$H$14:$S$16,3,FALSE) -> 300 | L89: NA | M89: NA | N89: NA | O89: =IF(OR(L89="NA",L89="E"),"NA",IF(L89="Y",COUNTIF($M$1:N88,N89)+1,COUNTIF($M$1:N88,N89)+1)) -> NA | P89: =IF(N89="NA","NA","TA"&N89&"."&TEXT(O89,"0#")) -> NA | Q89: NA | R89: NA | S89: NA | T89: NA | U89: Day2_Time_Slot1_Parallel 02 | W89: 1:15
A90: 62 | B90: Day2_Time_Slot1_Parallel 03 | C90: Day2_Time_Slot1 | D90: 2 | E90: 1 | F90: Parallel 03 | G90: =VLOOKUP($D$1&D90,UNWDF_Medellín_2024_en!A:F,5,FALSE) -> 2024-11-14 | H90: =MID(VLOOKUP($D$1&D90&$E$1&E90,UNWDF_Medellín_2024_en!A:F,5,FALSE),1,SEARCH("(",VLOOKUP($D$1&D90&$E$1&E90,UNWDF_Medellín_2024_en!A:F,5,FALSE))-2) -> 09:00 - 10:15 | I90: 1:15 | J90: =HLOOKUP($F90,UNWDF_Medellín_2024_en!$H$14:$S$16,2,FALSE) -> Room 2 | K90: =HLOOKUP($F90,UNWDF_Medellín_2024_en!$H$14:$S$16,3,FALSE) -> 200 | L90: NA | M90: NA | N90: NA | O90: =IF(OR(L90="NA",L90="E"),"NA",IF(L90="Y",COUNTIF($M$1:N89,N90)+1,COUNTIF($M$1:N89,N90)+1)) -> NA | P90: NA | Q90: NA | R90: NA | S90: NA | T90: NA | U90: Day2_Time_Slot1_Parallel 03 | W90: 1:15
A91: 63 | B91: Day2_Time_Slot1_Parallel 04 | C91: Day2_Time_Slot1 | D91: 2 | E91: 1 | F91: Parallel 04 | G91: =VLOOKUP($D$1&D91,UNWDF_Medellín_2024_en!A:F,5,FALSE) -> 2024-11-14 | H91: =MID(VLOOKUP($D$1&D91&$E$1&E91,UNWDF_Medellín_2024_en!A:F,5,FALSE),1,SEARCH("(",VLOOKUP($D$1&D91&$E$1&E91,UNWDF_Medellín_2024_en!A:F,5,FALSE))-2) -> 09:00 - 10:15 | I91: 1:15 | J91: =HLOOKUP($F91,UNWDF_Medellín_2024_en!$H$14:$S$16,2,FALSE) -> Room 3 | K91: =HLOOKUP($F91,UNWDF_Medellín_2024_en!$H$14:$S$16,3,FALSE) -> 200 | L91: NA | M91: NA | N91: NA | O91: =IF(OR(L91="NA",L91="E"),"NA",IF(L91="Y",COUNTIF($M$1:N90,N91)+1,COUNTIF($M$1:N90,N91)+1)) -> NA | P91: NA | Q91: NA | R91: NA | S91: NA | T91: NA | U91: Day2_Time_Slot1_Parallel 04 | W91: 1:15
A92: 64 | B92: Day2_Time_Slot1_Parallel 05 | C92: Day2_Time_Slot1 | D92: 2 | E92: 1 | F92: Parallel 05 | G92: =VLOOKUP($D$1&D92,UNWDF_Medellín_2024_en!A:F,5,FALSE) -> 2024-11-14 | H92: =MID(VLOOKUP($D$1&D92&$E$1&E92,UNWDF_Medellín_2024_en!A:F,5,FALSE),1,SEARCH("(",VLOOKUP($D$1&D92&$E$1&E92,UNWDF_Medellín_2024_en!A:F,5,FALSE))-2) -> 09:00 - 10:15 | I92: 1:15 | J92: =HLOOKUP($F92,UNWDF_Medellín_2024_en!$H$14:$S$16,2,FALSE) -> Room 4 | K92: =HLOOKUP($F92,UNWDF_Medellín_2024_en!$H$14:$S$16,3,FALSE) -> 200 | L92: NA | M92: NA | N92: NA | O92: =IF(OR(L92="NA",L92="E"),"NA",IF(L92="Y",COUNTIF($M$1:N91,N92)+1,COUNTIF($M$1:N91,N92)+1)) -> NA | P92: NA | Q92: NA | R92: NA | S92: NA | T92: NA | U92: Day2_Time_Slot1_Parallel 05 | W92: 1:15
A93: 65 | B93: Day2_Time_Slot1_Parallel 06 | C93: Day2_Time_Slot1 | D93: 2 | E93: 1 | F93: Parallel 06 | G93: =VLOOKUP($D$1&D93,UNWDF_Medellín_2024_en!A:F,5,FALSE) -> 2024-11-14 | H93: =MID(VLOOKUP($D$1&D93&$E$1&E93,UNWDF_Medellín_2024_en!A:F,5,FALSE),1,SEARCH("(",VLOOKUP($D$1&D93&$E$1&E93,UNWDF_Medellín_2024_en!A:F,5,FALSE))-2) -> 09:00 - 10:15 | I93: 1:15 | J93: =HLOOKUP($F93,UNWDF_Medellín_2024_en!$H$14:$S$16,2,FALSE) -> Room 5 | K93: =HLOOKUP($F93,UNWDF_Medellín_2024_en!$H$14:$S$16,3,FALSE) -> 200 | L93: NA | M93: NA | N93: NA | O93: =IF(OR(L93="NA",L93="E"),"NA",IF(L93="Y",COUNTIF($M$1:N92,N93)+1,COUNTIF($M$1:N92,N93)+1)) -> NA | P93: NA | Q93: NA | R93: NA | S93: NA | T93: NA | U93: Day2_Time_Slot1_Parallel 06 | W93: 1:15
A94: 66 | B94: Day2_Time_Slot1_Parallel 07 | C94: Day2_Time_Slot1 | D94: 2 | E94: 1 | F94: Parallel 07 | G94: =VLOOKUP($D$1&D94,UNWDF_Medellín_2024_en!A:F,5,FALSE) -> 2024-11-14 | H94: =MID(VLOOKUP($D$1&D94&$E$1&E94,UNWDF_Medellín_2024_en!A:F,5,FALSE),1,SEARCH("(",VLOOKUP($D$1&D94&$E$1&E94,UNWDF_Medellín_2024_en!A:F,5,FALSE))-2) -> 09:00 - 10:15 | I94: 1:15 | J94: =HLOOKUP($F94,UNWDF_Medellín_2024_en!$H$14:$S$16,2,FALSE) -> Room 6 | K94: =HLOOKUP($F94,UNWDF_Medellín_2024_en!$H$14:$S$16,3,FALSE) -> 150 | L94: NA | M94: NA | N94: NA | O94: =IF(OR(L94="NA",L94="E"),"NA",IF(L94="Y",COUNTIF($M$1:N93,N94)+1,COUNTIF($M$1:N93,N94)+1)) -> NA | P94: NA | Q94: NA | R94: NA | S94: NA | T94: NA | U94: Day2_Time_Slot1_Parallel 07 | W94: 1:15
A95: 67 | B95: Day2_Time_Slot1_Parallel 08 | C95: Day2_Time_Slot1 | D95: 2 | E95: 1 | F95: Parallel 08 | G95: =VLOOKUP($D$1&D95,UNWDF_Medellín_2024_en!A:F,5,FALSE) -> 2024-11-14 | H95: =MID(VLOOKUP($D$1&D95&$E$1&E95,UNWDF_Medellín_2024_en!A:F,5,FALSE),1,SEARCH("(",VLOOKUP($D$1&D95&$E$1&E95,UNWDF_Medellín_2024_en!A:F,5,FALSE))-2) -> 09:00 - 10:15 | I95: 1:15 | J95: =HLOOKUP($F95,UNWDF_Medellín_2024_en!$H$14:$S$16,2,FALSE) -> Room 7 | K95: =HLOOKUP($F95,UNWDF_Medellín_2024_en!$H$14:$S$16,3,FALSE) -> 150 | L95: NA | M95: NA | N95: NA | O95: =IF(OR(L95="NA",L95="E"),"NA",IF(L95="Y",COUNTIF($M$1:N94,N95)+1,COUNTIF($M$1:N94,N95)+1)) -> NA | P95: NA | Q95: NA | R95: NA | S95: NA | T95: NA | U95: Day2_Time_Slot1_Parallel 08 | W95: 1:15
A96: 68 | B96: Day2_Time_Slot1_Parallel 09 | C96: Day2_Time_Slot1 | D96: 2 | E96: 1 | F96: Parallel 09 | G96: =VLOOKUP($D$1&D96,UNWDF_Medellín_2024_en!A:F,5,FALSE) -> 2024-11-14 | H96: =MID(VLOOKUP($D$1&D96&$E$1&E96,UNWDF_Medellín_2024_en!A:F,5,FALSE),1,SEARCH("(",VLOOKUP($D$1&D96&$E$1&E96,UNWDF_Medellín_2024_en!A:F,5,FALSE))-2) -> 09:00 - 10:15 | I96: 1:15 | J96: =HLOOKUP($F96,UNWDF_Medellín_2024_en!$H$14:$S$16,2,FALSE) -> Room 8 | K96: =HLOOKUP($F96,UNWDF_Medellín_2024_en!$H$14:$S$16,3,FALSE) -> 90 | L96: NA | M96: NA | N96: NA | O96: =IF(OR(L96="NA",L96="E"),"NA",IF(L96="Y",COUNTIF($M$1:N95,N96)+1,COUNTIF($M$1:N95,N96)+1)) -> NA | P96: NA | Q96: NA | R96: NA | S96: NA | T96: NA | U96: Day2_Time_Slot1_Parallel 09 | W96: 1:15
A97: 69 | B97: Day2_Time_Slot1_Parallel 10 | C97: Day2_Time_Slot1 | D97: 2 | E97: 1 | F97: Parallel 10 | G97: =VLOOKUP($D$1&D97,UNWDF_Medellín_2024_en!A:F,5,FALSE) -> 2024-11-14 | H97: =MID(VLOOKUP($D$1&D97&$E$1&E97,UNWDF_Medellín_2024_en!A:F,5,FALSE),1,SEARCH("(",VLOOKUP($D$1&D97&$E$1&E97,UNWDF_Medellín_2024_en!A:F,5,FALSE))-2) -> 09:00 - 10:15 | I97: 1:15 | J97: =HLOOKUP($F97,UNWDF_Medellín_2024_en!$H$14:$S$16,2,FALSE) -> Room 9 | K97: =HLOOKUP($F97,UNWDF_Medellín_2024_en!$H$14:$S$16,3,FALSE) -> 60 | L97: NA | M97: NA | N97: NA | O97: =IF(OR(L97="NA",L97="E"),"NA",IF(L97="Y",COUNTIF($M$1:N96,N97)+1,COUNTIF($M$1:N96,N97)+1)) -> NA | P97: NA | Q97: NA | R97: NA | S97: NA | T97: NA | U97: Day2_Time_Slot1_Parallel 10 | W97: 1:15
A98: 70 | B98: Day2_Time_Slot1_Parallel 11 | C98: Day2_Time_Slot1 | D98: 2 | E98: 1 | F98: Parallel 11 | G98: =VLOOKUP($D$1&D98,UNWDF_Medellín_2024_en!A:F,5,FALSE) -> 2024-11-14 | H98: =MID(VLOOKUP($D$1&D98&$E$1&E98,UNWDF_Medellín_2024_en!A:F,5,FALSE),1,SEARCH("(",VLOOKUP($D$1&D98&$E$1&E98,UNWDF_Medellín_2024_en!A:F,5,FALSE))-2) -> 09:00 - 10:15 | I98: 1:15 | J98: =HLOOKUP($F98,UNWDF_Medellín_2024_en!$H$14:$S$16,2,FALSE) -> Room 10 | K98: =HLOOKUP($F98,UNWDF_Medellín_2024_en!$H$14:$S$16,3,FALSE) -> 60 | L98: NA | M98: NA | N98: NA | O98: =IF(OR(L98="NA",L98="E"),"NA",IF(L98="Y",COUNTIF($M$1:N97,N98)+1,COUNTIF($M$1:N97,N98)+1)) -> NA | P98: NA | Q98: NA | R98: NA | S98: NA | T98: NA | U98: Day2_Time_Slot1_Parallel 11 | W98: 1:15
A99: 71 | B99: Day2_Time_Slot1_Parallel 12 | C99: Day2_Time_Slot1 | D99: 2 | E99: 1 | F99: Parallel 12 | G99: =VLOOKUP($D$1&D99,UNWDF_Medellín_2024_en!A:F,5,FALSE) -> 2024-11-14 | H99: =MID(VLOOKUP($D$1&D99&$E$1&E99,UNWDF_Medellín_2024_en!A:F,5,FALSE),1,SEARCH("(",VLOOKUP($D$1&D99&$E$1&E99,UNWDF_Medellín_2024_en!A:F,5,FALSE))-2) -> 09:00 - 10:15 | I99: 1:15 | J99: =HLOOKUP($F99,UNWDF_Medellín_2024_en!$H$14:$S$16,2,FALSE) -> NA | K99: =HLOOKUP($F99,UNWDF_Medellín_2024_en!$H$14:$S$16,3,FALSE) -> NA | L99: NA | M99: NA | N99: NA | O99: =IF(OR(L99="NA",L99="E"),"NA",IF(L99="Y",COUNTIF($M$1:N98,N99)+1,COUNTIF($M$1:N98,N99)+1)) -> NA | P99: NA | Q99: NA | R99: NA | S99: NA | T99: NA | U99: Day2_Time_Slot1_Parallel 12 | W99: 1:15
A100: 72 | B100: Day2_Time_Slot2_Parallel 01 | C100: Day2_Time_Slot2 | D100: 2 | E100: 2 | F100: Parallel 01 | G100: =VLOOKUP($D$1&D100,UNWDF_Medellín_2024_en!A:F,5,FALSE) -> 2024-11-14 | H100: =MID(VLOOKUP($D$1&D100&$E$1&E100,UNWDF_Medellín_2024_en!A:F,5,FALSE),1,SEARCH("(",VLOOKUP($D$1&D100&$E$1&E100,UNWDF_Medellín_2024_en!A:F,5,FALSE))-2) -> 10:45 - 11:45 | I100: 1:00 | J100: =HLOOKUP($F100,UNWDF_Medellín_2024_en!$H$14:$S$16,2,FALSE) -> Plenary Room | K100: =HLOOKUP($F100,UNWDF_Medellín_2024_en!$H$14:$S$16,3,FALSE) -> 3000 | L100: NA | M100: NA | N100: NA | O100: =IF(OR(L100="NA",L100="E"),"NA",IF(L100="Y",COUNTIF($M$1:N99,N100)+1,COUNTIF($M$1:N99,N100)+1)) -> NA | P100: NA | Q100: NA | R100: NA | S100: NA | T100: NA | U100: Day2_Time_Slot2_Parallel 01 | W100: 1:00
A101: 153 | B101: Day2_Time_Slot2_Parallel 02 | C101: Day2_Time_Slot2 | D101: 2 | E101: 2 | F101: Parallel 02 | G101: =VLOOKUP($D$1&D101,UNWDF_Medellín_2024_en!A:F,5,FALSE) -> 2024-11-14 | H101: =MID(VLOOKUP($D$1&D101&$E$1&E101,UNWDF_Medellín_2024_en!A:F,5,FALSE),1,SEARCH("(",VLOOKUP($D$1&D101&$E$1&E101,UNWDF_Medellín_2024_en!A:F,5,FALSE))-2) -> 10:45 - 11:45 | I101: 1:00 | J101: =HLOOKUP($F101,UNWDF_Medellín_2024_en!$H$14:$S$16,2,FALSE) -> Room 1 | K101: =HLOOKUP($F101,UNWDF_Medellín_2024_en!$H$14:$S$16,3,FALSE) -> 300 | L101: N | M101: NA | N101: 4 | O101: =IF(OR(L101="NA",L101="E"),"NA",IF(L101="Y",COUNTIF($M$1:N100,N101)+1,COUNTIF($M$1:N100,N101)+1)) -> 4 | P101: TA4.9 | Q101: Caribbean Data Solutions Hub | R101: NoBrainerData; Oficina Nacional de Estadística (ONE-República Dominicana)-Statistical Conference of the Americas; Statistics Department of Montserrat; Data-Pop Alliance; Central Statistical Office (CSO-Grenada) | S101: Centro de Soluciones de Datos del Caribe | T101: NoBrainerData; Oficina Nacional de Estadística (ONE-República Dominicana)-Conferencia Estadística de las Américas; Departamento de Estadísticas de Montserrat; Alianza Data-Pop; Oficina Central de Estadística (CSO-Grenada) | U101: Day2_Time_Slot2_Parallel 02 | W101: 1:00
A102: 154 | B102: Day2_Time_Slot2_Parallel 03 | C102: Day2_Time_Slot2 | D102: 2 | E102: 2 | F102: Parallel 03 | G102: =VLOOKUP($D$1&D102,UNWDF_Medellín_2024_en!A:F,5,FALSE) -> 2024-11-14 | H102: =MID(VLOOKUP($D$1&D102&$E$1&E102,UNWDF_Medellín_2024_en!A:F,5,FALSE),1,SEARCH("(",VLOOKUP($D$1&D102&$E$1&E102,UNWDF_Medellín_2024_en!A:F,5,FALSE))-2) -> 10:45 - 11:45 | I102: 1:00 | J102: =HLOOKUP($F102,UNWDF_Medellín_2024_en!$H$14:$S$16,2,FALSE) -> Room 2 | K102: =HLOOKUP($F102,UNWDF_Medellín_2024_en!$H$14:$S$16,3,FALSE) -> 200 | L102: N | M102: NA | N102: 1 | O102: =IF(OR(L102="NA",L102="E"),"NA",IF(L102="Y",COUNTIF($M$1:N101,N102)+1,COUNTIF($M$1:N101,N102)+1)) -> 8 | P102: TA1.13 | Q102: Children on the move: exploring the gaps, needs and solutions for better quality data | R102: IMPACT Initiatives; Inclusive Data Charter; International Data Alliance for Children on the Move; Save the Children; REACH Initiative; Internal Displacement Monitoring Centre (IDMC); United Nations Major Group for Children and Youth (UN MGCY); Direction de la statistique et des études démographiques (DISED-Djibouti) | S102: Niños en movimiento: análisis de las carencias, necesidades y soluciones para mejorar la calidad de los datos | T102: Iniciativas de Impacto (IMPACT Initiatives); Inclusive Data Charter; Alianza Internacional de Datos para Niños en Movimiento; Save the Children; Iniciativa REACH; Internal Displacement Monitoring Centre (IDMC); United Nations Major Group for Children and Youth (UN MGCY); Direction de la statistique et des études démographiques (DISED-Djibouti) | U102: Day2_Time_Slot2_Parallel 03 | V102: Update (es): Internal Displacement Monitoring Centre (IDMC); United Nations Major Group for Children and Youth (UN MGCY); Direction de la statistique et des études démographiques (DISED-Djibouti) | W102: 1:00
A103: 155 | B103: Day2_Time_Slot2_Parallel 04 | C103: Day2_Time_Slot2 | D103: 2 | E103: 2 | F103: Parallel 04 | G103: =VLOOKUP($D$1&D103,UNWDF_Medellín_2024_en!A:F,5,FALSE) -> 2024-11-14 | H103: =MID(VLOOKUP($D$1&D103&$E$1&E103,UNWDF_Medellín_2024_en!A:F,5,FALSE),1,SEARCH("(",VLOOKUP($D$1&D103&$E$1&E103,UNWDF_Medellín_2024_en!A:F,5,FALSE))-2) -> 10:45 - 11:45 | I103: 1:00 | J103: =HLOOKUP($F103,UNWDF_Medellín_2024_en!$H$14:$S$16,2,FALSE) -> Room 3 | K103: =HLOOKUP($F103,UNWDF_Medellín_2024_en!$H$14:$S$16,3,FALSE) -> 200 | L103: N | M103: NA | N103: 1 | O103: =IF(OR(L103="NA",L103="E"),"NA",IF(L103="Y",COUNTIF($M$1:N102,N103)+1,COUNTIF($M$1:N102,N103)+1)) -> 9 | P103: TA1.17 | Q103: Moving forward to the development of dissemination platforms based on an interoperable data banks ecosystem. | R103: United Nations Economic Commission for Latin America and the Caribbean (UNECLAC / CEPAL); European Statistical Office (Eurostat); Instituto Nacional de Estadística (INE-Paraguay); Instituto Brasileiro de Geografia e Estatística (IBGE) | S103: Avanzar hacia el desarrollo de plataformas de difusión basadas en un ecosistema interoperable de bancos de datos. | T103: Comisión Económica para América Latina y el Caribe de las Naciones Unidas (CEPAL); Oficina Estadística Europea (Eurostat); Instituto Nacional de Estadística (INE-Paraguay); Instituto Brasileño de Geografía y Estadística (IBGE) | U103: Day2_Time_Slot2_Parallel 04 | W103: 1:00
A104: 156 | B104: Day2_Time_Slot2_Parallel 05 | C104: Day2_Time_Slot2 | D104: 2 | E104: 2 | F104: Parallel 05 | G104: =VLOOKUP($D$1&D104,UNWDF_Medellín_2024_en!A:F,5,FALSE) -> 2024-11-14 | H104: =MID(VLOOKUP($D$1&D104&$E$1&E104,UNWDF_Medellín_2024_en!A:F,5,FALSE),1,SEARCH("(",VLOOKUP($D$1&D104&$E$1&E104,UNWDF_Medellín_2024_en!A:F,5,FALSE))-2) -> 10:45 - 11:45 | I104: 1:00 | J104: =HLOOKUP($F104,UNWDF_Medellín_2024_en!$H$14:$S$16,2,FALSE) -> Room 4 | K104: =HLOOKUP($F104,UNWDF_Medellín_2024_en!$H$14:$S$16,3,FALSE) -> 200 | L104: N | M104: NA | N104: 4 | O104: =IF(OR(L104="NA",L104="E"),"NA",IF(L104="Y",COUNTIF($M$1:N103,N104)+1,COUNTIF($M$1:N103,N104)+1)) -> 5 | P104: TA4.18 | Q104: Identifying and Building Synergies in the Migration Data Ecosystem | R104: Aapti Institute; Robert Bosch Stiftung GmbH | S104: Identificar y Crear Sinergias en el Ecosistema de Datos Migratorios | T104: Instituto Aapti; Fundación Robert Bosch GmbH | U104: Day2_Time_Slot2_Parallel 05 | W104: 1:00
A105: 157 | B105: Day2_Time_Slot2_Parallel 06 | C105: Day2_Time_Slot2 | D105: 2 | E105: 2 | F105: Parallel 06 | G105: =VLOOKUP($D$1&D105,UNWDF_Medellín_2024_en!A:F,5,FALSE) -> 2024-11-14 | H105: =MID(VLOOKUP($D$1&D105&$E$1&E105,UNWDF_Medellín_2024_en!A:F,5,FALSE),1,SEARCH("(",VLOOKUP($D$1&D105&$E$1&E105,UNWDF_Medellín_2024_en!A:F,5,FALSE))-2) -> 10:45 - 11:45 | I105: 1:00 | J105: =HLOOKUP($F105,UNWDF_Medellín_2024_en!$H$14:$S$16,2,FALSE) -> Room 5 | K105: =HLOOKUP($F105,UNWDF_Medellín_2024_en!$H$14:$S$16,3,FALSE) -> 200 | L105: N | M105: NA | N105: 4 | O105: =IF(OR(L105="NA",L105="E"),"NA",IF(L105="Y",COUNTIF($M$1:N104,N105)+1,COUNTIF($M$1:N104,N105)+1)) -> 6 | P105: TA4.11 | Q105: The importance of demand-side data on digital access and use for evidence-based policy-making in Africa | R105: Research ICT Africa; United Nations Economic Commission for Africa (UNECA); International Telecommunication Union (ITU); Regional Center for Studies for the Development of the Information Society (Cetic.br) | S105: La importancia de los datos sobre la demanda de acceso y uso de la tecnología digital para la elaboración de políticas basadas en datos empíricos en África | T105: Investigación de TIC en África; Comisión Económica para África de las Naciones Unidas (UNECA); Unión Internacional de Telecomunicaciones (UIT); Centro Regional de Estudios para el Desarrollo de la Sociedad de la Información (Cetic.br) | U105: Day2_Time_Slot2_Parallel 06 | W105: 1:00
A106: 158 | B106: Day2_Time_Slot2_Parallel 07 | C106: Day2_Time_Slot2 | D106: 2 | E106: 2 | F106: Parallel 07 | G106: =VLOOKUP($D$1&D106,UNWDF_Medellín_2024_en!A:F,5,FALSE) -> 2024-11-14 | H106: =MID(VLOOKUP($D$1&D106&$E$1&E106,UNWDF_Medellín_2024_en!A:F,5,FALSE),1,SEARCH("(",VLOOKUP($D$1&D106&$E$1&E106,UNWDF_Medellín_2024_en!A:F,5,FALSE))-2) -> 10:45 - 11:45 | I106: 1:00 | J106: =HLOOKUP($F106,UNWDF_Medellín_2024_en!$H$14:$S$16,2,FALSE) -> Room 6 | K106: =HLOOKUP($F106,UNWDF_Medellín_2024_en!$H$14:$S$16,3,FALSE) -> 150 | L106: N | M106: NA | N106: _T | O106: =IF(OR(L106="NA",L106="E"),"NA",IF(L106="Y",COUNTIF($M$1:N105,N106)+1,COUNTIF($M$1:N105,N106)+1)) -> 7 | P106: TED.204 | Q106: How to efficiently utilize sampling techniques to improve data quality of economic census / Inclusive business statistics / Experiences of violence and harassment at work: A global first survey | R106: Research Institute of Statistical Sciences, National Bureau of Statistics (NBS-China) / Oficina Nacional de Estadística (ONE-República Dominicana) / Gallup, Inc.; Lloyd's Register Foundation; International Labour Organization (ILO) | S106: Cómo utilizar eficazmente las técnicas de muestreo para mejorar la calidad de los datos de los censos económicos / Estadísticas empresariales inclusivas / Experiencias de violencia y acoso en el trabajo: Una primera encuesta mundial | T106: Instituto de Investigación de Ciencias Estadísticas, Oficina Nacional de Estadísticas (NBS-China) / Oficina Nacional de Estadística (ONE-República Dominicana) / Gallup, Inc.; Fundación Lloyd's Register; Organización Internacional del Trabajo (OIT) | U106: Day2_Time_Slot2_Parallel 07 | W106: 1:00
A107: 159 | B107: Day2_Time_Slot2_Parallel 08 | C107: Day2_Time_Slot2 | D107: 2 | E107: 2 | F107: Parallel 08 | G107: =VLOOKUP($D$1&D107,UNWDF_Medellín_2024_en!A:F,5,FALSE) -> 2024-11-14 | H107: =MID(VLOOKUP($D$1&D107&$E$1&E107,UNWDF_Medellín_2024_en!A:F,5,FALSE),1,SEARCH("(",VLOOKUP($D$1&D107&$E$1&E107,UNWDF_Medellín_2024_en!A:F,5,FALSE))-2) -> 10:45 - 11:45 | I107: 1:00 | J107: =HLOOKUP($F107,UNWDF_Medellín_2024_en!$H$14:$S$16,2,FALSE) -> Room 7 | K107: =HLOOKUP($F107,UNWDF_Medellín_2024_en!$H$14:$S$16,3,FALSE) -> 150 | L107: N | M107: NA | N107: _A | O107: =IF(OR(L107="NA",L107="E"),"NA",IF(L107="Y",COUNTIF($M$1:N106,N107)+1,COUNTIF($M$1:N106,N107)+1)) -> 1 | P107: ANCE.402 | Q107: Evidence for decision-making and the design of public policies in Latin America | R107: Ministério dos Direitos Humanos e Cidadania; United Nations (UN); Fundación Corona | S107: Evidencias para la toma de decisiones y el diseño de políticas públicas en América Latina | T107: Ministerio de Derechos Humanos y Ciudadanía; Naciones Unidas (ONU); Fundación Corona | U107: Day2_Time_Slot2_Parallel 08 | W107: 1:00
A108: 160 | B108: Day2_Time_Slot2_Parallel 09 | C108: Day2_Time_Slot2 | D108: 2 | E108: 2 | F108: Parallel 09 | G108: =VLOOKUP($D$1&D108,UNWDF_Medellín_2024_en!A:F,5,FALSE) -> 2024-11-14 | H108: =MID(VLOOKUP($D$1&D108&$E$1&E108,UNWDF_Medellín_2024_en!A:F,5,FALSE),1,SEARCH("(",VLOOKUP($D$1&D108&$E$1&E108,UNWDF_Medellín_2024_en!A:F,5,FALSE))-2) -> 10:45 - 11:45 | I108: 1:00 | J108: =HLOOKUP($F108,UNWDF_Medellín_2024_en!$H$14:$S$16,2,FALSE) -> Room 8 | K108: =HLOOKUP($F108,UNWDF_Medellín_2024_en!$H$14:$S$16,3,FALSE) -> 90 | L108: N | M108: NA | N108: _L | O108: =IF(OR(L108="NA",L108="E"),"NA",IF(L108="Y",COUNTIF($M$1:N107,N108)+1,COUNTIF($M$1:N107,N108)+1)) -> 4 | P108: LEARN.310 | Q108: Fostering Citizen and Inclusive Data into the National Statistical Systems through South to South Cooperation | R108: Global Partnership for Sustainable Development Data (GPSDD); Presidential Agency for International Cooperation (APC-Colombia); Bangladesh Bureau of Statistics (BBS); UK Foreign, Commonwealth and Development Office (FCDO); MSD United Way Vietnam; International Civil Society Centre | S108: Fomento de la inclusión de los datos de los ciudadanos en los sistemas estadísticos nacionales mediante la cooperación Sur-Sur | T108: Alianza Global para los Datos del Desarrollo Sostenible (GPSDD); Agencia Presidencial de Cooperación Internacional (APC-Colombia); Oficina de Estadísticas de Bangladesh (BBS); Oficina de Relaciones Exteriores, Commonwealth y Desarrollo del Reino Unido (FCDO); MSD United Way Vietnam; Centro Internacional de la Sociedad Civil | U108: Day2_Time_Slot2_Parallel 09 | W108: 1:00
A109: 161 | B109: Day2_Time_Slot2_Parallel 10 | C109: Day2_Time_Slot2 | D109: 2 | E109: 2 | F109: Parallel 10 | G109: =VLOOKUP($D$1&D109,UNWDF_Medellín_2024_en!A:F,5,FALSE) -> 2024-11-14 | H109: =MID(VLOOKUP($D$1&D109&$E$1&E109,UNWDF_Medellín_2024_en!A:F,5,FALSE),1,SEARCH("(",VLOOKUP($D$1&D109&$E$1&E109,UNWDF_Medellín_2024_en!A:F,5,FALSE))-2) -> 10:45 - 11:45 | I109: 1:00 | J109: =HLOOKUP($F109,UNWDF_Medellín_2024_en!$H$14:$S$16,2,FALSE) -> Room 9 | K109: =HLOOKUP($F109,UNWDF_Medellín_2024_en!$H$14:$S$16,3,FALSE) -> 60 | L109: N | M109: NA | N109: _L | O109: =IF(OR(L109="NA",L109="E"),"NA",IF(L109="Y",COUNTIF($M$1:N108,N109)+1,COUNTIF($M$1:N108,N109)+1)) -> 5 | P109: LEARN.304 | Q109: Data Ecosystems and Gridded Housing and Environmental Statistics for Evidence-Based Policy Making | R109: Instituto Nacional de Estadística y Geografía (INEGI-México); Universidad EAFIT; European Space Agency (ESA); University of Twente | S109: Ecosistemas de datos y estadísticas medioambientales y de vivienda cuadriculada para la elaboración de políticas basadas en datos empíricos | T109: Instituto Nacional de Estadística y Geografía (INEGI-México); Universidad EAFIT; Agencia Espacial Europea (ESA); Universidad de Twente | U109: Day2_Time_Slot2_Parallel 10 | W109: 1:00
A110: 162 | B110: Day2_Time_Slot2_Parallel 11 | C110: Day2_Time_Slot2 | D110: 2 | E110: 2 | F110: Parallel 11 | G110: =VLOOKUP($D$1&D110,UNWDF_Medellín_2024_en!A:F,5,FALSE) -> 2024-11-14 | H110: =MID(VLOOKUP($D$1&D110&$E$1&E110,UNWDF_Medellín_2024_en!A:F,5,FALSE),1,SEARCH("(",VLOOKUP($D$1&D110&$E$1&E110,UNWDF_Medellín_2024_en!A:F,5,FALSE))-2) -> 10:45 - 11:45 | I110: 1:00 | J110: =HLOOKUP($F110,UNWDF_Medellín_2024_en!$H$14:$S$16,2,FALSE) -> Room 10 | K110: =HLOOKUP($F110,UNWDF_Medellín_2024_en!$H$14:$S$16,3,FALSE) -> 60 | L110: N | M110: NA | N110: _D | O110: =IF(OR(L110="NA",L110="E"),"NA",IF(L110="Y",COUNTIF($M$1:N109,N110)+1,COUNTIF($M$1:N109,N110)+1)) -> 4 | P110: DEMO.504 | Q110: Innovation in data collection on ethnic-racial population: progress in inclusion and characterization in Colombia / Timely, comprehensive and focused provision of social services based on an interoperable system of administrative records. The Ecuadorean case to prevent stunting / Tools for the visualization of demographic indicators as a strategy for prospective planning at the local level in Mexico / From Numbers to Change: Using Data to End Gender-Based Violence | R110: Departamento Administrativo Nacional de Estadística (DANE-Colombia) / Instituto Nacional de Estadística y Censos (INEC-Ecuador); Crece sin Desnutrición Infantil, Ecuador; Coorporación Andina de Fomento; Vital Strategies / United Nations Development Programme (UNDP) / United Nations Population Fund (UNFPA) | S110: Innovación en la recolección de datos sobre población étnico-racial: avances en inclusión y caracterización en Colombia / Prestación oportuna, integral y focalizada de servicios sociales a partir de un sistema interoperable de registros administrativos. El caso ecuatoriano para prevenir el retraso en el crecimiento / Herramientas para la visualización de indicadores demográficos como estrategia de planeación prospectiva a nivel local en México / De los números al cambio: El uso de datos para acabar con la violencia de género | T110: Departamento Administrativo Nacional de Estadística (DANE-Colombia) / Instituto Nacional de Estadística y Censos (INEC-Ecuador); Crece sin Desnutrición Infantil, Ecuador; Corporación Andina de Fomento; Vital Strategies / Programa de las Naciones Unidas para el Desarrollo (PNUD) / Fondo de Población de las Naciones Unidas (UNFPA) | U110: Day2_Time_Slot2_Parallel 11 | W110: 1:00
A111: 163 | B111: Day2_Time_Slot2_Parallel 12 | C111: Day2_Time_Slot2 | D111: 2 | E111: 2 | F111: Parallel 12 | G111: =VLOOKUP($D$1&D111,UNWDF_Medellín_2024_en!A:F,5,FALSE) -> 2024-11-14 | H111: =MID(VLOOKUP($D$1&D111&$E$1&E111,UNWDF_Medellín_2024_en!A:F,5,FALSE),1,SEARCH("(",VLOOKUP($D$1&D111&$E$1&E111,UNWDF_Medellín_2024_en!A:F,5,FALSE))-2) -> 10:45 - 11:45 | I111: 1:00 | J111: =HLOOKUP($F111,UNWDF_Medellín_2024_en!$H$14:$S$16,2,FALSE) -> NA | K111: =HLOOKUP($F111,UNWDF_Medellín_2024_en!$H$14:$S$16,3,FALSE) -> NA | L111: NA | M111: NA | N111: NA | O111: =IF(OR(L111="NA",L111="E"),"NA",IF(L111="Y",COUNTIF($M$1:N110,N111)+1,COUNTIF($M$1:N110,N111)+1)) -> NA | P111: =IF(N111="NA","NA","TA"&N111&"."&TEXT(O111,"0#")) -> NA | Q111: NA | R111: NA | S111: NA | T111: NA | U111: Day2_Time_Slot2_Parallel 12 | W111: 1:00
A112: 73 | B112: Day2_Time_Slot3_Parallel 01 | C112: Day2_Time_Slot3 | D112: 2 | E112: 3 | F112: Parallel 01 | G112: =VLOOKUP($D$1&D112,UNWDF_Medellín_2024_en!A:F,5,FALSE) -> 2024-11-14 | H112: =MID(VLOOKUP($D$1&D112&$E$1&E112,UNWDF_Medellín_2024_en!A:F,5,FALSE),1,SEARCH("(",VLOOKUP($D$1&D112&$E$1&E112,UNWDF_Medellín_2024_en!A:F,5,FALSE))-2) -> 13:30 - 14:30 | I112: 1:00 | J112: =HLOOKUP($F112,UNWDF_Medellín_2024_en!$H$14:$S$16,2,FALSE) -> Plenary Room | K112: =HLOOKUP($F112,UNWDF_Medellín_2024_en!$H$14:$S$16,3,FALSE) -> 3000 | L112: NA | M112: NA | N112: NA | O112: =IF(OR(L112="NA",L112="E"),"NA",IF(L112="Y",COUNTIF($M$1:N111,N112)+1,COUNTIF($M$1:N111,N112)+1)) -> NA | P112: NA | Q112: NA | R112: NA | S112: NA | T112: NA | U112: Day2_Time_Slot3_Parallel 01 | W112: 1:00
A113: 164 | B113: Day2_Time_Slot3_Parallel 02 | C113: Day2_Time_Slot3 | D113: 2 | E113: 3 | F113: Parallel 02 | G113: =VLOOKUP($D$1&D113,UNWDF_Medellín_2024_en!A:F,5,FALSE) -> 2024-11-14 | H113: =MID(VLOOKUP($D$1&D113&$E$1&E113,UNWDF_Medellín_2024_en!A:F,5,FALSE),1,SEARCH("(",VLOOKUP($D$1&D113&$E$1&E113,UNWDF_Medellín_2024_en!A:F,5,FALSE))-2) -> 13:30 - 14:30 | I113: 1:00 | J113: =HLOOKUP($F113,UNWDF_Medellín_2024_en!$H$14:$S$16,2,FALSE) -> Room 1 | K113: =HLOOKUP($F113,UNWDF_Medellín_2024_en!$H$14:$S$16,3,FALSE) -> 300 | L113: N | M113: NA | N113: 1 | O113: =IF(OR(L113="NA",L113="E"),"NA",IF(L113="Y",COUNTIF($M$1:N112,N113)+1,COUNTIF($M$1:N112,N113)+1)) -> 10 | P113: TA1.3 | Q113: Empowering Vulnerable Entrepreneurs: Data-Driven Business Strategy for Inclusive Digital Transformation | R113: United Nations Development Programme (UNDP); Federación de Aseguradores Colombianos (Fasecolda); Banca de las Oportunidades; National Advisory Board for Impact Investment (NAB) | S113: Capacitar a los Empresarios Vulnerables: Estrategia Empresarial Basada en Datos para una Transformación Digital Inclusiva | T113: Programa de las Naciones Unidas para el Desarrollo (PNUD); Federación de Aseguradores Colombianos (Fasecolda); Banca de las Oportunidades; National Advisory Board for Impact Investment (NAB) | U113: Day2_Time_Slot3_Parallel 02 | W113: 1:00
A114: 165 | B114: Day2_Time_Slot3_Parallel 03 | C114: Day2_Time_Slot3 | D114: 2 | E114: 3 | F114: Parallel 03 | G114: =VLOOKUP($D$1&D114,UNWDF_Medellín_2024_en!A:F,5,FALSE) -> 2024-11-14 | H114: =MID(VLOOKUP($D$1&D114&$E$1&E114,UNWDF_Medellín_2024_en!A:F,5,FALSE),1,SEARCH("(",VLOOKUP($D$1&D114&$E$1&E114,UNWDF_Medellín_2024_en!A:F,5,FALSE))-2) -> 13:30 - 14:30 | I114: 1:00 | J114: =HLOOKUP($F114,UNWDF_Medellín_2024_en!$H$14:$S$16,2,FALSE) -> Room 2 | K114: =HLOOKUP($F114,UNWDF_Medellín_2024_en!$H$14:$S$16,3,FALSE) -> 200 | L114: N | M114: NA | N114: 1 | O114: =IF(OR(L114="NA",L114="E"),"NA",IF(L114="Y",COUNTIF($M$1:N113,N114)+1,COUNTIF($M$1:N113,N114)+1)) -> 11 | P114: TA1.8 | Q114: Data Innovations on Housing and Environmental Statistics: Combining Alternative and Official Data to Map Informal Settlements | R114: Instituto Nacional de Estadística y Geografía (INEGI-México); Universidad EAFIT; European Space Agency (ESA); University of Twente | S114: Innovaciones de Datos sobre Estadísticas de Vivienda y Medio Ambiente: Combinación de Datos Oficiales y Alternativos para Cartografiar los Asentamientos Informales | T114: Instituto Nacional de Estadística y Geografía (INEGI-México); Universidad EAFIT; Agencia Espacial Europea (ESA); Universidad de Twente | U114: Day2_Time_Slot3_Parallel 03 | W114: 1:00
A115: 166 | B115: Day2_Time_Slot3_Parallel 04 | C115: Day2_Time_Slot3 | D115: 2 | E115: 3 | F115: Parallel 04 | G115: =VLOOKUP($D$1&D115,UNWDF_Medellín_2024_en!A:F,5,FALSE) -> 2024-11-14 | H115: =MID(VLOOKUP($D$1&D115&$E$1&E115,UNWDF_Medellín_2024_en!A:F,5,FALSE),1,SEARCH("(",VLOOKUP($D$1&D115&$E$1&E115,UNWDF_Medellín_2024_en!A:F,5,FALSE))-2) -> 13:30 - 14:30 | I115: 1:00 | J115: =HLOOKUP($F115,UNWDF_Medellín_2024_en!$H$14:$S$16,2,FALSE) -> Room 3 | K115: =HLOOKUP($F115,UNWDF_Medellín_2024_en!$H$14:$S$16,3,FALSE) -> 200 | L115: N | M115: NA | N115: 4 | O115: =IF(OR(L115="NA",L115="E"),"NA",IF(L115="Y",COUNTIF($M$1:N114,N115)+1,COUNTIF($M$1:N114,N115)+1)) -> 7 | P115: TA4.17 | Q115: Citizen science: Opportunities and Challenges for Enhanced Local to Global SDG Monitoring and Action | R115: Institut Cienciès Marines; Humanitarian OpenStreetMap (HOTOSM); International Institute for Applied Systems Analysis (IIASA), Iberoamerican Participatory Science Network (RICAP); United Nations Human Settlements Programme (UN-Habitat); Citizen Science Global Partnership (CSGP) | S115: Ciencia ciudadana: Oportunidades y retos para mejorar el seguimiento y la acción de los ODS a escala local y mundial | T115: Instituto de Ciencias del Mar; Humanitarian OpenStreetMap (HOTOSM); Instituto Internacional para el Análisis de Sistemas Aplicados (IIASA); Red Iberoamericana de Ciencia Participativa (RICAP); Programa de las Naciones Unidas para los Asentamientos Humanos (ONU-Hábitat); Alianza Global de Ciencia Ciudadana (CSGP) | U115: Day2_Time_Slot3_Parallel 04 | W115: 1:00
A116: 167 | B116: Day2_Time_Slot3_Parallel 05 | C116: Day2_Time_Slot3 | D116: 2 | E116: 3 | F116: Parallel 05 | G116: =VLOOKUP($D$1&D116,UNWDF_Medellín_2024_en!A:F,5,FALSE) -> 2024-11-14 | H116: =MID(VLOOKUP($D$1&D116&$E$1&E116,UNWDF_Medellín_2024_en!A:F,5,FALSE),1,SEARCH("(",VLOOKUP($D$1&D116&$E$1&E116,UNWDF_Medellín_2024_en!A:F,5,FALSE))-2) -> 13:30 - 14:30 | I116: 1:00 | J116: =HLOOKUP($F116,UNWDF_Medellín_2024_en!$H$14:$S$16,2,FALSE) -> Room 4 | K116: =HLOOKUP($F116,UNWDF_Medellín_2024_en!$H$14:$S$16,3,FALSE) -> 200 | L116: N | M116: NA | N116: 2 | O116: =IF(OR(L116="NA",L116="E"),"NA",IF(L116="Y",COUNTIF($M$1:N115,N116)+1,COUNTIF($M$1:N115,N116)+1)) -> 5 | P116: TA2.9 | Q116: Alternative mapping data for resilience and development in the face of climate change | R116: Humanitarian OpenStreetMap (HOTOSM); Departamento Administrativo Nacional de Estadística (DANE-Colombia); Oficina Nacional de Estadistica (ONE Dominican Republic); Centro de Estudios con Poblaciones, Movilizaciones y Territorio; Crisis Ready; Global Partnership for Sustainable Development Data (GPSDD); United Nations Office for the Coordination of Humanitarian Affairs (OCHA) | S116: Datos cartográficos alternativos para la resiliencia y el desarrollo frente al cambio climático | T116: Humanitarian OpenStreetMap (HOTOSM); Departamento Administrativo Nacional de Estadística (DANE-Colombia); Centro de Estudios con Poblaciones, Movilizaciones y Territorio; Crisis Ready; Alianza Global para los Datos del Desarrollo Sostenible (GPSDD); Oficina de Coordinación de Asuntos Humanitarios de las Naciones Unidas (OCHA) | U116: Day2_Time_Slot3_Parallel 05 | W116: 1:00
A117: 168 | B117: Day2_Time_Slot3_Parallel 06 | C117: Day2_Time_Slot3 | D117: 2 | E117: 3 | F117: Parallel 06 | G117: =VLOOKUP($D$1&D117,UNWDF_Medellín_2024_en!A:F,5,FALSE) -> 2024-11-14 | H117: =MID(VLOOKUP($D$1&D117&$E$1&E117,UNWDF_Medellín_2024_en!A:F,5,FALSE),1,SEARCH("(",VLOOKUP($D$1&D117&$E$1&E117,UNWDF_Medellín_2024_en!A:F,5,FALSE))-2) -> 13:30 - 14:30 | I117: 1:00 | J117: =HLOOKUP($F117,UNWDF_Medellín_2024_en!$H$14:$S$16,2,FALSE) -> Room 5 | K117: =HLOOKUP($F117,UNWDF_Medellín_2024_en!$H$14:$S$16,3,FALSE) -> 200 | L117: N | M117: NA | N117: 4 | O117: =IF(OR(L117="NA",L117="E"),"NA",IF(L117="Y",COUNTIF($M$1:N116,N117)+1,COUNTIF($M$1:N116,N117)+1)) -> 8 | P117: TA4.12 | Q117: Advancing human rights through provision of address and ending homelessness: Geo-located statistics improvement and inclusive homelessness enumeration | R117: Ruff Institute of Global Homelessness (IGH), DePaul University; Instituto Nacional de Estadística (INE-Uruguay); Google | S117: Promoción de los derechos humanos mediante la provisión de direcciones y la erradicación de la falta de vivienda: Mejora de las estadísticas geolocalizadas y enumeración inclusiva de las personas sin hogar | T117: Instituto Ruff de Global Homelessness (IGH), Universidad DePaul; Instituto Nacional de Estadística (INE-Uruguay); Google | U117: Day2_Time_Slot3_Parallel 06 | W117: 1:00
A118: 169 | B118: Day2_Time_Slot3_Parallel 07 | C118: Day2_Time_Slot3 | D118: 2 | E118: 3 | F118: Parallel 07 | G118: =VLOOKUP($D$1&D118,UNWDF_Medellín_2024_en!A:F,5,FALSE) -> 2024-11-14 | H118: =MID(VLOOKUP($D$1&D118&$E$1&E118,UNWDF_Medellín_2024_en!A:F,5,FALSE),1,SEARCH("(",VLOOKUP($D$1&D118&$E$1&E118,UNWDF_Medellín_2024_en!A:F,5,FALSE))-2) -> 13:30 - 14:30 | I118: 1:00 | J118: =HLOOKUP($F118,UNWDF_Medellín_2024_en!$H$14:$S$16,2,FALSE) -> Room 6 | K118: =HLOOKUP($F118,UNWDF_Medellín_2024_en!$H$14:$S$16,3,FALSE) -> 150 | L118: N | M118: NA | N118: _T | O118: =IF(OR(L118="NA",L118="E"),"NA",IF(L118="Y",COUNTIF($M$1:N117,N118)+1,COUNTIF($M$1:N117,N118)+1)) -> 8 | P118: TED.205 | Q118: Data dissemination across contexts | R118: World Bank-United Nations High Commissioner for Refugees Joint Data Center on Forced Displacement (WB-UNHCR JDC); IMPACT Initiatives; Instituto Estatal de Transparencia, Acceso a la Información y Protección de Datos Personales (INFONL) | S118: Difusión de datos en diferentes contextos | T118: Centro Conjunto de Datos sobre Desplazamiento Forzado del Alto Comisionado de las Naciones Unidas para los Refugiados-Banco Mundial (ACNUR-BM); Iniciativas IMPACT; Instituto Estatal de Transparencia, Acceso a la Información y Protección de Datos Personales (INFONL) | U118: Day2_Time_Slot3_Parallel 07 | V118: NEW ORG LIST | W118: 1:00
A119: 170 | B119: Day2_Time_Slot3_Parallel 08 | C119: Day2_Time_Slot3 | D119: 2 | E119: 3 | F119: Parallel 08 | G119: =VLOOKUP($D$1&D119,UNWDF_Medellín_2024_en!A:F,5,FALSE) -> 2024-11-14 | H119: =MID(VLOOKUP($D$1&D119&$E$1&E119,UNWDF_Medellín_2024_en!A:F,5,FALSE),1,SEARCH("(",VLOOKUP($D$1&D119&$E$1&E119,UNWDF_Medellín_2024_en!A:F,5,FALSE))-2) -> 13:30 - 14:30 | I119: 1:00 | J119: =HLOOKUP($F119,UNWDF_Medellín_2024_en!$H$14:$S$16,2,FALSE) -> Room 7 | K119: =HLOOKUP($F119,UNWDF_Medellín_2024_en!$H$14:$S$16,3,FALSE) -> 150 | L119: N | M119: NA | N119: 4 | O119: =IF(OR(L119="NA",L119="E"),"NA",IF(L119="Y",COUNTIF($M$1:N118,N119)+1,COUNTIF($M$1:N118,N119)+1)) -> 9 | P119: TA4.19 | Q119: Measure for Measure: Leveraging gender data capacity measures in practice | R119: United Nations Entity for Gender Equality and the Empowerment of Women (UN Women); Partnership in Statistics for Development in the 21st Century (PARIS21); World Bank (WB); Open Data Watch (ODW) | S119: Medida por medida: Aprovechar en la práctica las medidas de capacidad de los datos sobre género | T119: Entidad de las Naciones Unidas para la Igualdad de Género y el Empoderamiento de la Mujer (ONU Mujeres); Alianza en Estadísticas para el Desarrollo en el Siglo XXI (PARIS21); Banco Mundial (BM); Open Data Watch (ODW) | U119: Day2_Time_Slot3_Parallel 08 | W119: 1:00
A120: 171 | B120: Day2_Time_Slot3_Parallel 09 | C120: Day2_Time_Slot3 | D120: 2 | E120: 3 | F120: Parallel 09 | G120: =VLOOKUP($D$1&D120,UNWDF_Medellín_2024_en!A:F,5,FALSE) -> 2024-11-14 | H120: =MID(VLOOKUP($D$1&D120&$E$1&E120,UNWDF_Medellín_2024_en!A:F,5,FALSE),1,SEARCH("(",VLOOKUP($D$1&D120&$E$1&E120,UNWDF_Medellín_2024_en!A:F,5,FALSE))-2) -> 13:30 - 14:30 | I120: 1:00 | J120: =HLOOKUP($F120,UNWDF_Medellín_2024_en!$H$14:$S$16,2,FALSE) -> Room 8 | K120: =HLOOKUP($F120,UNWDF_Medellín_2024_en!$H$14:$S$16,3,FALSE) -> 90 | L120: N | M120: NA | N120: NA | O120: =IF(OR(L120="NA",L120="E"),"NA",IF(L120="Y",COUNTIF($M$1:N119,N120)+1,COUNTIF($M$1:N119,N120)+1)) -> 186 | P120: Local_4 | Q120: Medellín: data ecosystem in the CTI district | R120: TBC | S120: Medellín: Ecosistema de datos en el distrito de ciencia, tecnología e innovación | T120: Por Confirmar | U120: Day2_Time_Slot3_Parallel 09 | W120: 1:00
A121: 172 | B121: Day2_Time_Slot3_Parallel 10 | C121: Day2_Time_Slot3 | D121: 2 | E121: 3 | F121: Parallel 10 | G121: =VLOOKUP($D$1&D121,UNWDF_Medellín_2024_en!A:F,5,FALSE) -> 2024-11-14 | H121: =MID(VLOOKUP($D$1&D121&$E$1&E121,UNWDF_Medellín_2024_en!A:F,5,FALSE),1,SEARCH("(",VLOOKUP($D$1&D121&$E$1&E121,UNWDF_Medellín_2024_en!A:F,5,FALSE))-2) -> 13:30 - 14:30 | I121: 1:00 | J121: =HLOOKUP($F121,UNWDF_Medellín_2024_en!$H$14:$S$16,2,FALSE) -> Room 9 | K121: =HLOOKUP($F121,UNWDF_Medellín_2024_en!$H$14:$S$16,3,FALSE) -> 60 | L121: N | M121: NA | N121: _L | O121: =IF(OR(L121="NA",L121="E"),"NA",IF(L121="Y",COUNTIF($M$1:N120,N121)+1,COUNTIF($M$1:N120,N121)+1)) -> 6 | P121: LEARN.305 | Q121: Workshop: Delivering immunisation services to zero-dose children through geospatial microplanning support documents: why, what, and how? | R121: Flowminder Foundation | S121: Taller: Prestación de servicios de inmunización a niños con dosis cero mediante documentos geoespaciales de apoyo a la microplanificación: ¿por qué, qué y cómo? | T121: Fundación Flowminder | U121: Day2_Time_Slot3_Parallel 10 | W121: 1:00
A122: 173 | B122: Day2_Time_Slot3_Parallel 11 | C122: Day2_Time_Slot3 | D122: 2 | E122: 3 | F122: Parallel 11 | G122: =VLOOKUP($D$1&D122,UNWDF_Medellín_2024_en!A:F,5,FALSE) -> 2024-11-14 | H122: =MID(VLOOKUP($D$1&D122&$E$1&E122,UNWDF_Medellín_2024_en!A:F,5,FALSE),1,SEARCH("(",VLOOKUP($D$1&D122&$E$1&E122,UNWDF_Medellín_2024_en!A:F,5,FALSE))-2) -> 13:30 - 14:30 | I122: 1:00 | J122: =HLOOKUP($F122,UNWDF_Medellín_2024_en!$H$14:$S$16,2,FALSE) -> Room 10 | K122: =HLOOKUP($F122,UNWDF_Medellín_2024_en!$H$14:$S$16,3,FALSE) -> 60 | L122: E | M122: NA | N122: NA | O122: =IF(OR(L122="NA",L122="E"),"NA",IF(L122="Y",COUNTIF($M$1:N121,N122)+1,COUNTIF($M$1:N121,N122)+1)) -> NA | P122: =IF(N122="NA","NA","TA"&N122&"."&TEXT(O122,"0#")) -> NA | Q122: TBC | R122: TBC | S122: Por Confirmar | T122: Por Confirmar | U122: Day2_Time_Slot3_Parallel 11 | W122: 1:00
A123: 174 | B123: Day2_Time_Slot3_Parallel 12 | C123: Day2_Time_Slot3 | D123: 2 | E123: 3 | F123: Parallel 12 | G123: =VLOOKUP($D$1&D123,UNWDF_Medellín_2024_en!A:F,5,FALSE) -> 2024-11-14 | H123: =MID(VLOOKUP($D$1&D123&$E$1&E123,UNWDF_Medellín_2024_en!A:F,5,FALSE),1,SEARCH("(",VLOOKUP($D$1&D123&$E$1&E123,UNWDF_Medellín_2024_en!A:F,5,FALSE))-2) -> 13:30 - 14:30 | I123: 1:00 | J123: =HLOOKUP($F123,UNWDF_Medellín_2024_en!$H$14:$S$16,2,FALSE) -> NA | K123: =HLOOKUP($F123,UNWDF_Medellín_2024_en!$H$14:$S$16,3,FALSE) -> NA | L123: NA | M123: NA | N123: NA | O123: =IF(OR(L123="NA",L123="E"),"NA",IF(L123="Y",COUNTIF($M$1:N122,N123)+1,COUNTIF($M$1:N122,N123)+1)) -> NA | P123: =IF(N123="NA","NA","TA"&N123&"."&TEXT(O123,"0#")) -> NA | Q123: NA | R123: NA | S123: NA | T123: NA | U123: Day2_Time_Slot3_Parallel 12 | W123: 1:00
A124: 74 | B124: Day2_Time_Slot4_Parallel 01 | C124: Day2_Time_Slot4 | D124: 2 | E124: 4 | F124: Parallel 01 | G124: =VLOOKUP($D$1&D124,UNWDF_Medellín_2024_en!A:F,5,FALSE) -> 2024-11-14 | H124: =MID(VLOOKUP($D$1&D124&$E$1&E124,UNWDF_Medellín_2024_en!A:F,5,FALSE),1,SEARCH("(",VLOOKUP($D$1&D124&$E$1&E124,UNWDF_Medellín_2024_en!A:F,5,FALSE))-2) -> 14:45 - 15:45 | I124: 1:00 | J124: =HLOOKUP($F124,UNWDF_Medellín_2024_en!$H$14:$S$16,2,FALSE) -> Plenary Room | K124: =HLOOKUP($F124,UNWDF_Medellín_2024_en!$H$14:$S$16,3,FALSE) -> 3000 | L124: NA | M124: NA | N124: NA | O124: =IF(OR(L124="NA",L124="E"),"NA",IF(L124="Y",COUNTIF($M$1:N123,N124)+1,COUNTIF($M$1:N123,N124)+1)) -> NA | P124: NA | Q124: NA | R124: NA | S124: NA | T124: NA | U124: Day2_Time_Slot4_Parallel 01 | W124: 1:00
A125: 175 | B125: Day2_Time_Slot4_Parallel 02 | C125: Day2_Time_Slot4 | D125: 2 | E125: 4 | F125: Parallel 02 | G125: =VLOOKUP($D$1&D125,UNWDF_Medellín_2024_en!A:F,5,FALSE) -> 2024-11-14 | H125: =MID(VLOOKUP($D$1&D125&$E$1&E125,UNWDF_Medellín_2024_en!A:F,5,FALSE),1,SEARCH("(",VLOOKUP($D$1&D125&$E$1&E125,UNWDF_Medellín_2024_en!A:F,5,FALSE))-2) -> 14:45 - 15:45 | I125: 1:00 | J125: =HLOOKUP($F125,UNWDF_Medellín_2024_en!$H$14:$S$16,2,FALSE) -> Room 1 | K125: =HLOOKUP($F125,UNWDF_Medellín_2024_en!$H$14:$S$16,3,FALSE) -> 300 | L125: N | M125: NA | N125: 2 | O125: =IF(OR(L125="NA",L125="E"),"NA",IF(L125="Y",COUNTIF($M$1:N124,N125)+1,COUNTIF($M$1:N124,N125)+1)) -> 6 | P125: TA2.3 | Q125: Global perspectives on enabling access to platform data for public-interest research | R125: Open Data Institute (ODI); IT for Change; PIT Policy Lab; Pollicy; Open Cities Lab | S125: Perspectivas mundiales sobre el acceso a datos de plataformas para la investigación de interés público | T125: Open Data Institute (ODI); IT for Change; PIT Policy Lab; Pollicy; Open Cities Lab | U125: Day2_Time_Slot4_Parallel 02 | W125: 1:00
A126: 176 | B126: Day2_Time_Slot4_Parallel 03 | C126: Day2_Time_Slot4 | D126: 2 | E126: 4 | F126: Parallel 03 | G126: =VLOOKUP($D$1&D126,UNWDF_Medellín_2024_en!A:F,5,FALSE) -> 2024-11-14 | H126: =MID(VLOOKUP($D$1&D126&$E$1&E126,UNWDF_Medellín_2024_en!A:F,5,FALSE),1,SEARCH("(",VLOOKUP($D$1&D126&$E$1&E126,UNWDF_Medellín_2024_en!A:F,5,FALSE))-2) -> 14:45 - 15:45 | I126: 1:00 | J126: =HLOOKUP($F126,UNWDF_Medellín_2024_en!$H$14:$S$16,2,FALSE) -> Room 2 | K126: =HLOOKUP($F126,UNWDF_Medellín_2024_en!$H$14:$S$16,3,FALSE) -> 200 | L126: N | M126: NA | N126: 1 | O126: =IF(OR(L126="NA",L126="E"),"NA",IF(L126="Y",COUNTIF($M$1:N125,N126)+1,COUNTIF($M$1:N125,N126)+1)) -> 12 | P126: TA1.9 | Q126: What's next for statistics on ageing and older people? Lessons from SDGs and beyond. | R126: HelpAge International; Office for National Statistics (ONS-UK); Titchfield City Group; China National Committee on Ageing (CNCA) | S126: ¿Cuál es el futuro de las estadísticas sobre el envejecimiento y las personas mayores? Lecciones de los ODS y más allá. | T126: HelpAge International; Oficina de Estadísticas Nacionales (ONS-Reino Unido); Titchfield City Group; China National Committee on Ageing (CNCA) | U126: Day2_Time_Slot4_Parallel 03 | W126: 1:00
A127: 177 | B127: Day2_Time_Slot4_Parallel 04 | C127: Day2_Time_Slot4 | D127: 2 | E127: 4 | F127: Parallel 04 | G127: =VLOOKUP($D$1&D127,UNWDF_Medellín_2024_en!A:F,5,FALSE) -> 2024-11-14 | H127: =MID(VLOOKUP($D$1&D127&$E$1&E127,UNWDF_Medellín_2024_en!A:F,5,FALSE),1,SEARCH("(",VLOOKUP($D$1&D127&$E$1&E127,UNWDF_Medellín_2024_en!A:F,5,FALSE))-2) -> 14:45 - 15:45 | I127: 1:00 | J127: =HLOOKUP($F127,UNWDF_Medellín_2024_en!$H$14:$S$16,2,FALSE) -> Room 3 | K127: =HLOOKUP($F127,UNWDF_Medellín_2024_en!$H$14:$S$16,3,FALSE) -> 200 | L127: N | M127: NA | N127: 1 | O127: =IF(OR(L127="NA",L127="E"),"NA",IF(L127="Y",COUNTIF($M$1:N126,N127)+1,COUNTIF($M$1:N126,N127)+1)) -> 13 | P127: TA1.7 | Q127: Technological Innovations in Census and Surveys: CAWI and Smart Geospatial Tools (preEA) | R127: Instituto Nacional de Estadística (INE-Uruguay); United Nations Statistics Division (UNSD-DESA); Departamento Administrativo Nacional de Estadística (DANE-Colombia); United Nations Population Fund (UNFPA); WorldPop/University of Southampton; United Nations High Commissioner for Refugees (UNHCR); Institut national de la statistique (INS-Cameroun) | S127: Innovaciones tecnológicas en censos y encuestas: CAWI y herramientas geoespaciales inteligentes (preEA) | T127: Instituto Nacional de Estadística (INE-Uruguay); División de Estadísticas de las Naciones Unidas (UNSD-DESA); Departamento Administrativo Nacional de Estadística (DANE-Colombia); Fondo de Población de las Naciones Unidas (UNFPA); WorldPop/Universidad de Southampton; Alto Comisionado de las Naciones Unidas para los Refugiados (ACNUR); Instituto Nacional de Estadística (INS-Camerún) | U127: Day2_Time_Slot4_Parallel 04 | W127: 1:00
A128: 178 | B128: Day2_Time_Slot4_Parallel 05 | C128: Day2_Time_Slot4 | D128: 2 | E128: 4 | F128: Parallel 05 | G128: =VLOOKUP($D$1&D128,UNWDF_Medellín_2024_en!A:F,5,FALSE) -> 2024-11-14 | H128: =MID(VLOOKUP($D$1&D128&$E$1&E128,UNWDF_Medellín_2024_en!A:F,5,FALSE),1,SEARCH("(",VLOOKUP($D$1&D128&$E$1&E128,UNWDF_Medellín_2024_en!A:F,5,FALSE))-2) -> 14:45 - 15:45 | I128: 1:00 | J128: =HLOOKUP($F128,UNWDF_Medellín_2024_en!$H$14:$S$16,2,FALSE) -> Room 4 | K128: =HLOOKUP($F128,UNWDF_Medellín_2024_en!$H$14:$S$16,3,FALSE) -> 200 | L128: N | M128: NA | N128: 2 | O128: =IF(OR(L128="NA",L128="E"),"NA",IF(L128="Y",COUNTIF($M$1:N127,N128)+1,COUNTIF($M$1:N127,N128)+1)) -> 7 | P128: TA2.15 | Q128: Getting to the finish line: Strengthening country capacity to translate gender data into use and impact by 2030 | R128: Open Data Watch (ODW); World Bank (WB); Data2X;United Nations Entity for Gender Equality and the Empowerment of Women (UN Women); Bureau of Statistics of Lesotho; Equal Measures 2030 | S128: Llegar a la meta: Reforzar la capacidad de los países para traducir los datos de género en uso e impacto para 2030. | T128: Open Data Watch (ODW); Banco Mundial (BM); Data2X; Entidad de las Naciones Unidas para la Igualdad de Género y el Empoderamiento de la Mujer (ONU Mujeres); Bureau of Statistics of Lesotho; Equal Measures 2030 | U128: Day2_Time_Slot4_Parallel 05 | V128: es | W128: 1:00
A129: 179 | B129: Day2_Time_Slot4_Parallel 06 | C129: Day2_Time_Slot4 | D129: 2 | E129: 4 | F129: Parallel 06 | G129: =VLOOKUP($D$1&D129,UNWDF_Medellín_2024_en!A:F,5,FALSE) -> 2024-11-14 | H129: =MID(VLOOKUP($D$1&D129&$E$1&E129,UNWDF_Medellín_2024_en!A:F,5,FALSE),1,SEARCH("(",VLOOKUP($D$1&D129&$E$1&E129,UNWDF_Medellín_2024_en!A:F,5,FALSE))-2) -> 14:45 - 15:45 | I129: 1:00 | J129: =HLOOKUP($F129,UNWDF_Medellín_2024_en!$H$14:$S$16,2,FALSE) -> Room 5 | K129: =HLOOKUP($F129,UNWDF_Medellín_2024_en!$H$14:$S$16,3,FALSE) -> 200 | L129: N | M129: NA | N129: 4 | O129: =IF(OR(L129="NA",L129="E"),"NA",IF(L129="Y",COUNTIF($M$1:N128,N129)+1,COUNTIF($M$1:N128,N129)+1)) -> 10 | P129: TA4.13 | Q129: Mixed Movement Monitoring in the Americas – A joint UN regional monitoring system lead by UNHCR, UNICEF and WFP | R129: United Nations High Commissioner for Refugees (UNHCR); United Nations Children's Fund (UNICEF); United Nations World Food Programme (UNWFP) | S129: Monitoreo de movimientos mixtos en las Américas - Un sistema de monitoreo regional conjunto de la ONU liderado por ACNUR, UNICEF y PMA | T129: Alto Comisionado de las Naciones Unidas para los Refugiados (ACNUR); Fondo de las Naciones Unidas para la Infancia (UNICEF); Programa Mundial de Alimentos de las Naciones Unidas (WFP) | U129: Day2_Time_Slot4_Parallel 06 | W129: 1:00
A130: 180 | B130: =C130&"_"&F130 -> Day2_Time_Slot4_Parallel 07 | C130: =$D$1&D130&"_"&$E$1&E130 -> Day2_Time_Slot4 | D130: 2 | E130: 4 | F130: Parallel 07 | G130: =VLOOKUP($D$1&D130,UNWDF_Medellín_2024_en!A:F,5,FALSE) -> 2024-11-14 | H130: =MID(VLOOKUP($D$1&D130&$E$1&E130,UNWDF_Medellín_2024_en!A:F,5,FALSE),1,SEARCH("(",VLOOKUP($D$1&D130&$E$1&E130,UNWDF_Medellín_2024_en!A:F,5,FALSE))-2) -> 14:45 - 15:45 | I130: =TEXT(MID(H130,SEARCH("-",H130)+2,LEN(H130)-SEARCH("-",H130)-1)-MID(H130,1,SEARCH("-",H130)-1),"h:mm") -> 1:00 | J130: =HLOOKUP($F130,UNWDF_Medellín_2024_en!$H$14:$S$16,2,FALSE) -> Room 6 | K130: =HLOOKUP($F130,UNWDF_Medellín_2024_en!$H$14:$S$16,3,FALSE) -> 150 | L130: N | M130: NA | N130: _T | O130: =IF(OR(L130="NA",L130="E"),"NA",IF(L130="Y",COUNTIF($M$1:N129,N130)+1,COUNTIF($M$1:N129,N130)+1)) -> 9 | P130: TED.206 | Q130: Optimizing Job Creation Metrics in Infrastructure Projects to Strengthen Social Safety Nets for Vulnerable Households in Africa / Rebuilding Somalia’s Data and Statistical System: The Power of Data and Partnerships for the SDG / The State of Africa’s Data Governance for Statistical Interoperability, in the age of Artificial Intelligence | R130: African Union Development Agency, New Partnership for Africa's Development (AUDA-NEPAD) / Directorate of National Statistics (DNS-Somalia) / Data Economy Policy Hub (DepHUB); European University Institute | S130: Optimización de las métricas de creación de empleo en los proyectos de infraestructuras para reforzar las redes de seguridad social de los hogares vulnerables en África / Reconstrucción del Sistema de Datos y Estadísticas de Somalia: El poder de los datos y las asociaciones para los ODS / El Estado de la Gobernanza de Datos de África para la Interoperabilidad Estadística, en la era de la Inteligencia Artificial | T130: Agencia de Desarrollo de la Unión Africana, Nueva Asociación para el Desarrollo de África (AUDA-NEPAD) / Dirección de Estadísticas Nacionales (DNS-Somalia) / Centro de Política de Economía de Datos (DepHUB); Instituto Universitario Europeo | U130: =B130 -> Day2_Time_Slot4_Parallel 07 | W130: 1:00
A131: 181 | B131: Day2_Time_Slot4_Parallel 08 | C131: Day2_Time_Slot4 | D131: 2 | E131: 4 | F131: Parallel 08 | G131: =VLOOKUP($D$1&D131,UNWDF_Medellín_2024_en!A:F,5,FALSE) -> 2024-11-14 | H131: =MID(VLOOKUP($D$1&D131&$E$1&E131,UNWDF_Medellín_2024_en!A:F,5,FALSE),1,SEARCH("(",VLOOKUP($D$1&D131&$E$1&E131,UNWDF_Medellín_2024_en!A:F,5,FALSE))-2) -> 14:45 - 15:45 | I131: 1:00 | J131: =HLOOKUP($F131,UNWDF_Medellín_2024_en!$H$14:$S$16,2,FALSE) -> Room 7 | K131: =HLOOKUP($F131,UNWDF_Medellín_2024_en!$H$14:$S$16,3,FALSE) -> 150 | L131: N | M131: NA | N131: _A | O131: =IF(OR(L131="NA",L131="E"),"NA",IF(L131="Y",COUNTIF($M$1:N130,N131)+1,COUNTIF($M$1:N130,N131)+1)) -> 2 | P131: ANCE.405 | Q131: One Data One Humanity - The power of collaboratives and collective data action | R131: World Bank (WB); International Telecommunication Union (ITU); Ministry of Economy and Digital Transformation, Spain; Telefonica; United Nations Environment Programme (UNEP); African Water and Sanitation Association (AFWASA); Athena Infonomics LLC; Independent; Aapti Institute; Robert Bosch Stiftung GmbH | S131: One Data One Humanity - El poder de las colaboraciones y la acción colectiva de datos | T131: Banco Mundial (BM); Unión Internacional de Telecomunicaciones (UIT); Ministerio de Economía y Transformación Digital, España; Telefónica; Programa de las Naciones Unidas para el Medio Ambiente (PNUMA); Asociación Africana de Agua y Saneamiento (AFWASA); Athena Infonomics LLC; Independiente; Instituto Aapti; Robert Bosch Stiftung GmbH | U131: Day2_Time_Slot4_Parallel 08 | W131: =I131 -> 1:00
A132: 182 | B132: Day2_Time_Slot4_Parallel 09 | C132: Day2_Time_Slot4 | D132: 2 | E132: 4 | F132: Parallel 09 | G132: =VLOOKUP($D$1&D132,UNWDF_Medellín_2024_en!A:F,5,FALSE) -> 2024-11-14 | H132: =MID(VLOOKUP($D$1&D132&$E$1&E132,UNWDF_Medellín_2024_en!A:F,5,FALSE),1,SEARCH("(",VLOOKUP($D$1&D132&$E$1&E132,UNWDF_Medellín_2024_en!A:F,5,FALSE))-2) -> 14:45 - 15:45 | I132: 1:00 | J132: =HLOOKUP($F132,UNWDF_Medellín_2024_en!$H$14:$S$16,2,FALSE) -> Room 8 | K132: =HLOOKUP($F132,UNWDF_Medellín_2024_en!$H$14:$S$16,3,FALSE) -> 90 | L132: N | M132: NA | N132: NA | O132: =IF(OR(L132="NA",L132="E"),"NA",IF(L132="Y",COUNTIF($M$1:N131,N132)+1,COUNTIF($M$1:N131,N132)+1)) -> 202 | P132: Local_5 | Q132: Opportunities and challenges on data governance in Colombia and the global south | R132: Departamento Nacional de Planeación (DNP-Colombia); CND; Departamento Administrativo Nacional de Estadística (DANE-Colombia); Ministry of Information Technologies and Communications (MINTIC-Colombia), Administrative Department of the Presidency of the Republic (DAPRE-Colombia) | S132: Oportunidades y desafíos en la gobernanza de datos de colombia y el sur global | T132: Departamento Nacional de Planeación (DNP-Colombia), CND, Departamento Administrativo Nacional de Estadística (DANE-Colombia); Ministerio de Tecnologías de la Información y las Comunicaciones (MINTIC-Colombia), Departamento Administrativo de la Presidencia de la Republica (DAPRE-Colombia) | U132: Day2_Time_Slot4_Parallel 09 | W132: 1:00
A133: 183 | B133: Day2_Time_Slot4_Parallel 10 | C133: Day2_Time_Slot4 | D133: 2 | E133: 4 | F133: Parallel 10 | G133: =VLOOKUP($D$1&D133,UNWDF_Medellín_2024_en!A:F,5,FALSE) -> 2024-11-14 | H133: =MID(VLOOKUP($D$1&D133&$E$1&E133,UNWDF_Medellín_2024_en!A:F,5,FALSE),1,SEARCH("(",VLOOKUP($D$1&D133&$E$1&E133,UNWDF_Medellín_2024_en!A:F,5,FALSE))-2) -> 14:45 - 15:45 | I133: 1:00 | J133: =HLOOKUP($F133,UNWDF_Medellín_2024_en!$H$14:$S$16,2,FALSE) -> Room 9 | K133: =HLOOKUP($F133,UNWDF_Medellín_2024_en!$H$14:$S$16,3,FALSE) -> 60 | L133: N | M133: NA | N133: _L | O133: =IF(OR(L133="NA",L133="E"),"NA",IF(L133="Y",COUNTIF($M$1:N131,N133)+1,COUNTIF($M$1:N131,N133)+1)) -> 7 | P133: LEARN.306 | Q133: Response Integration of data sources to measure displacement in the face of extreme events and disasters | R133: Oficina Nacional de Estadística (ONE-República Dominicana) | S133: Integración de Respuestas de fuentes de datos para medir los desplazamientos ante fenómenos extremos y catástrofes | T133: Oficina Nacional de Estadística (ONE-República Dominicana) | U133: Day2_Time_Slot4_Parallel 10 | W133: 1:00
A134: 184 | B134: Day2_Time_Slot4_Parallel 11 | C134: Day2_Time_Slot4 | D134: 2 | E134: 4 | F134: Parallel 11 | G134: =VLOOKUP($D$1&D134,UNWDF_Medellín_2024_en!A:F,5,FALSE) -> 2024-11-14 | H134: =MID(VLOOKUP($D$1&D134&$E$1&E134,UNWDF_Medellín_2024_en!A:F,5,FALSE),1,SEARCH("(",VLOOKUP($D$1&D134&$E$1&E134,UNWDF_Medellín_2024_en!A:F,5,FALSE))-2) -> 14:45 - 15:45 | I134: 1:00 | J134: =HLOOKUP($F134,UNWDF_Medellín_2024_en!$H$14:$S$16,2,FALSE) -> Room 10 | K134: =HLOOKUP($F134,UNWDF_Medellín_2024_en!$H$14:$S$16,3,FALSE) -> 60 | L134: N | M134: NA | N134: _L | O134: =IF(OR(L134="NA",L134="E"),"NA",IF(L134="Y",COUNTIF($M$1:N133,N134)+1,COUNTIF($M$1:N133,N134)+1)) -> 8 | P134: LEARN.311 | Q134: Parliamentarian for an hour: what's behind evidence-based policy making? | R134: Partnership in Statistics for Development in the 21st Century (PARIS21) | S134: Parlamentario por una hora: ¿qué hay detrás de la elaboración de políticas basadas en pruebas? | T134: Alianza en Estadísticas para el Desarrollo en el Siglo XXI (PARIS21) | U134: Day2_Time_Slot4_Parallel 11 | W134: 1:00
A135: 185 | B135: Day2_Time_Slot4_Parallel 12 | C135: Day2_Time_Slot4 | D135: 2 | E135: 4 | F135: Parallel 12 | G135: =VLOOKUP($D$1&D135,UNWDF_Medellín_2024_en!A:F,5,FALSE) -> 2024-11-14 | H135: =MID(VLOOKUP($D$1&D135&$E$1&E135,UNWDF_Medellín_2024_en!A:F,5,FALSE),1,SEARCH("(",VLOOKUP($D$1&D135&$E$1&E135,UNWDF_Medellín_2024_en!A:F,5,FALSE))-2) -> 14:45 - 15:45 | I135: 1:00 | J135: =HLOOKUP($F135,UNWDF_Medellín_2024_en!$H$14:$S$16,2,FALSE) -> NA | K135: =HLOOKUP($F135,UNWDF_Medellín_2024_en!$H$14:$S$16,3,FALSE) -> NA | L135: NA | M135: NA | N135: NA | O135: =IF(OR(L135="NA",L135="E"),"NA",IF(L135="Y",COUNTIF($M$1:N134,N135)+1,COUNTIF($M$1:N134,N135)+1)) -> NA | P135: =IF(N135="NA","NA","TA"&N135&"."&TEXT(O135,"0#")) -> NA | Q135: NA | R135: NA | S135: NA | T135: NA | U135: Day2_Time_Slot4_Parallel 12 | W135: 1:00
A136: 8 | B136: Day2_Time_Slot5_Parallel 01 | C136: Day2_Time_Slot5 | D136: 2 | E136: 5 | F136: Parallel 01 | G136: =VLOOKUP($D$1&D136,UNWDF_Medellín_2024_en!A:F,5,FALSE) -> 2024-11-14 | H136: =MID(VLOOKUP($D$1&D136&$E$1&E136,UNWDF_Medellín_2024_en!A:F,5,FALSE),1,SEARCH("(",VLOOKUP($D$1&D136&$E$1&E136,UNWDF_Medellín_2024_en!A:F,5,FALSE))-2) -> 16:15 - 17:15 | I136: 1:00 | J136: =HLOOKUP($F136,UNWDF_Medellín_2024_en!$H$14:$S$16,2,FALSE) -> Plenary Room | K136: =HLOOKUP($F136,UNWDF_Medellín_2024_en!$H$14:$S$16,3,FALSE) -> 3000 | L136: NA | M136: NA | N136: NA | O136: =IF(OR(L136="NA",L136="E"),"NA",IF(L136="Y",COUNTIF($M$1:N135,N136)+1,COUNTIF($M$1:N135,N136)+1)) -> NA | P136: NA | Q136: NA | R136: NA | S136: NA | T136: NA | U136: Day2_Time_Slot5_Parallel 01 | W136: 1:00
A137: 75 | B137: Day2_Time_Slot5_Parallel 02 | C137: Day2_Time_Slot5 | D137: 2 | E137: 5 | F137: Parallel 02 | G137: =VLOOKUP($D$1&D137,UNWDF_Medellín_2024_en!A:F,5,FALSE) -> 2024-11-14 | H137: =MID(VLOOKUP($D$1&D137&$E$1&E137,UNWDF_Medellín_2024_en!A:F,5,FALSE),1,SEARCH("(",VLOOKUP($D$1&D137&$E$1&E137,UNWDF_Medellín_2024_en!A:F,5,FALSE))-2) -> 16:15 - 17:15 | I137: 1:00 | J137: =HLOOKUP($F137,UNWDF_Medellín_2024_en!$H$14:$S$16,2,FALSE) -> Room 1 | K137: =HLOOKUP($F137,UNWDF_Medellín_2024_en!$H$14:$S$16,3,FALSE) -> 300 | L137: N | M137: NA | N137: 3 | O137: =IF(OR(L137="NA",L137="E"),"NA",IF(L137="Y",COUNTIF($M$1:N136,N137)+1,COUNTIF($M$1:N136,N137)+1)) -> 4 | P137: TA3.3 | Q137: Co-creating data action in the digital age: learnings from global community activists on how to create fairer, more inclusive and accountable data practices | R137: Universidad de los Andes; Restless Development; Global Partnership for Sustainable Development Data (GPSDD) | S137: Co-crear la acción de datos en la era digital: aprendizajes de activistas de la comunidad global sobre cómo crear prácticas de datos más justas, inclusivas y responsables. | T137: Universidad de los Andes; Restless Development; Alianza Global para los Datos del Desarrollo Sostenible (GPSDD) | U137: Day2_Time_Slot5_Parallel 02 | W137: 1:00
A138: 76 | B138: Day2_Time_Slot5_Parallel 03 | C138: Day2_Time_Slot5 | D138: 2 | E138: 5 | F138: Parallel 03 | G138: =VLOOKUP($D$1&D138,UNWDF_Medellín_2024_en!A:F,5,FALSE) -> 2024-11-14 | H138: =MID(VLOOKUP($D$1&D138&$E$1&E138,UNWDF_Medellín_2024_en!A:F,5,FALSE),1,SEARCH("(",VLOOKUP($D$1&D138&$E$1&E138,UNWDF_Medellín_2024_en!A:F,5,FALSE))-2) -> 16:15 - 17:15 | I138: 1:00 | J138: =HLOOKUP($F138,UNWDF_Medellín_2024_en!$H$14:$S$16,2,FALSE) -> Room 2 | K138: =HLOOKUP($F138,UNWDF_Medellín_2024_en!$H$14:$S$16,3,FALSE) -> 200 | L138: N | M138: NA | N138: 1 | O138: =IF(OR(L138="NA",L138="E"),"NA",IF(L138="Y",COUNTIF($M$1:N137,N138)+1,COUNTIF($M$1:N137,N138)+1)) -> 14 | P138: TA1.10 | Q138: Equity and inclusion in humanitarian and fragile settings: the role of inclusive population data, gender and intersectional approaches | R138: United Nations Entity for Gender Equality and the Empowerment of Women (UN Women); United Nations Office for the Coordination of Humanitarian Affairs (OCHA); African Development Bank (AfDB); CLEAR Global; Government of Uganda, Uganda; Central Statistical Agency (CSA-Ethiopia); United Nations Population Fund (UNFPA); International Organisation for Migration (IOM); United Nations High Commissioner for Refugees (UNHCR) | S138: Garantizar la equidad y la inclusión en la acción humanitaria: Integrar la interseccionalidad y tener en cuenta los desplazamientos forzosos en las estimaciones de población subnacionales | T138: Entidad de las Naciones Unidas para la Igualdad de Género y el Empoderamiento de la Mujer (ONU Mujeres); Oficina de Coordinación de Asuntos Humanitarios de las Naciones Unidas (OCHA); Banco Africano de Desarrollo (AfDB); CLEAR Global; Gobierno de Uganda, Uganda; Agencia Central de Estadísticas (CSA-Etiopía); Fondo de Población de las Naciones Unidas (UNFPA); Organización Internacional para las Migraciones (OIM); Alto Comisionado de las Naciones Unidas para los Refugiados (ACNUR) | U138: Day2_Time_Slot5_Parallel 03 | V138: NNN | W138: 1:00
A139: 77 | B139: Day2_Time_Slot5_Parallel 04 | C139: Day2_Time_Slot5 | D139: 2 | E139: 5 | F139: Parallel 04 | G139: =VLOOKUP($D$1&D139,UNWDF_Medellín_2024_en!A:F,5,FALSE) -> 2024-11-14 | H139: =MID(VLOOKUP($D$1&D139&$E$1&E139,UNWDF_Medellín_2024_en!A:F,5,FALSE),1,SEARCH("(",VLOOKUP($D$1&D139&$E$1&E139,UNWDF_Medellín_2024_en!A:F,5,FALSE))-2) -> 16:15 - 17:15 | I139: 1:00 | J139: =HLOOKUP($F139,UNWDF_Medellín_2024_en!$H$14:$S$16,2,FALSE) -> Room 3 | K139: =HLOOKUP($F139,UNWDF_Medellín_2024_en!$H$14:$S$16,3,FALSE) -> 200 | L139: N | M139: NA | N139: 2 | O139: =IF(OR(L139="NA",L139="E"),"NA",IF(L139="Y",COUNTIF($M$1:N138,N139)+1,COUNTIF($M$1:N138,N139)+1)) -> 8 | P139: TA2.6 | Q139: Data Modernisation in Small Island Developing States: Insights and Innovations from the Pacific | R139: Pacific Community (SPC); Vanuatu Bureau of Statistics; Samoa Bureau of Statistics; Bureau of Statistics and Plans (BSP-Guam); Institut de la statistique de la Polynésie Française | S139: Modernización de los datos en los pequeños Estados Insulares en Desarrollo: Perspectivas e innovaciones desde el Pacífico | T139: Comunidad del Pacífico (SPC); Oficina Nacional de Estadísticas (NSO-Vanuatu); Oficina de Estadísticas de Samoa; Oficina de Estadísticas y Planes (BSP-Guam); Instituto Nacional de Estadística y Estudios Económicos (INSEE-Francia) | U139: Day2_Time_Slot5_Parallel 04 | W139: 1:00
A140: 78 | B140: Day2_Time_Slot5_Parallel 05 | C140: Day2_Time_Slot5 | D140: 2 | E140: 5 | F140: Parallel 05 | G140: =VLOOKUP($D$1&D140,UNWDF_Medellín_2024_en!A:F,5,FALSE) -> 2024-11-14 | H140: =MID(VLOOKUP($D$1&D140&$E$1&E140,UNWDF_Medellín_2024_en!A:F,5,FALSE),1,SEARCH("(",VLOOKUP($D$1&D140&$E$1&E140,UNWDF_Medellín_2024_en!A:F,5,FALSE))-2) -> 16:15 - 17:15 | I140: 1:00 | J140: =HLOOKUP($F140,UNWDF_Medellín_2024_en!$H$14:$S$16,2,FALSE) -> Room 4 | K140: =HLOOKUP($F140,UNWDF_Medellín_2024_en!$H$14:$S$16,3,FALSE) -> 200 | L140: N | M140: NA | N140: 2 | O140: =IF(OR(L140="NA",L140="E"),"NA",IF(L140="Y",COUNTIF($M$1:N139,N140)+1,COUNTIF($M$1:N139,N140)+1)) -> 9 | P140: TA2.16 | Q140: Lessons from Ecuador and Peru: Leveraging new forms of spatial data for achieving global and national goals for biodiversity and sustainable development | R140: United Nations Development Programme (UNDP); UN Environment Programme World Conservation Monitoring Centre (UNEP-WCMC) | S140: Aprovechamiento de nuevas formas de datos espaciales para alcanzar objetivos mundiales y nacionales de biodiversidad y desarrollo sostenible | T140: Programa de las Naciones Unidas para el Desarrollo (PNUD); Centro Mundial de Monitoreo de la Conservación del Medio Ambiente (UNEP-WCMC) | U140: Day2_Time_Slot5_Parallel 05 | V140: es | W140: 1:00
A141: 79 | B141: Day2_Time_Slot5_Parallel 06 | C141: Day2_Time_Slot5 | D141: 2 | E141: 5 | F141: Parallel 06 | G141: =VLOOKUP($D$1&D141,UNWDF_Medellín_2024_en!A:F,5,FALSE) -> 2024-11-14 | H141: =MID(VLOOKUP($D$1&D141&$E$1&E141,UNWDF_Medellín_2024_en!A:F,5,FALSE),1,SEARCH("(",VLOOKUP($D$1&D141&$E$1&E141,UNWDF_Medellín_2024_en!A:F,5,FALSE))-2) -> 16:15 - 17:15 | I141: 1:00 | J141: =HLOOKUP($F141,UNWDF_Medellín_2024_en!$H$14:$S$16,2,FALSE) -> Room 5 | K141: =HLOOKUP($F141,UNWDF_Medellín_2024_en!$H$14:$S$16,3,FALSE) -> 200 | L141: N | M141: NA | N141: 4 | O141: =IF(OR(L141="NA",L141="E"),"NA",IF(L141="Y",COUNTIF($M$1:N140,N141)+1,COUNTIF($M$1:N140,N141)+1)) -> 11 | P141: TA4.14 | Q141: Fostering inclusive statistics on migration, displacement, and statelessness: drawing lessons from national and regional experiences | R141: Members of the Expert Group on Refugee, IDP & Stateless Statistics (EGRISS) and the Collaborative on Administrative Data including: African Union Commission (AUC); Instituto Nacional de Estadistica (INE-Honduras); Joint IDP Profiling Service (JIPS); United Nations Statistics Division (UNSD-DESA); United Nations Economic Commission for Latin America and the Caribbean (UNECLAC / CEPAL); United Nations Refugee Agency (UNHCR) | S141: Fomento de estadísticas inclusivas sobre migración, desplazamiento y apatridia: lecciones extraídas de las experiencias nacionales y regionales | T141: Miembros del Grupo de Expertos en Estadísticas de Refugiados, Desplazados Internos y Apátridas (EGRISS) y del Colaborativo sobre Datos Administrativos, incluyendo: Comisión de la Unión Africana (AUC); Instituto Nacional de Estadística (INE-Honduras); Servicio Conjunto de Perfiles de Desplazados Internos (JIPS); División de Estadísticas de las Naciones Unidas (UNSD-DESA); Comisión Económica para América Latina y el Caribe de las Naciones Unidas (UNECLAC / CEPAL); Agencia de Refugiados de las Naciones Unidas (ACNUR) | U141: Day2_Time_Slot5_Parallel 06 | W141: 1:00
A142: 80 | B142: Day2_Time_Slot5_Parallel 07 | C142: Day2_Time_Slot5 | D142: 2 | E142: 5 | F142: Parallel 07 | G142: =VLOOKUP($D$1&D142,UNWDF_Medellín_2024_en!A:F,5,FALSE) -> 2024-11-14 | H142: =MID(VLOOKUP($D$1&D142&$E$1&E142,UNWDF_Medellín_2024_en!A:F,5,FALSE),1,SEARCH("(",VLOOKUP($D$1&D142&$E$1&E142,UNWDF_Medellín_2024_en!A:F,5,FALSE))-2) -> 16:15 - 17:15 | I142: 1:00 | J142: =HLOOKUP($F142,UNWDF_Medellín_2024_en!$H$14:$S$16,2,FALSE) -> Room 6 | K142: =HLOOKUP($F142,UNWDF_Medellín_2024_en!$H$14:$S$16,3,FALSE) -> 150 | L142: N | M142: NA | N142: _T | O142: =IF(OR(L142="NA",L142="E"),"NA",IF(L142="Y",COUNTIF($M$1:N141,N142)+1,COUNTIF($M$1:N141,N142)+1)) -> 10 | P142: TED.213 | Q142: Child Deprivation Mapping Through Satellite Imagery and Other Geospatial Data / Earth Observation (EO) data and Open-Source Intelligence (OSINT) to track and monitor trafficking and organized crime / State of the OpenStreetMap in Niger / Partnering for success: UK’s mapping and statistical agencies working together for the public good | R142: Statistics Indonesia (BPS); United Nations Children's Fund (UNICEF) / United Nations Office on Drugs and Crime (UNODC) / CAGIDEV-COM / Office for National Statistics (ONS-UK); Ordnance Survey, United Kingdom of Great Britain and Northern Ireland | S142: Cartografía de la privación infantil mediante imágenes de satélite y otros datos geoespaciales / Datos de Observación de la Tierra e Inteligencia de Fuentes Abiertas (OSINT) para rastrear y vigilar el tráfico y el crimen organizado / Estado del OpenStreetMap en Níger / Asociarse para el éxito: Las agencias de cartografía y estadística del Reino Unido colaboran por el bien público | T142: Estadísticas de Indonesia (BPS); Fondo de las Naciones Unidas para la Infancia (UNICEF) / Oficina de las Naciones Unidas contra la Droga y el Delito (UNODC) / CAGIDEV-COM / Oficina de Estadísticas Nacionales (ONS-Reino Unido); Ordnance Survey, Reino Unido de Gran Bretaña e Irlanda del Norte | U142: Day2_Time_Slot5_Parallel 07 | W142: 1:00
A143: 81 | B143: Day2_Time_Slot5_Parallel 08 | C143: Day2_Time_Slot5 | D143: 2 | E143: 5 | F143: Parallel 08 | G143: =VLOOKUP($D$1&D143,UNWDF_Medellín_2024_en!A:F,5,FALSE) -> 2024-11-14 | H143: =MID(VLOOKUP($D$1&D143&$E$1&E143,UNWDF_Medellín_2024_en!A:F,5,FALSE),1,SEARCH("(",VLOOKUP($D$1&D143&$E$1&E143,UNWDF_Medellín_2024_en!A:F,5,FALSE))-2) -> 16:15 - 17:15 | I143: 1:00 | J143: =HLOOKUP($F143,UNWDF_Medellín_2024_en!$H$14:$S$16,2,FALSE) -> Room 7 | K143: =HLOOKUP($F143,UNWDF_Medellín_2024_en!$H$14:$S$16,3,FALSE) -> 150 | L143: N | M143: NA | N143: _A | O143: =IF(OR(L143="NA",L143="E"),"NA",IF(L143="Y",COUNTIF($M$1:N142,N143)+1,COUNTIF($M$1:N142,N143)+1)) -> 3 | P143: ANCE.404 | Q143: Data-Driven Empowerment: Launching Gender and Diversity Equality Initiatives | R143: Departamento Administrativo Nacional de Estadística (DANE-Colombia); International Institute for Sustainable Development (IISD); International Civil Society Centre; Management And Sustainable Development Institute (Msd); The NGO Forum on Cambodia; General Statistics Office (GSO-Viet Nam); Inter-American Development Bank (IDB); United Nations Economic Commission for Latin America and the Caribbean (UNECLAC / CEPAL); Instituto Nacional de Estadísticas (INE-Chile); Women's Funding Network; Candid | S143: Empoderamiento basado en datos: Lanzamiento de iniciativas de igualdad de género y diversidad | T143: Departamento Administrativo Nacional de Estadística (DANE-Colombia); Instituto Internacional para el Desarrollo Sostenible (IISD); Centro Internacional de la Sociedad Civil; Instituto de Gestión y Desarrollo Sostenible (Msd); Foro de ONG en Camboya; Oficina General de Estadísticas (GSO-Vietnam); Banco Interamericano de Desarrollo (BID); Comisión Económica para América Latina y el Caribe de las Naciones Unidas (UNECLAC / CEPAL); Instituto Nacional de Estadísticas (INE-Chile); Women's Funding Network; Candid | U143: Day2_Time_Slot5_Parallel 08 | W143: 1:00
A144: 82 | B144: Day2_Time_Slot5_Parallel 09 | C144: Day2_Time_Slot5 | D144: 2 | E144: 5 | F144: Parallel 09 | G144: =VLOOKUP($D$1&D144,UNWDF_Medellín_2024_en!A:F,5,FALSE) -> 2024-11-14 | H144: =MID(VLOOKUP($D$1&D144&$E$1&E144,UNWDF_Medellín_2024_en!A:F,5,FALSE),1,SEARCH("(",VLOOKUP($D$1&D144&$E$1&E144,UNWDF_Medellín_2024_en!A:F,5,FALSE))-2) -> 16:15 - 17:15 | I144: 1:00 | J144: =HLOOKUP($F144,UNWDF_Medellín_2024_en!$H$14:$S$16,2,FALSE) -> Room 8 | K144: =HLOOKUP($F144,UNWDF_Medellín_2024_en!$H$14:$S$16,3,FALSE) -> 90 | L144: N | M144: NA | N144: NA | O144: =IF(OR(L144="NA",L144="E"),"NA",IF(L144="Y",COUNTIF($M$1:N143,N144)+1,COUNTIF($M$1:N143,N144)+1)) -> 217 | P144: Local_6 | Q144: Government data and research data : encounters and misunderstandings | R144: Minsitry of Science, Technology and Innovation, Colombia | S144: Datos gubernamentales y datos de investigación : encuentros y desencuentros | T144: Minsterio de Ciencia, tecnología e Innovacion, Colombia | U144: Day2_Time_Slot5_Parallel 09 | W144: 1:00
A145: 83 | B145: Day2_Time_Slot5_Parallel 10 | C145: Day2_Time_Slot5 | D145: 2 | E145: 5 | F145: Parallel 10 | G145: =VLOOKUP($D$1&D145,UNWDF_Medellín_2024_en!A:F,5,FALSE) -> 2024-11-14 | H145: =MID(VLOOKUP($D$1&D145&$E$1&E145,UNWDF_Medellín_2024_en!A:F,5,FALSE),1,SEARCH("(",VLOOKUP($D$1&D145&$E$1&E145,UNWDF_Medellín_2024_en!A:F,5,FALSE))-2) -> 16:15 - 17:15 | I145: 1:00 | J145: =HLOOKUP($F145,UNWDF_Medellín_2024_en!$H$14:$S$16,2,FALSE) -> Room 9 | K145: =HLOOKUP($F145,UNWDF_Medellín_2024_en!$H$14:$S$16,3,FALSE) -> 60 | L145: N | M145: NA | N145: _L | O145: =IF(OR(L145="NA",L145="E"),"NA",IF(L145="Y",COUNTIF($M$1:N144,N145)+1,COUNTIF($M$1:N144,N145)+1)) -> 9 | P145: LEARN.307 | Q145: Framing data equity: the importance of embedding data equity to enhance trust | R145: World Economic Forum (WEF); DataKind; Usahidi Inc; Mastercard | S145: Enmarcar la equidad de los datos: la importancia de integrarla para aumentar la confianza | T145: Foro Económico Mundial (WEF); DataKind; Usahidi Inc; Mastercard | U145: Day2_Time_Slot5_Parallel 10 | W145: 1:00
A146: 84 | B146: Day2_Time_Slot5_Parallel 11 | C146: Day2_Time_Slot5 | D146: 2 | E146: 5 | F146: Parallel 11 | G146: =VLOOKUP($D$1&D146,UNWDF_Medellín_2024_en!A:F,5,FALSE) -> 2024-11-14 | H146: =MID(VLOOKUP($D$1&D146&$E$1&E146,UNWDF_Medellín_2024_en!A:F,5,FALSE),1,SEARCH("(",VLOOKUP($D$1&D146&$E$1&E146,UNWDF_Medellín_2024_en!A:F,5,FALSE))-2) -> 16:15 - 17:15 | I146: 1:00 | J146: =HLOOKUP($F146,UNWDF_Medellín_2024_en!$H$14:$S$16,2,FALSE) -> Room 10 | K146: =HLOOKUP($F146,UNWDF_Medellín_2024_en!$H$14:$S$16,3,FALSE) -> 60 | L146: N | M146: NA | N146: _L | O146: =IF(OR(L146="NA",L146="E"),"NA",IF(L146="Y",COUNTIF($M$1:N145,N146)+1,COUNTIF($M$1:N145,N146)+1)) -> 10 | P146: LEARN.312 | Q146: Data Solidarity and PLUTO: Introducing a Tool for Bringing Public Value to Data Governance | R146: University of Vienna; Digital Transformations for Health (DTH) Lab | S146: Solidaridad de Datos y PLUTO: Presentación de una herramienta para aportar valor público a la gobernanza de datos | T146: Universidad de Viena; Laboratorio de Transformaciones Digitales para la Salud (DTH) | U146: Day2_Time_Slot5_Parallel 11 | W146: 1:00
A147: 85 | B147: Day2_Time_Slot5_Parallel 12 | C147: Day2_Time_Slot5 | D147: 2 | E147: 5 | F147: Parallel 12 | G147: =VLOOKUP($D$1&D147,UNWDF_Medellín_2024_en!A:F,5,FALSE) -> 2024-11-14 | H147: =MID(VLOOKUP($D$1&D147&$E$1&E147,UNWDF_Medellín_2024_en!A:F,5,FALSE),1,SEARCH("(",VLOOKUP($D$1&D147&$E$1&E147,UNWDF_Medellín_2024_en!A:F,5,FALSE))-2) -> 16:15 - 17:15 | I147: 1:00 | J147: =HLOOKUP($F147,UNWDF_Medellín_2024_en!$H$14:$S$16,2,FALSE) -> NA | K147: =HLOOKUP($F147,UNWDF_Medellín_2024_en!$H$14:$S$16,3,FALSE) -> NA | L147: NA | M147: NA | N147: NA | O147: =IF(OR(L147="NA",L147="E"),"NA",IF(L147="Y",COUNTIF($M$1:N146,N147)+1,COUNTIF($M$1:N146,N147)+1)) -> NA | P147: =IF(N147="NA","NA","TA"&N147&"."&TEXT(O147,"0#")) -> NA | Q147: NA | R147: NA | S147: NA | T147: NA | U147: Day2_Time_Slot5_Parallel 12 | W147: 1:00
A148: 9 | B148: Day2_Time_Slot6_Parallel 01 | C148: Day2_Time_Slot6 | D148: 2 | E148: 6 | F148: Parallel 01 | G148: =VLOOKUP($D$1&D148,UNWDF_Medellín_2024_en!A:F,5,FALSE) -> 2024-11-14 | H148: =MID(VLOOKUP($D$1&D148&$E$1&E148,UNWDF_Medellín_2024_en!A:F,5,FALSE),1,SEARCH("(",VLOOKUP($D$1&D148&$E$1&E148,UNWDF_Medellín_2024_en!A:F,5,FALSE))-2) -> 18:00 - 20:00 | I148: 2:00 | J148: =HLOOKUP($F148,UNWDF_Medellín_2024_en!$H$14:$S$16,2,FALSE) -> Plenary Room | K148: =HLOOKUP($F148,UNWDF_Medellín_2024_en!$H$14:$S$16,3,FALSE) -> 3000 | L148: NA | M148: NA | N148: _S | O148: =IF(OR(L148="NA",L148="E"),"NA",IF(L148="Y",COUNTIF($M$1:N147,N148)+1,COUNTIF($M$1:N147,N148)+1)) -> NA | P148: TA_S.NA | Q148: Reception: A recognition of partners on Data for Sustainable Development | R148: Departamento Administrativo Nacional de Estadística (DANE-Colombia) | S148: Recepción: Reconocimiento a los aliados de los datos para el desarrollo sostenible. | T148: Departamento Administrativo Nacional de Estadística (DANE-Colombia) | U148: Day2_Time_Slot6_Parallel 01 | W148: 2:00
A149: 10 | B149: Day3_Time_Slot1_Parallel 01 | C149: Day3_Time_Slot1 | D149: 3 | E149: 1 | F149: Parallel 01 | G149: =VLOOKUP($D$1&D149,UNWDF_Medellín_2024_en!A:F,5,FALSE) -> 2024-11-15 | H149: =MID(VLOOKUP($D$1&D149&$E$1&E149,UNWDF_Medellín_2024_en!A:F,5,FALSE),1,SEARCH("(",VLOOKUP($D$1&D149&$E$1&E149,UNWDF_Medellín_2024_en!A:F,5,FALSE))-2) -> 09:00 - 10:15 | I149: 1:15 | J149: =HLOOKUP($F149,UNWDF_Medellín_2024_en!$H$14:$S$16,2,FALSE) -> Plenary Room | K149: =HLOOKUP($F149,UNWDF_Medellín_2024_en!$H$14:$S$16,3,FALSE) -> 3000 | L149: Y | M149: NA | N149: 4 | O149: =IF(OR(L149="NA",L149="E"),"NA",IF(L149="Y",COUNTIF($M$1:N148,N149)+1,COUNTIF($M$1:N148,N149)+1)) -> 12 | P149: TA4.1 | Q149: Effective partnerships for better data and a more equitable data ecosystem | R149: UN World Data Forum Programme Committee (UNWDF PC) | S149: Asociaciones eficaces para obtener mejores datos y un ecosistema de datos más equitativo | T149: Comité del Programa del Foro Mundial de Datos de la ONU (UNWDF PC) | U149: Day3_Time_Slot1_Parallel 01 | W149: 1:15
A150: 86 | B150: Day3_Time_Slot1_Parallel 02 | C150: Day3_Time_Slot1 | D150: 3 | E150: 1 | F150: Parallel 02 | G150: =VLOOKUP($D$1&D150,UNWDF_Medellín_2024_en!A:F,5,FALSE) -> 2024-11-15 | H150: =MID(VLOOKUP($D$1&D150&$E$1&E150,UNWDF_Medellín_2024_en!A:F,5,FALSE),1,SEARCH("(",VLOOKUP($D$1&D150&$E$1&E150,UNWDF_Medellín_2024_en!A:F,5,FALSE))-2) -> 09:00 - 10:15 | I150: 1:15 | J150: =HLOOKUP($F150,UNWDF_Medellín_2024_en!$H$14:$S$16,2,FALSE) -> Room 1 | K150: =HLOOKUP($F150,UNWDF_Medellín_2024_en!$H$14:$S$16,3,FALSE) -> 300 | L150: NA | M150: NA | N150: NA | O150: =IF(OR(L150="NA",L150="E"),"NA",IF(L150="Y",COUNTIF($M$1:N149,N150)+1,COUNTIF($M$1:N149,N150)+1)) -> NA | P150: =IF(N150="NA","NA","TA"&N150&"."&TEXT(O150,"0#")) -> NA | Q150: NA | R150: NA | S150: NA | T150: NA | U150: Day3_Time_Slot1_Parallel 02 | W150: 1:15
